Workbook

Sheet إجمالي الشركة
L1: المستحق من الأجر | BC1: المستقطعات من الأجور
AZ2: =SUBTOTAL(9,data[الإجمالي]) -> 1834827.273 | BF2: =SUBTOTAL(9,data[كسب عمل 2024]) -> 7420.79 | CL2: =SUBTOTAL(9,data[إجمالي المستقطع]) -> 500119.52 | CM2: =SUBTOTAL(9,data[صافي الأجر]) -> 1431923.781
C3: كود الشركة | D3: كود البنك | E3: اسم الموظف | F3: الرقم القومي | G3: رقم الجوال | H3: الشركة المدمجة | I3: الوظيفة | J3: الدرجة | K3: مرجع بحث | L3: الأجر الأساسي | M3: الحافز | N3: عمولة انتاج | O3: معونة مرضي | P3: بدل مخاطر | Q3: بدل انتقال | R3: بدل انتقال محامين | S3: بدل اقامة | T3: بدل نقدي | U3: بدل خزينة | V3: بدل غذاء | W3: بدل مظهر | X3: بدل تمثيل | Y3: بدل ضيافة | Z3: بدل مواصلات | AA3: بدل شاشة | AB3: بدل وجبة | AC3: بدل تفرغ | AD3: بدل تباع | AE3: إجمالي بدلات | AF3: علاوة 2014 | AG3: علاوة 2015 | AH3: علاوة 2016 | AI3: علاوة 2017 | AJ3: علاوة 2018 | AK3: علاوة 2019 | AL3: علاوة 2020 | AM3: علاوة 2021 | AN3: علاوة 2022 | AO3: علاوة 2023 | AP3: علاوة 2024 | AQ3: علاوة غلاء معيشة 2023 | AR3: علاوة اجتماعية | AS3: علاوات استثنائة | AT3: إجمالي علاوات | AU3: منحة عيد العمال | AV3: رد مستحقات | AW3: حصة صاحب العمل | AX3: متوسط مكافأة | AY3: Column2 | AZ3: الإجمالي | BA3: مكمل الأجر | BB3: المستحق | BC3: ح. بدل انتقال | BD3: ح. بدل مخاطر | BE3: التأمينات | BF3: كسب عمل 2024 | BG3: غياب بدل مخاطر | BH3: غياب بدل انتقال | BI3: خصم غياب عام | BJ3: خصومات إدارية | BK3: اشتراك أجازات خاصة | BL3: اعانه وفاه | BM3: نقابة | BN3: خصم نفقات | BO3: أجر بالزيادة | BP3: خصم حافز | BQ3: سولار | BR3: عهد | BS3: تلفيات | BT3: عجز | BU3: نقليات | BV3: جزاءات | BW3: تنفيذ أحكام | BX3: الشهداء | BY3: صندوق إعاقة | BZ3: Column1 | CA3: نادي | CB3: زمالة | CC3: حج وعمرة | CD3: قسط تأمينات | CE3: صندوق تكافل | CF3: مدة سابقة | CG3: معونة اجتماعية | CH3: تأمين صحي بورسعيد | CI3: تامينات صاحب العمل | CJ3: متوسط منح | CK3: Column3 | CL3: إجمالي المستقطع | CM3: صافي الأجر
C4: 101000 | D4: 11231 | E4: ايمن صلاح الدين السباعي | H4: المباشر | I4: مدير عام الشئون المالية ( مكلف رئيس قطاع ادارى ) | J4: مدير عام | K4: 100111231ايمن صلاح الدين السباعيالمباشرمدير عام الشئون المالية ( مكلف رئيس قطاع ادارى )مدير عام | L4: 3183.357 | M4: 3570.12 | P4: 446.265 | Q4: 188.32 | R4: 0 | U4: 0 | V4: 0 | W4: 0 | X4: 80 | AA4: 0 | AD4: 0 | AE4: 714.585 | AF4: 91.92 | AG4: 102.64 | AH4: 120 | AJ4: 190 | AK4: 55.58 | AL4: 106.06 | AM4: 136.18 | AN4: 194.29 | AO4: 207.89 | AP4: 222.44 | AQ4: 600 | AR4: 10 | AT4: 2037 | AU4: 10 | AW4: 1875 | AZ4: 11390.062 | BA4: 0 | BB4: 11390.062 | BC4: 0 | BD4: 0 | BE4: 1100 | BF4: 151.25 | BK4: 6.18 | BL4: 0.5 | BM4: 3 | BN4: 0 | BO4: 0 | BP4: 0 | BR4: 0 | BS4: 0 | BT4: 0 | BV4: 0 | BW4: 0 | BX4: 5.3 | BY4: 10 | CD4: 0 | CE4: 0 | CI4: 1875 | CJ4: 0 | CL4: 2999.98 | CM4: 8390.082
C5: 101004 | D5: 11189 | E5: جمال السيد محمود حشيش | H5: المباشر | I5: مدير إدارة شئون الافراد | J5: الاولي | K5: 100211189جمال السيد محمود حشيشالمباشرمدير إدارة شئون الافرادالاولي | L5: 2998.93 | M5: 3598.716 | P5: 449.8395 | Q5: 188.32 | R5: 0 | U5: 0 | V5: 0 | W5: 0 | X5: 0 | AA5: 0 | AD5: 0 | AE5: 638.1595 | AF5: 92.37 | AG5: 103.28 | AH5: 120 | AJ5: 190 | AK5: 59.95 | AL5: 106.91 | AM5: 137.27 | AN5: 195.84 | AO5: 209.55 | AP5: 224.22 | AQ5: 600 | AR5: 10 | AT5: 2049.39 | AU5: 10 | AW5: 1875 | AZ5: 11170.1955 | BA5: 0 | BB5: 11170.1955 | BC5: 0 | BD5: 0 | BE5: 1100 | BF5: 116.84 | BK5: 0 | BL5: 0.5 | BM5: 3 | BN5: 0 | BO5: 0 | BP5: 0 | BR5: 0 | BS5: 0 | BT5: 0 | BV5: 0 | BW5: 0 | BX5: 5.38 | BY5: 5 | CD5: 0 | CE5: 0 | CI5: 1875 | CJ5: 0 | CL5: 2988.88 | CM5: 8181.3155
C6: 101023 | D6: 11305 | E6: وائل محمد السيد الدبيكى | H6: المباشر | I6: ا.ش.ع.ثان | J6: الثانية | K6: 100311305وائل محمد السيد الدبيكىالمباشرا.ش.ع.ثانالثانية | L6: 2139.19 | M6: 2567.028 | P6: 320.8785 | Q6: 188.32 | R6: 0 | U6: 0 | V6: 0 | W6: 0 | X6: 0 | AA6: 0 | AD6: 0 | AE6: 509.1985 | AF6: 70.21 | AG6: 78.58 | AH6: 94.4 | AJ6: 190 | AK6: 42.76 | AL6: 76.26 | AM6: 97.92 | AN6: 139.7 | AO6: 149.48 | AP6: 159.94 | AQ6: 600 | AR6: 10 | AT6: 1709.25 | AU6: 10 | AW6: 1387.5 | AZ6: 8322.1665 | BA6: 0 | BB6: 8322.1665 | BC6: 0 | BD6: 0 | BE6: 814 | BF6: 0 | BK6: 4.14 | BL6: 0.5 | BM6: 3 | BN6: 0 | BO6: 0 | BP6: 0 | BR6: 0 | BS6: 0 | BT6: 0 | BV6: 0 | BW6: 0 | BX6: 3.96 | BY6: 3 | CD6: 0 | CE6: 0 | CI6: 1387.5 | CJ6: 0 | CL6: 2216.1 | CM6: 6106.0665
C7: 101034 | D7: 11366 | E7: ريهام محمد كمال | H7: المباشر | I7: اخصائى شئون عاملين | J7: الثالثة | K7: 100411366ريهام محمد كمال المباشراخصائى شئون عاملينالثالثة | L7: 1019.87 | M7: 1223.844 | P7: 152.9805 | Q7: 188.32 | R7: 0 | U7: 0 | V7: 0 | W7: 0 | X7: 0 | AA7: 0 | AD7: 0 | AE7: 341.3005 | AF7: 36.22 | AG7: 38.22 | AH7: 65 | AJ7: 190 | AK7: 27.43 | AL7: 36.36 | AM7: 46.68 | AN7: 66.6 | AO7: 71.26 | AP7: 83.28 | AQ7: 600 | AR7: 6 | AT7: 1267.05 | AU7: 10 | AW7: 937.5 | AZ7: 4799.5645 | BA7: 1200.4355 | BB7: 6000 | BC7: 0 | BD7: 0 | BE7: 550 | BF7: 0 | BK7: 48 | BL7: 0.5 | BM7: 3 | BN7: 0 | BO7: 0 | BP7: 0 | BR7: 0 | BS7: 0 | BT7: 0 | BV7: 0 | BW7: 0 | BX7: 2.79 | BY7: 3 | CD7: 0 | CE7: 0 | CI7: 937.5 | CJ7: 0 | CL7: 1544.79 | CM7: 4455.21
C8: 101011 | D8: 11147 | E8: امجد صلاح الدين السباعي | H8: المباشر | I8: مدير ادارة العلاقات العامه | J8: الاولي | K8: 100511147امجد صلاح الدين السباعيالمباشرمدير ادارة العلاقات العامهالاولي | L8: 2674.13 | M8: 3208.956 | P8: 401.1195 | Q8: 188.32 | R8: 0 | U8: 0 | V8: 0 | W8: 0 | X8: 0 | AA8: 0 | AD8: 0 | AE8: 589.4395 | AF8: 93.74 | AG8: 104.69 | AH8: 120 | AJ8: 190 | AK8: 53.46 | AL8: 95.33 | AM8: 122.4 | AN8: 174.63 | AO8: 186.86 | AP8: 199.94 | AQ8: 600 | AR8: 10 | AT8: 1951.05 | AU8: 10 | AW8: 1687.5 | AZ8: 10121.0755 | BA8: 0 | BB8: 10121.0755 | BC8: 0 | BD8: 0 | BE8: 990 | BF8: 75.84 | BK8: 0 | BL8: 0.5 | BM8: 3 | BN8: 0 | BO8: 0 | BP8: 0 | BR8: 0 | BS8: 0 | BT8: 0 | BV8: 0 | BW8: 0 | BX8: 4.82 | BY8: 5 | CD8: 0 | CE8: 0 | CI8: 1687.5 | CJ8: 0 | CL8: 2690.82 | CM8: 7430.2555
C9: 101040 | D9: 21130 | E9: محمد كمال على مواس | H9: المباشر | I9: مدير ادارة الشئون الادارية | J9: الاولى | K9: 100621130محمد كمال على مواسالمباشرمدير ادارة الشئون الادارية الاولى | L9: 2730.45 | M9: 3276.54 | P9: 409.5675 | Q9: 188.32 | R9: 0 | U9: 0 | V9: 0 | W9: 0 | X9: 0 | AA9: 0 | AD9: 0 | AE9: 597.8875 | AF9: 90.23 | AG9: 100.79 | AH9: 120 | AJ9: 190 | AK9: 54.58 | AL9: 97.34 | AM9: 124.98 | AN9: 178.31 | AO9: 190.79 | AP9: 204.15 | AQ9: 600 | AR9: 10 | AT9: 1961.17 | AU9: 10 | AW9: 1725 | AZ9: 10301.0475 | BA9: 0 | BB9: 10301.0475 | BC9: 0 | BD9: 0 | BE9: 1012 | BF9: 88.5 | BK9: 0 | BL9: 0.5 | BM9: 3 | BN9: 0 | BO9: 0 | BP9: 0 | BR9: 0 | BS9: 0 | BT9: 0 | BV9: 0 | BW9: 0 | BX9: 4.89 | BY9: 5 | CD9: 0 | CE9: 0 | CI9: 1725 | CJ9: 0 | CL9: 2750.39 | CM9: 7550.6575
C10: 101008 | D10: 11047 | E10: طارق محمد عبد التواب | H10: المباشر | I10: مدير إدارة السكرتارية | J10: الاولى | K10: 100711047طارق محمد عبد التوابالمباشرمدير إدارة السكرتاريةالاولى | L10: 2674.13 | M10: 3208.956 | P10: 401.1195 | Q10: 188.32 | R10: 0 | U10: 0 | V10: 0 | W10: 0 | X10: 0 | AA10: 0 | AD10: 0 | AE10: 589.4395 | AF10: 93.74 | AG10: 104.69 | AH10: 120 | AJ10: 190 | AK10: 53.47 | AL10: 95.33 | AM10: 122.4 | AN10: 174.63 | AO10: 186.86 | AP10: 199.94 | AQ10: 600 | AR10: 10 | AT10: 1951.06 | AU10: 10 | AW10: 1687.5 | AZ10: 10121.0855 | BA10: 0 | BB10: 10121.0855 | BC10: 0 | BD10: 0 | BE10: 990 | BF10: 71.16 | BK10: 0 | BL10: 0.5 | BM10: 3 | BN10: 0 | BO10: 0 | BP10: 0 | BR10: 0 | BS10: 0 | BT10: 0 | BV10: 0 | BW10: 0 | BX10: 4.89 | BY10: 5 | CD10: 0 | CE10: 0 | CI10: 1687.5 | CJ10: 0 | CL10: 2690.89 | CM10: 7430.1955
C11: 101047 | D11: 21387 | E11: وليد محمد حسن عثمان | H11: المباشر | I11: ا.ش.ع | J11: الاولي | K11: 100821387وليد محمد حسن عثمانالمباشرا.ش.عالاولي | L11: 2269.89 | M11: 2723.868 | P11: 340.4835 | Q11: 188.32 | R11: 0 | U11: 0 | V11: 0 | W11: 0 | X11: 0 | AA11: 0 | AD11: 0 | AE11: 528.8035 | AF11: 75.13 | AG11: 84.06 | AH11: 107.57 | AJ11: 190 | AK11: 45.38 | AL11: 80.92 | AM11: 103.9 | AN11: 148.23 | AO11: 158.61 | AP11: 169.71 | AQ11: 600 | AR11: 10 | AT11: 1773.51 | AU11: 10 | AW11: 1462.5 | AZ11: 8768.5715 | BA11: 0 | BB11: 8768.5715 | BC11: 0 | BD11: 0 | BE11: 858 | BF11: 0 | BK11: 133.5 | BL11: 0.5 | BM11: 3 | BN11: 0 | BO11: 0 | BP11: 0 | BR11: 0 | BS11: 0 | BT11: 0 | BV11: 0 | BW11: 0 | BX11: 4.17 | BY11: 3 | CD11: 0 | CE11: 0 | CI11: 1462.5 | CJ11: 0 | CL11: 2464.67 | CM11: 6303.9015
C12: 101015 | D12: 11201 | E12: مرفت محمد زينهم | H12: المباشر | I12: مدير إدارة خدمه المواطنين | J12: الاولي | K12: 100911201مرفت محمد زينهمالمباشرمدير إدارة خدمه المواطنينالاولي | L12: 2627.11 | M12: 3152.532 | P12: 394.0665 | Q12: 188.32 | R12: 0 | U12: 0 | V12: 0 | W12: 0 | X12: 0 | AA12: 0 | AD12: 0 | AE12: 582.3865 | AF12: 86.84 | AG12: 96.99 | AH12: 120 | AJ12: 190 | AK12: 52.52 | AL12: 93.65 | AM12: 120.25 | AN12: 171.56 | AO12: 183.57 | AP12: 196.42 | AQ12: 600 | AR12: 6 | AT12: 1917.8 | AU12: 10 | AW12: 1650 | AZ12: 9939.8285 | BA12: 0 | BB12: 9939.8285 | BC12: 0 | BD12: 0 | BE12: 968 | BF12: 63.66 | BK12: 0 | BL12: 0.5 | BM12: 3 | BN12: 0 | BO12: 0 | BP12: 0 | BR12: 0 | BS12: 0 | BT12: 0 | BV12: 0 | BW12: 0 | BX12: 4.72 | BY12: 5 | CD12: 0 | CE12: 0 | CI12: 1650 | CJ12: 0 | CL12: 2631.22 | CM12: 7308.6085
C13: 101029 | D13: 11350 | E13: فاطمه محسن ابو الفضل | H13: المباشر | I13: ا.ش.ع | J13: الاولي | K13: 101011350فاطمه محسن ابو الفضلالمباشرا.ش.عالاولي | L13: 1171.72 | M13: 1406.064 | P13: 175.758 | Q13: 188.32 | R13: 0 | U13: 0 | V13: 0 | W13: 0 | X13: 0 | AA13: 0 | AD13: 0 | AE13: 364.078 | AF13: 39.2 | AG13: 43.63 | AH13: 65 | AJ13: 190 | AK13: 23.42 | AL13: 41.77 | AM13: 53.63 | AN13: 76.52 | AO13: 81.87 | AP13: 87.61 | AQ13: 600 | AR13: 6 | AT13: 1308.65 | AU13: 10 | AW13: 937.5 | AZ13: 5198.012 | BA13: 801.988 | BB13: 6000 | BC13: 0 | BD13: 0 | BE13: 550 | BF13: 0 | BK13: 50.5 | BL13: 0.5 | BM13: 3 | BN13: 0 | BO13: 0 | BP13: 0 | BR13: 0 | BS13: 0 | BT13: 0 | BV13: 0 | BW13: 0 | BX13: 2.77 | BY13: 3 | CD13: 0 | CE13: 0 | CI13: 937.5 | CJ13: 0 | CL13: 1547.27 | CM13: 4452.73
C14: 101019 | D14: 11276 | E14: مها خليل عبد الرسول | H14: المباشر | I14: رئيس قسم التامينات والمعاشات | J14: الثالثه | K14: 101111276مها خليل عبد الرسولالمباشررئيس قسم التامينات والمعاشاتالثالثه | L14: 2139.25 | M14: 2567.1 | P14: 320.8875 | Q14: 188.32 | R14: 0 | U14: 0 | V14: 0 | W14: 0 | X14: 0 | AA14: 0 | AD14: 0 | AE14: 509.2075 | AF14: 70.22 | AG14: 78.59 | AH14: 94.4 | AJ14: 190 | AK14: 42.76 | AL14: 76.26 | AM14: 97.92 | AN14: 139.7 | AO14: 149.48 | AP14: 159.94 | AQ14: 600 | AR14: 6 | AT14: 1705.27 | AU14: 10 | AW14: 1387.5 | AZ14: 8318.3275 | BA14: 0 | BB14: 8318.3275 | BC14: 0 | BD14: 0 | BE14: 814 | BF14: 0 | BK14: 0 | BL14: 0.5 | BM14: 3 | BN14: 0 | BO14: 0 | BP14: 0 | BR14: 0 | BS14: 0 | BT14: 0 | BV14: 0 | BW14: 0 | BX14: 395 | BY14: 5 | CD14: 0 | CE14: 0 | CI14: 1387.5 | CJ14: 0 | CL14: 2605 | CM14: 5713.3275
C15: 101048 | D15: 21538 | E15: احمد صلاح نصر | H15: المباشر | I15: امين مخزن | J15: الرابعة | K15: 101221538احمد صلاح نصرالمباشرامين مخزنالرابعة | L15: 2070.44 | M15: 2484.528 | P15: 310.566 | Q15: 188.32 | R15: 0 | U15: 0 | V15: 0 | W15: 0 | X15: 0 | AA15: 0 | AD15: 0 | AE15: 498.886 | AF15: 73.3 | AG15: 81.83 | AH15: 97.69 | AJ15: 200 | AK15: 41.39 | AL15: 73.81 | AM15: 94.77 | AN15: 135.21 | AO15: 144.67 | AP15: 154.8 | AQ15: 600 | AR15: 10 | AT15: 1707.47 | AU15: 10 | AW15: 1350 | AZ15: 8121.324 | BA15: 0 | BB15: 8121.324 | BC15: 0 | BD15: 0 | BE15: 792 | BF15: 0 | BK15: 133 | BL15: 0.5 | BM15: 3 | BN15: 0 | BO15: 0 | BP15: 0 | BR15: 0 | BS15: 0 | BT15: 0 | BV15: 0 | BW15: 0 | BX15: 3.87 | BY15: 3 | CD15: 0 | CE15: 0 | CI15: 1350 | CJ15: 0 | CL15: 2285.37 | CM15: 5835.954
C16: 101026 | D16: 11336 | E16: هبه محمد احمد على | H16: المباشر | I16: مدخل بيانات | J16: الثانيه | K16: 101311336هبه محمد احمد علىالمباشرمدخل بيانات الثانيه | L16: 1420.26 | M16: 1704.312 | P16: 213.039 | Q16: 188.32 | R16: 0 | U16: 0 | V16: 0 | W16: 0 | X16: 0 | AA16: 0 | AD16: 0 | AE16: 401.359 | AF16: 47.36 | AG16: 52.81 | AH16: 65 | AJ16: 190 | AK16: 28.39 | AL16: 50.63 | AM16: 65.01 | AN16: 92.75 | AO16: 99.24 | AP16: 106.19 | AQ16: 600 | AR16: 6 | AT16: 1403.38 | AU16: 10 | AW16: 975 | AZ16: 5914.311 | BA16: 85.689 | BB16: 6000 | BC16: 0 | BD16: 0 | BE16: 572 | BF16: 0 | BK16: 0 | BL16: 0.5 | BM16: 3 | BN16: 0 | BO16: 0 | BP16: 0 | BR16: 0 | BS16: 0 | BT16: 0 | BV16: 0 | BW16: 0 | BX16: 2.83 | BY16: 5 | CD16: 0 | CE16: 0 | CI16: 975 | CJ16: 0 | CL16: 1558.33 | CM16: 4441.67
C17: 101077 | D17: 33254 | E17: احمد سعيد عبد السميع | H17: المباشر | I17: اخصائى نظم ومعلومات | J17: الثالثه | K17: 101433254احمد سعيد عبد السميعالمباشراخصائى نظم ومعلوماتالثالثه | L17: 1040.13 | M17: 1248.156 | P17: 156.0195 | Q17: 188.32 | R17: 0 | U17: 0 | V17: 0 | W17: 0 | X17: 0 | AA17: 0 | AD17: 0 | AE17: 344.3395 | AF17: 34.05 | AG17: 38.12 | AH17: 65 | AJ17: 190 | AK17: 26.48 | AL17: 37.08 | AM17: 47.61 | AN17: 67.92 | AO17: 72.68 | AP17: 81.95 | AQ17: 600 | AR17: 10 | AT17: 1270.89 | AU17: 10 | AW17: 937.5 | AZ17: 4851.0155 | BA17: 1148.9845 | BB17: 6000 | BC17: 0 | BD17: 0 | BE17: 550 | BF17: 0 | BK17: 0 | BL17: 0.5 | BM17: 3 | BN17: 0 | BO17: 0 | BP17: 0 | BR17: 0 | BS17: 0 | BT17: 0 | BV17: 0 | BW17: 0 | BX17: 2.24 | BY17: 3 | CD17: 0 | CE17: 0 | CI17: 937.5 | CJ17: 0 | CL17: 1496.24 | CM17: 4503.76
C18: 101014 | D18: 11198 | E18: نعمه عباس حسن | H18: المباشر | I18: مدير إدارة المتابعة وتقييم الاداء | J18: الاولي | K18: 101511198نعمه عباس حسنالمباشرمدير إدارة المتابعة وتقييم الاداءالاولي | L18: 2630.88 | M18: 3157.056 | P18: 394.632 | Q18: 188.32 | R18: 0 | U18: 0 | V18: 0 | W18: 0 | X18: 0 | AA18: 0 | AD18: 0 | AE18: 582.952 | AF18: 86.95 | AG18: 97.13 | AH18: 120 | AJ18: 190 | AK18: 52.59 | AL18: 93.79 | AM18: 120.43 | AN18: 171.81 | AO18: 183.83 | AP18: 196.7 | AQ18: 600 | AR18: 6 | AT18: 1919.23 | AU18: 10 | AW18: 1668.75 | AZ18: 9968.868 | BA18: 0 | BB18: 9968.868 | BC18: 0 | BD18: 0 | BE18: 979 | BF18: 45.09 | BK18: 0 | BL18: 0.5 | BM18: 3 | BN18: 0 | BO18: 0 | BP18: 0 | BR18: 0 | BS18: 0 | BT18: 0 | BV18: 0 | BW18: 0 | BX18: 4.69 | BY18: 5 | CD18: 0 | CE18: 0 | CI18: 1668.75 | CJ18: 0 | CL18: 2660.94 | CM18: 7307.928
C19: 101030 | D19: 11361 | E19: عبد الحميد شحاته عبد الحميد | H19: المباشر | I19: محامي | J19: الثالثه | K19: 101711361عبد الحميد شحاته عبد الحميدالمباشرمحاميالثالثه | L19: 1143.9 | M19: 1372.68 | P19: 171.585 | Q19: 208.32 | R19: 0 | U19: 0 | V19: 0 | W19: 0 | X19: 0 | AA19: 0 | AD19: 0 | AE19: 379.905 | AF19: 36.22 | AG19: 40.89 | AH19: 65 | AJ19: 190 | AK19: 25.13 | AL19: 38.11 | AM19: 48.94 | AN19: 69.81 | AO19: 74.7 | AP19: 85.53 | AQ19: 600 | AR19: 6 | AT19: 1280.33 | AU19: 10 | AW19: 937.5 | AZ19: 5124.315 | BA19: 875.685 | BB19: 6000 | BC19: 0 | BD19: 0 | BE19: 550 | BF19: 0 | BK19: 0 | BL19: 0.5 | BM19: 3 | BN19: 0 | BO19: 0 | BP19: 0 | BR19: 0 | BS19: 0 | BT19: 0 | BV19: 0 | BW19: 0 | BX19: 1.56 | BY19: 3 | CD19: 0 | CE19: 0 | CI19: 937.5 | CJ19: 0 | CL19: 1495.56 | CM19: 4504.44
C20: 101032 | D20: 1362 | E20: حسن عبد الصبور السيد | H20: المباشر | I20: محامي | J20: الثالثه | K20: 10181362حسن عبد الصبور السيدالمباشرمحاميالثالثه | L20: 1223.97 | M20: 1468.764 | P20: 183.5955 | Q20: 208.32 | R20: 0 | U20: 0 | V20: 0 | W20: 0 | X20: 0 | AA20: 0 | AD20: 0 | AE20: 391.9155 | AF20: 36.22 | AG20: 40.89 | AH20: 65 | AJ20: 190 | AK20: 25.13 | AL20: 38.11 | AM20: 48.94 | AN20: 69.81 | AO20: 79.93 | AP20: 91.51 | AQ20: 600 | AR20: 10 | AT20: 1295.54 | AU20: 10 | AW20: 937.5 | AZ20: 5327.6895 | BA20: 672.3105 | BB20: 6000 | BC20: 0 | BD20: 0 | BE20: 550 | BF20: 0 | BK20: 0 | BL20: 0.5 | BM20: 3 | BN20: 0 | BO20: 0 | BP20: 0 | BR20: 0 | BS20: 0 | BT20: 0 | BV20: 0 | BW20: 0 | BX20: 2.56 | BY20: 3 | CD20: 0 | CE20: 0 | CI20: 937.5 | CJ20: 0 | CL20: 1496.56 | CM20: 4503.44
C21: 101018 | D21: 11249 | E21: محمد رمضان السيد | H21: المباشر | I21: مدير إدارة الحسابات العامة والميزانية | J21: الاولى | K21: 101911249محمد رمضان السيدالمباشرمدير إدارة الحسابات العامة والميزانيةالاولى | L21: 2886.58 | M21: 3463.896 | P21: 432.987 | Q21: 188.32 | R21: 0 | U21: 0 | V21: 0 | W21: 0 | X21: 0 | AA21: 0 | AD21: 0 | AE21: 621.307 | AF21: 101.14 | AG21: 112.98 | AH21: 120 | AJ21: 190 | AK21: 57.7 | AL21: 110.11 | AM21: 132.13 | AN21: 188.5 | AO21: 201.7 | AP21: 215.82 | AQ21: 600 | AR21: 10 | AT21: 2040.08 | AU21: 10 | AW21: 1818.75 | AZ21: 10840.613 | BA21: 0 | BB21: 10840.613 | BC21: 0 | BD21: 0 | BE21: 1067 | BF21: 25.84 | BK21: 0 | BL21: 0.5 | BM21: 3 | BN21: 0 | BO21: 0 | BP21: 0 | BR21: 0 | BS21: 0 | BT21: 0 | BV21: 0 | BW21: 0 | BX21: 5.14 | BY21: 5 | CD21: 0 | CE21: 0 | CI21: 1818.75 | CJ21: 0 | CL21: 2899.39 | CM21: 7941.223
C22: 101013 | D22: 11196 | E22: عصمت عبد الرحيم محمد فراج | H22: المباشر | I22: ا.ش.ماليه ثان | J22: الثانية | K22: 102011196عصمت عبد الرحيم محمد فراجالمباشرا.ش.ماليه ثانالثانية | L22: 2538.76 | M22: 3046.512 | P22: 380.814 | Q22: 188.32 | R22: 0 | U22: 0 | V22: 0 | W22: 0 | X22: 0 | AA22: 0 | AD22: 0 | AE22: 569.134 | AF22: 89.99 | AG22: 100.44 | AH22: 119.89 | AJ22: 190 | AK22: 50.75 | AL22: 90.51 | AM22: 116.21 | AN22: 165.79 | AO22: 177.4 | AP22: 189.81 | AQ22: 600 | AR22: 4 | AT22: 1894.79 | AU22: 10 | AW22: 1612.5 | AZ22: 9671.696 | BA22: 0 | BB22: 9671.696 | BC22: 0 | BD22: 0 | BE22: 946 | BF22: 45.75 | BK22: 20.75 | BL22: 0.5 | BM22: 3 | BN22: 0 | BO22: 0 | BP22: 0 | BR22: 0 | BS22: 0 | BT22: 0 | BV22: 0 | BW22: 0 | BX22: 4.53 | BY22: 5 | CD22: 0 | CE22: 0 | CI22: 1612.5 | CJ22: 0 | CL22: 2592.28 | CM22: 7079.416
C23: 101025 | D23: 11328 | E23: خالد احمد محمد حامد | H23: المباشر | I23: ا.ش.مالية | J23: الثانيه | K23: 102111328خالد احمد محمد حامدالمباشرا.ش.ماليةالثانيه | L23: 1616.72 | M23: 1940.064 | P23: 242.508 | Q23: 188.32 | R23: 0 | U23: 0 | V23: 0 | W23: 0 | X23: 0 | AA23: 0 | AD23: 0 | AE23: 430.828 | AF23: 53.23 | AG23: 59.36 | AH23: 71.24 | AJ23: 190 | AK23: 32.32 | AL23: 57.63 | AM23: 74 | AN23: 105.58 | AO23: 112.97 | AP23: 120.88 | AQ23: 600 | AR23: 6 | AT23: 1483.21 | AU23: 10 | AW23: 1087.5 | AZ23: 6568.322 | BA23: 0 | BB23: 6568.322 | BC23: 0 | BD23: 0 | BE23: 638 | BF23: 0 | BK23: 0 | BL23: 0.5 | BM23: 3 | BN23: 0 | BO23: 0 | BP23: 0 | BR23: 0 | BS23: 0 | BT23: 0 | BV23: 0 | BW23: 0 | BX23: 4.14 | BY23: 5 | CD23: 0 | CE23: 0 | CI23: 1087.5 | CJ23: 0 | CL23: 1738.14 | CM23: 4830.182
C24: 101024 | D24: 11308 | E24: سماح مختار الدوخنى | H24: المباشر | I24: محاسب | J24: الثانية | K24: 102211308سماح مختار الدوخنى المباشرمحاسب الثانية | L24: 2213.31 | M24: 2655.972 | P24: 331.9965 | Q24: 188.32 | R24: 0 | U24: 0 | V24: 0 | W24: 0 | X24: 0 | AA24: 0 | AD24: 0 | AE24: 520.3165 | AF24: 72.69 | AG24: 81.33 | AH24: 97.68 | AJ24: 190 | AK24: 44.24 | AL24: 78.9 | AM24: 101.31 | AN24: 144.54 | AO24: 154.66 | AP24: 165.48 | AQ24: 600 | AR24: 6 | AT24: 1736.83 | AU24: 10 | AW24: 0 | AZ24: 7136.4285 | BA24: 0 | BB24: 7136.4285 | BC24: 0 | BD24: 0 | BE24: 0 | BF24: 0 | BK24: 321 | BL24: 0.5 | BM24: 3 | BN24: 0 | BO24: 0 | BP24: 1327.99 | BR24: 0 | BS24: 0 | BT24: 0 | BV24: 0 | BW24: 0 | BX24: 2.2 | BY24: 5 | CD24: 0 | CE24: 0 | CI24: 0 | CJ24: 0 | CL24: 1659.69 | CM24: 5476.7385
C25: 101007 | D25: 2097 | E25: خالد شوقى عبد المحسن | H25: المباشر | I25: ا.ش. مالية ثان | J25: الثانية | K25: 10232097خالد شوقى عبد المحسنالمباشرا.ش. مالية ثانالثانية | L25: 2222.73 | M25: 0 | P25: 0 | Q25: 0 | R25: 0 | U25: 0 | V25: 0 | W25: 0 | X25: 0 | AA25: 0 | AD25: 0 | AE25: 0 | AF25: 72.96 | AG25: 81.46 | AH25: 98.02 | AJ25: 190 | AK25: 44.43 | AL25: 79.24 | AM25: 101.74 | AN25: 145.15 | AO25: 155.31 | AP25: 166.19 | AQ25: 600 | AR25: 10 | AT25: 1744.5 | AU25: 10 | AW25: 431.25 | AZ25: 4408.48 | BA25: 1591.52 | BB25: 6000 | BC25: 0 | BD25: 0 | BE25: 253 | BF25: 0 | BK25: 21.34 | BL25: 0.5 | BM25: 3 | BN25: 0 | BO25: 0 | BP25: 0 | BR25: 0 | BS25: 0 | BT25: 0 | BV25: 0 | BW25: 0 | BX25: 2.25 | BY25: 5 | CD25: 0 | CE25: 0 | CI25: 431.25 | CJ25: 0 | CL25: 716.34 | CM25: 5283.66
C26: 101027 | D26: 11347 | E26: طارق سيد قرنى | H26: المباشر | I26: ا.حركة | J26: الثالثه | K26: 102411347طارق سيد قرنىالمباشرا.حركةالثالثه | L26: 1170.62 | M26: 1404.744 | P26: 175.593 | Q26: 188.32 | R26: 0 | U26: 0 | V26: 0 | W26: 0 | X26: 0 | AA26: 0 | AD26: 0 | AE26: 363.913 | AF26: 41.94 | AG26: 46.57 | AH26: 65 | AJ26: 190 | AK26: 23.4 | AL26: 41.73 | AM26: 53.58 | AN26: 76.45 | AO26: 81.8 | AP26: 87.52 | AQ26: 600 | AR26: 10 | AT26: 1317.99 | AU26: 10 | AW26: 937.5 | AZ26: 5204.767 | BA26: 795.233 | BB26: 6000 | BC26: 0 | BD26: 0 | BE26: 550 | BF26: 0 | BK26: 0 | BL26: 0.5 | BM26: 3 | BN26: 0 | BO26: 0 | BP26: 0 | BR26: 0 | BS26: 0 | BT26: 0 | BV26: 0 | BW26: 0 | BX26: 2.77 | BY26: 3 | CD26: 0 | CE26: 0 | CI26: 937.5 | CJ26: 0 | CL26: 1496.77 | CM26: 4503.23
C27: 101003 | D27: 11307 | E27: احمد السيد محمود حشيش | H27: المباشر | I27: مدبر إدارة الضرائب | J27: الاولى | K27: 102511307احمد السيد محمود حشيشالمباشرمدبر إدارة الضرائبالاولى | L27: 3413.728 | M27: 3828.48 | P27: 478.56 | Q27: 188.32 | R27: 0 | U27: 0 | V27: 0 | W27: 0 | X27: 0 | AA27: 0 | AD27: 0 | AE27: 666.88 | AF27: 86.05 | AG27: 96.36 | AH27: 120 | AJ27: 190 | AK27: 52.06 | AL27: 106.3 | AM27: 136.48 | AN27: 194.72 | AO27: 208.35 | AP27: 238.53 | AQ27: 600 | AR27: 10 | AT27: 2038.85 | AU27: 10 | AW27: 1968.75 | AZ27: 11926.688 | BA27: 0 | BB27: 11926.688 | BC27: 0 | BD27: 0 | BE27: 1155 | BF27: 209.87 | BK27: 0 | BL27: 0.5 | BM27: 3 | BN27: 0 | BO27: 0 | BP27: 0 | BR27: 0 | BS27: 0 | BT27: 0 | BV27: 0 | BW27: 0 | BX27: 5.62 | BY27: 5 | CD27: 0 | CE27: 0 | CI27: 1968.75 | CJ27: 0 | CL27: 3137.87 | CM27: 8788.818
C28: 101009 | D28: 11054 | E28: امل احمد عزت | H28: المباشر | I28: ا.ش.ماليه اول | J28: الاولى | K28: 102611054امل احمد عزتالمباشرا.ش.ماليه اولالاولى | L28: 2674.13 | M28: 3208.956 | P28: 401.1195 | Q28: 188.32 | R28: 0 | U28: 0 | V28: 0 | W28: 0 | X28: 0 | AA28: 0 | AD28: 0 | AE28: 589.4395 | AF28: 93.74 | AG28: 104.69 | AH28: 120 | AJ28: 190 | AK28: 53.46 | AL28: 95.33 | AM28: 122.4 | AN28: 174.63 | AO28: 186.86 | AP28: 199.94 | AQ28: 600 | AR28: 6 | AT28: 1947.05 | AU28: 10 | AW28: 1687.5 | AZ28: 10117.0755 | BA28: 0 | BB28: 10117.0755 | BC28: 0 | BD28: 0 | BE28: 990 | BF28: 73.09 | BK28: 0 | BL28: 0.5 | BM28: 3 | BN28: 0 | BO28: 0 | BP28: 0 | BR28: 0 | BS28: 0 | BT28: 0 | BV28: 0 | BW28: 0 | BX28: 4.79 | BY28: 5 | CD28: 0 | CE28: 0 | CI28: 1687.5 | CJ28: 0 | CL28: 2690.79 | CM28: 7426.2855
C29: 101033 | D29: 11364 | E29: محمد حسين محمد عثمان | H29: المباشر | I29: محاسب | J29: الثالثه | K29: 102711364محمد حسين محمد عثمانالمباشرمحاسبالثالثه | L29: 1069.06 | M29: 1282.872 | P29: 160.359 | Q29: 188.32 | R29: 0 | U29: 0 | V29: 0 | W29: 0 | X29: 0 | AA29: 0 | AD29: 0 | AE29: 348.679 | AF29: 36.22 | AG29: 40.9 | AH29: 65 | AJ29: 190 | AK29: 25.14 | AL29: 38.11 | AM29: 48.93 | AN29: 69.81 | AO29: 74.7 | AP29: 80.07 | AQ29: 600 | AR29: 8 | AT29: 1276.88 | AU29: 10 | AW29: 937.5 | AZ29: 4924.991 | BA29: 1075.009 | BB29: 6000 | BC29: 0 | BD29: 0 | BE29: 550 | BF29: 0 | BK29: 0 | BL29: 0.5 | BM29: 3 | BN29: 0 | BO29: 0 | BP29: 0 | BR29: 0 | BS29: 0 | BT29: 0 | BV29: 0 | BW29: 0 | BX29: 2.79 | BY29: 3 | CD29: 0 | CE29: 0 | CI29: 937.5 | CJ29: 0 | CL29: 1496.79 | CM29: 4503.21
C30: 101057 | D30: 21836 | E30: مجدى سليمان على فاضل | H30: المباشر | I30: امين مخزن | J30: الثانيه | K30: 102821836مجدى سليمان على فاضلالمباشرامين مخزنالثانيه | L30: 2330.37 | M30: 2796.444 | P30: 349.5555 | Q30: 188.32 | R30: 0 | U30: 0 | V30: 0 | W30: 0 | X30: 0 | AA30: 0 | AD30: 0 | AE30: 537.8755 | AF30: 76.44 | AG30: 85.57 | AH30: 102.85 | AJ30: 190 | AK30: 46.58 | AL30: 83.08 | AM30: 106.67 | AN30: 152.18 | AO30: 162.84 | AP30: 174.23 | AQ30: 600 | AR30: 6 | AT30: 1786.44 | AU30: 10 | AW30: 1500 | AZ30: 8961.1295 | BA30: 0 | BB30: 8961.1295 | BC30: 0 | BD30: 0 | BE30: 880 | BF30: 0 | BK30: 0 | BL30: 0.5 | BM30: 3 | BN30: 0 | BO30: 0 | BP30: 0 | BR30: 0 | BS30: 0 | BT30: 0 | BV30: 0 | BW30: 0 | BX30: 4.26 | BY30: 5 | CD30: 0 | CE30: 0 | CI30: 1500 | CJ30: 0 | CL30: 2392.76 | CM30: 6568.3695
C31: 101075 | D31: 22068 | E31: عمرو فهمى زكى محمد | H31: المباشر | I31: مدير إدارة التحصيل | J31: الاولى | K31: 102922068عمرو فهمى زكى محمد المباشرمدير إدارة التحصيلالاولى | L31: 2411.81 | M31: 2894.172 | P31: 361.7715 | Q31: 188.32 | R31: 0 | U31: 0 | V31: 0 | W31: 0 | X31: 0 | AA31: 0 | AD31: 0 | AE31: 550.0915 | AF31: 79.33 | AG31: 88.57 | AH31: 106.34 | AJ31: 190 | AK31: 48.21 | AL31: 85.98 | AM31: 110.4 | AN31: 157.5 | AO31: 168.53 | AP31: 180.32 | AQ31: 600 | AR31: 10 | AT31: 1825.18 | AU31: 10 | AW31: 1537.5 | AZ31: 9228.7535 | BA31: 0 | BB31: 9228.7535 | BC31: 0 | BD31: 0 | BE31: 902 | BF31: 25.75 | BK31: 0 | BL31: 0.5 | BM31: 3 | BN31: 0 | BO31: 0 | BP31: 0 | BR31: 0 | BS31: 0 | BT31: 0 | BV31: 0 | BW31: 0 | BX31: 4.39 | BY31: 5 | CD31: 0 | CE31: 0 | CI31: 1537.5 | CJ31: 0 | CL31: 2452.39 | CM31: 6776.3635
C32: 101020 | D32: 11296 | E32: هند سيد احمد موسي | H32: المباشر | I32: رئيس قسم مراجعه الفواتير | J32: الثانيه | K32: 103011296هند سيد احمد موسيالمباشررئيس قسم مراجعه الفواتيرالثانيه | L32: 2233.06 | M32: 2679.672 | P32: 334.959 | Q32: 188.32 | R32: 0 | U32: 0 | V32: 0 | W32: 0 | X32: 0 | AA32: 0 | AD32: 0 | AE32: 523.279 | AF32: 73.27 | AG32: 82.02 | AH32: 98.55 | AJ32: 190 | AK32: 44.64 | AL32: 79.61 | AM32: 102.22 | AN32: 145.83 | AO32: 156.04 | AP32: 166.69 | AQ32: 600 | AR32: 4 | AT32: 1742.87 | AU32: 10 | AW32: 1443.75 | AZ32: 8632.631 | BA32: 0 | BB32: 8632.631 | BC32: 0 | BD32: 0 | BE32: 847 | BF32: 0 | BK32: 0 | BL32: 0.5 | BM32: 3 | BN32: 0 | BO32: 0 | BP32: 0 | BR32: 0 | BS32: 0 | BT32: 0 | BV32: 0 | BW32: 0 | BX32: 4.1 | BY32: 5 | CD32: 0 | CE32: 0 | CI32: 1443.75 | CJ32: 0 | CL32: 2303.35 | CM32: 6329.281
C33: 101005 | D33: 22037 | E33: ناهد حسن توفيق | H33: المباشر | I33: مدير ادارة البحوث الهندسية | J33: الاولى | K33: 103122037ناهد حسن توفيقالمباشرمدير ادارة البحوث الهندسيةالاولى | L33: 2974.6 | M33: 3336 | P33: 417 | Q33: 188.32 | R33: 0 | U33: 0 | V33: 0 | W33: 0 | X33: 0 | AA33: 0 | AD33: 0 | AE33: 605.32 | AF33: 85.66 | AG33: 95.68 | AH33: 120 | AJ33: 190 | AK33: 51.93 | AL33: 92.62 | AM33: 118.93 | AN33: 181.54 | AO33: 194.25 | AP33: 207.85 | AQ33: 600 | AR33: 6 | AT33: 1944.46 | AU33: 10 | AW33: 1743.75 | AZ33: 10614.13 | BA33: 0 | BB33: 10614.13 | BC33: 0 | BD33: 0 | BE33: 1023 | BF33: 100.34 | BK33: 1.68 | BL33: 0.5 | BM33: 3 | BN33: 0 | BO33: 0 | BP33: 0 | BR33: 0 | BS33: 0 | BT33: 0 | BV33: 0 | BW33: 0 | BX33: 4.95 | BY33: 5 | CD33: 0 | CE33: 0 | CI33: 1743.75 | CJ33: 0 | CL33: 2781.88 | CM33: 7832.25
C34: 101010 | D34: 11122 | E34: عزه عبد الرحيم محمد فراج | H34: المباشر | I34: مدير إدارة المشتريات | J34: الاولى | K34: 103311122عزه عبد الرحيم محمد فراجالمباشرمدير إدارة المشترياتالاولى | L34: 3009.44 | M34: 3611.328 | P34: 451.416 | Q34: 188.32 | R34: 0 | U34: 0 | V34: 0 | W34: 0 | X34: 0 | AA34: 0 | AD34: 0 | AE34: 639.736 | AF34: 88.14 | AG34: 98.75 | AH34: 120 | AJ34: 190 | AK34: 56.22 | AL34: 107.28 | AM34: 137.75 | AN34: 196.53 | AO34: 210.28 | AP34: 225 | AQ34: 600 | AR34: 6 | AT34: 2035.95 | AU34: 10 | AW34: 1875 | AZ34: 11181.454 | BA34: 0 | BB34: 11181.454 | BC34: 0 | BD34: 0 | BE34: 1100 | BF34: 154.62 | BK34: 0 | BL34: 0.5 | BM34: 3 | BN34: 0 | BO34: 0 | BP34: 0 | BR34: 0 | BS34: 0 | BT34: 0 | BV34: 0 | BW34: 0 | BX34: 5.32 | BY34: 5 | CD34: 0 | CE34: 0 | CI34: 1875 | CJ34: 0 | CL34: 2988.82 | CM34: 8192.634
C35: 101073 | D35: 22052 | E35: محمد احمد السيد خليل | H35: المباشر | I35: رئيس قسم والمشتريات | J35: الثانية | K35: 103422052محمد احمد السيد خليلالمباشررئيس قسم والمشترياتالثانية | L35: 2222.9 | M35: 2667.48 | P35: 333.435 | Q35: 188.32 | R35: 0 | U35: 0 | V35: 0 | W35: 0 | X35: 0 | AA35: 0 | AD35: 0 | AE35: 521.755 | AF35: 72.97 | AG35: 81.47 | AH35: 98.03 | AJ35: 190 | AK35: 44.43 | AL35: 79.24 | AM35: 101.75 | AN35: 145.16 | AO35: 155.33 | AP35: 166.2 | AQ35: 600 | AR35: 10 | AT35: 1744.58 | AU35: 10 | AW35: 1425 | AZ35: 8591.715 | BA35: 0 | BB35: 8591.715 | BC35: 0 | BD35: 0 | BE35: 836 | BF35: 0 | BK35: 58.35 | BL35: 0.5 | BM35: 3 | BN35: 0 | BO35: 0 | BP35: 0 | BR35: 0 | BS35: 0 | BT35: 0 | BV35: 0 | BW35: 0 | BX35: 4.09 | BY35: 5 | CD35: 0 | CE35: 0 | CI35: 1425 | CJ35: 0 | CL35: 2331.94 | CM35: 6259.775
C36: 101051 | D36: 21675 | E36: خالد سيد احمد موسي | H36: المباشر | I36: رئيس قسم الاستخدامات | J36: الثانيه | K36: 103521675خالد سيد احمد موسيالمباشررئيس قسم الاستخداماتالثانيه | L36: 2427.49 | M36: 2912.988 | P36: 364.1235 | Q36: 188.32 | R36: 0 | U36: 0 | V36: 0 | W36: 0 | X36: 0 | AA36: 0 | AD36: 0 | AE36: 552.4435 | AF36: 79.6 | AG36: 89.12 | AH36: 107.15 | AJ36: 190 | AK36: 48.53 | AL36: 86.54 | AM36: 111.12 | AN36: 158.52 | AO36: 169.62 | AP36: 181.49 | AQ36: 600 | AR36: 10 | AT36: 1831.69 | AU36: 10 | AW36: 1556.25 | AZ36: 9290.8615 | BA36: 0 | BB36: 9290.8615 | BC36: 0 | BD36: 0 | BE36: 913 | BF36: 25.84 | BK36: 8.18 | BL36: 0.5 | BM36: 3 | BN36: 0 | BO36: 0 | BP36: 0 | BR36: 0 | BS36: 0 | BT36: 0 | BV36: 0 | BW36: 0 | BX36: 4.42 | BY36: 3 | CD36: 0 | CE36: 0 | CI36: 1556.25 | CJ36: 0 | CL36: 2488.35 | CM36: 6802.5115
C37: 101049 | D37: 21663 | E37: ماهر سعيد عبد النبي | H37: المباشر | I37: امين مخزن | J37: الثالثه | K37: 103621663ماهر سعيد عبد النبيالمباشرامين مخزنالثالثه | L37: 2118.21 | M37: 2541.852 | P37: 317.7315 | Q37: 188.32 | R37: 0 | U37: 0 | V37: 0 | W37: 0 | X37: 0 | AA37: 0 | AD37: 0 | AE37: 506.0515 | AF37: 70.12 | AG37: 78.28 | AH37: 100.31 | AJ37: 190 | AK37: 42.34 | AL37: 75.51 | AM37: 96.96 | AN37: 138.33 | AO37: 148.31 | AP37: 158.37 | AQ37: 600 | AR37: 10 | AT37: 1708.53 | AU37: 10 | AW37: 1368.75 | AZ37: 8253.3935 | BA37: 0 | BB37: 8253.3935 | BC37: 0 | BD37: 0 | BE37: 803 | BF37: 0 | BK37: 33.02 | BL37: 0.5 | BM37: 3 | BN37: 0 | BO37: 0 | BP37: 0 | BR37: 0 | BS37: 0 | BT37: 0 | BV37: 0 | BW37: 0 | BX37: 3.94 | BY37: 3 | CD37: 0 | CE37: 0 | CI37: 1368.75 | CJ37: 0 | CL37: 2215.21 | CM37: 6038.1835
C38: 101061 | D38: 21916 | E38: عادل محي الدين محمد | H38: المباشر | I38: امين مخزن | J38: الثانيه | K38: 103721916عادل محي الدين محمدالمباشرامين مخزنالثانيه | L38: 2289.66 | M38: 2747.592 | P38: 343.449 | Q38: 188.32 | R38: 0 | U38: 0 | V38: 0 | W38: 0 | X38: 0 | AA38: 0 | AD38: 0 | AE38: 531.769 | AF38: 81.21 | AG38: 90.62 | AH38: 108.11 | AJ38: 190 | AK38: 45.77 | AL38: 81.63 | AM38: 104.81 | AN38: 149.52 | AO38: 159.99 | AP38: 171.19 | AQ38: 600 | AR38: 8 | AT38: 1790.85 | AU38: 10 | AW38: 1481.25 | AZ38: 8851.121 | BA38: 0 | BB38: 8851.121 | BC38: 0 | BD38: 0 | BE38: 869 | BF38: 0 | BK38: 0 | BL38: 0.5 | BM38: 3 | BN38: 0 | BO38: 0 | BP38: 0 | BR38: 0 | BS38: 0 | BT38: 0 | BV38: 0 | BW38: 0 | BX38: 4.21 | BY38: 5 | CD38: 0 | CE38: 0 | CI38: 1481.25 | CJ38: 0 | CL38: 2362.96 | CM38: 6488.161
C39: 101319 | D39: 22130 | E39: عماد على ابراهيم الجندى | H39: المباشر | I39: كاتب | J39: الرابعة | K39: 103822130عماد على ابراهيم الجندى المباشركاتب الرابعة | L39: 1690.33 | M39: 2028.396 | P39: 253.5495 | Q39: 188.32 | R39: 0 | U39: 0 | V39: 0 | W39: 0 | X39: 0 | AA39: 0 | AD39: 0 | AE39: 441.8695 | AF39: 56.07 | AG39: 62.54 | AH39: 80 | AJ39: 200 | AK39: 33.79 | AL39: 60.26 | AM39: 77.37 | AN39: 110.38 | AO39: 118.11 | AP39: 126.38 | AQ39: 600 | AR39: 8 | AT39: 1532.9 | AU39: 10 | AW39: 1125 | AZ39: 6828.4955 | BA39: 0 | BB39: 6828.4955 | BC39: 0 | BD39: 0 | BE39: 660 | BF39: 0 | BK39: 0 | BL39: 0.5 | BM39: 3 | BN39: 0 | BO39: 0 | BP39: 0 | BR39: 0 | BS39: 0 | BT39: 0 | BV39: 0 | BW39: 0 | BX39: 2.25 | BY39: 3 | CD39: 0 | CE39: 0 | CI39: 1125 | CJ39: 0 | CL39: 1793.75 | CM39: 5034.7455
C40: 101041 | D40: 21135 | E40: طارق عبد الغفار على | H40: المباشر | I40: مدير إدارة الحركة | J40: الاولى | K40: 103921135طارق عبد الغفار علىالمباشرمدير إدارة الحركةالاولى | L40: 2568.85 | M40: 3082.62 | P40: 385.3275 | Q40: 188.32 | R40: 0 | U40: 0 | V40: 0 | W40: 0 | X40: 0 | AA40: 0 | AD40: 0 | AE40: 573.6475 | AF40: 84.46 | AG40: 94.31 | AH40: 113.27 | AJ40: 190 | AK40: 51.35 | AL40: 91.58 | AM40: 117.59 | AN40: 167.76 | AO40: 179.5 | AP40: 192.06 | AQ40: 600 | AR40: 10 | AT40: 1891.88 | AU40: 10 | AW40: 1631.25 | AZ40: 9758.2475 | BA40: 0 | BB40: 9758.2475 | BC40: 0 | BD40: 0 | BE40: 957 | BF40: 58.16 | BK40: 7.79 | BL40: 0.5 | BM40: 3 | BN40: 0 | BO40: 0 | BP40: 0 | BR40: 0 | BS40: 0 | BT40: 0 | BV40: 0 | BW40: 0 | BX40: 4.64 | BY40: 5 | CD40: 0 | CE40: 0 | CI40: 1631.25 | CJ40: 0 | CL40: 2609.18 | CM40: 7149.0675
C41: 101028 | D41: 11349 | E41: منار عبد الفتاح عبد الفتاح | H41: المباشر | I41: أخصائى تخطيط | J41: الثالثه | K41: 104011349منار عبد الفتاح عبد الفتاح المباشرأخصائى تخطيطالثالثه | L41: 1269.24 | M41: 1523.088 | P41: 190.386 | Q41: 188.32 | R41: 0 | U41: 0 | V41: 0 | W41: 0 | X41: 0 | AA41: 0 | AD41: 0 | AE41: 378.706 | AF41: 45.41 | AG41: 50.46 | AH41: 65 | AJ41: 190 | AK41: 25.37 | AL41: 45.25 | AM41: 58.1 | AN41: 82.89 | AO41: 88.69 | AP41: 94.9 | AQ41: 600 | AR41: 8 | AT41: 1354.07 | AU41: 10 | AW41: 937.5 | AZ41: 5472.604 | BA41: 527.396 | BB41: 6000 | BC41: 0 | BD41: 0 | BE41: 550 | BF41: 0 | BK41: 0 | BL41: 0.5 | BM41: 3 | BN41: 0 | BO41: 0 | BP41: 0 | BR41: 0 | BS41: 0 | BT41: 0 | BV41: 0 | BW41: 0 | BX41: 2.6 | BY41: 3 | CD41: 0 | CE41: 0 | CI41: 937.5 | CJ41: 0 | CL41: 1496.6 | CM41: 4503.4
C42: 101017 | D42: 11229 | E42: امل محمد حسن احمد | H42: المباشر | I42: ا.تخطيط ثان | J42: الثانية | K42: 104211229امل محمد حسن احمدالمباشرا.تخطيط ثانالثانية | L42: 2600.6 | M42: 3120.72 | P42: 390.09 | Q42: 188.32 | R42: 0 | U42: 0 | V42: 0 | W42: 0 | X42: 0 | AA42: 0 | AD42: 0 | AE42: 578.41 | AF42: 92.17 | AG42: 102.87 | AH42: 120 | AJ42: 190 | AK42: 51.99 | AL42: 92.71 | AM42: 119.04 | AN42: 169.83 | AO42: 181.72 | AP42: 199.94 | AQ42: 600 | AR42: 6 | AT42: 1926.27 | AU42: 10 | AW42: 1650 | AZ42: 9886 | BA42: 0 | BB42: 9886 | BC42: 0 | BD42: 0 | BE42: 968 | BF42: 58.25 | BK42: 0 | BL42: 0.5 | BM42: 3 | BN42: 0 | BO42: 0 | BP42: 0 | BR42: 0 | BS42: 0 | BT42: 0 | BV42: 0 | BW42: 0 | BX42: 4.71 | BY42: 5 | CD42: 0 | CE42: 0 | CI42: 1650 | CJ42: 0 | CL42: 2631.21 | CM42: 7254.79
C43: 101021 | D43: 11298 | E43: منال محمد طايع السيد | H43: المباشر | I43: ا.حركة ثانى | J43: الثانيه | K43: 104311298منال محمد طايع السيدالمباشرا.حركة ثانىالثانيه | L43: 2211.95 | M43: 2654.34 | P43: 331.7925 | Q43: 188.32 | R43: 0 | U43: 0 | V43: 0 | W43: 0 | X43: 0 | AA43: 0 | AD43: 0 | AE43: 520.1125 | AF43: 78.48 | AG43: 87.56 | AH43: 104.43 | AJ43: 190 | AK43: 44.22 | AL43: 78.85 | AM43: 101.25 | AN43: 144.45 | AO43: 154.56 | AP43: 165.38 | AQ43: 600 | AR43: 6 | AT43: 1755.18 | AU43: 10 | AW43: 1425 | AZ43: 8576.5825 | BA43: 0 | BB43: 8576.5825 | BC43: 0 | BD43: 0 | BE43: 836 | BF43: 0 | BK43: 0 | BL43: 0.5 | BM43: 3 | BN43: 0 | BO43: 0 | BP43: 0 | BR43: 0 | BS43: 0 | BT43: 0 | BV43: 0 | BW43: 0 | BX43: 4.08 | BY43: 5 | CD43: 0 | CE43: 0 | CI43: 1425 | CJ43: 0 | CL43: 2273.58 | CM43: 6303.0025
C44: 202118 | D44: 22125 | E44: محمد احمد على اسماعيل | H44: المباشر | I44: ميكانيكى ( خدمات ) | J44: الرابعه | K44: 104422125محمد احمد على اسماعيلالمباشرميكانيكى ( خدمات )الرابعه | L44: 1690.33 | M44: 2028.396 | P44: 253.5495 | Q44: 188.32 | R44: 0 | U44: 0 | V44: 0 | W44: 12 | X44: 0 | AA44: 0 | AD44: 0 | AE44: 453.8695 | AF44: 56.07 | AG44: 62.54 | AH44: 80 | AJ44: 200 | AK44: 33.79 | AL44: 60.26 | AM44: 77.37 | AN44: 110.38 | AO44: 118.11 | AP44: 126.38 | AQ44: 600 | AR44: 10 | AT44: 1534.9 | AU44: 10 | AW44: 1125 | AZ44: 6842.4955 | BA44: 0 | BB44: 6842.4955 | BC44: 0 | BD44: 0 | BE44: 660 | BF44: 0 | BK44: 0 | BL44: 0.5 | BM44: 3 | BN44: 0 | BO44: 0 | BP44: 0 | BR44: 0 | BS44: 0 | BT44: 0 | BV44: 0 | BW44: 0 | BX44: 3.27 | BY44: 3 | CD44: 0 | CE44: 0 | CI44: 1125 | CJ44: 0 | CL44: 1794.77 | CM44: 5047.7255
C45: 101070 | D45: 22024 | E45: مشهور السيد احمد الجابرى | H45: المباشر | I45: ا.ش. فنى اول | J45: الثانيه | K45: 104522024مشهور السيد احمد الجابرىالمباشرا.ش. فنى اولالثانيه | L45: 2411.52 | M45: 2893.824 | P45: 361.728 | Q45: 188.32 | R45: 0 | U45: 0 | V45: 0 | W45: 0 | X45: 0 | AA45: 0 | AD45: 0 | AE45: 550.048 | AF45: 79.33 | AG45: 88.56 | AH45: 106.32 | AJ45: 190 | AK45: 48.21 | AL45: 85.97 | AM45: 110.38 | AN45: 157.48 | AO45: 168.51 | AP45: 180.3 | AQ45: 600 | AR45: 10 | AT45: 1825.06 | AU45: 10 | AW45: 1537.5 | AZ45: 9227.952 | BA45: 0 | BB45: 9227.952 | BC45: 0 | BD45: 0 | BE45: 902 | BF45: 27.59 | BK45: 0 | BL45: 0.5 | BM45: 3 | BN45: 0 | BO45: 0 | BP45: 0 | BR45: 0 | BS45: 0 | BT45: 0 | BV45: 0 | BW45: 0 | BX45: 4.39 | BY45: 5 | CD45: 0 | CE45: 0 | CI45: 1537.5 | CJ45: 0 | CL45: 2452.39 | CM45: 6775.562
C46: 101052 | D46: 21759 | E46: احمد حسين محمد حسن | H46: المباشر | I46: ا.ش.فنية ثان | J46: الثانية | K46: 104621759احمد حسين محمد حسنالمباشرا.ش.فنية ثان الثانية | L46: 2321.03 | M46: 2785.236 | P46: 348.1545 | Q46: 188.32 | R46: 0 | U46: 0 | V46: 0 | W46: 0 | X46: 0 | AA46: 0 | AD46: 0 | AE46: 536.4745 | AF46: 82.33 | AG46: 91.86 | AH46: 109.59 | AJ46: 190 | AK46: 46.4 | AL46: 82.74 | AM46: 106.24 | AN46: 151.57 | AO46: 162.18 | AP46: 173.54 | AQ46: 600 | AR46: 10 | AT46: 1806.45 | AU46: 10 | AW46: 1481.25 | AZ46: 8940.4405 | BA46: 0 | BB46: 8940.4405 | BC46: 0 | BD46: 0 | BE46: 869 | BF46: 8.16 | BK46: 0 | BL46: 0.5 | BM46: 3 | BN46: 0 | BO46: 0 | BP46: 0 | BR46: 0 | BS46: 0 | BT46: 0 | BV46: 0 | BW46: 0 | BX46: 4.25 | BY46: 5 | CD46: 0 | CE46: 0 | CI46: 1481.25 | CJ46: 0 | CL46: 2363 | CM46: 6577.4405
C47: 201028 | D47: 21913 | E47: ناصر شمردن عبد ربه | H47: المباشر | I47: سباك | J47: ثالثه | K47: 104721913ناصر شمردن عبد ربهالمباشرسباكثالثه | L47: 2018.72 | M47: 2422.464 | P47: 302.808 | Q47: 188.32 | R47: 0 | U47: 0 | V47: 0 | W47: 0 | X47: 0 | AA47: 0 | AD47: 0 | AE47: 491.128 | AF47: 71.56 | AG47: 79.86 | AH47: 95.24 | AJ47: 190 | AK47: 40.35 | AL47: 71.97 | AM47: 92.4 | AN47: 131.83 | AO47: 141.06 | AP47: 150.93 | AQ47: 600 | AR47: 10 | AT47: 1675.2 | AU47: 10 | AW47: 1312.5 | AZ47: 7930.012 | BA47: 0 | BB47: 7930.012 | BC47: 0 | BD47: 0 | BE47: 770 | BF47: 0 | BK47: 0 | BL47: 0.5 | BM47: 3 | BN47: 0 | BO47: 0 | BP47: 0 | BR47: 0 | BS47: 0 | BT47: 0 | BV47: 0 | BW47: 0 | BX47: 3.77 | BY47: 3 | CD47: 0 | CE47: 0 | CI47: 1312.5 | CJ47: 0 | CL47: 2092.77 | CM47: 5837.242
C48: 201038 | D48: 22075 | E48: محمد امين عيد فرج | H48: المباشر | I48: فنى ثالث | J48: الثالثة | K48: 104822075محمد امين عيد فرجالمباشرفنى ثالث الثالثة | L48: 2013.31 | M48: 2415.972 | P48: 301.9965 | Q48: 188.32 | R48: 0 | U48: 0 | V48: 0 | W48: 0 | X48: 0 | AA48: 0 | AD48: 0 | AE48: 490.3165 | AF48: 71.47 | AG48: 79.71 | AH48: 95.03 | AJ48: 200 | AK48: 40.25 | AL48: 71.77 | AM48: 92.16 | AN48: 131.48 | AO48: 140.68 | AP48: 150.53 | AQ48: 600 | AR48: 10 | AT48: 1683.08 | AU48: 10 | AW48: 1312.5 | AZ48: 7925.1785 | BA48: 0 | BB48: 7925.1785 | BC48: 0 | BD48: 0 | BE48: 770 | BF48: 0 | BK48: 74.13 | BL48: 0.5 | BM48: 3 | BN48: 0 | BO48: 0 | BP48: 0 | BR48: 0 | BS48: 0 | BT48: 0 | BV48: 0 | BW48: 0 | BX48: 3.78 | BY48: 3 | CD48: 0 | CE48: 0 | CI48: 1312.5 | CJ48: 0 | CL48: 2166.91 | CM48: 5758.2685
C49: 201013 | D49: 22174 | E49: عمر صفوت كمال عبد العظيم | H49: المباشر | I49: ميكانيكى | J49: السادسه | K49: 104922174عمر صفوت كمال عبد العظيمالمباشر ميكانيكىالسادسه | L49: 693.67 | M49: 832.404 | P49: 104.0505 | Q49: 188.32 | R49: 0 | U49: 0 | V49: 0 | W49: 0 | X49: 0 | AA49: 0 | AD49: 0 | AE49: 292.3705 | AF49: 28.18 | AG49: 29.62 | AH49: 65 | AJ49: 200 | AK49: 42.65 | AL49: 40.38 | AM49: 37.96 | AN49: 60.36 | AO49: 82.59 | AP49: 104.62 | AQ49: 600 | AR49: 4 | AT49: 1295.36 | AU49: 10 | AW49: 937.5 | AZ49: 4061.3045 | BA49: 1938.6955 | BB49: 6000 | BC49: 0 | BD49: 0 | BE49: 550 | BF49: 0 | BK49: 0 | BL49: 0.5 | BM49: 3 | BN49: 0 | BO49: 0 | BP49: 0 | BR49: 0 | BS49: 0 | BT49: 0 | BV49: 0 | BW49: 0 | BX49: 2.82 | BY49: 3 | CD49: 0 | CE49: 0 | CI49: 937.5 | CJ49: 0 | CL49: 1496.82 | CM49: 4503.18
C50: 201012 | D50: 42333 | E50: محمود سعيد عبد المنعم عابدين | H50: المباشر | I50: كهربائي مركبات | J50: رابعه | K50: 105042333محمود سعيد عبد المنعم عابدينالمباشركهربائي مركباترابعه | L50: 642.67 | M50: 771.204 | P50: 96.4005 | Q50: 188.32 | R50: 0 | U50: 0 | V50: 0 | W50: 0 | X50: 0 | AA50: 0 | AD50: 0 | AE50: 284.7205 | AF50: 30.03 | AG50: 31.61 | AH50: 65 | AJ50: 200 | AK50: 45.02 | AL50: 42.92 | AM50: 40.68 | AN50: 63.28 | AO50: 85.71 | AP50: 107.96 | AQ50: 600 | AR50: 4 | AT50: 1316.21 | AU50: 10 | AW50: 918.75 | AZ50: 3943.5545 | BA50: 2056.4455 | BB50: 6000 | BC50: 0 | BD50: 0 | BE50: 539 | BF50: 0 | BK50: 0 | BL50: 0.5 | BM50: 3 | BN50: 0 | BO50: 0 | BP50: 0 | BR50: 0 | BS50: 0 | BT50: 0 | BV50: 0 | BW50: 0 | BX50: 2.7 | BY50: 3 | CD50: 0 | CE50: 0 | CI50: 918.75 | CJ50: 0 | CL50: 1466.95 | CM50: 4533.05
C51: 202124 | D51: 22056 | E51: احمد السيد فريد شعيره | H51: المباشر | I51: كهربائي | J51: الرابعه | K51: 105122056احمد السيد فريد شعيرهالمباشركهربائيالرابعه | L51: 1824.3 | M51: 2189.16 | P51: 273.645 | Q51: 188.32 | R51: 0 | U51: 0 | V51: 0 | W51: 0 | X51: 0 | AA51: 0 | AD51: 0 | AE51: 461.965 | AF51: 64.76 | AG51: 72.24 | AH51: 86.09 | AJ51: 200 | AK51: 36.46 | AL51: 65.03 | AM51: 83.5 | AN51: 119.13 | AO51: 127.47 | AP51: 136.4 | AQ51: 600 | AR51: 10 | AT51: 1601.08 | AU51: 10 | AW51: 1200 | AZ51: 7286.505 | BA51: 0 | BB51: 7286.505 | BC51: 0 | BD51: 0 | BE51: 704 | BF51: 0 | BK51: 0 | BL51: 0.5 | BM51: 3 | BN51: 0 | BO51: 0 | BP51: 0 | BR51: 0 | BS51: 0 | BT51: 0 | BV51: 0 | BW51: 0 | BX51: 3.48 | BY51: 3 | CD51: 0 | CE51: 0 | CI51: 1200 | CJ51: 0 | CL51: 1913.98 | CM51: 5372.525
C52: 202123 | D52: 21822 | E52: ايمن جابر سليمان | H52: المباشر | I52: ميكانيكى | J52: رابعة | K52: 105221822ايمن جابر سليمان المباشرميكانيكى رابعة | L52: 2122.82 | M52: 2547.384 | P52: 318.423 | Q52: 188.32 | R52: 0 | U52: 0 | V52: 0 | W52: 0 | X52: 0 | AA52: 0 | AD52: 0 | AE52: 506.743 | AF52: 70.76 | AG52: 78.99 | AH52: 94.28 | AJ52: 200 | AK52: 42.44 | AL52: 75.68 | AM52: 97.17 | AN52: 138.63 | AO52: 148.33 | AP52: 158.72 | AQ52: 600 | AR52: 10 | AT52: 1715 | AU52: 10 | AW52: 1368.75 | AZ52: 8270.697 | BA52: 0 | BB52: 8270.697 | BC52: 0 | BD52: 0 | BE52: 803 | BF52: 0 | BK52: 0 | BL52: 0.5 | BM52: 3 | BN52: 0 | BO52: 0 | BP52: 2547.38 | BR52: 0 | BS52: 0 | BT52: 0 | BV52: 0 | BW52: 0 | BX52: 3.11 | BY52: 3 | CD52: 0 | CE52: 0 | CI52: 1368.75 | CJ52: 0 | CL52: 4728.74 | CM52: 3541.957
C53: 202047 | D53: 21015 | E53: خالد محمد فهمى | H53: المباشر | I53: ميكانيكى | J53: الثالثة | K53: 105321015خالد محمد فهمىالمباشرميكانيكى الثالثة | L53: 2248.37 | M53: 2698.044 | P53: 337.2555 | Q53: 188.32 | R53: 0 | U53: 0 | V53: 0 | W53: 12 | X53: 0 | AA53: 0 | AD53: 0 | AE53: 537.5755 | AF53: 79.55 | AG53: 88.83 | AH53: 106.11 | AJ53: 190 | AK53: 44.95 | AL53: 80.15 | AM53: 102.92 | AN53: 146.83 | AO53: 157.1 | AP53: 168.1 | AQ53: 600 | AR53: 10 | AT53: 1774.54 | AU53: 10 | AW53: 1443.75 | AZ53: 8712.2795 | BA53: 0 | BB53: 8712.2795 | BC53: 0 | BD53: 0 | BE53: 847 | BF53: 0 | BK53: 0 | BL53: 0.5 | BM53: 3 | BN53: 0 | BO53: 0 | BP53: 0 | BR53: 0 | BS53: 0 | BT53: 0 | BV53: 0 | BW53: 0 | BX53: 4.15 | BY53: 3 | CD53: 0 | CE53: 0 | CI53: 1443.75 | CJ53: 0 | CL53: 2301.4 | CM53: 6410.8795
C54: 101069 | D54: 22020 | E54: سامح حمزه احمد الحافظ | H54: المباشر | I54: ا.ش. فنيه | J54: الثانية | K54: 105422020سامح حمزه احمد الحافظالمباشرا.ش. فنيهالثانية | L54: 2232.94 | M54: 2679.528 | P54: 334.941 | Q54: 188.32 | R54: 0 | U54: 0 | V54: 0 | W54: 12 | X54: 0 | AA54: 0 | AD54: 0 | AE54: 535.261 | AF54: 73.27 | AG54: 82.01 | AH54: 98.55 | AJ54: 190 | AK54: 44.64 | AL54: 79.6 | AM54: 102.21 | AN54: 145.82 | AO54: 156.03 | AP54: 166.95 | AQ54: 600 | AR54: 10 | AT54: 1749.08 | AU54: 10 | AW54: 1443.75 | AZ54: 8650.559 | BA54: 0 | BB54: 8650.559 | BC54: 0 | BD54: 0 | BE54: 847 | BF54: 0 | BK54: 3.68 | BL54: 0.5 | BM54: 3 | BN54: 0 | BO54: 0 | BP54: 0 | BR54: 0 | BS54: 0 | BT54: 0 | BV54: 0 | BW54: 0 | BX54: 4.11 | BY54: 3 | CD54: 0 | CE54: 0 | CI54: 1443.75 | CJ54: 0 | CL54: 2305.04 | CM54: 6345.519
C55: 202125 | D55: 22120 | E55: علاء صبحى عبد الغني | H55: المباشر | I55: ميكانيكى | J55: رابعه | K55: 105522120علاء صبحى عبد الغنيالمباشرميكانيكىرابعه | L55: 1755.92 | M55: 2107.104 | P55: 263.388 | Q55: 188.32 | R55: 0 | U55: 0 | V55: 0 | W55: 12 | X55: 0 | AA55: 0 | AD55: 0 | AE55: 463.708 | AF55: 62.35 | AG55: 69.54 | AH55: 82.86 | AJ55: 200 | AK55: 35.1 | AL55: 62.6 | AM55: 80.37 | AN55: 114.67 | AO55: 122.69 | AP55: 131.28 | AQ55: 600 | AR55: 4 | AT55: 1565.46 | AU55: 10 | AW55: 1162.5 | AZ55: 7064.692 | BA55: 0 | BB55: 7064.692 | BC55: 0 | BD55: 0 | BE55: 682 | BF55: 0 | BK55: 0 | BL55: 0.5 | BM55: 3 | BN55: 0 | BO55: 0 | BP55: 0 | BR55: 0 | BS55: 0 | BT55: 0 | BV55: 0 | BW55: 0 | BX55: 3.37 | BY55: 3 | CD55: 0 | CE55: 0 | CI55: 1162.5 | CJ55: 0 | CL55: 1854.37 | CM55: 5210.322
C56: 101313 | D56: 22022 | E56: إبراهيم محمودعبد الحافظ | H56: المباشر | I56: رئيس قسم التراخيص | J56: الثانية | K56: 105622022إبراهيم محمودعبد الحافظالمباشررئيس قسم التراخيصالثانية | L56: 2222.75 | M56: 2667.3 | P56: 333.4125 | Q56: 188.32 | R56: 0 | U56: 0 | V56: 0 | W56: 0 | X56: 0 | AA56: 0 | AD56: 0 | AE56: 521.7325 | AF56: 72.96 | AG56: 81.46 | AH56: 98.02 | AJ56: 190 | AK56: 44.43 | AL56: 79.24 | AM56: 101.74 | AN56: 145.15 | AO56: 155.32 | AP56: 166.19 | AQ56: 600 | AR56: 6 | AT56: 1740.51 | AU56: 10 | AW56: 1425 | AZ56: 8587.2925 | BA56: 0 | BB56: 8587.2925 | BC56: 0 | BD56: 0 | BE56: 836 | BF56: 0 | BK56: 0 | BL56: 0.5 | BM56: 3 | BN56: 0 | BO56: 0 | BP56: 2667.3 | BR56: 0 | BS56: 0 | BT56: 0 | BV56: 0 | BW56: 0 | BX56: 2.54 | BY56: 3 | CD56: 0 | CE56: 0 | CI56: 1425 | CJ56: 0 | CL56: 4937.34 | CM56: 3649.9525
C57: 0 | D57: 21296 | E57: عبد الباسط محمد عبد اللطيف | H57: المباشر | I57: ا. حركة ثان | J57: الثانية | K57: 105721296عبد الباسط محمد عبد اللطيفالمباشرا. حركة ثانالثانية | L57: 2390.39 | M57: 2868.468 | P57: 358.5585 | Q57: 188.32 | R57: 0 | U57: 0 | V57: 0 | W57: 0 | X57: 0 | AA57: 0 | AD57: 0 | AE57: 546.8785 | AF57: 79.11 | AG57: 88.53 | AH57: 113.3 | AJ57: 190 | AK57: 47.78 | AL57: 85.21 | AM57: 109.42 | AN57: 156.1 | AO57: 167.03 | AP57: 178.72 | AQ57: 600 | AR57: 10 | AT57: 1825.2 | AU57: 10 | AW57: 0 | AZ57: 7640.9365 | BA57: 0 | BB57: 7640.9365 | BC57: 0 | BD57: 0 | BE57: 0 | BK57: 0 | BL57: 0.5 | BM57: 3 | BN57: 0 | BO57: 0 | BP57: 0 | BR57: 0 | BS57: 0 | BT57: 0 | BV57: 0 | BW57: 0 | BX57: 4.5 | BY57: 5 | CD57: 0 | CE57: 0 | CI57: 0 | CJ57: 0 | CL57: 13 | CM57: 7627.9365
C58: 101078 | D58: 42320 | E58: اسامة يحي حامد | H58: المباشر | I58: مندوب امن | J58: الرلبعة | K58: 105842320اسامة يحي حامدالمباشرمندوب امنالرلبعة | L58: 849.38 | M58: 1019.256 | P58: 127.407 | Q58: 188.32 | R58: 0 | U58: 0 | V58: 0 | W58: 0 | X58: 0 | AA58: 0 | AD58: 0 | AE58: 315.727 | AF58: 28.18 | AG58: 31.71 | AH58: 65 | AJ58: 200 | AK58: 35.38 | AL58: 32.61 | AM58: 38.88 | AN58: 55.46 | AO58: 73.07 | AP58: 124.43 | AQ58: 600 | AR58: 10 | AT58: 1294.72 | AU58: 10 | AW58: 918.75 | AZ58: 4407.833 | BA58: 1592.167 | BB58: 6000 | BC58: 0 | BD58: 0 | BE58: 539 | BF58: 0 | BK58: 0 | BL58: 0.5 | BM58: 3 | BN58: 0 | BO58: 0 | BP58: 0 | BR58: 0 | BS58: 0 | BT58: 0 | BV58: 0 | BW58: 0 | BX58: 1.93 | BY58: 3 | CD58: 0 | CE58: 0 | CI58: 918.75 | CJ58: 0 | CL58: 1466.18 | CM58: 4533.82
C59: 201009 | D59: 21137 | E59: امين حفنى مصطفى | H59: المباشر | I59: فنى اول ميكانيكى | J59: اولى | K59: 105921137امين حفنى مصطفى المباشرفنى اول ميكانيكىاولى | L59: 2882.64 | M59: 3459.168 | P59: 432.396 | Q59: 188.32 | R59: 0 | U59: 0 | V59: 0 | W59: 0 | X59: 0 | AA59: 0 | AD59: 0 | AE59: 620.716 | AF59: 95.02 | AG59: 106.48 | AH59: 120 | AJ59: 190 | AK59: 57.62 | AL59: 102.76 | AM59: 131.95 | AN59: 188.25 | AO59: 201.43 | AP59: 215.52 | AQ59: 600 | AR59: 10 | AT59: 2019.03 | AU59: 10 | AW59: 1800 | AZ59: 10791.554 | BA59: 0 | BB59: 10791.554 | BC59: 0 | BD59: 0 | BE59: 1056 | BF59: 115.84 | BK59: 0 | BL59: 0.5 | BM59: 3 | BN59: 0 | BO59: 0 | BP59: 0 | BR59: 0 | BS59: 0 | BT59: 0 | BV59: 0 | BW59: 0 | BX59: 5.17 | BY59: 5 | CD59: 0 | CE59: 0 | CI59: 1800 | CJ59: 0 | CL59: 2869.67 | CM59: 7921.884
C60: 201026 | D60: 21641 | E60: محمد رجب سالم | H60: المباشر | I60: ميكانيكى | J60: الرابعة | K60: 106021641محمد رجب سالمالمباشرميكانيكى الرابعة | L60: 2118.94 | M60: 2542.728 | P60: 317.841 | Q60: 188.32 | R60: 0 | U60: 0 | V60: 0 | W60: 0 | X60: 0 | AA60: 0 | AD60: 0 | AE60: 506.161 | AF60: 75.13 | AG60: 83.84 | AH60: 100.03 | AJ60: 200 | AK60: 42.36 | AL60: 75.54 | AM60: 96.99 | AN60: 138.38 | AO60: 148.06 | AP60: 158.43 | AQ60: 600 | AR60: 10 | AT60: 1728.76 | AU60: 10 | AW60: 1368.75 | AZ60: 8275.339 | BA60: 0 | BB60: 8275.339 | BC60: 0 | BD60: 0 | BE60: 803 | BF60: 0 | BK60: 0 | BL60: 0.5 | BM60: 3 | BN60: 0 | BO60: 0 | BP60: 0 | BR60: 0 | BS60: 0 | BT60: 0 | BV60: 0 | BW60: 0 | BX60: 3.95 | BY60: 3 | CD60: 0 | CE60: 0 | CI60: 1368.75 | CJ60: 0 | CL60: 2182.2 | CM60: 6093.139
C61: 201024 | D61: 22004 | E61: محمود محمد محمود سالم | H61: المباشر | I61: نقاش | J61: الرابعة | K61: 106122004محمود محمد محمود سالم المباشرنقاشالرابعة | L61: 1800.66 | M61: 2160.792 | P61: 270.099 | Q61: 188.32 | R61: 0 | U61: 0 | V61: 0 | W61: 0 | X61: 0 | AA61: 0 | AD61: 0 | AE61: 458.419 | AF61: 64.21 | AG61: 71.65 | AH61: 85.47 | AJ61: 200 | AK61: 36 | AL61: 64.19 | AM61: 82.42 | AN61: 117.59 | AO61: 125.82 | AP61: 134.63 | AQ61: 600 | AR61: 6 | AT61: 1587.98 | AU61: 10 | AW61: 1200 | AZ61: 7217.851 | BA61: 0 | BB61: 7217.851 | BC61: 0 | BD61: 0 | BE61: 704 | BF61: 0 | BK61: 0 | BL61: 0.5 | BM61: 3 | BN61: 0 | BO61: 0 | BP61: 0 | BR61: 0 | BS61: 0 | BT61: 0 | BV61: 0 | BW61: 0 | BX61: 3.44 | BY61: 3 | CD61: 0 | CE61: 0 | CI61: 1200 | CJ61: 0 | CL61: 1913.94 | CM61: 5303.911
C62: 101066 | D62: 21954 | E62: ماهر عبد السميع محمد | H62: المباشر | I62: ا.حركة ثانى | J62: الثانيه | K62: 106221954ماهر عبد السميع محمدالمباشرا.حركة ثانى الثانيه | L62: 2427.38 | M62: 2912.856 | P62: 364.107 | Q62: 188.32 | R62: 0 | U62: 0 | V62: 0 | W62: 0 | X62: 0 | AA62: 0 | AD62: 0 | AE62: 552.427 | AF62: 79.6 | AG62: 89.12 | AH62: 107.14 | AJ62: 190 | AK62: 48.52 | AL62: 86.53 | AM62: 111.11 | AN62: 158.52 | AO62: 169.61 | AP62: 181.49 | AQ62: 600 | AR62: 10 | AT62: 1831.64 | AU62: 10 | AW62: 1556.25 | AZ62: 9290.553 | BA62: 0 | BB62: 9290.553 | BC62: 0 | BD62: 0 | BE62: 913 | BF62: 28.91 | BK62: 0 | BL62: 0.5 | BM62: 3 | BN62: 0 | BO62: 0 | BP62: 0 | BR62: 0 | BS62: 0 | BT62: 0 | BV62: 0 | BW62: 0 | BX62: 4.42 | BY62: 5 | CD62: 0 | CE62: 0 | CI62: 1556.25 | CJ62: 0 | CL62: 2482.17 | CM62: 6808.383
C63: 601027 | D63: 42313 | E63: احمد محمد احمد سلامة | H63: المباشر | I63: حارس | J63: خامسة | K63: 106342313احمد محمد احمد سلامةالمباشرحارسخامسة | L63: 974.27 | M63: 1169.124 | P63: 146.1405 | Q63: 188.32 | R63: 0 | U63: 0 | V63: 0 | W63: 5.5 | X63: 0 | AA63: 0 | AD63: 0 | AE63: 339.9605 | AF63: 31.96 | AG63: 35.75 | AH63: 65 | AJ63: 200 | AK63: 29.56 | AL63: 34.73 | AM63: 44.6 | AN63: 63.62 | AO63: 68.08 | AP63: 86.26 | AQ63: 600 | AR63: 4 | AT63: 1263.56 | AU63: 10 | AW63: 937.5 | AZ63: 4694.4145 | BA63: 1305.5855 | BB63: 6000 | BC63: 0 | BD63: 0 | BE63: 550 | BF63: 0 | BK63: 0 | BL63: 0.5 | BM63: 3 | BN63: 0 | BO63: 0 | BP63: 0 | BR63: 0 | BS63: 0 | BT63: 0 | BV63: 0 | BW63: 0 | BX63: 2.15 | BY63: 3 | CD63: 0 | CE63: 0 | CI63: 937.5 | CJ63: 0 | CL63: 1496.15 | CM63: 4503.85
C64: 601022 | D64: 42301 | E64: اشرف احمد محمد شعبان | H64: المباشر | I64: حارس | J64: خامسة | K64: 106442301اشرف احمد محمد شعبانالمباشرحارسخامسة | L64: 974.27 | M64: 1169.124 | P64: 146.1405 | Q64: 188.32 | R64: 0 | U64: 0 | V64: 0 | W64: 5.5 | X64: 0 | AA64: 0 | AD64: 0 | AE64: 339.9605 | AF64: 31.96 | AG64: 35.75 | AH64: 65 | AJ64: 200 | AK64: 29.56 | AL64: 34.73 | AM64: 44.6 | AN64: 63.62 | AO64: 68.08 | AP64: 86.26 | AQ64: 600 | AR64: 10 | AT64: 1269.56 | AU64: 10 | AW64: 937.5 | AZ64: 4700.4145 | BA64: 1299.5855 | BB64: 6000 | BC64: 0 | BD64: 0 | BE64: 550 | BF64: 0 | BK64: 0 | BL64: 0.5 | BM64: 3 | BN64: 0 | BO64: 0 | BP64: 0 | BR64: 0 | BS64: 0 | BT64: 0 | BV64: 0 | BW64: 0 | BX64: 2.15 | BY64: 3 | CD64: 0 | CE64: 0 | CI64: 937.5 | CJ64: 0 | CL64: 1496.15 | CM64: 4503.85
C65: 101016 | D65: 11222 | E65: خالد السيد اسماعيل | H65: المباشر | I65: مدير ادارة امن وسائل النقل | J65: الاولى | K65: 106511222خالد السيد اسماعيلالمباشرمدير ادارة امن وسائل النقلالاولى | L65: 2654.69 | M65: 3185.628 | P65: 398.2035 | Q65: 188.32 | R65: 0 | U65: 0 | V65: 0 | W65: 0 | X65: 0 | AA65: 0 | AD65: 0 | AE65: 586.5235 | AF65: 87.27 | AG65: 97.45 | AH65: 117.06 | AJ65: 190 | AK65: 53.07 | AL65: 94.64 | AM65: 121.52 | AN65: 173.36 | AO65: 185.5 | AP65: 198.48 | AQ65: 600 | AR65: 10 | AT65: 1928.35 | AU65: 10 | AW65: 1668.75 | AZ65: 10033.9415 | BA65: 0 | BB65: 10033.9415 | BC65: 0 | BD65: 0 | BE65: 979 | BF65: 72.59 | BK65: 0 | BL65: 0.5 | BM65: 3 | BN65: 0 | BO65: 0 | BP65: 0 | BR65: 0 | BS65: 0 | BT65: 0 | BV65: 0 | BW65: 0 | BX65: 4.77 | BY65: 5 | CD65: 0 | CE65: 0 | CI65: 1668.75 | CJ65: 0 | CL65: 2661.02 | CM65: 7372.9215
C66: 101074 | D66: 22060 | E66: ابراهيم حسن سعد حسن | H66: المباشر | I66: رئيس قسم السلامه | J66: الثانيه | K66: 106622060ابراهيم حسن سعد حسنالمباشررئيس قسم السلامهالثانيه | L66: 2139.19 | M66: 2567.028 | P66: 320.8785 | Q66: 188.32 | R66: 0 | U66: 0 | V66: 0 | W66: 0 | X66: 0 | AA66: 0 | AD66: 0 | AE66: 509.1985 | AF66: 70.21 | AG66: 78.59 | AH66: 94.4 | AJ66: 190 | AK66: 42.76 | AL66: 76.26 | AM66: 97.92 | AN66: 139.7 | AO66: 149.48 | AP66: 159.94 | AQ66: 600 | AR66: 10 | AT66: 1709.26 | AU66: 10 | AW66: 1387.5 | AZ66: 8322.1765 | BA66: 0 | BB66: 8322.1765 | BC66: 0 | BD66: 0 | BE66: 814 | BF66: 0 | BK66: 0 | BL66: 0.5 | BM66: 3 | BN66: 0 | BO66: 0 | BP66: 0 | BR66: 0 | BS66: 0 | BT66: 0 | BV66: 0 | BW66: 0 | BX66: 4 | BY66: 5 | CD66: 0 | CE66: 0 | CI66: 1387.5 | CJ66: 0 | CL66: 2214 | CM66: 6108.1765
C67: 601030 | D67: 21876 | E67: ايمن عدلى عبد الرؤوف | H67: المباشر | I67: رئيس قسم تامين وسائل النقل والمعدات | J67: الثانية | K67: 106721876ايمن عدلى عبد الرؤوفالمباشررئيس قسم تامين وسائل النقل والمعداتالثانية | L67: 1967.03 | M67: 2360.436 | P67: 295.0545 | Q67: 188.32 | R67: 0 | U67: 0 | V67: 0 | W67: 0 | X67: 0 | AA67: 0 | AD67: 0 | AE67: 483.3745 | AF67: 65 | AG67: 72.54 | AH67: 87.25 | AJ67: 190 | AK67: 39.32 | AL67: 70.12 | AM67: 90.04 | AN67: 128.45 | AO67: 137.45 | AP67: 147.07 | AQ67: 600 | AR67: 10 | AT67: 1637.24 | AU67: 10 | AW67: 1293.75 | AZ67: 7751.8305 | BA67: 0 | BB67: 7751.8305 | BC67: 0 | BD67: 0 | BE67: 759 | BF67: 0 | BK67: 58.55 | BL67: 0.5 | BM67: 3 | BN67: 0 | BO67: 0 | BP67: 0 | BR67: 0 | BS67: 0 | BT67: 0 | BV67: 0 | BW67: 0 | BX67: 3.73 | BY67: 5 | CD67: 0 | CE67: 0 | CI67: 1293.75 | CJ67: 0 | CL67: 2123.53 | CM67: 5628.3005
C68: 101046 | D68: 21147 | E68: صابر عبد الرؤوف عبد الوهاب | H68: المباشر | I68: رئيس قسم السلامه | J68: الثانيه | K68: 106821147صابر عبد الرؤوف عبد الوهابالمباشررئيس قسم السلامهالثانيه | L68: 2644.84 | M68: 3173.808 | P68: 396.726 | Q68: 188.32 | R68: 0 | U68: 0 | V68: 0 | W68: 0 | X68: 0 | AA68: 0 | AD68: 0 | AE68: 585.046 | AF68: 86.52 | AG68: 96.94 | AH68: 116.71 | AJ68: 190 | AK68: 52.87 | AL68: 94.29 | AM68: 121.06 | AN68: 172.72 | AO68: 184.81 | AP68: 197.74 | AQ68: 600 | AR68: 10 | AT68: 1923.66 | AU68: 10 | AW68: 1668.75 | AZ68: 10006.104 | BA68: 0 | BB68: 10006.104 | BC68: 0 | BD68: 0 | BE68: 979 | BF68: 76.34 | BK68: 14.28 | BL68: 0.5 | BM68: 3 | BN68: 0 | BO68: 0 | BP68: 0 | BR68: 0 | BS68: 0 | BT68: 0 | BV68: 0 | BW68: 0 | BX68: 4.77 | BY68: 5 | CD68: 0 | CE68: 0 | CI68: 1668.75 | CJ68: 0 | CL68: 2675.3 | CM68: 7330.804
C69: 101076 | D69: 22096 | E69: طارق عبد الغنى عبد الجيد | H69: المباشر | I69: رئيس قسم الامن الصناعي | J69: الثانية | K69: 106922096طارق عبد الغنى عبد الجيدالمباشررئيس قسم الامن الصناعيالثانية | L69: 1997.06 | M69: 2396.472 | P69: 299.559 | Q69: 188.32 | R69: 0 | U69: 0 | V69: 0 | W69: 0 | X69: 0 | AA69: 0 | AD69: 0 | AE69: 487.879 | AF69: 65.59 | AG69: 73.39 | AH69: 88.12 | AJ69: 190 | AK69: 39.92 | AL69: 71.19 | AM69: 91.41 | AN69: 130.42 | AO69: 139.54 | AP69: 149.31 | AQ69: 600 | AR69: 10 | AT69: 1648.89 | AU69: 10 | AW69: 1293.75 | AZ69: 7834.051 | BA69: 0 | BB69: 7834.051 | BC69: 0 | BD69: 0 | BE69: 759 | BF69: 0 | BK69: 8.17 | BL69: 0.5 | BM69: 3 | BN69: 0 | BO69: 0 | BP69: 0 | BR69: 0 | BS69: 0 | BT69: 0 | BV69: 0 | BW69: 0 | BX69: 3.74 | BY69: 5 | CD69: 0 | CE69: 0 | CI69: 1293.75 | CJ69: 0 | CL69: 2073.16 | CM69: 5760.891
C70: 0 | D70: 42031 | E70: احمد عيد الحليم ابو العلا | H70: المباشر | I70: ساعي | J70: الثالثه | K70: 107042031احمد عيد الحليم ابو العلاالمباشرساعيالثالثه | L70: 2319.64 | M70: 2783.568 | P70: 347.946 | Q70: 188.32 | R70: 0 | U70: 0 | V70: 0 | W70: 12 | X70: 0 | AA70: 0 | AD70: 0 | AE70: 548.266 | AF70: 76.34 | AG70: 85.22 | AH70: 102.27 | AJ70: 190 | AK70: 46.37 | AL70: 82.69 | AM70: 106.18 | AN70: 151.48 | AO70: 162.09 | AP70: 173.43 | AQ70: 600 | AR70: 10 | AT70: 1786.07 | AU70: 10 | AW70: 0 | AZ70: 7447.544 | BA70: 0 | BB70: 7447.544 | BC70: 0 | BD70: 0 | BE70: 0 | BK70: 0 | BL70: 0.5 | BM70: 3 | BN70: 0 | BO70: 0 | BP70: 0 | BR70: 0 | BS70: 0 | BT70: 0 | BV70: 0 | BW70: 0 | BX70: 4.25 | BY70: 3 | CD70: 0 | CE70: 0 | CI70: 0 | CJ70: 0 | CL70: 10.75 | CM70: 7436.794
C71: 601023 | D71: 42175 | E71: رمضان عبد السلام محمد | H71: المباشر | I71: عامل عادى | J71: الثالثه | K71: 107142175رمضان عبد السلام محمدالمباشرعامل عادىالثالثه | L71: 2247.13 | M71: 2696.556 | P71: 337.0695 | Q71: 188.32 | R71: 0 | U71: 0 | V71: 0 | W71: 12 | X71: 0 | AA71: 0 | AD71: 0 | AE71: 537.3895 | AF71: 73.97 | AG71: 82.57 | AH71: 99.07 | AJ71: 190 | AK71: 44.92 | AL71: 80.11 | AM71: 102.86 | AN71: 146.75 | AO71: 157.02 | AP71: 168.01 | AQ71: 600 | AR71: 10 | AT71: 1755.28 | AU71: 10 | AW71: 1443.75 | AZ71: 8690.1055 | BA71: 0 | BB71: 8690.1055 | BC71: 0 | BD71: 0 | BE71: 847 | BF71: 0 | BK71: 0 | BL71: 0.5 | BM71: 3 | BN71: 0 | BO71: 0 | BP71: 0 | BR71: 0 | BS71: 0 | BT71: 0 | BV71: 0 | BW71: 0 | BX71: 4.12 | BY71: 3 | CD71: 0 | CE71: 0 | CI71: 1443.75 | CJ71: 0 | CL71: 2301.37 | CM71: 6388.7355
C72: 601028 | D72: 42257 | E72: محمد عبد العال طنطاوى | H72: المباشر | I72: عامل عادى | J72: الثالثه | K72: 107242257محمد عبد العال طنطاوىالمباشرعامل عادىالثالثه | L72: 2049.54 | M72: 2459.448 | P72: 307.431 | Q72: 188.32 | R72: 0 | U72: 0 | V72: 0 | W72: 12 | X72: 0 | AA72: 0 | AD72: 0 | AE72: 507.751 | AF72: 72.69 | AG72: 81.11 | AH72: 96.75 | AJ72: 200 | AK72: 40.9 | AL72: 73.07 | AM72: 93.82 | AN72: 133.84 | AO72: 143.21 | AP72: 153.24 | AQ72: 600 | AR72: 10 | AT72: 1698.63 | AU72: 10 | AW72: 1331.25 | AZ72: 8056.619 | BA72: 0 | BB72: 8056.619 | BC72: 0 | BD72: 0 | BE72: 781 | BF72: 0 | BK72: 0 | BL72: 0.5 | BM72: 3 | BN72: 0 | BO72: 0 | BP72: 0 | BR72: 0 | BS72: 0 | BT72: 0 | BV72: 0 | BW72: 0 | BX72: 3.84 | BY72: 3 | CD72: 0 | CE72: 0 | CI72: 1331.25 | CJ72: 0 | CL72: 2122.59 | CM72: 5934.029
C73: 0 | D73: 42293 | E73: احمد خميس جابو الله | H73: المباشر | I73: حارس | J73: خامسة | K73: 107342293احمد خميس جابو اللهالمباشرحارسخامسة | L73: 1099.55 | M73: 1319.46 | P73: 164.9325 | Q73: 188.32 | R73: 0 | U73: 0 | V73: 0 | W73: 5.5 | X73: 0 | AA73: 0 | AD73: 0 | AE73: 358.7525 | AF73: 39.34 | AG73: 43.65 | AH73: 65 | AJ73: 200 | AK73: 23.71 | AL73: 36.2 | AM73: 50.23 | AN73: 71.8 | AO73: 76.83 | AP73: 82.21 | AQ73: 600 | AR73: 10 | AT73: 1298.97 | AU73: 10 | AW73: 937.5 | AZ73: 5024.2325 | BA73: 975.7675 | BB73: 6000 | BC73: 0 | BD73: 0 | BE73: 550 | BF73: 0 | BK73: 0 | BL73: 0.5 | BM73: 3 | BN73: 0 | BO73: 0 | BP73: 0 | BR73: 0 | BS73: 0 | BT73: 0 | BV73: 0 | BW73: 0 | BX73: 2.34 | BY73: 3 | CD73: 0 | CE73: 0 | CI73: 937.5 | CJ73: 0 | CL73: 1496.34 | CM73: 4503.66
C74: 601024 | D74: 42294 | E74: وحيد سيد زكى | H74: المباشر | I74: حارس | J74: سادسة | K74: 107442294وحيد سيد زكى المباشرحارسسادسة | L74: 956.54 | M74: 1147.848 | P74: 143.481 | Q74: 188.32 | R74: 0 | U74: 0 | V74: 0 | W74: 5.5 | X74: 0 | AA74: 0 | AD74: 0 | AE74: 337.301 | AF74: 33.24 | AG74: 37.43 | AH74: 65 | AJ74: 200 | AK74: 30.38 | AL74: 34.1 | AM74: 43.87 | AN74: 62.47 | AO74: 66.84 | AP74: 87.42 | AQ74: 600 | AR74: 10 | AT74: 1270.75 | AU74: 10 | AW74: 937.5 | AZ74: 4659.939 | BA74: 1340.061 | BB74: 6000 | BC74: 0 | BD74: 0 | BE74: 550 | BF74: 0 | BK74: 0 | BL74: 0.5 | BM74: 3 | BN74: 0 | BO74: 0 | BP74: 0 | BR74: 0 | BS74: 0 | BT74: 0 | BV74: 0 | BW74: 0 | BX74: 2.13 | BY74: 3 | CD74: 0 | CE74: 0 | CI74: 937.5 | CJ74: 0 | CL74: 1496.13 | CM74: 4503.87
C75: 601021 | D75: 42319 | E75: عبد الهادى عبد التواب عبد الهادى | H75: المباشر | I75: حارس | J75: سادسة | K75: 107542319عبد الهادى عبد التواب عبد الهادىالمباشرحارسسادسة | L75: 849.38 | M75: 1019.256 | P75: 127.407 | Q75: 188.32 | R75: 0 | U75: 0 | V75: 0 | W75: 5.5 | X75: 0 | AA75: 0 | AD75: 0 | AE75: 321.227 | AF75: 28.18 | AG75: 31.72 | AH75: 65 | AJ75: 200 | AK75: 35.38 | AL75: 32.61 | AM75: 38.88 | AN75: 55.47 | AO75: 73.07 | AP75: 94.43 | AQ75: 600 | AR75: 10 | AT75: 1264.74 | AU75: 10 | AW75: 937.5 | AZ75: 4402.103 | BA75: 1597.897 | BB75: 6000 | BC75: 0 | BD75: 0 | BE75: 550 | BF75: 0 | BK75: 0 | BL75: 0.5 | BM75: 3 | BN75: 0 | BO75: 0 | BP75: 0 | BR75: 0 | BS75: 0 | BT75: 0 | BV75: 0 | BW75: 0 | BX75: 1.97 | BY75: 3 | CD75: 0 | CE75: 0 | CI75: 937.5 | CJ75: 0 | CL75: 1495.97 | CM75: 4504.03
C76: 202106 | D76: 21136 | E76: احمد كمال احمد على | H76: المباشر | I76: فنى اول | J76: الاولى | K76: 107621136احمد كمال احمد على المباشرفنى اول الاولى | L76: 2730.45 | M76: 3276.54 | P76: 409.57 | Q76: 188.32 | R76: 0 | U76: 0 | V76: 0 | W76: 0 | X76: 0 | AA76: 0 | AD76: 0 | AE76: 597.89 | AF76: 90.23 | AG76: 100.79 | AH76: 120 | AJ76: 190 | AK76: 54.58 | AL76: 97.33 | AM76: 124.98 | AN76: 178.31 | AO76: 190.79 | AP76: 204.15 | AQ76: 600 | AR76: 10 | AT76: 1961.16 | AU76: 10 | AW76: 1725 | AZ76: 10301.04 | BA76: 0 | BB76: 10301.04 | BC76: 0 | BD76: 0 | BE76: 1012 | BF76: 82 | BK76: 0 | BL76: 0.5 | BM76: 3 | BN76: 0 | BO76: 0 | BP76: 0 | BR76: 0 | BS76: 0 | BT76: 0 | BV76: 0 | BW76: 0 | BX76: 3.84 | BY76: 5 | CD76: 0 | CE76: 0 | CI76: 1725 | CJ76: 0 | CL76: 2750.32 | CM76: 7550.72
C77: 101091 | D77: 21529 | E77: احمد محمد احمد محمود | H77: المباشر | I77: ا. ش. فنيه (مكلف ادراي) | J77: الثانية | K77: 107721529احمد محمد احمد محمودالمباشرا. ش. فنيه (مكلف ادراي)الثانية | L77: 2427.65 | M77: 2913.18 | P77: 364.1475 | Q77: 188.32 | R77: 0 | U77: 0 | V77: 0 | W77: 0 | X77: 0 | AA77: 0 | AD77: 0 | AE77: 552.4675 | AF77: 79.61 | AG77: 89.13 | AH77: 107.15 | AJ77: 190 | AK77: 48.52 | AL77: 86.54 | AM77: 111.12 | AN77: 158.53 | AO77: 169.63 | AP77: 181.51 | AQ77: 600 | AR77: 10 | AT77: 1831.74 | AU77: 10 | AW77: 1556.25 | AZ77: 9291.2875 | BA77: 0 | BB77: 9291.2875 | BC77: 0 | BD77: 0 | BE77: 913 | BF77: 28.91 | BK77: 0 | BL77: 0.5 | BM77: 3 | BN77: 0 | BO77: 0 | BP77: 0 | BR77: 0 | BS77: 0 | BT77: 0 | BV77: 0 | BW77: 0 | BX77: 4.42 | BY77: 5 | CD77: 0 | CE77: 0 | CI77: 1556.25 | CJ77: 0 | CL77: 2482.17 | CM77: 6809.1175
C78: 202128 | D78: 21588 | E78: عثمان هاشم عثمان | H78: المباشر | I78: فنى ثالث (مكلف اداري) | J78: الثانية | K78: 107821588عثمان هاشم عثمان المباشرفنى ثالث (مكلف اداري)الثانية | L78: 2328.06 | M78: 2793.67 | P78: 349.21 | Q78: 188.32 | R78: 0 | U78: 0 | V78: 0 | W78: 0 | X78: 0 | AA78: 0 | AD78: 0 | AE78: 537.53 | AF78: 76.43 | AG78: 85.55 | AH78: 102.77 | AJ78: 190 | AK78: 46.54 | AL78: 82.99 | AM78: 106.56 | AN78: 152.03 | AO78: 162.67 | AP78: 174.06 | AQ78: 600 | AR78: 10 | AT78: 1789.6 | AU78: 10 | AW78: 1500 | AZ78: 8958.86 | BA78: 0 | BB78: 8958.86 | BC78: 0 | BD78: 0 | BE78: 880 | BF78: 7.25 | BK78: 0 | BL78: 0.5 | BM78: 3 | BN78: 0 | BO78: 0 | BP78: 0 | BR78: 0 | BS78: 0 | BT78: 0 | BV78: 0 | BW78: 0 | BX78: 4.26 | BY78: 3 | CD78: 0 | CE78: 0 | CI78: 1500 | CJ78: 0 | CL78: 2390.76 | CM78: 6568.1
C79: 101083 | D79: 21149 | E79: صابر محمد حسن | H79: المباشر | I79: أ. شئون فنية اول | J79: الثانية | K79: 107921149صابر محمد حسن المباشرأ. شئون فنية اول الثانية | L79: 2759.21 | M79: 3311.05 | P79: 413.88 | Q79: 188.32 | R79: 0 | U79: 0 | V79: 0 | W79: 0 | X79: 0 | AA79: 0 | AD79: 0 | AE79: 602.2 | AF79: 90.68 | AG79: 101.27 | AH79: 120 | AJ79: 190 | AK79: 55.16 | AL79: 98.36 | AM79: 126.3 | AN79: 180.19 | AO79: 192.8 | AP79: 206.3 | AQ79: 600 | AR79: 10 | AT79: 1971.06 | AU79: 10 | AW79: 1743.75 | AZ79: 10397.27 | BA79: 0 | BB79: 10397.27 | BC79: 0 | BD79: 0 | BE79: 1023 | BF79: 77.84 | BK79: 0 | BL79: 0.5 | BM79: 3 | BN79: 0 | BO79: 0 | BP79: 0 | BR79: 0 | BS79: 0 | BT79: 0 | BV79: 0 | BW79: 0 | BX79: 4.94 | BY79: 5 | CD79: 0 | CE79: 0 | CI79: 1743.75 | CJ79: 0 | CL79: 2780.19 | CM79: 7617.08
C80: 202093 | D80: 22081 | E80: محمد حنفى احمد محمد | H80: المباشر | I80: سمكري (مكلف اداري ) | J80: الرابعه | K80: 108022081محمد حنفى احمد محمدالمباشر سمكري (مكلف اداري )الرابعه | L80: 1812.02 | M80: 2174.42 | P80: 271.8 | Q80: 188.32 | R80: 0 | U80: 0 | V80: 0 | W80: 0 | X80: 0 | AA80: 0 | AD80: 0 | AE80: 460.12 | AF80: 64.33 | AG80: 71.76 | AH80: 85.51 | AJ80: 200 | AK80: 36.22 | AL80: 64.59 | AM80: 82.94 | AN80: 118.33 | AO80: 126.62 | AP80: 135.48 | AQ80: 600 | AR80: 8 | AT80: 1593.78 | AU80: 10 | AW80: 1200 | AZ80: 7250.34 | BA80: 0 | BB80: 7250.34 | BC80: 0 | BD80: 0 | BE80: 704 | BF80: 0 | BK80: 0 | BL80: 0.5 | BM80: 3 | BN80: 0 | BO80: 0 | BP80: 0 | BR80: 0 | BS80: 0 | BT80: 0 | BV80: 0 | BW80: 0 | BX80: 3.46 | BY80: 3 | CD80: 0 | CE80: 0 | CI80: 1200 | CJ80: 0 | CL80: 1913.96 | CM80: 5336.38
C81: 202101 | D81: 22171 | E81: محمود فايز محمود احمد | H81: المباشر | I81: ميكانيكى (مكلف حارس ) | J81: الخامسه | K81: 108122171محمود فايز محمود احمدالمباشرميكانيكى (مكلف حارس )الخامسه | L81: 940.59 | M81: 1128.71 | P81: 141.09 | Q81: 188.32 | R81: 0 | U81: 0 | V81: 0 | W81: 5.5 | X81: 0 | AA81: 0 | AD81: 0 | AE81: 334.91 | AF81: 30.15 | AG81: 33.82 | AH81: 65 | AJ81: 200 | AK81: 31.13 | AL81: 33.53 | AM81: 43.05 | AN81: 61.42 | AO81: 67.49 | AP81: 88.47 | AQ81: 600 | AR81: 8 | AT81: 1262.06 | AU81: 10 | AW81: 918.75 | AZ81: 4595.02 | BA81: 1404.98 | BB81: 6000 | BC81: 0 | BD81: 0 | BE81: 539 | BF81: 0 | BK81: 0 | BL81: 0.5 | BM81: 3 | BN81: 0 | BO81: 0 | BP81: 0 | BR81: 0 | BS81: 0 | BT81: 0 | BV81: 0 | BW81: 0 | BX81: 2.8 | BY81: 3 | CD81: 0 | CE81: 0 | CI81: 918.75 | CJ81: 0 | CL81: 1467.05 | CM81: 4532.95
C82: 0 | D82: 22143 | E82: محمد عبد الخالق على | H82: المباشر | I82: فنى رابع حداد | J82: الرابعة | K82: 108222143محمد عبد الخالق على المباشرفنى رابع حدادالرابعة | L82: 1327.29 | M82: 1592.75 | P82: 199.09 | Q82: 188.32 | R82: 0 | U82: 0 | V82: 0 | W82: 0 | X82: 0 | AA82: 0 | AD82: 0 | AE82: 387.41 | AF82: 43.93 | AG82: 48.89 | AH82: 65 | AJ82: 200 | AK82: 26.53 | AL82: 47.32 | AM82: 60.76 | AN82: 86.68 | AO82: 92.74 | AP82: 99.24 | AQ82: 600 | AR82: 10 | AT82: 1381.09 | AU82: 10 | AW82: 768.75 | AZ82: 5467.29 | BA82: 532.71 | BB82: 6000 | BC82: 0 | BD82: 0 | BE82: 451 | BF82: 0 | BK82: 0 | BL82: 0.5 | BM82: 3 | BN82: 0 | BO82: 0 | BP82: 1592.75 | BR82: 0 | BS82: 0 | BT82: 0 | BV82: 0 | BW82: 0 | BX82: 2.02 | BY82: 3 | CD82: 0 | CE82: 0 | CI82: 768.75 | CJ82: 0 | CL82: 2821.02 | CM82: 3178.98
C83: 202119 | D83: 22059 | E83: احمد محمد احمد على مداد | H83: المباشر | I83: ميكانيكى (ملف حارس) | J83: رابعه | K83: 108322059احمد محمد احمد على مداد المباشرميكانيكى (ملف حارس)رابعه | L83: 1979.69 | M83: 2375.63 | P83: 296.95 | Q83: 188.32 | R83: 0 | U83: 0 | V83: 0 | W83: 5.5 | X83: 0 | AA83: 0 | AD83: 0 | AE83: 490.77 | AF83: 70.23 | AG83: 78.36 | AH83: 93.44 | AJ83: 200 | AK83: 39.57 | AL83: 70.57 | AM83: 90.62 | AN83: 129.28 | AO83: 138.33 | AP83: 148.01 | AQ83: 600 | AR83: 10 | AT83: 1668.41 | AU83: 10 | AW83: 1293.75 | AZ83: 7818.25 | BA83: 0 | BB83: 7818.25 | BC83: 0 | BD83: 0 | BE83: 759 | BF83: 0 | BK83: 0 | BL83: 0.5 | BM83: 3 | BN83: 0 | BO83: 0 | BP83: 0 | BR83: 0 | BS83: 0 | BT83: 0 | BV83: 0 | BW83: 0 | BX83: 3.71 | BY83: 3 | CD83: 0 | CE83: 0 | CI83: 1293.75 | CJ83: 0 | CL83: 2062.96 | CM83: 5755.29
C84: 601020 | D84: 42331 | E84: محمد اليمانى محمد محمد على | H84: المباشر | I84: حارس | J84: سادسة | K84: 108442331محمد اليمانى محمد محمد على المباشرحارس سادسة | L84: 602.26 | M84: 722.712 | P84: 90.339 | Q84: 188.32 | R84: 0 | U84: 0 | V84: 0 | W84: 5.5 | X84: 0 | AA84: 0 | AD84: 0 | AE84: 284.159 | AF84: 28.18 | AG84: 29.64 | AH84: 65 | AJ84: 200 | AK84: 46.91 | AL84: 44.94 | AM84: 42.84 | AN84: 65.59 | AO84: 88.18 | AP84: 110.6 | AQ84: 600 | AR84: 8 | AT84: 1329.88 | AU84: 10 | AW84: 918.75 | AZ84: 3867.761 | BA84: 2132.239 | BB84: 6000 | BC84: 0 | BD84: 0 | BE84: 539 | BF84: 0 | BK84: 0 | BL84: 0.5 | BM84: 3 | BN84: 0 | BO84: 0 | BP84: 0 | BR84: 0 | BS84: 0 | BT84: 0 | BV84: 0 | BW84: 0 | BX84: 2.79 | BY84: 3 | CD84: 0 | CE84: 0 | CI84: 918.75 | CJ84: 0 | CL84: 1467.04 | CM84: 4532.96
C85: 0 | D85: 21424 | E85: محسن محمد عبد الرحمن | H85: المباشر | I85: امين خزينه | J85: الثانية | K85: 108521424محسن محمد عبد الرحمنالمباشرامين خزينهالثانية | L85: 2386.84 | M85: 2864.21 | P85: 358.03 | Q85: 188.32 | R85: 0 | U85: 0 | V85: 0 | W85: 0 | X85: 0 | AA85: 0 | AD85: 0 | AE85: 546.35 | AF85: 84.64 | AG85: 94.45 | AH85: 112.7 | AJ85: 190 | AK85: 47.71 | AL85: 85.08 | AM85: 109.25 | AN85: 155.87 | AO85: 166.79 | AP85: 178.46 | AQ85: 600 | AR85: 10 | AT85: 1834.95 | AU85: 10 | AW85: 0 | AZ85: 7642.35 | BA85: 0 | BB85: 7642.35 | BC85: 0 | BD85: 0 | BE85: 0 | BF85: 19.91 | BK85: 0 | BL85: 0.5 | BM85: 3 | BN85: 0 | BO85: 0 | BP85: 0 | BR85: 0 | BS85: 0 | BT85: 0 | BV85: 0 | BW85: 0 | BX85: 4.36 | BY85: 5 | CD85: 0 | CE85: 0 | CI85: 0 | CJ85: 0 | CL85: 12.86 | CM85: 7629.49
C86: 101081 | D86: 11359 | E86: رشا عصمت عبد الرحمن | H86: المباشر | I86: محامى | J86: الثالثه | K86: 108611359رشا عصمت عبد الرحمنالمباشرمحامىالثالثه | L86: 1253 | M86: 1503.6 | P86: 187.95 | Q86: 188.32 | R86: 20 | U86: 0 | V86: 0 | W86: 0 | X86: 0 | AA86: 0 | AC86: 81 | AD86: 0 | AE86: 477.27 | AF86: 41.06 | AG86: 46.07 | AH86: 65 | AJ86: 190 | AK86: 23.4 | AL86: 41.74 | AM86: 53.6 | AN86: 76.47 | AO86: 81.83 | AP86: 93.68 | AQ86: 600 | AR86: 6 | AT86: 1318.85 | AU86: 10 | AW86: 900 | AZ86: 5462.72 | BA86: 537.28 | BB86: 6000 | BC86: 0 | BD86: 0 | BE86: 528 | BF86: 0 | BK86: 57 | BL86: 0.5 | BM86: 3 | BN86: 0 | BO86: 0 | BP86: 0 | BR86: 0 | BS86: 0 | BT86: 0 | BV86: 0 | BW86: 0 | BX86: 2.76 | BY86: 3 | CD86: 0 | CE86: 0 | CI86: 900 | CJ86: 0 | CL86: 1494.26 | CM86: 4505.74
C87: 101067 | D87: 22000/ف | E87: ياسر محمد ابراهيم فراج | H87: المباشر | I87: أ. حركة ثان | J87: الثانية | K87: 108722000/فياسر محمد ابراهيم فراج المباشرأ. حركة ثان الثانية | L87: 2233.33 | M87: 2680 | P87: 335 | Q87: 188.32 | R87: 0 | U87: 0 | V87: 0 | W87: 0 | X87: 0 | AA87: 0 | AD87: 0 | AE87: 523.32 | AF87: 73.27 | AG87: 82.02 | AH87: 98.55 | AJ87: 190 | AK87: 44.65 | AL87: 79.62 | AM87: 102.23 | AN87: 145.84 | AO87: 156.05 | AP87: 166.98 | AQ87: 600 | AR87: 4 | AT87: 1743.21 | AU87: 10 | AW87: 1443.75 | AZ87: 8633.61 | BA87: 0 | BB87: 8633.61 | BC87: 0 | BD87: 0 | BE87: 847 | BF87: 0 | BK87: 0 | BL87: 0.5 | BM87: 3 | BN87: 0 | BO87: 0 | BP87: 2680 | BR87: 0 | BS87: 0 | BT87: 0 | BV87: 0 | BW87: 0 | BX87: 3.55 | BY87: 3 | CD87: 0 | CE87: 0 | CI87: 1443.75 | CJ87: 0 | CL87: 4980.8 | CM87: 3652.81
C88: 101094 | D88: 21939 | E88: جابر عبد النبى حسن | H88: المباشر | I88: رئيس قسم المخازن والمشتريات | J88: الثانية | K88: 108821939جابر عبد النبى حسن المباشررئيس قسم المخازن والمشترياتالثانية | L88: 2203.13 | M88: 2643.76 | P88: 330.47 | Q88: 188.32 | R88: 0 | U88: 0 | V88: 0 | W88: 0 | X88: 0 | AA88: 0 | AD88: 0 | AE88: 518.79 | AF88: 72.16 | AG88: 80.8 | AH88: 97.19 | AJ88: 190 | AK88: 44.04 | AL88: 78.54 | AM88: 100.85 | AN88: 143.87 | AO88: 153.94 | AP88: 164.72 | AQ88: 600 | AR88: 10 | AT88: 1736.11 | AU88: 10 | AW88: 1425 | AZ88: 8536.79 | BA88: 0 | BB88: 8536.79 | BC88: 0 | BD88: 0 | BE88: 836 | BF88: 0 | BK88: 0 | BL88: 0.5 | BM88: 3 | BN88: 0 | BO88: 0 | BP88: 0 | BR88: 0 | BS88: 0 | BT88: 0 | BV88: 0 | BW88: 0 | BX88: 4.06 | BY88: 5 | CD88: 0 | CE88: 0 | CI88: 1425 | CJ88: 0 | CL88: 2273.56 | CM88: 6263.23
C89: 604001 | D89: 42298 | E89: عبد التواب محموداحمد | H89: المباشر | I89: حارس مكلف اداري | J89: الخامسه | K89: 108942298عبد التواب محموداحمد المباشرحارس مكلف اداريالخامسه | L89: 1099.53 | M89: 1319.436 | P89: 164.93 | Q89: 188.32 | R89: 0 | U89: 0 | V89: 0 | W89: 5.5 | X89: 0 | AA89: 0 | AD89: 0 | AE89: 358.75 | AF89: 39.34 | AG89: 43.65 | AH89: 65 | AJ89: 200 | AK89: 23.72 | AL89: 39.19 | AM89: 50.33 | AN89: 71.8 | AO89: 76.83 | AP89: 82.21 | AQ89: 600 | AR89: 10 | AT89: 1302.07 | AU89: 10 | AW89: 900 | AZ89: 4989.786 | BA89: 1010.214 | BB89: 6000 | BC89: 0 | BD89: 0 | BE89: 528 | BF89: 0 | BK89: 0 | BL89: 0.5 | BM89: 3 | BN89: 0 | BO89: 0 | BP89: 0 | BR89: 0 | BS89: 0 | BT89: 0 | BV89: 0 | BW89: 0 | BX89: 2.77 | BY89: 3 | CD89: 0 | CE89: 0 | CI89: 900 | CJ89: 0 | CL89: 1437.27 | CM89: 4562.73
C90: 604002 | D90: 21581 | E90: السيد محمد عشرى سليمان | H90: المباشر | I90: حارس (مكلف اداري ) | J90: الثالثة | K90: 109021581السيد محمد عشرى سليمان المباشرحارس (مكلف اداري )الثالثة | L90: 2118.23 | M90: 2541.876 | P90: 317.73 | Q90: 188.32 | R90: 0 | U90: 0 | V90: 0 | W90: 5.5 | X90: 0 | AA90: 0 | AD90: 0 | AE90: 511.55 | AF90: 70.12 | AG90: 78.28 | AH90: 100.31 | AJ90: 190 | AK90: 42.34 | AL90: 75.51 | AM90: 96.96 | AN90: 138.33 | AO90: 148.01 | AP90: 158.37 | AQ90: 600 | AR90: 10 | AT90: 1708.23 | AU90: 10 | AW90: 1368.75 | AZ90: 8258.636 | BA90: 0 | BB90: 8258.636 | BC90: 0 | BD90: 0 | BE90: 803 | BF90: 0 | BK90: 0 | BL90: 0.5 | BM90: 3 | BN90: 0 | BO90: 0 | BP90: 0 | BR90: 0 | BS90: 0 | BT90: 0 | BV90: 0 | BW90: 0 | BX90: 3.93 | BY90: 3 | CD90: 0 | CE90: 0 | CI90: 1368.75 | CJ90: 0 | CL90: 2182.18 | CM90: 6076.456
C91: 101100 | D91: 42318 | E91: على عفيفي عبد البر عيفيفي | H91: المباشر | I91: حارس | J91: سادسة | K91: 109142318على عفيفي عبد البر عيفيفيالمباشرحارس سادسة | L91: 849.38 | M91: 1019.256 | P91: 127.41 | Q91: 188.32 | R91: 0 | U91: 0 | V91: 0 | W91: 5.5 | X91: 0 | AA91: 0 | AD91: 0 | AE91: 321.23 | AF91: 28.18 | AG91: 31.71 | AH91: 65 | AJ91: 200 | AK91: 35.38 | AL91: 32.61 | AM91: 38.88 | AN91: 55.47 | AO91: 73.07 | AP91: 94.43 | AQ91: 600 | AR91: 10 | AT91: 1264.73 | AU91: 10 | AW91: 825 | AZ91: 4289.596 | BA91: 1710.404 | BB91: 6000 | BC91: 0 | BD91: 0 | BE91: 484 | BF91: 0 | BK91: 0 | BL91: 0.5 | BM91: 3 | BN91: 0 | BO91: 0 | BP91: 0 | BR91: 0 | BS91: 0 | BT91: 0 | BV91: 0 | BW91: 0 | BX91: 2.8 | BY91: 3 | CD91: 0 | CE91: 0 | CI91: 825 | CJ91: 0 | CL91: 1318.3 | CM91: 4681.7
C92: 604000 | D92: 42332 | E92: رمضان شعبان قرنى | H92: المباشر | I92: حارس | J92: سادسة | K92: 109242332رمضان شعبان قرنى المباشرحارس سادسة | L92: 602.26 | M92: 722.712 | P92: 90.34 | Q92: 188.32 | R92: 0 | U92: 0 | V92: 0 | W92: 5.5 | X92: 0 | AA92: 0 | AD92: 0 | AE92: 284.16 | AF92: 28.18 | AG92: 29.64 | AH92: 65 | AJ92: 200 | AK92: 46.91 | AL92: 44.94 | AM92: 42.84 | AN92: 65.59 | AO92: 88.18 | AP92: 110.6 | AQ92: 600 | AR92: 10 | AT92: 1331.88 | AU92: 10 | AW92: 918.75 | AZ92: 3869.762 | BA92: 2130.238 | BB92: 6000 | BC92: 0 | BD92: 0 | BE92: 539 | BF92: 0 | BK92: 0 | BL92: 0.5 | BM92: 3 | BN92: 0 | BO92: 0 | BP92: 0 | BR92: 0 | BS92: 0 | BT92: 0 | BV92: 0 | BW92: 0 | BX92: 2.79 | BY92: 3 | CD92: 0 | CE92: 0 | CI92: 918.75 | CJ92: 0 | CL92: 1467.04 | CM92: 4532.96
C93: 117001 | D93: 11338 | E93: اسامه رفاعى ابراهيم | H93: المباشر | I93: قنا | J93: الثالثة | K93: 109311338اسامه رفاعى ابراهيم المباشرقناالثالثة | L93: 1170.47 | M93: 1404.564 | P93: 175.57 | Q93: 188.32 | R93: 0 | S93: 9.6 | T93: 29.33 | U93: 0 | V93: 0 | W93: 0 | X93: 0 | AA93: 0 | AD93: 0 | AE93: 402.82 | AF93: 41.94 | AG93: 46.57 | AH93: 65 | AJ93: 190 | AK93: 23.4 | AL93: 41.73 | AM93: 53.58 | AN93: 76.44 | AO93: 81.79 | AP93: 87.51 | AQ93: 600 | AR93: 4 | AT93: 1311.96 | AU93: 10 | AW93: 918.75 | AZ93: 5218.564 | BA93: 781.436 | BB93: 6000 | BC93: 0 | BD93: 0 | BE93: 539 | BF93: 0 | BG93: 9.75 | BH93: 10.46 | BK93: 0 | BL93: 0.5 | BM93: 3 | BN93: 0 | BO93: 0 | BP93: 0 | BR93: 0 | BS93: 0 | BT93: 0 | BV93: 0 | BW93: 0 | BX93: 2.74 | BY93: 3 | CD93: 0 | CE93: 0 | CI93: 918.75 | CJ93: 0 | CL93: 1487.2 | CM93: 4512.8
C94: 217004 | D94: 21582 | E94: مصطفى سالم احمد | H94: المباشر | I94: قنا | J94: ثالثة | K94: 109421582مصطفى سالم احمد المباشرقناثالثة | L94: 2110.05 | M94: 2532.06 | P94: 316.51 | Q94: 188.32 | R94: 0 | S94: 9.6 | T94: 87.99 | U94: 0 | V94: 0 | W94: 5.5 | X94: 0 | AA94: 0 | AD94: 0 | AE94: 607.92 | AF94: 74.69 | AG94: 83.38 | AH94: 99.57 | AJ94: 190 | AK94: 42.18 | AL94: 75.22 | AM94: 96.59 | AN94: 137.79 | AO94: 147.44 | AP94: 157.76 | AQ94: 600 | AR94: 10 | AT94: 1714.62 | AU94: 10 | AW94: 1368.75 | AZ94: 8343.4 | BA94: 0 | BB94: 8343.4 | BC94: 0 | BD94: 0 | BE94: 803 | BF94: 0 | BK94: 0 | BL94: 0.5 | BM94: 3 | BN94: 0 | BO94: 0 | BP94: 0 | BR94: 0 | BS94: 0 | BT94: 0 | BV94: 0 | BW94: 0 | BX94: 3.87 | BY94: 3 | CD94: 0 | CE94: 0 | CI94: 1368.75 | CJ94: 0 | CL94: 2182.12 | CM94: 6161.28
C95: 217003 | D95: 21657 | E95: حجاج حامد على عبد الرحيم | H95: المباشر | I95: فنى ثان | J95: ثالثة | K95: 109521657حجاج حامد على عبد الرحيم المباشرفنى ثان ثالثة | L95: 2330.37 | M95: 2796.444 | P95: 349.56 | Q95: 188.32 | R95: 0 | S95: 14 | T95: 87.99 | U95: 0 | V95: 0 | W95: 0 | X95: 0 | AA95: 0 | AD95: 0 | AE95: 639.87 | AF95: 76.44 | AG95: 85.57 | AH95: 102.85 | AJ95: 190 | AK95: 46.58 | AL95: 83.08 | AM95: 106.67 | AN95: 152.18 | AO95: 162.84 | AP95: 174.23 | AQ95: 600 | AR95: 8 | AT95: 1788.44 | AU95: 10 | AW95: 1500 | AZ95: 9065.124 | BA95: 0 | BB95: 9065.124 | BC95: 0 | BD95: 0 | BE95: 880 | BF95: 0 | BK95: 0 | BL95: 0.5 | BM95: 3 | BN95: 0 | BO95: 0 | BP95: 0 | BR95: 0 | BS95: 0 | BT95: 0 | BV95: 0 | BW95: 0 | BX95: 4.31 | BY95: 3 | CD95: 0 | CE95: 0 | CI95: 1500 | CJ95: 0 | CL95: 2390.81 | CM95: 6674.314
C96: 217007 | D96: 22023 | E96: مصطفى احمد محمد علي | H96: المباشر | I96: حرفى ثالث | J96: ثالثة | K96: 109622023مصطفى احمد محمد عليالمباشرحرفى ثالثثالثة | L96: 2256.64 | M96: 2707.968 | P96: 338.5 | Q96: 188.32 | R96: 0 | S96: 9.6 | T96: 87.99 | U96: 0 | V96: 0 | W96: 5.5 | X96: 0 | AA96: 0 | AD96: 0 | AE96: 629.91 | AF96: 74.28 | AG96: 82.91 | AH96: 99.49 | AJ96: 190 | AK96: 45.11 | AL96: 80.45 | AM96: 103.29 | AN96: 147.37 | AO96: 157.68 | AP96: 168.72 | AQ96: 600 | AR96: 10 | AT96: 1759.3 | AU96: 10 | AW96: 1443.75 | AZ96: 8807.568 | BA96: 0 | BB96: 8807.568 | BC96: 0 | BD96: 0 | BE96: 847 | BF96: 0 | BK96: 0 | BL96: 0.5 | BM96: 3 | BN96: 0 | BO96: 0 | BP96: 0 | BR96: 0 | BS96: 0 | BT96: 0 | BV96: 0 | BW96: 0 | BX96: 4.07 | BY96: 3 | CD96: 0 | CE96: 0 | CI96: 1443.75 | CJ96: 0 | CL96: 2301.32 | CM96: 6506.248
C97: 101056 | D97: 21823 | E97: حسام الدين حسن كامل | H97: المباشر | I97: 0 | J97: 0 | K97: 109721823حسام الدين حسن كاملالمباشر00 | L97: 2330.39 | M97: 2796.468 | P97: 349.5585 | Q97: 188.32 | R97: 0 | U97: 0 | V97: 0 | W97: 0 | X97: 0 | AA97: 0 | AD97: 0 | AE97: 537.8785 | AF97: 76.44 | AG97: 85.75 | AH97: 106.85 | AJ97: 190 | AK97: 46.85 | AL97: 83.08 | AM97: 106.67 | AN97: 152.18 | AO97: 162.84 | AP97: 174.23 | AQ97: 600 | AR97: 10 | AT97: 1794.89 | AU97: 10 | AW97: 1500 | AZ97: 8969.6265 | BA97: 0 | BB97: 8969.6265 | BC97: 0 | BD97: 0 | BE97: 880 | BF97: 0 | BK97: 0 | BL97: 0.5 | BM97: 3 | BN97: 0 | BO97: 0 | BP97: 0 | BR97: 0 | BS97: 0 | BT97: 0 | BV97: 0 | BW97: 0 | BX97: 2.86 | BY97: 5 | CD97: 0 | CE97: 0 | CI97: 1500 | CJ97: 0 | CL97: 2391.36 | CM97: 6578.2665
C98: 101012 | D98: 11168 | E98: ماجد كامل احمد رضوان | H98: المباشر | I98: مدير ادارة الاستحقاقات | J98: الاولى | K98: 109811168ماجد كامل احمد رضوانالمباشرمدير ادارة الاستحقاقاتالاولى | L98: 2987.26 | M98: 3584.712 | P98: 448.089 | Q98: 188.32 | R98: 0 | U98: 0 | V98: 0 | W98: 0 | X98: 0 | AA98: 0 | AD98: 0 | AE98: 636.409 | AF98: 104.65 | AG98: 116.91 | AH98: 120 | AJ98: 190 | AK98: 59.72 | AL98: 106.49 | AM98: 136.74 | AN98: 195.08 | AO98: 208.74 | AP98: 223.35 | AQ98: 600 | AR98: 4 | AT98: 2065.68 | AU98: 10 | AW98: 1875 | AZ98: 11159.061 | BA98: 0 | BB98: 11159.061 | BC98: 0 | BD98: 0 | BE98: 1100 | BF98: 128.75 | BK98: 0 | BL98: 0.5 | BM98: 3 | BN98: 0 | BO98: 0 | BP98: 0 | BR98: 0 | BS98: 0 | BT98: 0 | BV98: 0 | BW98: 0 | BX98: 5.29 | BY98: 5 | CD98: 0 | CE98: 0 | CI98: 1875 | CJ98: 0 | CL98: 2988.79 | CM98: 8170.271
C99: 601025 | D99: 43221 | E99: محمود عبد المولى ابو بكر | H99: المباشر | I99: حارس | J99: سادسة | K99: 109943221محمود عبد المولى ابو بكرالمباشرحارسسادسة | L99: 849.38 | M99: 1019.256 | P99: 127.407 | Q99: 188.32 | R99: 0 | U99: 0 | V99: 0 | W99: 5.5 | X99: 0 | AA99: 0 | AD99: 0 | AE99: 321.227 | AF99: 28.18 | AG99: 31.71 | AH99: 65 | AJ99: 200 | AK99: 35.38 | AL99: 32.61 | AM99: 38.88 | AN99: 55.47 | AO99: 73.07 | AP99: 94.43 | AQ99: 600 | AR99: 10 | AT99: 1264.73 | AU99: 10 | AW99: 918.75 | AZ99: 4383.343 | BA99: 1616.657 | BB99: 6000 | BC99: 0 | BD99: 0 | BE99: 539 | BF99: 0 | BK99: 0 | BL99: 0.5 | BM99: 3 | BN99: 0 | BO99: 0 | BP99: 0 | BR99: 0 | BS99: 0 | BT99: 0 | BV99: 0 | BW99: 0 | BX99: 1.97 | BY99: 3 | CD99: 0 | CE99: 0 | CI99: 918.75 | CJ99: 0 | CL99: 1466.22 | CM99: 4533.78
C100: 201007 | D100: 21923 | E100: سيد ابراهيم احمد | H100: المباشر | I100: فنى ثالث | J100: الثالثه | K100: 110021923سيد ابراهيم احمدالمباشرفنى ثالث الثالثه | L100: 2088.84 | M100: 2506.608 | P100: 313.326 | Q100: 188.32 | R100: 0 | U100: 0 | V100: 0 | W100: 0 | X100: 0 | AA100: 0 | AD100: 0 | AE100: 501.646 | AF100: 73.32 | AG100: 81.85 | AH100: 98.21 | AJ100: 190 | AK100: 41.76 | AL100: 74.47 | AM100: 95.61 | AN100: 136.4 | AO100: 145.96 | AP100: 156.18 | AQ100: 600 | AR100: 10 | AT100: 1703.76 | AU100: 10 | AW100: 1350 | AZ100: 8160.854 | BA100: 0 | BB100: 8160.854 | BC100: 0 | BD100: 0 | BE100: 792 | BF100: 0 | BK100: 18.13 | BL100: 0.5 | BM100: 3 | BN100: 0 | BO100: 0 | BP100: 0 | BR100: 0 | BS100: 0 | BT100: 0 | BV100: 0 | BW100: 0 | BX100: 3.89 | BY100: 3 | CD100: 0 | CE100: 0 | CI100: 1350 | CJ100: 0 | CL100: 2170.52 | CM100: 5990.334
C101: 101060 | D101: 21895 | E101: صلاح احمد عبد الجواد | H101: المباشر | I101: ا.ش.فنية | J101: الثانيه | K101: 110121895صلاح احمد عبد الجوادالمباشرا.ش.فنيةالثانيه | L101: 2369.05 | M101: 2842.86 | P101: 355.3575 | Q101: 188.32 | R101: 0 | U101: 0 | V101: 0 | W101: 0 | X101: 0 | AA101: 0 | AD101: 0 | AE101: 543.6775 | AF101: 84 | AG101: 93.73 | AH101: 111.86 | AJ101: 190 | AK101: 47.36 | AL101: 84.46 | AM101: 108.44 | AN101: 154.71 | AO101: 165.54 | AP101: 177.13 | AQ101: 600 | AR101: 10 | AT101: 1827.23 | AU101: 10 | AW101: 1518.75 | AZ101: 9111.5675 | BA101: 0 | BB101: 9111.5675 | BC101: 0 | BD101: 0 | BE101: 891 | BF101: 8.5 | BK101: 42.54 | BL101: 0.5 | BM101: 3 | BN101: 0 | BO101: 0 | BP101: 0 | BR101: 0 | BS101: 0 | BT101: 0 | BV101: 0 | BW101: 0 | BX101: 4.33 | BY101: 5 | CD101: 0 | CE101: 0 | CI101: 1518.75 | CJ101: 0 | CL101: 2465.12 | CM101: 6646.4475
C102: 202122 | D102: 22124 | E102: محمود رضا عواد محمد | H102: المباشر | I102: ميكانيكى | J102: الرابعه | K102: 110222124محمود رضا عواد محمدالمباشرميكانيكىالرابعه | L102: 1690.33 | M102: 2028.396 | P102: 253.55 | Q102: 188.32 | R102: 0 | U102: 0 | V102: 0 | W102: 0 | X102: 0 | AA102: 0 | AD102: 0 | AE102: 441.87 | AF102: 56.07 | AG102: 62.54 | AH102: 80 | AJ102: 200 | AK102: 33.79 | AL102: 60.25 | AM102: 77.37 | AN102: 110.38 | AO102: 118.11 | AP102: 126.38 | AQ102: 600 | AR102: 10 | AT102: 1534.89 | AU102: 10 | AW102: 1125 | AZ102: 6830.486 | BA102: 0 | BB102: 6830.486 | BC102: 0 | BD102: 0 | BE102: 660 | BF102: 0 | BK102: 0 | BL102: 0.5 | BM102: 3 | BN102: 0 | BO102: 0 | BP102: 0 | BR102: 0 | BS102: 0 | BT102: 0 | BV102: 0 | BW102: 0 | BX102: 3.26 | BY102: 3 | CD102: 0 | CE102: 0 | CI102: 1125 | CJ102: 0 | CL102: 1794.76 | CM102: 5035.726
C103: 201006 | D103: 22046 | E103: اشرف فؤاد عبد العزيز | H103: المباشر | I103: فنى ميكانيكى | J103: الثانيه | K103: 110322046اشرف فؤاد عبد العزيزالمباشرفنى ميكانيكىالثانيه | L103: 2321.32 | M103: 2785.584 | P103: 348.2 | Q103: 188.32 | R103: 0 | U103: 0 | V103: 0 | W103: 0 | X103: 0 | AA103: 0 | AD103: 0 | AE103: 536.52 | AF103: 82.34 | AG103: 91.87 | AH103: 120 | AJ103: 190 | AK103: 46.4 | AL103: 82.75 | AM103: 106.26 | AN103: 151.59 | AO103: 162.2 | AP103: 173.56 | AQ103: 600 | AR103: 8 | AT103: 1814.97 | AU103: 10 | AW103: 1500 | AZ103: 8968.394 | BA103: 0 | BB103: 8968.394 | BC103: 0 | BD103: 0 | BE103: 880 | BF103: 9.75 | BK103: 0 | BL103: 0.5 | BM103: 3 | BN103: 0 | BO103: 0 | BP103: 0 | BR103: 0 | BS103: 0 | BT103: 0 | BV103: 0 | BW103: 0 | BX103: 4.26 | BY103: 5 | CD103: 0 | CE103: 0 | CI103: 1500 | CJ103: 0 | CL103: 2392.76 | CM103: 6575.634
C104: 0 | D104: 22044 | E104: سيد احمد حسان | H104: المباشر | I104: ا. ش.فنية . ثان | J104: الثانية | K104: 110422044سيد احمد حسانالمباشرا. ش.فنية . ثانالثانية | L104: 2308.01 | M104: 2769.612 | P104: 346.2 | Q104: 188.32 | R104: 0 | U104: 0 | V104: 0 | W104: 0 | X104: 0 | AA104: 0 | AD104: 0 | AE104: 534.52 | AF104: 81.86 | AG104: 91.33 | AH104: 108.97 | AJ104: 190 | AK104: 46.13 | AL104: 82.28 | AM104: 105.65 | AN104: 150.72 | AO104: 161.27 | AP104: 172.56 | AQ104: 600 | AR104: 10 | AT104: 1800.77 | AU104: 10 | AW104: 0 | AZ104: 7422.912 | BA104: 0 | BB104: 7422.912 | BC104: 0 | BD104: 0 | BE104: 0 | BK104: 0 | BL104: 0.5 | BM104: 3 | BN104: 0 | BO104: 0 | BP104: 0 | BR104: 0 | BS104: 0 | BT104: 0 | BV104: 0 | BW104: 0 | BX104: 4.24 | BY104: 5 | CD104: 0 | CE104: 0 | CI104: 0 | CJ104: 0 | CL104: 12.74 | CM104: 7410.172
C105: 101062 | D105: 21918 | E105: عماد طلعت عبد الوهاب | H105: المباشر | I105: ا.ش.فنين ثان ( ادارى ) | J105: الثانية | K105: 110521918عماد طلعت عبد الوهابالمباشرا.ش.فنين ثان ( ادارى )الثانية | L105: 2147.45 | M105: 2576.94 | P105: 322.12 | Q105: 188.32 | R105: 0 | U105: 0 | V105: 0 | W105: 0 | X105: 0 | AA105: 0 | AD105: 0 | AE105: 510.44 | AF105: 70.51 | AG105: 78.72 | AH105: 101.33 | AJ105: 190 | AK105: 42.93 | AL105: 76.56 | AM105: 98.3 | AN105: 140.24 | AO105: 150.05 | AP105: 160.56 | AQ105: 600 | AR105: 10 | AT105: 1719.2 | AU105: 10 | AW105: 1387.5 | AZ105: 8351.53 | BA105: 0 | BB105: 8351.53 | BC105: 0 | BD105: 0 | BE105: 814 | BF105: 0 | BK105: 0 | BL105: 0.5 | BM105: 3 | BN105: 0 | BO105: 0 | BP105: 0 | BR105: 0 | BS105: 0 | BT105: 0 | BV105: 0 | BW105: 0 | BX105: 3.95 | BY105: 5 | CD105: 0 | CE105: 0 | CI105: 1387.5 | CJ105: 0 | CL105: 2213.95 | CM105: 6137.58
C106: 202127 | D106: 21763 | E106: مجدى سيد امين | H106: المباشر | I106: سمكرى | J106: الرابعه | K106: 110621763مجدى سيد امينالمباشرسمكرىالرابعه | L106: 1998.1 | M106: 2397.72 | P106: 299.72 | Q106: 188.32 | R106: 0 | U106: 0 | V106: 0 | W106: 0 | X106: 0 | AA106: 0 | AD106: 0 | AE106: 488.04 | AF106: 70.76 | AG106: 87.99 | AH106: 94.28 | AJ106: 200 | AK106: 39.94 | AL106: 71.23 | AM106: 91.46 | AN106: 130.48 | AO106: 139.62 | AP106: 149.39 | AQ106: 600 | AR106: 10 | AT106: 1685.15 | AU106: 10 | AW106: 1312.5 | AZ106: 7891.51 | BA106: 0 | BB106: 7891.51 | BC106: 0 | BD106: 0 | BE106: 770 | BF106: 0 | BK106: 126 | BL106: 0.5 | BM106: 3 | BN106: 0 | BO106: 0 | BP106: 0 | BR106: 0 | BS106: 0 | BT106: 0 | BV106: 0 | BW106: 0 | BX106: 2.55 | BY106: 3 | CD106: 0 | CE106: 0 | CI106: 1312.5 | CJ106: 0 | CL106: 2217.55 | CM106: 5673.96
C107: 201002 | D107: 21706 | E107: مصطفى نيازى يحي | H107: المباشر | I107: فنى ( قطاع ادارى ) | J107: ثالثة | K107: 110721706مصطفى نيازى يحي المباشرفنى ( قطاع ادارى )ثالثة | L107: 2079.9 | M107: 2495.88 | P107: 311.99 | Q107: 188.32 | R107: 0 | U107: 0 | V107: 0 | W107: 0 | X107: 0 | AA107: 0 | AD107: 0 | AE107: 500.31 | AF107: 68.86 | AG107: 76.87 | AH107: 98.94 | AJ107: 190 | AK107: 41.58 | AL107: 74.15 | AM107: 95.2 | AN107: 135.82 | AO107: 145.33 | AP107: 155.51 | AQ107: 600 | AR107: 10 | AT107: 1692.26 | AU107: 10 | AW107: 1350 | AZ107: 8128.35 | BA107: 0 | BB107: 8128.35 | BC107: 0 | BD107: 0 | BE107: 792 | BF107: 0 | BK107: 0 | BL107: 0.5 | BM107: 3 | BN107: 0 | BO107: 0 | BP107: 665.56 | BR107: 0 | BS107: 0 | BT107: 0 | BV107: 0 | BW107: 0 | BX107: 3.57 | BY107: 3 | CD107: 0 | CE107: 0 | CI107: 1350 | CJ107: 0 | CL107: 2817.63 | CM107: 5310.72
C108: 201001 | D108: 21124 | E108: عادل سيد محمد حسانين | H108: المباشر | I108: فنى ميكانيكى ( الادارة العامه ) | J108: الثانيه | K108: 110821124عادل سيد محمد حسانينالمباشرفنى ميكانيكى ( الادارة العامه )الثانيه | L108: 2638.45 | M108: 3166.14 | P108: 395.77 | Q108: 188.32 | R108: 0 | U108: 0 | V108: 0 | W108: 0 | X108: 0 | AA108: 0 | AD108: 0 | AE108: 584.09 | AF108: 93.51 | AG108: 104.37 | AH108: 120 | AJ108: 190 | AK108: 52.74 | AL108: 94.06 | AM108: 120.77 | AN108: 172.3 | AO108: 184.36 | AP108: 197.27 | AQ108: 600 | AR108: 8 | AT108: 1937.38 | AU108: 10 | AW108: 1668.75 | AZ108: 10004.81 | BA108: 0 | BB108: 10004.81 | BC108: 0 | BD108: 0 | BE108: 979 | BF108: 68.09 | BK108: 0 | BL108: 0.5 | BM108: 3 | BN108: 0 | BO108: 0 | BP108: 0 | BR108: 0 | BS108: 0 | BT108: 0 | BV108: 0 | BW108: 0 | BX108: 4.76 | BY108: 5 | CD108: 0 | CE108: 0 | CI108: 1668.75 | CJ108: 0 | CL108: 2661.01 | CM108: 7343.8
C109: 601029 | D109: 11301 | E109: اسامة فكرى جلال | H109: المباشر | I109: مستودع | J109: الثانية | K109: 110911301اسامة فكرى جلالالمباشرمستودعالثانية | L109: 2139.16 | M109: 2566.992 | P109: 320.87 | Q109: 188.32 | R109: 0 | U109: 0 | V109: 0 | W109: 0 | X109: 0 | AA109: 0 | AD109: 0 | AE109: 509.19 | AF109: 70.21 | AG109: 78.58 | AH109: 94.4 | AJ109: 190 | AK109: 42.76 | AL109: 76.26 | AM109: 97.92 | AN109: 139.7 | AO109: 149.47 | AP109: 159.94 | AQ109: 600 | AR109: 8 | AT109: 1707.24 | AU109: 10 | AW109: 1387.5 | AZ109: 8320.082 | BA109: 0 | BB109: 8320.082 | BC109: 0 | BD109: 0 | BE109: 814 | BF109: 0 | BK109: 0 | BL109: 0.5 | BM109: 3 | BN109: 0 | BO109: 0 | BP109: 0 | BR109: 0 | BS109: 0 | BT109: 0 | BV109: 0 | BW109: 0 | BX109: 3.96 | BY109: 5 | CD109: 0 | CE109: 0 | CI109: 1387.5 | CJ109: 0 | CL109: 2213.96 | CM109: 6106.122
C110: 101072 | D110: 22030 | E110: سمير محمد عبد الفتاح | H110: المباشر | I110: مدير المستودع الجمركى | J110: الثانية | K110: 111022030سمير محمد عبد الفتاحالمباشرمدير المستودع الجمركىالثانية | L110: 2404.88 | M110: 2885.856 | P110: 360.73 | Q110: 188.32 | R110: 0 | U110: 0 | V110: 0 | W110: 0 | X110: 0 | AA110: 0 | AD110: 0 | AE110: 549.05 | AF110: 85.28 | AG110: 95.16 | AH110: 113.56 | AJ110: 190 | AK110: 48.07 | AL110: 85.73 | AM110: 110.08 | AN110: 157.05 | AO110: 168.04 | AP110: 179.8 | AQ110: 600 | AR110: 10 | AT110: 1842.77 | AU110: 10 | AW110: 1537.5 | AZ110: 9230.056 | BA110: 0 | BB110: 9230.056 | BC110: 0 | BD110: 0 | BE110: 902 | BF110: 13.66 | BK110: 0 | BL110: 0.5 | BM110: 3 | BN110: 0 | BO110: 0 | BP110: 0 | BR110: 0 | BS110: 0 | BT110: 0 | BV110: 0 | BW110: 0 | BX110: 4.37 | BY110: 5 | CD110: 0 | CE110: 0 | CI110: 1537.5 | CJ110: 0 | CL110: 2452.37 | CM110: 6777.686
C111: 101058 | D111: 21839 | E111: ماهر محب شرقاوى | H111: المباشر | I111: رئيس قسم المكتب الفنى | J111: الثانية | K111: 111121839ماهر محب شرقاوى المباشررئيس قسم المكتب الفنى الثانية | L111: 2328.07 | M111: 2793.684 | P111: 349.21 | Q111: 188.32 | R111: 0 | U111: 0 | V111: 0 | W111: 0 | X111: 0 | AA111: 0 | AD111: 0 | AE111: 537.53 | AF111: 76.43 | AG111: 85.55 | AH111: 102.77 | AJ111: 190 | AK111: 46.54 | AL111: 82.99 | AM111: 106.56 | AN111: 152.03 | AO111: 162.67 | AP111: 174.06 | AQ111: 600 | AR111: 10 | AT111: 1789.6 | AU111: 10 | AW111: 1500 | AZ111: 8958.884 | BA111: 0 | BB111: 8958.884 | BC111: 0 | BD111: 0 | BE111: 880 | BF111: 10.16 | BK111: 0 | BL111: 0.5 | BM111: 3 | BN111: 0 | BO111: 0 | BP111: 0 | BR111: 0 | BS111: 0 | BT111: 0 | BV111: 0 | BW111: 0 | BX111: 4.26 | BY111: 5 | CD111: 0 | CE111: 0 | CI111: 1500 | CJ111: 0 | CL111: 2392.76 | CM111: 6566.124
C112: 0 | D112: 42011 | E112: محمد سليمان احمد سليمان | H112: المباشر | I112: عامل اطفاء ( عامل مخازن) | J112: رابعة | K112: 111242011محمد سليمان احمد سليمان المباشرعامل اطفاء ( عامل مخازن)رابعة | L112: 2189.48 | M112: 2627.376 | P112: 328.42 | Q112: 188.32 | R112: 0 | U112: 0 | V112: 0 | W112: 0 | X112: 0 | AA112: 0 | AD112: 0 | AE112: 516.74 | AF112: 77.69 | AG112: 86.67 | AH112: 103.37 | AJ112: 200 | AK112: 43.77 | AL112: 78.05 | AM112: 100.22 | AN112: 142.98 | AO112: 152.99 | AP112: 163.7 | AQ112: 600 | AR112: 6 | AT112: 1755.44 | AU112: 10 | AW112: 0 | AZ112: 7099.036 | BA112: 0 | BB112: 7099.036 | BC112: 0 | BD112: 0 | BE112: 0 | BK112: 0 | BL112: 0.5 | BM112: 3 | BN112: 0 | BO112: 0 | BP112: 0 | BR112: 0 | BS112: 0 | BT112: 0 | BV112: 0 | BW112: 0 | BX112: 4.05 | BY112: 3 | CD112: 0 | CE112: 0 | CI112: 0 | CJ112: 0 | CL112: 10.55 | CM112: 7088.486
C113: 201027 | D113: 2827 | E113: محمد الباشا زكى | H113: المباشر | I113: فنى ثان ميكانيكى ( حارس) | J113: الثانية | K113: 11132827محمد الباشا زكى المباشرفنى ثان ميكانيكى ( حارس)الثانية | L113: 2582.35 | M113: 3098.82 | P113: 387.35 | Q113: 188.32 | R113: 0 | U113: 0 | V113: 0 | W113: 5.5 | X113: 0 | AA113: 0 | AD113: 0 | AE113: 581.17 | AF113: 84.5 | AG113: 94.66 | AH113: 113.95 | AJ113: 190 | AK113: 51.62 | AL113: 92.06 | AM113: 118.2 | AN113: 168.94 | AO113: 180.44 | AP113: 193.07 | AQ113: 600 | AR113: 10 | AT113: 1897.44 | AU113: 10 | AW113: 1631.25 | AZ113: 9801.03 | BA113: 0 | BB113: 9801.03 | BC113: 0 | BD113: 0 | BE113: 957 | BF113: 65.09 | BK113: 0 | BL113: 0.5 | BM113: 3 | BN113: 0 | BO113: 0 | BP113: 0 | BR113: 0 | BS113: 0 | BT113: 0 | BV113: 0 | BW113: 0 | BX113: 4.66 | BY113: 5 | CD113: 0 | CE113: 0 | CI113: 1631.25 | CJ113: 0 | CL113: 2601.41 | CM113: 7199.62
C114: 202051 | D114: 21723 | E114: شعبان عبد الصمد محروس | H114: المباشر | I114: كهربائى ( حارس) | J114: الرابعة | K114: 111421723شعبان عبد الصمد محروس المباشركهربائى ( حارس)الرابعة | L114: 2005.79 | M114: 2406.948 | P114: 300.87 | Q114: 188.32 | R114: 0 | U114: 0 | V114: 0 | W114: 5.5 | X114: 0 | AA114: 0 | AD114: 0 | AE114: 494.69 | AF114: 66.43 | AG114: 74.15 | AH114: 94.97 | AJ114: 200 | AK114: 40.1 | AL114: 71.51 | AM114: 91.81 | AN114: 130.99 | AO114: 140.15 | AP114: 149.97 | AQ114: 600 | AR114: 8 | AT114: 1668.08 | AU114: 10 | AW114: 1312.5 | AZ114: 7898.008 | BA114: 0 | BB114: 7898.008 | BC114: 0 | BD114: 0 | BE114: 770 | BF114: 0 | BK114: 0 | BL114: 0.5 | BM114: 3 | BN114: 0 | BO114: 0 | BP114: 0 | BR114: 0 | BS114: 0 | BT114: 0 | BV114: 0 | BW114: 0 | BX114: 3.76 | BY114: 3 | CD114: 0 | CE114: 0 | CI114: 1312.5 | CJ114: 0 | CL114: 2092.76 | CM114: 5805.248
C115: 201029 | D115: 22025 | E115: ابو سبع محمد التهامي | H115: المباشر | I115: ميكانيكى ( حارس) | J115: الرابعه | K115: 111522025ابو سبع محمد التهاميالمباشرميكانيكى ( حارس)الرابعه | L115: 1824.29 | M115: 2189.148 | P115: 273.64 | Q115: 188.32 | R115: 0 | U115: 0 | V115: 0 | W115: 5.5 | X115: 0 | AA115: 0 | AD115: 0 | AE115: 467.46 | AF115: 64.76 | AG115: 72.24 | AH115: 86.09 | AJ115: 200 | AK115: 36.46 | AL115: 65.03 | AM115: 83.5 | AN115: 119.13 | AO115: 127.47 | AP115: 136.4 | AQ115: 600 | AR115: 10 | AT115: 1601.08 | AU115: 10 | AW115: 1200 | AZ115: 7291.978 | BA115: 0 | BB115: 7291.978 | BC115: 0 | BD115: 0 | BE115: 704 | BF115: 0 | BK115: 0 | BL115: 0.5 | BM115: 3 | BN115: 0 | BO115: 0 | BP115: 0 | BR115: 0 | BS115: 0 | BT115: 0 | BV115: 0 | BW115: 0 | BX115: 3.48 | BY115: 3 | CD115: 0 | CE115: 0 | CI115: 1200 | CJ115: 0 | CL115: 1913.98 | CM115: 5377.998
C116: 111036 | D116: 21899 | E116: ايهاب احمد صالح | H116: المباشر | I116: أخصائى شئون فنية ( تكليف مدير فرع اسكندرية ) | J116: ثانية | K116: 111621899ايهاب احمد صالح المباشرأخصائى شئون فنية ( تكليف مدير فرع اسكندرية )ثانية | L116: 2233.09 | M116: 2679.708 | P116: 334.9635 | Q116: 188.32 | R116: 0 | U116: 0 | V116: 0 | W116: 0 | X116: 0 | AA116: 0 | AD116: 0 | AE116: 523.2835 | AF116: 73.27 | AG116: 82.02 | AH116: 98.55 | AJ116: 190 | AK116: 44.64 | AL116: 79.6 | AM116: 102.22 | AN116: 145.83 | AO116: 156.04 | AP116: 166.96 | AQ116: 600 | AR116: 10 | AT116: 1749.13 | AU116: 10 | AW116: 1443.75 | AZ116: 8638.9615 | BA116: 0 | BB116: 8638.9615 | BC116: 0 | BD116: 0 | BE116: 847 | BF116: 0 | BK116: 4.18 | BL116: 0.5 | BM116: 3 | BN116: 0 | BO116: 0 | BP116: 0 | BR116: 0 | BS116: 0 | BT116: 0 | BV116: 0 | BW116: 0 | BX116: 1.91 | BY116: 5 | CD116: 0 | CE116: 0 | CI116: 1443.75 | CJ116: 0 | CL116: 2305.34 | CM116: 6333.6215
C117: 111040 | D117: 21935 | E117: خالد حسن سليمان | H117: المباشر | I117: رئيس قسم الامن والسلامة والبيئة | J117: ثانية | K117: 111721935خالد حسن سليمان المباشررئيس قسم الامن والسلامة والبيئةثانية | L117: 2427.66 | M117: 2913.192 | P117: 364.149 | Q117: 188.32 | R117: 0 | U117: 0 | V117: 0 | W117: 0 | X117: 0 | AA117: 0 | AD117: 0 | AE117: 552.469 | AF117: 79.61 | AG117: 89.13 | AH117: 107.16 | AJ117: 190 | AK117: 48.52 | AL117: 86.54 | AM117: 111.12 | AN117: 158.54 | AO117: 169.63 | AP117: 181.51 | AQ117: 600 | AR117: 10 | AT117: 1831.76 | AU117: 10 | AW117: 1556.25 | AZ117: 9291.331 | BA117: 0 | BB117: 9291.331 | BC117: 0 | BD117: 0 | BE117: 913 | BF117: 25.91 | BK117: 0 | BL117: 0.5 | BM117: 3 | BN117: 0 | BO117: 0 | BP117: 0 | BR117: 0 | BS117: 0 | BT117: 0 | BV117: 0 | BW117: 0 | BX117: 3.04 | BY117: 5 | CD117: 0 | CE117: 0 | CI117: 1556.25 | CJ117: 0 | CL117: 2480.79 | CM117: 6810.541
C118: 111039 | D118: 11255 | E118: سهير محمد مدنى | H118: المباشر | I118: رئيس قسم الشئون الادارية | J118: الثانية | K118: 111811255سهير محمد مدنى المباشررئيس قسم الشئون الاداريةالثانية | L118: 2330.36 | M118: 2796.432 | P118: 349.554 | Q118: 188.32 | R118: 0 | U118: 0 | V118: 0 | W118: 0 | X118: 0 | AA118: 0 | AD118: 0 | AE118: 537.874 | AF118: 76.44 | AG118: 85.57 | AH118: 102.85 | AJ118: 190 | AK118: 46.58 | AL118: 83.07 | AM118: 106.67 | AN118: 152.18 | AO118: 162.83 | AP118: 174.23 | AQ118: 600 | AR118: 6 | AT118: 1786.42 | AU118: 10 | AW118: 1500 | AZ118: 8961.086 | BA118: 0 | BB118: 8961.086 | BC118: 0 | BD118: 0 | BE118: 880 | BF118: 8.25 | BK118: 0 | BL118: 0.5 | BM118: 3 | BN118: 0 | BO118: 0 | BP118: 0 | BR118: 0 | BS118: 0 | BT118: 0 | BV118: 0 | BW118: 0 | BX118: 1.98 | BY118: 5 | CD118: 0 | CE118: 0 | CI118: 1500 | CJ118: 0 | CL118: 2390.48 | CM118: 6570.606
C119: 111038 | D119: 11368 | E119: محمود السيد برسي احمد | H119: المباشر | I119: محام | J119: ثالثة | K119: 111911368محمود السيد برسي احمد المباشرمحامثالثة | L119: 1019.87 | M119: 1223.844 | P119: 152.9805 | Q119: 188.32 | R119: 20 | U119: 0 | V119: 0 | W119: 0 | X119: 0 | AA119: 0 | AC119: 81 | AD119: 0 | AE119: 442.3005 | AF119: 36.22 | AG119: 38.22 | AH119: 65 | AJ119: 190 | AK119: 27.43 | AL119: 36.35 | AM119: 46.68 | AN119: 66.6 | AO119: 71.26 | AP119: 83.28 | AQ119: 600 | AR119: 10 | AT119: 1271.04 | AU119: 10 | AW119: 937.5 | AZ119: 4904.5545 | BA119: 1095.4455 | BB119: 6000 | BC119: 0 | BD119: 0 | BE119: 550 | BF119: 0 | BK119: 0 | BL119: 0.5 | BM119: 3 | BN119: 0 | BO119: 0 | BP119: 0 | BR119: 0 | BS119: 0 | BT119: 0 | BV119: 0 | BW119: 0 | BX119: 1.72 | BY119: 3 | CD119: 0 | CE119: 0 | CI119: 937.5 | CJ119: 0 | CL119: 1495.72 | CM119: 4504.28
C120: 211029 | D120: 21455 | E120: محمد محمود صقر احمد | H120: المباشر | I120: كهربائى ( مكلف امين خزينه ) | J120: ثانية | K120: 112021455محمد محمود صقر احمد المباشركهربائى ( مكلف امين خزينه )ثانية | L120: 2392.7 | M120: 2871.24 | P120: 358.905 | Q120: 188.32 | R120: 0 | U120: 0 | V120: 0 | W120: 0 | X120: 0 | AA120: 0 | AD120: 0 | AE120: 547.225 | AF120: 78.33 | AG120: 87.73 | AH120: 105.57 | AJ120: 190 | AK120: 47.83 | AL120: 85.29 | AM120: 109.52 | AN120: 156.25 | AO120: 167.19 | AP120: 178.89 | AQ120: 600 | AR120: 10 | AT120: 1816.6 | AU120: 10 | AW120: 1518.75 | AZ120: 9156.515 | BA120: 0 | BB120: 9156.515 | BC120: 0 | BD120: 0 | BE120: 891 | BF120: 22.16 | BK120: 0 | BL120: 0.5 | BM120: 3 | BN120: 0 | BO120: 0 | BP120: 0 | BR120: 0 | BS120: 0 | BT120: 0 | BV120: 0 | BW120: 0 | BX120: 2.02 | BY120: 5 | CD120: 0 | CE120: 0 | CI120: 1518.75 | CJ120: 0 | CL120: 2420.27 | CM120: 6736.245
C121: 111037 | D121: 21799 | E121: ابراهيم احمد السيد | H121: المباشر | I121: امين مخزن | J121: رابعة | K121: 112121799ابراهيم احمد السيد المباشرامين مخزن رابعة | L121: 1998.06 | M121: 2397.672 | P121: 299.709 | Q121: 188.32 | R121: 0 | U121: 0 | V121: 0 | W121: 0 | X121: 0 | AA121: 0 | AD121: 0 | AE121: 488.029 | AF121: 70.76 | AG121: 78.99 | AH121: 94.28 | AJ121: 200 | AK121: 39.94 | AL121: 71.23 | AM121: 91.46 | AN121: 130.48 | AO121: 139.62 | AP121: 149.39 | AQ121: 600 | AR121: 10 | AT121: 1676.15 | AU121: 10 | AW121: 1312.5 | AZ121: 7882.411 | BA121: 0 | BB121: 7882.411 | BC121: 0 | BD121: 0 | BE121: 770 | BF121: 0 | BK121: 3.04 | BL121: 0.5 | BM121: 3 | BN121: 0 | BO121: 0 | BP121: 0 | BR121: 0 | BS121: 0 | BT121: 0 | BV121: 0 | BW121: 0 | BX121: 1.77 | BY121: 3 | CD121: 0 | CE121: 0 | CI121: 1312.5 | CJ121: 0 | CL121: 2093.81 | CM121: 5788.601
C122: 201023 | D122: 21698 | E122: محمد ابراهيم عبدة احمد | H122: المباشر | I122: ميكانيكى ( حارس) | J122: الرابعه | K122: 112221698محمد ابراهيم عبدة احمدالمباشرميكانيكى ( حارس)الرابعه | L122: 2032.75 | M122: 2439.3 | P122: 304.9125 | Q122: 188.32 | R122: 0 | U122: 0 | V122: 0 | W122: 5.5 | X122: 0 | AA122: 0 | AD122: 0 | AE122: 498.7325 | AF122: 71.98 | AG122: 80.35 | AH122: 95.92 | AJ122: 200 | AK122: 40.63 | AL122: 72.46 | AM122: 93.05 | AN122: 132.75 | AO122: 142.04 | AP122: 151.98 | AQ122: 600 | AR122: 10 | AT122: 1691.16 | AU122: 10 | AW122: 1331.25 | AZ122: 8003.1925 | BA122: 0 | BB122: 8003.1925 | BC122: 0 | BD122: 0 | BE122: 781 | BF122: 0 | BK122: 0 | BL122: 0.5 | BM122: 3 | BN122: 0 | BO122: 0 | BP122: 0 | BR122: 0 | BS122: 0 | BT122: 0 | BV122: 0 | BW122: 0 | BX122: 3.8 | BY122: 3 | CD122: 0 | CE122: 0 | CI122: 1331.25 | CJ122: 0 | CL122: 2122.55 | CM122: 5880.6425
C123: 101063 | D123: 21938 | E123: حامد يحيي حامد أبو عيشه | H123: المباشر | I123: ا. حركة تان | J123: الثانية | K123: 112321938حامد يحيي حامدالمباشرا. حركة تانالثانية | L123: 2233.09 | M123: 2679.708 | P123: 334.9635 | Q123: 188.32 | R123: 0 | U123: 0 | V123: 0 | W123: 0 | X123: 0 | AA123: 0 | AD123: 0 | AE123: 523.2835 | AF123: 73.27 | AG123: 82.02 | AH123: 98.55 | AJ123: 190 | AK123: 44.64 | AL123: 79.6 | AM123: 102.22 | AN123: 145.83 | AO123: 156.04 | AP123: 166.96 | AQ123: 600 | AR123: 10 | AT123: 1749.13 | AU123: 10 | AW123: 1443.75 | AZ123: 8638.9615 | BA123: 0 | BB123: 8638.9615 | BC123: 0 | BD123: 0 | BE123: 847 | BF123: 0 | BK123: 0 | BL123: 0.5 | BM123: 3 | BN123: 0 | BO123: 0 | BP123: 0 | BR123: 0 | BS123: 0 | BT123: 0 | BV123: 0 | BW123: 0 | BX123: 4.11 | BY123: 5 | CD123: 0 | CE123: 0 | CI123: 1443.75 | CJ123: 0 | CL123: 2303.36 | CM123: 6335.6015
C124: 201005 | D124: 21933 | E124: يحي محمد فهيم عبد المقصود | H124: المباشر | I124: فنى ثان | J124: الثانية | K124: 112421933يحي محمد فهيم عبد المقصودالمباشرفنى ثان الثانية | L124: 2267.85 | M124: 2721.42 | P124: 340.1775 | Q124: 188.32 | R124: 0 | U124: 0 | V124: 0 | W124: 0 | X124: 0 | AA124: 0 | AD124: 0 | AE124: 528.4975 | AF124: 74.27 | AG124: 83.18 | AH124: 100.05 | AJ124: 190 | AK124: 45.33 | AL124: 80.85 | AM124: 103.81 | AN124: 148.1 | AO124: 158.47 | AP124: 169.56 | AQ124: 600 | AR124: 10 | AT124: 1763.62 | AU124: 10 | AW124: 1462.5 | AZ124: 8753.8875 | BA124: 0 | BB124: 8753.8875 | BC124: 0 | BD124: 0 | BE124: 858 | BF124: 0 | BK124: 0 | BL124: 0.5 | BM124: 3 | BN124: 0 | BO124: 0 | BP124: 0 | BR124: 0 | BS124: 0 | BT124: 0 | BV124: 0 | BW124: 0 | BX124: 4.15 | BY124: 5 | CD124: 0 | CE124: 0 | CI124: 1462.5 | CJ124: 0 | CL124: 2333.15 | CM124: 6420.7375
C125: 101071 | D125: 22029 | E125: محسن محمد عبد المحسن | H125: المباشر | I125: ا.ش.ماليه اول | J125: الاولى | K125: 112522029محسن محمد عبد المحسنالمباشرا.ش.ماليه اولالاولى | L125: 2411.52 | M125: 2893.824 | P125: 361.728 | Q125: 188.32 | R125: 0 | U125: 0 | V125: 0 | W125: 0 | X125: 0 | AA125: 0 | AD125: 0 | AE125: 550.048 | AF125: 79.33 | AG125: 88.56 | AH125: 106.32 | AJ125: 190 | AK125: 48.21 | AL125: 85.97 | AM125: 110.38 | AN125: 157.48 | AO125: 168.51 | AP125: 180.3 | AQ125: 600 | AR125: 10 | AT125: 1825.06 | AU125: 10 | AW125: 1537.5 | AZ125: 9227.952 | BA125: 0 | BB125: 9227.952 | BC125: 0 | BD125: 0 | BE125: 902 | BF125: 27.59 | BK125: 0 | BL125: 0.5 | BM125: 3 | BN125: 0 | BO125: 0 | BP125: 0 | BR125: 0 | BS125: 0 | BT125: 0 | BV125: 0 | BW125: 0 | BX125: 2.03 | BY125: 5 | CD125: 0 | CE125: 0 | CI125: 1537.5 | CJ125: 0 | CL125: 2450.03 | CM125: 6777.922
C126: 611017 | D126: 42308 | E126: احمد شحاتة مصطفى | H126: المباشر | I126: حارس | J126: سادسة | K126: 112642308احمد شحاتة مصطفىالمباشرحارسسادسة | L126: 885.09 | M126: 1062.108 | P126: 132.7635 | Q126: 188.32 | R126: 0 | U126: 0 | V126: 0 | W126: 5.5 | X126: 0 | AA126: 0 | AD126: 0 | AE126: 326.5835 | AF126: 29.87 | AG126: 33.52 | AH126: 65 | AJ126: 200 | AK126: 33.74 | AL126: 31.55 | AM126: 40.51 | AN126: 57.8 | AO126: 70.88 | AP126: 92.1 | AQ126: 600 | AR126: 10 | AT126: 1264.97 | AU126: 10 | AW126: 937.5 | AZ126: 4486.2515 | BA126: 1513.7485 | BB126: 6000 | BC126: 0 | BD126: 0 | BE126: 550 | BF126: 0 | BK126: 0 | BL126: 0.5 | BM126: 3 | BN126: 0 | BO126: 0 | BP126: 0 | BR126: 0 | BS126: 0 | BT126: 0 | BV126: 0 | BW126: 0 | BX126: 1.82 | BY126: 3 | CD126: 0 | CE126: 0 | CI126: 937.5 | CJ126: 0 | CL126: 1495.82 | CM126: 4504.18
C127: 119009 | D127: 11363 | E127: محمد صلاح محمد منير | H127: المباشر | I127: محامى | J127: الثالثة | K127: 112911363محمد صلاح محمد منير المباشرمحامى الثالثة | L127: 1069.02 | M127: 1282.824 | P127: 160.353 | Q127: 208.32 | R127: 0 | U127: 0 | V127: 0 | W127: 0 | X127: 0 | AA127: 0 | AD127: 0 | AE127: 368.673 | AF127: 36.22 | AG127: 40.89 | AH127: 65 | AJ127: 190 | AK127: 25.14 | AL127: 38.11 | AM127: 48.93 | AN127: 69.81 | AO127: 74.69 | AP127: 80.06 | AQ127: 600 | AR127: 8 | AT127: 1276.85 | AU127: 10 | AW127: 918.75 | AZ127: 4926.117 | BA127: 1073.883 | BB127: 6000 | BC127: 0 | BD127: 0 | BE127: 539 | BF127: 0 | BK127: 0 | BL127: 0.5 | BM127: 3 | BN127: 0 | BO127: 0 | BP127: 0 | BR127: 0 | BS127: 0 | BT127: 0 | BV127: 0 | BW127: 0 | BX127: 1.62 | BY127: 3 | CD127: 0 | CE127: 0 | CI127: 918.75 | CJ127: 0 | CL127: 1465.87 | CM127: 4534.13
C128: 119001 | D128: 11356 | E128: احمد عبد القوى علام | H128: المباشر | I128: أخصائى حركة | J128: الثالثة | K128: 113011356احمد عبد القوى علام المباشرأخصائى حركة الثالثة | L128: 1227.62 | M128: 1473.144 | P128: 184.143 | Q128: 188.32 | R128: 0 | U128: 0 | V128: 0 | W128: 0 | X128: 0 | AA128: 0 | AD128: 0 | AE128: 372.463 | AF128: 43.3 | AG128: 48.47 | AH128: 65 | AJ128: 190 | AK128: 24.54 | AL128: 43.76 | AM128: 56.19 | AN128: 80.17 | AO128: 85.78 | AP128: 91.78 | AQ128: 600 | AR128: 10 | AT128: 1338.99 | AU128: 10 | AW128: 918.75 | AZ128: 5340.967 | BA128: 659.033 | BB128: 6000 | BC128: 0 | BD128: 0 | BE128: 539 | BF128: 0 | BK128: 0 | BL128: 0.5 | BM128: 3 | BN128: 0 | BO128: 0 | BP128: 0 | BR128: 0 | BS128: 0 | BT128: 0 | BV128: 0 | BW128: 0 | BX128: 2.76 | BY128: 3 | CD128: 0 | CE128: 0 | CI128: 918.75 | CJ128: 0 | CL128: 1467.01 | CM128: 4532.99
C129: 119002 | D129: 21643 | E129: اشرف احمد ياسين | H129: المباشر | I129: مندوب امن ثالث | J129: الثالثة | K129: 113121643اشرف احمد ياسين المباشرمندوب امن ثالثالثالثة | L129: 1930.1 | M129: 2316.12 | P129: 289.515 | Q129: 188.32 | R129: 0 | U129: 0 | V129: 0 | W129: 0 | X129: 0 | AA129: 0 | AD129: 0 | AE129: 477.835 | AF129: 67.88 | AG129: 75.75 | AH129: 90.86 | AJ129: 190 | AK129: 38.64 | AL129: 68.9 | AM129: 88.35 | AN129: 126.04 | AO129: 134.86 | AP129: 144.31 | AQ129: 600 | AR129: 10 | AT129: 1635.59 | AU129: 10 | AW129: 1275 | AZ129: 7644.645 | BA129: 0 | BB129: 7644.645 | BC129: 0 | BD129: 0 | BE129: 748 | BF129: 0 | BK129: 0 | BL129: 0.5 | BM129: 3 | BN129: 0 | BO129: 0 | BP129: 0 | BR129: 0 | BS129: 0 | BT129: 0 | BV129: 0 | BW129: 0 | BX129: 3.68 | BY129: 3 | CD129: 0 | CE129: 0 | CI129: 1275 | CJ129: 0 | CL129: 2033.18 | CM129: 5611.465
C130: 109008 | D130: 11216 | E130: صلاح محمد اسماعيل على | H130: المباشر | I130: أ. حركة اول | J130: الأولى | K130: 113211216صلاح محمد اسماعيل علىالمباشرأ. حركة اول الأولى | L130: 2627.1 | M130: 3152.52 | P130: 394.065 | Q130: 188.32 | R130: 0 | U130: 0 | V130: 0 | W130: 0 | X130: 0 | AA130: 0 | AD130: 0 | AE130: 582.385 | AF130: 86.84 | AG130: 96.99 | AH130: 120 | AJ130: 190 | AK130: 52.52 | AL130: 93.65 | AM130: 120.25 | AN130: 171.56 | AO130: 183.56 | AP130: 196.42 | AQ130: 600 | AR130: 10 | AT130: 1921.79 | AU130: 10 | AW130: 1668.75 | AZ130: 9962.545 | BA130: 0 | BB130: 9962.545 | BC130: 0 | BD130: 0 | BE130: 979 | BF130: 67.34 | BK130: 0 | BL130: 0.5 | BM130: 3 | BN130: 0 | BO130: 0 | BP130: 0 | BR130: 0 | BS130: 0 | BT130: 0 | BV130: 0 | BW130: 0 | BX130: 2.18 | BY130: 5 | CD130: 0 | CE130: 0 | CI130: 1668.75 | CJ130: 0 | CL130: 2658.43 | CM130: 7304.115
C131: 109002 | D131: 11272 | E131: السيد احمد رضوان | H131: المباشر | I131: رئيس قسم الشئون الادارية | J131: الثانية | K131: 113311272السيد احمد رضوان المباشررئيس قسم الشئون الادارية الثانية | L131: 2233.25 | M131: 2679.9 | P131: 334.9875 | Q131: 188.32 | R131: 0 | U131: 0 | V131: 0 | W131: 0 | X131: 0 | AA131: 0 | AD131: 0 | AE131: 523.3075 | AF131: 73.28 | AG131: 82.02 | AH131: 98.56 | AJ131: 190 | AK131: 44.64 | AL131: 79.61 | AM131: 102.22 | AN131: 145.84 | AO131: 156.04 | AP131: 166.97 | AQ131: 600 | AR131: 10 | AT131: 1749.18 | AU131: 10 | AW131: 1443.75 | AZ131: 8639.3875 | BA131: 0 | BB131: 8639.3875 | BC131: 0 | BD131: 0 | BE131: 847 | BF131: 0 | BK131: 0 | BL131: 0.5 | BM131: 3 | BN131: 0 | BO131: 0 | BP131: 0 | BR131: 0 | BS131: 0 | BT131: 0 | BV131: 0 | BW131: 0 | BX131: 1.91 | BY131: 5 | CD131: 0 | CE131: 0 | CI131: 1443.75 | CJ131: 0 | CL131: 2301.16 | CM131: 6338.2275
C132: 109009 | D132: 11365 | E132: محمد صبرى محمود حسن | H132: المباشر | I132: محام | J132: ثالثة | K132: 113411365محمد صبرى محمود حسن المباشرمحامثالثة | L132: 1110.91 | M132: 1333.092 | P132: 166.6365 | Q132: 208.32 | R132: 0 | U132: 0 | V132: 0 | W132: 0 | X132: 0 | AA132: 0 | AD132: 0 | AE132: 374.9565 | AF132: 36.22 | AG132: 38.22 | AH132: 65 | AJ132: 190 | AK132: 26.58 | AL132: 37.01 | AM132: 47.52 | AN132: 67.8 | AO132: 72.54 | AP132: 83.05 | AQ132: 600 | AR132: 6 | AT132: 1269.94 | AU132: 10 | AW132: 937.5 | AZ132: 5036.3985 | BA132: 963.6015 | BB132: 6000 | BC132: 0 | BD132: 0 | BE132: 550 | BF132: 0 | BK132: 0 | BL132: 0.5 | BM132: 3 | BN132: 0 | BO132: 0 | BP132: 0 | BR132: 0 | BS132: 0 | BT132: 0 | BV132: 0 | BW132: 0 | BX132: 1.59 | BY132: 3 | CD132: 0 | CE132: 0 | CI132: 937.5 | CJ132: 0 | CL132: 1495.59 | CM132: 4504.41
C133: 109006 | D133: 21269 | E133: خالد عمر قاعود | H133: المباشر | I133: امين مخزن | J133: الأولى | K133: 113521269خالد عمر قاعود المباشرامين مخزنالأولى | L133: 2469.7 | M133: 2963.64 | P133: 370.455 | Q133: 188.32 | R133: 0 | U133: 0 | V133: 0 | W133: 0 | X133: 0 | AA133: 0 | AD133: 0 | AE133: 558.775 | AF133: 81.67 | AG133: 91.21 | AH133: 116.98 | AJ133: 190 | AK133: 49.37 | AL133: 88.04 | AM133: 113.05 | AN133: 161.28 | AO133: 172.57 | AP133: 184.65 | AQ133: 600 | AR133: 10 | AT133: 1858.82 | AU133: 10 | AW133: 1575 | AZ133: 9435.935 | BA133: 0 | BB133: 9435.935 | BC133: 0 | BD133: 0 | BE133: 924 | BF133: 34.66 | BK133: 0 | BL133: 0.5 | BM133: 3 | BN133: 0 | BO133: 0 | BP133: 0 | BR133: 0 | BS133: 0 | BT133: 0 | BV133: 0 | BW133: 0 | BX133: 2.08 | BY133: 5 | CD133: 0 | CE133: 0 | CI133: 1575 | CJ133: 0 | CL133: 2509.58 | CM133: 6926.355
C134: 609000 | D134: 42329 | E134: احمد العادلى احمد السيد | H134: المباشر | I134: حارس | J134: سادسة | K134: 113642329احمد العادلى احمد السيد المباشرحارسسادسة | L134: 602.26 | M134: 722.712 | P134: 90.339 | Q134: 188.32 | R134: 0 | U134: 0 | V134: 0 | W134: 5.5 | X134: 0 | AA134: 0 | AD134: 0 | AE134: 284.159 | AF134: 28.18 | AG134: 29.64 | AH134: 65 | AJ134: 200 | AK134: 46.91 | AL134: 44.94 | AM134: 42.84 | AN134: 65.59 | AO134: 88.18 | AP134: 110.6 | AQ134: 600 | AR134: 10 | AT134: 1331.88 | AU134: 10 | AW134: 937.5 | AZ134: 3888.511 | BA134: 2111.489 | BB134: 6000 | BC134: 0 | BD134: 0 | BE134: 550 | BF134: 0 | BK134: 0 | BL134: 0.5 | BM134: 3 | BN134: 0 | BO134: 0 | BP134: 0 | BR134: 0 | BS134: 0 | BT134: 0 | BV134: 0 | BW134: 0 | BX134: 2.07 | BY134: 3 | CD134: 0 | CE134: 0 | CI134: 937.5 | CJ134: 0 | CL134: 1496.07 | CM134: 4503.93
C135: 609001 | D135: 42334 | E135: علاء الضمرانى عيد الضمرانى | H135: المباشر | I135: حارس | J135: سادسة | K135: 113742334علاء الضمرانى عيد الضمرانى المباشرحارسسادسة | L135: 602.26 | M135: 722.712 | P135: 90.339 | Q135: 188.32 | R135: 0 | U135: 0 | V135: 0 | W135: 5.5 | X135: 0 | AA135: 0 | AD135: 0 | AE135: 284.159 | AF135: 28.18 | AG135: 29.64 | AH135: 65 | AJ135: 200 | AK135: 46.91 | AL135: 44.94 | AM135: 42.84 | AN135: 65.59 | AO135: 88.18 | AP135: 110.6 | AQ135: 600 | AR135: 8 | AT135: 1329.88 | AU135: 10 | AW135: 937.5 | AZ135: 3886.511 | BA135: 2113.489 | BB135: 6000 | BC135: 0 | BD135: 0 | BE135: 550 | BF135: 0 | BK135: 0 | BL135: 0.5 | BM135: 3 | BN135: 0 | BO135: 0 | BP135: 0 | BR135: 0 | BS135: 0 | BT135: 0 | BV135: 0 | BW135: 0 | BX135: 2.07 | BY135: 3 | CD135: 0 | CE135: 0 | CI135: 937.5 | CJ135: 0 | CL135: 1496.07 | CM135: 4503.93
C136: 219012 | D136: 22172 | E136: اشرف على سعد | H136: المباشر | I136: حارس | J136: الخامسة | K136: 113822172اشرف على سعد المباشرحارسالخامسة | L136: 1017.69 | M136: 1221.228 | P136: 152.6535 | Q136: 188.32 | R136: 0 | U136: 0 | V136: 0 | W136: 5.5 | X136: 0 | AA136: 0 | AD136: 0 | AE136: 346.4735 | AF136: 33.74 | AG136: 37.66 | AH136: 65 | AJ136: 200 | AK136: 27.53 | AL136: 36.28 | AM136: 46.58 | AN136: 66.46 | AO136: 71.11 | AP136: 83.42 | AQ136: 600 | AR136: 10 | AT136: 1277.78 | AU136: 10 | AW136: 937.5 | AZ136: 4810.6715 | BA136: 1189.3285 | BB136: 6000 | BC136: 0 | BD136: 0 | BE136: 550 | BF136: 0 | BK136: 0 | BL136: 0.5 | BM136: 3 | BN136: 0 | BO136: 0 | BP136: 0 | BR136: 0 | BS136: 0 | BT136: 0 | BV136: 0 | BW136: 0 | BX136: 1.69 | BY136: 3 | CD136: 0 | CE136: 0 | CI136: 937.5 | CJ136: 0 | CL136: 1495.69 | CM136: 4504.31
C137: 202052 | D137: 21188 | E137: محمد جلال اسماعيل | H137: المباشر | I137: فنى او كهربائى | J137: اولى | K137: 113921188محمد جلال اسماعيل المباشرفنى او كهربائىاولى | L137: 2628.13 | M137: 3153.756 | P137: 394.2195 | Q137: 188.32 | R137: 0 | U137: 0 | V137: 0 | W137: 0 | X137: 0 | AA137: 0 | AD137: 0 | AE137: 582.5395 | AF137: 86.88 | AG137: 97.04 | AH137: 120 | AJ137: 190 | AK137: 52.54 | AL137: 93.69 | AM137: 120.3 | AN137: 171.63 | AO137: 183.64 | AP137: 196.5 | AQ137: 600 | AR137: 10 | AT137: 1922.22 | AU137: 10 | AW137: 1668.75 | AZ137: 9965.3955 | BA137: 0 | BB137: 9965.3955 | BC137: 0 | BD137: 0 | BE137: 979 | BF137: 69.41 | BK137: 0 | BL137: 0.5 | BM137: 3 | BN137: 0 | BO137: 0 | BP137: 0 | BR137: 0 | BS137: 0 | BT137: 0 | BV137: 0 | BW137: 0 | BX137: 4.73 | BY137: 3 | CD137: 0 | CE137: 0 | CI137: 1668.75 | CJ137: 0 | CL137: 2658.98 | CM137: 7306.4155
C138: 201010 | D138: 21282 | E138: محمود على مجاهد على | H138: المباشر | I138: فنى اول كهربائى | J138: الاولي | K138: 114021282محمود على مجاهد على المباشرفنى اول كهربائىالاولي | L138: 2517.84 | M138: 3021.408 | P138: 377.676 | Q138: 188.32 | R138: 0 | U138: 0 | V138: 0 | W138: 0 | X138: 0 | AA138: 0 | AD138: 0 | AE138: 565.996 | AF138: 83.07 | AG138: 93.05 | AH138: 119.3 | AJ138: 190 | AK138: 50.33 | AL138: 89.75 | AM138: 115.25 | AN138: 164.42 | AO138: 175.93 | AP138: 188.25 | AQ138: 600 | AR138: 10 | AT138: 1879.35 | AU138: 10 | AW138: 1593.75 | AZ138: 9588.344 | BA138: 0 | BB138: 9588.344 | BC138: 0 | BD138: 0 | BE138: 935 | BF138: 43.5 | BK138: 0 | BL138: 0.5 | BM138: 3 | BN138: 0 | BO138: 0 | BP138: 0 | BR138: 0 | BS138: 0 | BT138: 0 | BV138: 0 | BW138: 0 | BX138: 4.56 | BY138: 5 | CD138: 0 | CE138: 0 | CI138: 1593.75 | CJ138: 0 | CL138: 2541.81 | CM138: 7046.534
C139: 202105 | D139: 21846 | E139: محمود بسيونى ابراهيم | H139: المباشر | I139: فنى ثان | J139: الثانية | K139: 200121846محمود بسيونى ابراهيم المباشرفنى ثانالثانية | L139: 2501.23 | M139: 3001.476 | P139: 375.18 | Q139: 188.32 | R139: 0 | U139: 0 | V139: 0 | W139: 0 | X139: 0 | AA139: 0 | AD139: 0 | AE139: 563.5 | AF139: 88.67 | AG139: 98.96 | AH139: 118.11 | AJ139: 190 | AK139: 50 | AL139: 89.16 | AM139: 114.49 | AN139: 163.34 | AO139: 174.77 | AP139: 187.01 | AQ139: 600 | AR139: 10 | AT139: 1884.51 | AU139: 10 | AW139: 1593.75 | AZ139: 9554.466 | BA139: 0 | BB139: 9554.466 | BC139: 0 | BD139: 0 | BE139: 935 | BF139: 41.5 | BL139: 0.5 | BM139: 3 | BN139: 0 | BO139: 0 | BP139: 0 | BR139: 0 | BS139: 0 | BT139: 0 | BV139: 0 | BW139: 0 | BX139: 4.54 | BY139: 5 | CE139: 0 | CI139: 1593.75 | CJ139: 0 | CL139: 2541.79 | CM139: 7012.676
C140: 202115 | D140: 21910 | E140: عبد العليم سعد ابراهيم | H140: المباشر | I140: فنى ثانى | J140: الثانية | K140: 200221910عبد العليم سعد ابراهيمالمباشرفنى ثانىالثانية | L140: 2233.1 | M140: 2679.72 | P140: 334.97 | Q140: 188.32 | R140: 0 | U140: 0 | V140: 0 | W140: 0 | X140: 0 | AA140: 0 | AD140: 0 | AE140: 523.29 | AF140: 73.27 | AG140: 82.02 | AH140: 98.55 | AJ140: 190 | AK140: 44.64 | AL140: 79.6 | AM140: 102.22 | AN140: 145.83 | AO140: 156.04 | AP140: 166.96 | AQ140: 600 | AR140: 10 | AT140: 1749.13 | AU140: 10 | AW140: 1443.75 | AZ140: 8638.99 | BA140: 0 | BB140: 8638.99 | BC140: 0 | BD140: 0 | BE140: 847 | BF140: 0 | BG140: 18.61 | BH140: 10.46 | BL140: 0.5 | BM140: 3 | BN140: 0 | BO140: 0 | BP140: 0 | BR140: 0 | BS140: 0 | BT140: 0 | BV140: 0 | BW140: 0 | BX140: 4.1 | BY140: 3 | CE140: 0 | CI140: 1443.75 | CJ140: 0 | CL140: 2330.42 | CM140: 6308.57
C141: 202108 | D141: 21080 | E141: مصطفى عبد الغنى مصطفى | H141: المباشر | I141: ميكانيكى | J141: الثالثه | K141: 200321080مصطفى عبد الغنى مصطفى المباشرميكانيكىالثالثه | L141: 2249.01 | M141: 2698.812 | P141: 337.35 | Q141: 188.32 | R141: 0 | U141: 0 | V141: 0 | W141: 0 | X141: 0 | AA141: 0 | AD141: 0 | AE141: 525.67 | AF141: 74.42 | AG141: 83.09 | AH141: 106.52 | AJ141: 190 | AK141: 44.95 | AL141: 80.17 | AM141: 102.95 | AN141: 146.87 | AO141: 157.15 | AP141: 168.15 | AQ141: 600 | AR141: 8 | AT141: 1762.27 | AU141: 10 | AW141: 1443.75 | AZ141: 8689.512 | BA141: 0 | BB141: 8689.512 | BC141: 0 | BD141: 0 | BE141: 847 | BF141: 0 | BL141: 0.5 | BM141: 3 | BN141: 0 | BO141: 0 | BP141: 0 | BR141: 0 | BS141: 0 | BT141: 0 | BV141: 0 | BW141: 0 | BX141: 4.12 | BY141: 5 | CE141: 0 | CI141: 1443.75 | CJ141: 0 | CL141: 2303.37 | CM141: 6386.142
C142: 202102 | D142: 22089 | E142: وائل سعيد عطية خلاف | H142: المباشر | I142: ميكانيكى | J142: الرابعه | K142: 200422089وائل سعيد عطية خلافالمباشرميكانيكىالرابعه | L142: 1755.89 | M142: 2107.068 | P142: 263.38 | Q142: 188.32 | R142: 0 | U142: 0 | V142: 0 | W142: 0 | X142: 0 | AA142: 0 | AD142: 0 | AE142: 451.7 | AF142: 62.35 | AG142: 69.55 | AH142: 82.86 | AJ142: 200 | AK142: 35.1 | AL142: 62.59 | AM142: 80.37 | AN142: 114.67 | AO142: 122.69 | AP142: 131.28 | AQ142: 600 | AR142: 10 | AT142: 1571.46 | AU142: 10 | AW142: 1162.5 | AZ142: 7058.618 | BA142: 0 | BB142: 7058.618 | BC142: 0 | BD142: 0 | BE142: 682 | BF142: 0 | BL142: 0.5 | BM142: 3 | BN142: 0 | BO142: 0 | BP142: 0 | BR142: 0 | BS142: 0 | BT142: 0 | BV142: 0 | BW142: 0 | BX142: 3.37 | BY142: 3 | CE142: 0 | CI142: 1162.5 | CJ142: 0 | CL142: 1854.37 | CM142: 5204.248
C143: 202112 | D143: 22153 | E143: سامح محمد حسن عبد النبى | H143: المباشر | I143: ميكانيكى | J143: خامسة | K143: 200522153سامح محمد حسن عبد النبى المباشرميكانيكىخامسة | L143: 1060 | M143: 1272 | P143: 159 | Q143: 188.32 | R143: 0 | U143: 0 | V143: 0 | W143: 0 | X143: 0 | AA143: 0 | AD143: 0 | AE143: 347.32 | AF143: 35.33 | AG143: 39.36 | AH143: 65 | AJ143: 200 | AK143: 25.56 | AL143: 37.78 | AM143: 48.52 | AN143: 69.22 | AO143: 74.06 | AP143: 80.65 | AQ143: 600 | AR143: 8 | AT143: 1283.48 | AU143: 10 | AW143: 937.5 | AZ143: 4910.3 | BA143: 1089.7 | BB143: 6000 | BC143: 0 | BD143: 0 | BE143: 550 | BF143: 0 | BG143: 17.66 | BH143: 20.92 | BL143: 0.5 | BM143: 3 | BN143: 0 | BO143: 0 | BP143: 0 | BR143: 0 | BS143: 0 | BT143: 0 | BV143: 0 | BW143: 0 | BX143: 2.79 | BY143: 3 | CE143: 0 | CI143: 937.5 | CJ143: 0 | CL143: 1535.37 | CM143: 4464.63
C144: 202103 | D144: 21903 | E144: هانى ابو الفتوح على | H144: المباشر | I144: ميكانيكى | J144: خامسة | K144: 200621903هانى ابو الفتوح على المباشر ميكانيكى خامسة | L144: 1994.02 | M144: 2392.824 | P144: 299.1 | Q144: 188.32 | R144: 0 | U144: 0 | V144: 0 | W144: 0 | X144: 0 | AA144: 0 | AD144: 0 | AE144: 487.42 | AF144: 65.68 | AG144: 73.3 | AH144: 87.88 | AJ144: 200 | AK144: 39.86 | AL144: 71.09 | AM144: 91.27 | AN144: 130.22 | AO144: 139.33 | AP144: 149.09 | AQ144: 600 | AR144: 10 | AT144: 1657.72 | AU144: 10 | AW144: 1293.75 | AZ144: 7835.734 | BA144: 0 | BB144: 7835.734 | BC144: 0 | BD144: 0 | BE144: 759 | BF144: 0 | BG144: 33.23 | BH144: 20.92 | BL144: 0.5 | BM144: 3 | BN144: 0 | BO144: 0 | BP144: 0 | BR144: 0 | BS144: 0 | BT144: 0 | BV144: 0 | BW144: 0 | BX144: 3.73 | BY144: 3 | CE144: 0 | CI144: 1293.75 | CJ144: 0 | CL144: 2117.13 | CM144: 5718.604
C145: 202109 | D145: 21362 | E145: فرج ابراهيم فرج | H145: المباشر | I145: ميكانيكى | J145: الثالثة | K145: 200721362فرج ابراهيم فرج المباشر ميكانيكى الثالثة | L145: 2210.91 | M145: 2653.092 | P145: 331.6365 | Q145: 188.32 | R145: 0 | U145: 0 | V145: 0 | W145: 0 | X145: 0 | AA145: 0 | AD145: 0 | AE145: 519.9565 | AF145: 72.78 | AG145: 81.24 | AH145: 97.47 | AJ145: 190 | AK145: 44.2 | AL145: 78.82 | AM145: 101.2 | AN145: 144.38 | AO145: 154.49 | AP145: 165.3 | AQ145: 600 | AR145: 10 | AT145: 1739.88 | AU145: 10 | AW145: 1425 | AZ145: 8558.8385 | BA145: 0 | BB145: 8558.8385 | BC145: 0 | BD145: 0 | BE145: 836 | BF145: 0 | BL145: 0.5 | BM145: 3 | BN145: 0 | BO145: 0 | BP145: 0 | BR145: 0 | BS145: 0 | BT145: 0 | BV145: 0 | BW145: 0 | BX145: 4.07 | BY145: 3 | CE145: 0 | CI145: 1425 | CJ145: 0 | CL145: 2271.57 | CM145: 6287.2685
C146: 202110 | D146: 21448 | E146: محمد عبد اللطيف عبد المعطى | H146: المباشر | I146: ميكانيكى | J146: الثالثة | K146: 200821448محمد عبد اللطيف عبد المعطى المباشر ميكانيكى الثالثة | L146: 2155.48 | M146: 2586.576 | P146: 323.322 | Q146: 188.32 | R146: 0 | U146: 0 | V146: 0 | W146: 0 | X146: 0 | AA146: 0 | AD146: 0 | AE146: 511.642 | AF146: 71.34 | AG146: 79.65 | AH146: 102.07 | AJ146: 190 | AK146: 43.09 | AL146: 76.84 | AM146: 98.66 | AN146: 140.76 | AO146: 150.61 | AP146: 161.16 | AQ146: 600 | AR146: 10 | AT146: 1724.18 | AU146: 10 | AW146: 1387.5 | AZ146: 8375.378 | BA146: 0 | BB146: 8375.378 | BC146: 0 | BD146: 0 | BE146: 814 | BF146: 0 | BL146: 0.5 | BM146: 3 | BN146: 0 | BO146: 0 | BP146: 0 | BR146: 0 | BS146: 0 | BT146: 0 | BV146: 0 | BW146: 0 | BX146: 3.99 | BY146: 3 | CE146: 0 | CI146: 1387.5 | CJ146: 0 | CL146: 2211.99 | CM146: 6163.388
C147: 202107 | D147: 21714 | E147: منصور عبده دوينى | H147: المباشر | I147: ميكانيكى | J147: الرابعة | K147: 200921714منصور عبده دوينى المباشرميكانيكى الرابعة | L147: 2005.79 | M147: 2406.948 | P147: 300.8685 | Q147: 188.32 | R147: 0 | U147: 0 | V147: 0 | W147: 0 | X147: 0 | AA147: 0 | AD147: 0 | AE147: 489.1885 | AF147: 66.43 | AG147: 74.185 | AH147: 94.97 | AJ147: 200 | AK147: 40.1 | AL147: 71.51 | AM147: 91.81 | AN147: 130.99 | AO147: 140.15 | AP147: 149.97 | AQ147: 600 | AR147: 10 | AT147: 1670.115 | AU147: 10 | AW147: 1312.5 | AZ147: 7894.5415 | BA147: 0 | BB147: 7894.5415 | BC147: 0 | BD147: 0 | BE147: 770 | BF147: 0 | BG147: 16.72 | BH147: 10.46 | BL147: 0.5 | BM147: 3 | BN147: 0 | BO147: 0 | BP147: 0 | BR147: 0 | BS147: 0 | BT147: 0 | BV147: 0 | BW147: 0 | BX147: 3.76 | BY147: 3 | CE147: 0 | CI147: 1312.5 | CJ147: 0 | CL147: 2119.94 | CM147: 5774.6015
C148: 202104 | D148: 21346 | E148: زينهم محمد زينهم عبد الواحد | H148: المباشر | I148: ميكانيكى | J148: الخامسه | K148: 201021346زينهم محمد زينهم عبد الواحدالمباشرميكانيكىالخامسه | L148: 1981.13 | M148: 2377.356 | P148: 297.1695 | Q148: 188.32 | R148: 0 | U148: 0 | V148: 0 | W148: 0 | X148: 0 | AA148: 0 | AD148: 0 | AE148: 485.4895 | AF148: 70.33 | AG148: 78.44 | AH148: 93.51 | AJ148: 200 | AK148: 39.6 | AL148: 70.63 | AM148: 90.68 | AN148: 129.38 | AO148: 138.43 | AP148: 148.12 | AQ148: 600 | AR148: 10 | AT148: 1669.12 | AU148: 10 | AW148: 1293.75 | AZ148: 7816.8455 | BA148: 0 | BB148: 7816.8455 | BC148: 0 | BD148: 0 | BE148: 759 | BF148: 0 | BL148: 0.5 | BM148: 3 | BN148: 0 | BO148: 0 | BP148: 0 | BR148: 0 | BS148: 0 | BT148: 0 | BV148: 0 | BW148: 0 | BX148: 3.73 | BY148: 3 | CE148: 0 | CI148: 1293.75 | CJ148: 0 | CL148: 2062.98 | CM148: 5753.8655
C149: 202097 | D149: 22088 | E149: محمد فاروق عباس | H149: المباشر | I149: كهربائى | J149: الرابعة | K149: 201122088محمد فاروق عباس المباشركهربائىالرابعة | L149: 1821.11 | M149: 2185.332 | P149: 273.1665 | Q149: 188.32 | R149: 0 | U149: 0 | V149: 0 | W149: 0 | X149: 0 | AA149: 0 | AD149: 0 | AE149: 461.4865 | AF149: 64.62 | AG149: 71.99 | AH149: 85.57 | AJ149: 200 | AK149: 36.4 | AL149: 64.92 | AM149: 83.36 | AN149: 118.93 | AO149: 127.25 | AP149: 136.16 | AQ149: 600 | AR149: 10 | AT149: 1599.2 | AU149: 10 | AW149: 1200 | AZ149: 7277.1285 | BA149: 0 | BB149: 7277.1285 | BC149: 0 | BD149: 0 | BE149: 704 | BF149: 0 | BL149: 0.5 | BM149: 3 | BN149: 0 | BO149: 0 | BP149: 0 | BR149: 0 | BS149: 0 | BT149: 0 | BV149: 0 | BW149: 0 | BX149: 3.47 | BY149: 3 | CE149: 0 | CI149: 1200 | CJ149: 0 | CL149: 1913.97 | CM149: 5363.1585
C150: 202098 | D150: 2843 | E150: جميل شهدى نخنوخ | H150: المباشر | I150: فنى تان كهربائي | J150: التانية | K150: 20122843جميل شهدى نخنوخالمباشر فنى تان كهربائي التانية | L150: 2581.86 | M150: 3098.232 | P150: 387.279 | Q150: 188.32 | R150: 0 | U150: 0 | V150: 0 | W150: 0 | X150: 0 | AA150: 0 | AD150: 0 | AE150: 575.599 | AF150: 84.48 | AG150: 94.64 | AH150: 113.93 | AJ150: 190 | AK150: 51.62 | AL150: 92.04 | AM150: 118.18 | AN150: 168.6 | AO150: 180.41 | AP150: 193.04 | AQ150: 600 | AR150: 10 | AT150: 1896.94 | AU150: 10 | AV150: 60 | AW150: 1631.25 | AZ150: 9853.881 | BA150: 0 | BB150: 9853.881 | BC150: 0 | BD150: 0 | BE150: 957 | BF150: 53.5 | BL150: 0.5 | BM150: 3 | BN150: 0 | BO150: 0 | BP150: 0 | BR150: 0 | BS150: 0 | BT150: 0 | BV150: 0 | BW150: 0 | BX150: 4.66 | BY150: 3 | CE150: 0 | CI150: 1631.25 | CJ150: 0 | CL150: 2599.41 | CM150: 7254.471
C151: 202113 | D151: 21705 | E151: اشرف عبد المحسن محمد | H151: المباشر | I151: كهربائي | J151: الرابعه | K151: 201321705اشرف عبد المحسن محمدالمباشركهربائيالرابعه | L151: 1997.75 | M151: 2397.3 | P151: 299.6625 | Q151: 188.321 | R151: 0 | U151: 0 | V151: 0 | W151: 0 | X151: 0 | AA151: 0 | AD151: 0 | AE151: 487.9835 | AF151: 70.75 | AG151: 78.97 | AH151: 94.26 | AJ151: 200 | AK151: 39.93 | AL151: 71.21 | AM151: 91.44 | AN151: 130.46 | AO151: 139.59 | AP151: 149.36 | AQ151: 600 | AR151: 10 | AT151: 1675.97 | AU151: 10 | AW151: 1312.5 | AZ151: 7881.5035 | BA151: 0 | BB151: 7881.5035 | BC151: 0 | BD151: 0 | BE151: 770 | BF151: 0 | BL151: 0.5 | BM151: 3 | BN151: 0 | BO151: 0 | BP151: 0 | BR151: 0 | BS151: 0 | BT151: 0 | BV151: 0 | BW151: 0 | BX151: 3.75 | BY151: 3 | CE151: 0 | CI151: 1312.5 | CJ151: 0 | CL151: 2092.75 | CM151: 5788.7535
C152: 202099 | D152: 22102 | E152: محمد محمود مصطفى عبد الله | H152: المباشر | I152: فنى ثان | J152: الثانية | K152: 201422102محمد محمود مصطفى عبد الله المباشرفنى ثان الثانية | L152: 2129.48 | M152: 2555.376 | P152: 319.422 | Q152: 188.32 | R152: 0 | U152: 0 | V152: 0 | W152: 0 | X152: 0 | AA152: 0 | AD152: 0 | AE152: 507.742 | AF152: 69.93 | AG152: 78.06 | AH152: 93.9 | AJ152: 190 | AK152: 42.57 | AL152: 75.91 | AM152: 97.47 | AN152: 139.06 | AO152: 148.8 | AP152: 159.21 | AQ152: 600 | AR152: 10 | AT152: 1704.91 | AU152: 10 | AW152: 1368.75 | AZ152: 8276.258 | BA152: 0 | BB152: 8276.258 | BC152: 0 | BD152: 0 | BE152: 803 | BF152: 0 | BL152: 0.5 | BM152: 3 | BN152: 0 | BO152: 0 | BP152: 0 | BR152: 0 | BS152: 0 | BT152: 0 | BV152: 0 | BW152: 0 | BX152: 3.95 | BY152: 5 | CE152: 0 | CI152: 1368.75 | CJ152: 0 | CL152: 2184.2 | CM152: 6092.058
C153: 202114 | D153: 21978 | E153: على حسن ذكى | H153: المباشر | I153: لحام اكسوجين | J153: التانية | K153: 201521978على حسن ذكى المباشرلحام اكسوجينالتانية | L153: 2312.92 | M153: 2775.504 | P153: 346.938 | Q153: 188.32 | R153: 0 | U153: 0 | V153: 0 | W153: 0 | X153: 0 | AA153: 0 | AD153: 0 | AE153: 535.258 | AF153: 75.74 | AG153: 84.82 | AH153: 102.04 | AJ153: 190 | AK153: 46.23 | AL153: 82.45 | AM153: 105.87 | AN153: 151.04 | AO153: 161.62 | AP153: 172.93 | AQ153: 600 | AR153: 10 | AT153: 1782.74 | AU153: 10 | AW153: 1481.25 | AZ153: 8897.672 | BA153: 0 | BB153: 8897.672 | BC153: 0 | BD153: 0 | BE153: 869 | BF153: 8.34 | BL153: 0.5 | BM153: 3 | BN153: 0 | BO153: 0 | BP153: 0 | BR153: 0 | BS153: 0 | BT153: 0 | BV153: 0 | BW153: 0 | BX153: 4.23 | BY153: 3 | CE153: 0 | CI153: 1481.25 | CJ153: 0 | CL153: 2360.98 | CM153: 6536.692
C154: 202091 | D154: 22150 | E154: اشرف لطفى يونس | H154: المباشر | I154: سمكرى | J154: خامسة | K154: 201622150اشرف لطفى يونس المباشرسمكرىخامسة | L154: 1059.88 | M154: 1271.856 | P154: 158.982 | Q154: 188.32 | R154: 0 | U154: 0 | V154: 0 | W154: 0 | X154: 0 | AA154: 0 | AD154: 0 | AE154: 347.302 | AF154: 35.33 | AG154: 39.36 | AH154: 65 | AJ154: 200 | AK154: 25.57 | AL154: 37.78 | AM154: 48.51 | AN154: 69.21 | AO154: 74.06 | AP154: 80.66 | AQ154: 600 | AR154: 10 | AT154: 1285.48 | AU154: 10 | AW154: 937.5 | AZ154: 4912.018 | BA154: 1087.982 | BB154: 6000 | BC154: 0 | BD154: 0 | BE154: 550 | BF154: 0 | BL154: 0.5 | BM154: 3 | BN154: 0 | BO154: 0 | BP154: 0 | BR154: 0 | BS154: 0 | BT154: 0 | BV154: 0 | BW154: 0 | BX154: 2.79 | BY154: 3 | CE154: 0 | CI154: 937.5 | CJ154: 0 | CL154: 1496.79 | CM154: 4503.21
C155: 202092 | D155: 21734 | E155: عبد الباقى عبد الموجود عبد الباقي | H155: المباشر | I155: سمكرى | J155: الرابعه | K155: 201721734عبد الباقى عبد الموجود عبد الباقيالمباشرسمكرىالرابعه | L155: 1900.5 | M155: 2280.6 | P155: 285.075 | Q155: 188.32 | R155: 0 | U155: 0 | V155: 0 | W155: 0 | X155: 0 | AA155: 0 | AD155: 0 | AE155: 473.395 | AF155: 67.32 | AG155: 75.14 | AH155: 89.66 | AJ155: 200 | AK155: 37.99 | AL155: 67.75 | AM155: 86.99 | AN155: 124.11 | AO155: 132.8 | AP155: 142.09 | AQ155: 600 | AR155: 10 | AT155: 1633.85 | AU155: 10 | AW155: 1256.25 | AZ155: 7554.595 | BA155: 0 | BB155: 7554.595 | BC155: 0 | BD155: 0 | BE155: 737 | BF155: 0 | BL155: 0.5 | BM155: 3 | BN155: 0 | BO155: 0 | BP155: 0 | BR155: 0 | BS155: 0 | BT155: 0 | BV155: 0 | BW155: 0 | BX155: 3.58 | BY155: 3 | CE155: 0 | CI155: 1256.25 | CJ155: 0 | CL155: 2003.33 | CM155: 5551.265
C156: 202094 | D156: 21266 | E156: ممدوح عبد العزيز عبد الوهاب | H156: المباشر | I156: حداد | J156: الثالثه | K156: 201821266ممدوح عبد العزيز عبد الوهابالمباشر حدادالثالثه | L156: 2264.1 | M156: 2716.92 | P156: 339.615 | Q156: 188.32 | R156: 0 | U156: 0 | V156: 0 | W156: 0 | X156: 0 | AA156: 0 | AD156: 0 | AE156: 527.935 | AF156: 74.91 | AG156: 83.64 | AH156: 107.24 | AJ156: 190 | AK156: 45.26 | AL156: 80.71 | AM156: 103.64 | AN156: 147.85 | AO156: 158.2 | AP156: 169.28 | AQ156: 600 | AR156: 4 | AT156: 1764.73 | AU156: 10 | AV156: 60 | AW156: 1462.5 | AZ156: 8806.185 | BA156: 0 | BB156: 8806.185 | BC156: 0 | BD156: 0 | BE156: 858 | BF156: 0 | BL156: 0.5 | BM156: 3 | BN156: 0 | BO156: 0 | BP156: 0 | BR156: 0 | BS156: 0 | BT156: 0 | BV156: 0 | BW156: 0 | BX156: 4.16 | BY156: 3 | CE156: 0 | CI156: 1462.5 | CJ156: 0 | CL156: 2331.16 | CM156: 6475.025
C157: 202100 | D157: 22170 | E157: عارف كامل عبد الرحمن | H157: المباشر | I157: سروجى | J157: الخامسة | K157: 201922170عارف كامل عبد الرحمن المباشرسروجىالخامسة | L157: 1017.69 | M157: 1221.228 | P157: 152.6535 | Q157: 188.32 | R157: 0 | U157: 0 | V157: 0 | W157: 0 | X157: 0 | AA157: 0 | AD157: 0 | AE157: 340.9735 | AF157: 33.74 | AG157: 37.66 | AH157: 65 | AJ157: 200 | AK157: 27.53 | AL157: 36.28 | AM157: 46.58 | AN157: 66.46 | AO157: 71.11 | AP157: 83.43 | AQ157: 600 | AR157: 10 | AT157: 1277.79 | AU157: 10 | AW157: 937.5 | AZ157: 4805.1815 | BA157: 1194.8185 | BB157: 6000 | BC157: 0 | BD157: 0 | BE157: 550 | BF157: 0 | BL157: 0.5 | BM157: 3 | BN157: 0 | BO157: 0 | BP157: 0 | BR157: 0 | BS157: 0 | BT157: 0 | BV157: 0 | BW157: 0 | BX157: 2.79 | BY157: 3 | CE157: 0 | CI157: 937.5 | CJ157: 0 | CL157: 1496.79 | CM157: 4503.21
C158: 202095 | D158: 21572 | E158: مصطفي ابراهيم طلبة | H158: المباشر | I158: فني ثالث خراط | J158: الثالثه | K158: 202021572مصطفي ابراهيم طلبةالمباشرفني ثالث خراطالثالثه | L158: 2063.44 | M158: 2476.128 | P158: 309.516 | Q158: 188.32 | R158: 0 | U158: 0 | V158: 0 | W158: 0 | X158: 0 | AA158: 0 | AD158: 0 | AE158: 497.836 | AF158: 67.78 | AG158: 75.65 | AH158: 90.99 | AJ158: 190 | AK158: 41.24 | AL158: 73.56 | AM158: 94.45 | AN158: 134.75 | AO158: 144.18 | AP158: 154.28 | AQ158: 600 | AR158: 10 | AT158: 1676.88 | AU158: 10 | AW158: 1331.25 | AZ158: 8055.534 | BA158: 0 | BB158: 8055.534 | BC158: 0 | BD158: 0 | BE158: 781 | BF158: 0 | BL158: 0.5 | BM158: 3 | BN158: 0 | BO158: 0 | BP158: 0 | BR158: 0 | BS158: 0 | BT158: 0 | BV158: 0 | BW158: 0 | BX158: 4.09 | BY158: 3 | CE158: 0 | CI158: 1331.25 | CJ158: 0 | CL158: 2122.84 | CM158: 5932.694
C159: 202096 | D159: 22117 | E159: اسماعيل حسين احمد | H159: المباشر | I159: كهربائى | J159: الرابعة | K159: 202122117اسماعيل حسين احمد المباشركهربائىالرابعة | L159: 1755.91 | M159: 2107.092 | P159: 263.3865 | Q159: 188.32 | R159: 0 | U159: 0 | V159: 0 | W159: 0 | X159: 0 | AA159: 0 | AD159: 0 | AE159: 451.7065 | AF159: 62.35 | AG159: 69.55 | AH159: 82.87 | AJ159: 200 | AK159: 35.1 | AL159: 62.6 | AM159: 80.37 | AN159: 114.67 | AO159: 122.69 | AP159: 131.28 | AQ159: 600 | AR159: 10 | AT159: 1571.48 | AU159: 10 | AV159: 60 | AW159: 1162.5 | AZ159: 7118.6885 | BA159: 0 | BB159: 7118.6885 | BC159: 0 | BD159: 0 | BE159: 682 | BF159: 0 | BL159: 0.5 | BM159: 3 | BN159: 0 | BO159: 0 | BP159: 0 | BR159: 0 | BS159: 0 | BT159: 0 | BV159: 0 | BW159: 0 | BX159: 3.37 | BY159: 3 | CE159: 0 | CI159: 1162.5 | CJ159: 0 | CL159: 1854.37 | CM159: 5264.3185
C160: 211030 | D160: 2861 | E160: احمد حسين حسن | H160: المباشر | I160: ميكانيكى | J160: ثالثة | K160: 20222861احمد حسين حسن المباشرميكانيكىثالثة | L160: 2390.76 | M160: 2868.912 | P160: 358.614 | Q160: 188.32 | R160: 0 | U160: 0 | V160: 0 | W160: 0 | X160: 0 | AA160: 0 | AD160: 0 | AE160: 546.934 | AF160: 84.55 | AG160: 94.43 | AH160: 112.84 | AJ160: 190 | AK160: 47.79 | AL160: 85.22 | AM160: 109.43 | AN160: 156.13 | AO160: 167.05 | AP160: 178.75 | AQ160: 600 | AR160: 8 | AT160: 1834.19 | AU160: 10 | AW160: 1537.5 | AZ160: 9188.296 | BA160: 0 | BB160: 9188.296 | BC160: 0 | BD160: 0 | BE160: 902 | BF160: 20.66 | BL160: 0.5 | BM160: 3 | BN160: 0 | BO160: 0 | BP160: 0 | BR160: 0 | BS160: 0 | BT160: 0 | BV160: 0 | BW160: 0 | BX160: 2.03 | BY160: 3 | CE160: 0 | CI160: 1537.5 | CJ160: 0 | CL160: 2448.03 | CM160: 6740.266
C161: 211031 | D161: 22135 | E161: محمد حسن عبد الفتاح | H161: المباشر | I161: ميكانيكى | J161: رابعة | K161: 202322135محمد حسن عبد الفتاح المباشرميكانيكىرابعة | L161: 1586.57 | M161: 1903.884 | P161: 237.9855 | Q161: 188.32 | R161: 0 | U161: 0 | V161: 0 | W161: 0 | X161: 0 | AA161: 0 | AD161: 0 | AE161: 426.3055 | AF161: 52.68 | AG161: 58.73 | AH161: 75.07 | AJ161: 200 | AK161: 31.71 | AL161: 56.56 | AM161: 72.62 | AN161: 103.61 | AO161: 110.86 | AP161: 118.62 | AQ161: 600 | AR161: 10 | AT161: 1490.46 | AU161: 10 | AW161: 1068.75 | AZ161: 6485.9695 | BA161: 0 | BB161: 6485.9695 | BC161: 0 | BD161: 0 | BE161: 627 | BF161: 0 | BL161: 0.5 | BM161: 3 | BN161: 0 | BO161: 0 | BP161: 0 | BR161: 0 | BS161: 0 | BT161: 0 | BV161: 0 | BW161: 0 | BX161: 1.48 | BY161: 3 | CE161: 0 | CI161: 1068.75 | CJ161: 0 | CL161: 1703.73 | CM161: 4782.2395
C162: 211032 | D162: 22136 | E162: سامح سعيد ابراهيم | H162: المباشر | I162: ميكانيكى | J162: خامسة | K162: 202422136سامح سعيد ابراهيم المباشرميكانيكىخامسة | L162: 1516.27 | M162: 1819.524 | P162: 227.4405 | Q162: 188.32 | R162: 0 | U162: 0 | V162: 0 | W162: 0 | X162: 0 | AA162: 0 | AD162: 0 | AE162: 415.7605 | AF162: 50.38 | AG162: 56.28 | AH162: 71.79 | AJ162: 200 | AK162: 30.31 | AL162: 54.05 | AM162: 69.41 | AN162: 99.02 | AO162: 105.95 | AP162: 113.36 | AQ162: 600 | AR162: 6 | AT162: 1456.55 | AU162: 10 | AW162: 1031.25 | AZ162: 6249.3545 | BA162: 0 | BB162: 6249.3545 | BC162: 0 | BD162: 0 | BE162: 605 | BF162: 0 | BG162: 151.56 | BH162: 115.06 | BL162: 0.5 | BM162: 3 | BN162: 0 | BO162: 0 | BP162: 1819.52 | BR162: 0 | BS162: 0 | BT162: 0 | BV162: 0 | BW162: 0 | BX162: 2.08 | BY162: 3 | CE162: 0 | CI162: 1031.25 | CJ162: 0 | CL162: 3730.97 | CM162: 2518.3845
C163: 211037 | D163: 21514 | E163: خالد عربى محمد | H163: المباشر | I163: سمكرى | J163: رابعة | K163: 202521514خالد عربى محمد المباشرسمكرىرابعة | L163: 2070.45 | M163: 2484.54 | P163: 310.5675 | Q163: 188.32 | R163: 0 | U163: 0 | V163: 0 | W163: 0 | X163: 0 | AA163: 0 | AD163: 0 | AE163: 498.8875 | AF163: 73.3 | AG163: 81.83 | AH163: 97.7 | AJ163: 200 | AK163: 41.38 | AL163: 73.81 | AM163: 94.77 | AN163: 135.21 | AO163: 144.67 | AP163: 154.8 | AQ163: 600 | AR163: 10 | AT163: 1707.47 | AU163: 10 | AW163: 1350 | AZ163: 8121.3475 | BA163: 0 | BB163: 8121.3475 | BC163: 0 | BD163: 0 | BE163: 792 | BF163: 0 | BL163: 0.5 | BM163: 3 | BO163: 0 | BP163: 0 | BR163: 0 | BS163: 0 | BT163: 0 | BV163: 0 | BW163: 0 | BX163: 3.87 | BY163: 3 | CE163: 0 | CI163: 1350 | CJ163: 0 | CL163: 2152.37 | CM163: 5968.9775
C164: 211036 | D164: 22140 | E164: جمال عبد الستار محمد | H164: المباشر | I164: لحام اطارات | J164: رابعة | K164: 202622140جمال عبد الستار محمد المباشرلحام اطاراترابعة | L164: 1495.26 | M164: 1794.312 | P164: 224.289 | Q164: 188.32 | R164: 0 | U164: 0 | V164: 0 | W164: 0 | X164: 0 | AA164: 0 | AD164: 0 | AE164: 412.609 | AF164: 49.69 | AG164: 55.38 | AH164: 70.73 | AJ164: 200 | AK164: 29.89 | AL164: 53.3 | AM164: 68.44 | AN164: 97.65 | AO164: 104.48 | AP164: 111.8 | AQ164: 600 | AR164: 10 | AT164: 1451.36 | AU164: 10 | AW164: 1012.5 | AZ164: 6176.041 | BA164: 0 | BB164: 6176.041 | BC164: 0 | BD164: 0 | BE164: 594 | BF164: 0 | BL164: 0.5 | BM164: 3 | BN164: 0 | BO164: 0 | BP164: 0 | BR164: 0 | BS164: 0 | BT164: 0 | BV164: 0 | BW164: 0 | BX164: 1.42 | BY164: 3 | CE164: 0 | CI164: 1012.5 | CJ164: 0 | CL164: 1614.42 | CM164: 4561.621
C165: 211033 | D165: 21173 | E165: كمال عطية عبد الغنى | H165: المباشر | I165: ميكانيكى | J165: ثالثة | K165: 202721173كمال عطية عبد الغنى المباشرميكانيكىثالثة | L165: 2306.75 | M165: 2768.1 | P165: 346.0125 | Q165: 188.32 | R165: 0 | U165: 0 | V165: 0 | W165: 0 | X165: 0 | AA165: 0 | AD165: 0 | AE165: 534.3325 | AF165: 75.91 | AG165: 84.75 | AH165: 101.7 | AJ165: 190 | AK165: 46.11 | AL165: 82.23 | AM165: 105.59 | AN165: 150.64 | AO165: 161.18 | AP165: 172.47 | AQ165: 600 | AR165: 6 | AT165: 1776.58 | AU165: 10 | AW165: 1481.25 | AZ165: 8877.0125 | BA165: 0 | BB165: 8877.0125 | BC165: 0 | BD165: 0 | BE165: 869 | BF165: 1.34 | BL165: 0.5 | BM165: 3 | BN165: 0 | BO165: 0 | BP165: 0 | BR165: 0 | BS165: 0 | BT165: 0 | BV165: 0 | BW165: 0 | BX165: 1.96 | BY165: 3 | CE165: 0 | CI165: 1481.25 | CJ165: 0 | CL165: 2358.71 | CM165: 6518.3025
C166: 0 | D166: 21914 | E166: سعيد محمد على السماحى | H166: المباشر | I166: لحام اطارات | J166: ثالثة | K166: 202821914سعيد محمد على السماحىالمباشرلحام اطاراتثالثة | L166: 2095.96 | M166: 2515.152 | P166: 314.394 | Q166: 188.32 | R166: 0 | U166: 0 | V166: 0 | W166: 0 | X166: 0 | AA166: 0 | AD166: 0 | AE166: 502.714 | AF166: 74.32 | AG166: 82.94 | AH166: 98.94 | AJ166: 190 | AK166: 41.89 | AL166: 74.72 | AM166: 95.94 | AN166: 136.87 | AO166: 146.45 | AP166: 156.71 | AQ166: 600 | AR166: 6 | AT166: 1704.78 | AU166: 10 | AW166: 1368.75 | AZ166: 8197.356 | BA166: 0 | BB166: 8197.356 | BC166: 0 | BD166: 0 | BE166: 803 | BF166: 0 | BL166: 0.5 | BM166: 3 | BN166: 0 | BO166: 0 | BP166: 0 | BR166: 0 | BS166: 0 | BT166: 0 | BV166: 0 | BW166: 0 | BX166: 1.83 | BY166: 3 | CE166: 0 | CI166: 1368.75 | CJ166: 0 | CL166: 2180.08 | CM166: 6017.276
C167: 211035 | D167: 22144 | E167: عصام محمد السيد ابراهيم | H167: المباشر | I167: حداد | J167: رابعة | K167: 202922144عصام محمد السيد ابراهيم المباشرحدادرابعة | L167: 1326.77 | M167: 1592.124 | P167: 199.0155 | Q167: 188.32 | R167: 0 | U167: 0 | V167: 0 | W167: 0 | X167: 0 | AA167: 0 | AD167: 0 | AE167: 387.3355 | AF167: 43.92 | AG167: 48.88 | AH167: 65 | AJ167: 200 | AK167: 26.52 | AL167: 47.29 | AM167: 60.73 | AN167: 86.64 | AO167: 92.71 | AP167: 99.2 | AQ167: 600 | AR167: 10 | AT167: 1380.89 | AU167: 10 | AW167: 937.5 | AZ167: 5634.6195 | BA167: 365.3805 | BB167: 6000 | BC167: 0 | BD167: 0 | BE167: 550 | BF167: 0 | BL167: 0.5 | BM167: 3 | BN167: 0 | BO167: 0 | BP167: 0 | BR167: 0 | BS167: 0 | BT167: 0 | BV167: 0 | BW167: 0 | BX167: 1.37 | BY167: 3 | CE167: 0 | CI167: 937.5 | CJ167: 0 | CL167: 1495.37 | CM167: 4504.63
C168: 217001 | D168: 21536 | E168: محمد عبد الهادى رمضان | H168: المباشر | I168: فنى ثان | J168: ثالثة | K168: 203021536محمد عبد الهادى رمضان المباشرفنى ثان ثالثة | L168: 2544.98 | M168: 3053.976 | P168: 381.747 | Q168: 188.32 | R168: 0 | S168: 14 | T168: 87.99 | U168: 0 | V168: 0 | W168: 0 | X168: 0 | AA168: 0 | AD168: 0 | AE168: 672.057 | AF168: 83.28 | AG168: 93.29 | AH168: 112.3 | AJ168: 190 | AK168: 50.87 | AL168: 90.73 | AM168: 116.49 | AN168: 166.2 | AO168: 177.83 | AP168: 190.28 | AQ168: 600 | AR168: 10 | AT168: 1881.27 | AU168: 10 | AW168: 1612.5 | AZ168: 9774.783 | BA168: 0 | BB168: 9774.783 | BC168: 0 | BD168: 0 | BE168: 946 | BF168: 54.16 | BL168: 0.5 | BM168: 3 | BN168: 0 | BO168: 0 | BP168: 0 | BR168: 0 | BS168: 0 | BT168: 0 | BV168: 0 | BW168: 0 | BX168: 4.65 | BY168: 5 | CE168: 0 | CI168: 1612.5 | CJ168: 0 | CL168: 2571.65 | CM168: 7203.133
C169: 217002 | D169: 21037 | E169: عبد الخالق محمد ثروت | H169: المباشر | I169: فنى اول ميكانيكى | J169: اولى | K169: 203121037عبد الخالق محمد ثروت المباشرفنى اول ميكانيكىاولى | L169: 2985.04 | M169: 3582.048 | P169: 447.756 | Q169: 188.32 | R169: 0 | S169: 19 | T169: 60 | U169: 0 | V169: 0 | W169: 0 | X169: 0 | AA169: 0 | AD169: 0 | AE169: 715.076 | AF169: 98.38 | AG169: 110.24 | AH169: 120 | AJ169: 190 | AK169: 59.67 | AL169: 106.41 | AM169: 136.64 | AN169: 194.93 | AO169: 208.58 | AP169: 223.18 | AQ169: 600 | AR169: 10 | AT169: 2058.03 | AU169: 10 | AW169: 1875 | AZ169: 11225.194 | BA169: 0 | BB169: 11225.194 | BC169: 0 | BD169: 0 | BE169: 1100 | BF169: 131.25 | BL169: 0.5 | BM169: 3 | BN169: 0 | BO169: 0 | BP169: 0 | BR169: 0 | BS169: 0 | BT169: 0 | BV169: 0 | BW169: 0 | BX169: 5.32 | BY169: 5 | CE169: 0 | CI169: 1875 | CJ169: 0 | CL169: 2988.82 | CM169: 8236.374
C170: 217012 | D170: 21708 | E170: عبد الباسط محمد حسن | H170: المباشر | I170: غنى اول | J170: الاولى | K170: 203221708عبد الباسط محمد حسنالمباشرغنى اولالاولى | L170: 2425.12 | M170: 2910.144 | P170: 363.768 | Q170: 188.32 | R170: 0 | S170: 28.5 | T170: 44.66 | U170: 0 | V170: 0 | W170: 0 | X170: 0 | AA170: 0 | AD170: 0 | AE170: 625.248 | AF170: 79.77 | AG170: 89.06 | AH170: 106.92 | AJ170: 190 | AK170: 48.48 | AL170: 86.45 | AM170: 111.01 | AN170: 158.37 | AO170: 169.46 | AP170: 181.32 | AQ170: 600 | AR170: 6 | AT170: 1826.84 | AU170: 10 | AW170: 1556.25 | AZ170: 9353.602 | BA170: 0 | BB170: 9353.602 | BC170: 0 | BD170: 0 | BE170: 913 | BF170: 30.59 | BL170: 0.5 | BM170: 3 | BN170: 0 | BO170: 0 | BP170: 0 | BR170: 0 | BS170: 0 | BT170: 0 | BV170: 0 | BW170: 0 | BX170: 4.46 | BY170: 5 | CE170: 0 | CI170: 1556.25 | CJ170: 0 | CL170: 2482.21 | CM170: 6871.392
C171: 217005 | D171: 2753 | E171: عبد الستار مبارك عبد الرحيم | H171: المباشر | I171: فنى ثان | J171: ثانية | K171: 20342753عبد الستار مبارك عبد الرحيم المباشرفنى ثان ثانية | L171: 2675.73 | M171: 3210.876 | P171: 401.3595 | Q171: 188.32 | R171: 0 | S171: 14 | T171: 87.99 | U171: 0 | V171: 0 | W171: 0 | X171: 0 | AA171: 0 | AD171: 0 | AE171: 691.6695 | AF171: 87.72 | AG171: 97.98 | AH171: 118.04 | AJ171: 190 | AK171: 53.49 | AL171: 95.39 | AM171: 122.48 | AN171: 174.74 | AO171: 186.97 | AP171: 200.05 | AQ171: 600 | AR171: 8 | AT171: 1934.86 | AU171: 10 | AW171: 1687.5 | AZ171: 10210.6355 | BA171: 0 | BB171: 10210.6355 | BC171: 0 | BD171: 0 | BE171: 990 | BF171: 73.25 | BL171: 0.5 | BM171: 3 | BN171: 0 | BO171: 0 | BP171: 0 | BR171: 0 | BS171: 0 | BT171: 0 | BV171: 0 | BW171: 0 | BX171: 4.86 | BY171: 5 | CE171: 0 | CI171: 1687.5 | CJ171: 0 | CL171: 2690.86 | CM171: 7519.7755
C172: 217006 | D172: 21024 | E172: محمد حسين محمد محمد | H172: المباشر | I172: حرفى ثالث | J172: ثالثة | K172: 203521024محمد حسين محمد محمد المباشرحرفى ثالثثالثة | L172: 2251.76 | M172: 2702.112 | P172: 337.764 | Q172: 188.32 | R172: 0 | S172: 14.4 | T172: 117.99 | U172: 0 | V172: 0 | W172: 0 | X172: 0 | AA172: 0 | AD172: 0 | AE172: 658.474 | AF172: 79.02 | AG172: 88.22 | AH172: 105.89 | AJ172: 190 | AK172: 45.01 | AL172: 80.27 | AM172: 103.07 | AN172: 147.05 | AO172: 157.34 | AP172: 168.36 | AQ172: 600 | AR172: 10 | AT172: 1774.23 | AU172: 10 | AW172: 1443.75 | AZ172: 8840.326 | BA172: 0 | BB172: 8840.326 | BC172: 0 | BD172: 0 | BE172: 847 | BF172: 0 | BL172: 0.5 | BM172: 3 | BN172: 0 | BO172: 0 | BP172: 0 | BR172: 0 | BS172: 0 | BT172: 0 | BV172: 0 | BW172: 0 | BX172: 4.21 | BY172: 3 | CE172: 0 | CI172: 1443.75 | CJ172: 0 | CL172: 2301.46 | CM172: 6538.866
C173: 217008 | D173: 21695 | E173: ايمن احمد عاشور | H173: المباشر | I173: حرفى رابع | J173: رابعة | K173: 203621695ايمن احمد عاشور المباشرحرفى رابعرابعة | L173: 1998.09 | M173: 2397.708 | P173: 299.7135 | Q173: 188.32 | R173: 0 | S173: 10.8 | T173: 73.98 | U173: 0 | V173: 0 | W173: 0 | X173: 0 | AA173: 0 | AD173: 0 | AE173: 572.8135 | AF173: 70.76 | AG173: 78.98 | AH173: 94.28 | AJ173: 200 | AK173: 39.94 | AL173: 71.23 | AM173: 91.46 | AN173: 130.48 | AO173: 139.61 | AP173: 149.39 | AQ173: 600 | AR173: 10 | AT173: 1676.13 | AU173: 10 | AW173: 1312.5 | AZ173: 7967.2415 | BA173: 0 | BB173: 7967.2415 | BC173: 0 | BD173: 0 | BE173: 770 | BF173: 0 | BG173: 33.3 | BH173: 20.92 | BL173: 0.5 | BM173: 3 | BN173: 0 | BO173: 0 | BP173: 0 | BR173: 0 | BS173: 0 | BT173: 0 | BV173: 0 | BW173: 0 | BX173: 82.23 | BY173: 3 | CE173: 0 | CI173: 1312.5 | CJ173: 0 | CL173: 2225.45 | CM173: 5741.7915
C174: 217013 | D174: 22147 | E174: حسن عطية عبد العال | H174: المباشر | I174: عامل تشحيم | J174: خامسه | K174: 203722147حسن عطية عبد العالالمباشرعامل تشحيم خامسه | L174: 1099.49 | M174: 1319.388 | P174: 164.9235 | Q174: 188.32 | R174: 0 | S174: 7.2 | T174: 43.98 | U174: 0 | V174: 0 | W174: 0 | X174: 0 | AA174: 0 | AD174: 0 | AE174: 404.4235 | AF174: 36.34 | AG174: 43.64 | AH174: 65 | AJ174: 200 | AK174: 23.72 | AL174: 39.2 | AM174: 50.33 | AN174: 71.8 | AO174: 76.83 | AP174: 82.2 | AQ174: 600 | AR174: 10 | AT174: 1299.06 | AU174: 10 | AW174: 918.75 | AZ174: 5051.1115 | BA174: 948.8885 | BB174: 6000 | BC174: 0 | BD174: 0 | BE174: 539 | BF174: 0 | BL174: 0.5 | BM174: 3 | BN174: 0 | BO174: 0 | BP174: 0 | BR174: 0 | BS174: 0 | BT174: 0 | BV174: 0 | BW174: 0 | BX174: 2.78 | BY174: 3 | CE174: 0 | CI174: 918.75 | CJ174: 0 | CL174: 1467.03 | CM174: 4532.97
C175: 217009 | D175: 2887 | E175: سعد احمد ابو الحسن | H175: المباشر | I175: كهربائى | J175: ثانية | K175: 20382887سعد احمد ابو الحسن المباشركهربائىثانية | L175: 2390.75 | M175: 2868.9 | P175: 358.6125 | Q175: 188.32 | R175: 0 | S175: 14.4 | T175: 87.99 | U175: 0 | V175: 0 | W175: 0 | X175: 0 | AA175: 0 | AD175: 0 | AE175: 649.3225 | AF175: 84.55 | AG175: 94.93 | AH175: 112.84 | AJ175: 190 | AK175: 47.79 | AL175: 85.23 | AM175: 109.43 | AN175: 156.13 | AO175: 167.05 | AP175: 178.75 | AQ175: 600 | AR175: 10 | AT175: 1836.7 | AU175: 10 | AW175: 1537.5 | AZ175: 9293.1725 | BA175: 0 | BB175: 9293.1725 | BC175: 0 | BD175: 0 | BE175: 902 | BF175: 12.09 | BL175: 0.5 | BM175: 3 | BN175: 0 | BO175: 0 | BP175: 0 | BR175: 0 | BS175: 0 | BT175: 0 | BV175: 0 | BW175: 0 | BX175: 4.42 | BY175: 3 | CE175: 0 | CI175: 1537.5 | CJ175: 0 | CL175: 2450.42 | CM175: 6842.7525
C176: 217010 | D176: 2906 | E176: عادل محمد رمضان | H176: المباشر | I176: كهربائى | J176: ثالثة | K176: 20392906عادل محمد رمضان المباشركهربائىثالثة | L176: 2297.69 | M176: 2757.228 | P176: 344.6535 | Q176: 188.32 | R176: 0 | S176: 9.6 | T176: 87.99 | U176: 0 | V176: 0 | W176: 0 | X176: 0 | AA176: 0 | AD176: 0 | AE176: 630.5635 | AF176: 81.29 | AG176: 90.77 | AH176: 108.44 | AJ176: 190 | AK176: 45.93 | AL176: 81.91 | AM176: 105.17 | AN176: 150.05 | AO176: 160.55 | AP176: 171.79 | AQ176: 600 | AR176: 10 | AT176: 1795.9 | AU176: 10 | AW176: 1481.25 | AZ176: 8972.6315 | BA176: 0 | BB176: 8972.6315 | BC176: 0 | BD176: 0 | BE176: 869 | BF176: 0 | BL176: 0.5 | BM176: 3 | BN176: 0 | BO176: 0 | BP176: 0 | BR176: 0 | BS176: 0 | BT176: 0 | BV176: 0 | BW176: 0 | BX176: 4.11 | BY176: 3 | CE176: 0 | CI176: 1481.25 | CJ176: 0 | CL176: 2360.86 | CM176: 6611.7715
C177: 217011 | D177: 21673 | E177: رشدى محمد احمد على | H177: المباشر | I177: ميكانيكي | J177: ثالثة | K177: 204021673رشدى محمد احمد علىالمباشرميكانيكيثالثة | L177: 2116.58 | M177: 2539.896 | P177: 317.487 | Q177: 188.32 | R177: 0 | S177: 14.4 | T177: 117.99 | U177: 0 | V177: 0 | W177: 0 | X177: 0 | AA177: 0 | AD177: 0 | AE177: 638.197 | AF177: 70.07 | AG177: 78.22 | AH177: 100.23 | AJ177: 190 | AK177: 42.31 | AL177: 75.45 | AM177: 96.88 | AN177: 138.22 | AO177: 147.9 | AP177: 158.25 | AQ177: 600 | AR177: 10 | AT177: 1707.53 | AU177: 10 | AW177: 1368.75 | AZ177: 8380.953 | BA177: 0 | BB177: 8380.953 | BC177: 0 | BD177: 0 | BE177: 803 | BF177: 0 | BG177: 70.55 | BH177: 41.84 | BL177: 0.5 | BM177: 3 | BN177: 0 | BO177: 0 | BP177: 0 | BR177: 0 | BS177: 0 | BT177: 0 | BV177: 0 | BW177: 0 | BX177: 3.6 | BY177: 3 | CE177: 0 | CI177: 1368.75 | CJ177: 0 | CL177: 2294.24 | CM177: 6086.713
C178: 202041 | D178: 21890 | E178: وليد احمد عبده ابراهيم | H178: المباشر | I178: كهربائى | J178: ثالثة | K178: 204121890وليد احمد عبده ابراهيمالمباشركهربائىثالثة | L178: 2267.84 | M178: 2721.408 | P178: 340.176 | Q178: 188.32 | R178: 0 | U178: 0 | V178: 0 | W178: 0 | X178: 0 | AA178: 0 | AD178: 0 | AE178: 528.496 | AF178: 74.27 | AG178: 83.17 | AH178: 100.05 | AJ178: 190 | AK178: 45.33 | AL178: 80.84 | AM178: 103.81 | AN178: 148.1 | AO178: 158.47 | AP178: 169.56 | AQ178: 600 | AR178: 10 | AT178: 1763.6 | AU178: 10 | AW178: 1462.5 | AZ178: 8753.844 | BA178: 0 | BB178: 8753.844 | BC178: 0 | BD178: 0 | BE178: 858 | BF178: 0 | BK178: 4.12 | BL178: 0.5 | BM178: 3 | BN178: 0 | BO178: 0 | BP178: 0 | BR178: 0 | BS178: 0 | BT178: 0 | BV178: 0 | BW178: 0 | BX178: 4.16 | BY178: 5 | CE178: 0 | CI178: 1462.5 | CJ178: 0 | CL178: 2337.28 | CM178: 6416.564
C179: 202126 | D179: 21838 | E179: مصطفى عبد الرحمن ابراهيم | H179: المباشر | I179: ميكانيكى | J179: رابعه | K179: 204221838مصطفى عبد الرحمن ابراهيم المباشرميكانيكى رابعه | L179: 1979.8 | M179: 2375.76 | P179: 296.97 | Q179: 188.32 | R179: 0 | U179: 0 | V179: 0 | W179: 0 | X179: 0 | AA179: 0 | AD179: 0 | AE179: 485.29 | AF179: 70.23 | AG179: 78.36 | AH179: 93.46 | AJ179: 200 | AK179: 39.58 | AL179: 70.57 | AM179: 90.62 | AN179: 129.29 | AO179: 138.34 | AP179: 148.02 | AQ179: 600 | AR179: 6 | AT179: 1664.47 | AU179: 10 | AW179: 1293.75 | AZ179: 7809.07 | BA179: 0 | BB179: 7809.07 | BC179: 0 | BD179: 0 | BE179: 759 | BF179: 0 | BG179: 32.99 | BH179: 20.92 | BL179: 0.5 | BM179: 3 | BN179: 0 | BO179: 0 | BP179: 475.15 | BR179: 0 | BS179: 0 | BT179: 0 | BV179: 0 | BW179: 0 | BX179: 3.7 | BY179: 3 | CE179: 0 | CI179: 1293.75 | CJ179: 0 | CL179: 2592.01 | CM179: 5217.06
C180: 202049 | D180: 21542 | E180: رجب فتحى اسماعيل | H180: المباشر | I180: ميكانيكى | J180: ثالثة | K180: 204321542رجب فتحى اسماعيل المباشرميكانيكى ثالثة | L180: 2148.85 | M180: 2578.62 | P180: 322.3275 | Q180: 188.32 | R180: 0 | U180: 0 | V180: 0 | W180: 0 | X180: 0 | AA180: 0 | AD180: 0 | AE180: 510.6475 | AF180: 76.06 | AG180: 84.91 | AH180: 101.41 | AJ180: 190 | AK180: 42.96 | AL180: 76.6 | AM180: 98.36 | AN180: 140.33 | AO180: 150.15 | AP180: 160.66 | AQ180: 600 | AR180: 10 | AT180: 1731.44 | AU180: 10 | AW180: 1387.5 | AZ180: 8367.0575 | BA180: 0 | BB180: 8367.0575 | BC180: 0 | BD180: 0 | BE180: 814 | BF180: 34.16 | BL180: 0.5 | BM180: 3 | BN180: 0 | BO180: 0 | BP180: 0 | BR180: 0 | BS180: 0 | BT180: 0 | BV180: 0 | BW180: 0 | BX180: 4.28 | BY180: 3 | CE180: 0 | CI180: 1387.5 | CJ180: 0 | CL180: 2212.28 | CM180: 6154.7775
C181: 202048 | D181: 21306 | E181: عماد عبد الرازق سيد على | H181: المباشر | I181: ميكانيكى | J181: رابعه | K181: 204421306عماد عبد الرازق سيد على المباشرميكانيكى رابعه | L181: 2041.57 | M181: 2449.884 | P181: 306.2355 | Q181: 188.32 | R181: 0 | U181: 0 | V181: 0 | W181: 0 | X181: 0 | AA181: 0 | AD181: 0 | AE181: 494.5555 | AF181: 72.29 | AG181: 80.69 | AH181: 96.33 | AJ181: 200 | AK181: 40.81 | AL181: 72.78 | AM181: 93.45 | AN181: 133.32 | AO181: 142.66 | AP181: 152.64 | AQ181: 600 | AR181: 10 | AT181: 1694.97 | AU181: 10 | AW181: 1331.25 | AZ181: 8022.2295 | BA181: 0 | BB181: 8022.2295 | BC181: 0 | BD181: 0 | BE181: 781 | BF181: 0 | BG181: 34.03 | BH181: 20.92 | BL181: 0.5 | BM181: 3 | BN181: 0 | BO181: 0 | BP181: 734.96 | BR181: 0 | BS181: 0 | BT181: 0 | BV181: 0 | BW181: 0 | BX181: 3.82 | BY181: 3 | CE181: 0 | CI181: 1331.25 | CJ181: 0 | CL181: 2912.48 | CM181: 5109.7495
C182: 202046 | D182: 21833 | E182: دياب على محمد ابراهيم | H182: المباشر | I182: ميكانيكى | J182: رابعه | K182: 204521833دياب على محمد ابراهيم المباشرميكانيكى رابعه | L182: 1979.69 | M182: 2375.628 | P182: 296.9535 | Q182: 188.32 | R182: 0 | U182: 0 | V182: 0 | W182: 0 | X182: 0 | AA182: 0 | AD182: 0 | AE182: 485.2735 | AF182: 70.23 | AG182: 78.36 | AH182: 93.44 | AJ182: 200 | AK182: 39.57 | AL182: 70.57 | AM182: 90.62 | AN182: 129.28 | AO182: 138.33 | AP182: 148.01 | AQ182: 600 | AR182: 10 | AT182: 1668.41 | AU182: 10 | AW182: 1293.75 | AZ182: 7812.7515 | BA182: 0 | BB182: 7812.7515 | BC182: 0 | BD182: 0 | BE182: 759 | BF182: 0 | BL182: 0.5 | BM182: 3 | BN182: 0 | BO182: 0 | BP182: 0 | BR182: 0 | BS182: 0 | BT182: 0 | BV182: 0 | BW182: 0 | BX182: 3.72 | BY182: 3 | CE182: 0 | CI182: 1293.75 | CJ182: 0 | CL182: 2062.97 | CM182: 5749.7815
C183: 202053 | D183: 21798 | E183: صفوت كمال عبد العظيم | H183: المباشر | I183: فنى اول | J183: رابعه | K183: 204621798صفوت كمال عبد العظيم المباشرفنى اول رابعه | L183: 1890.74 | M183: 2268.888 | P183: 283.611 | Q183: 188.32 | R183: 0 | U183: 0 | V183: 0 | W183: 0 | X183: 0 | AA183: 0 | AD183: 0 | AE183: 471.931 | AF183: 62.31 | AG183: 69.52 | AH183: 83.32 | AJ183: 200 | AK183: 37.8 | AL183: 67.4 | AM183: 86.55 | AN183: 123.47 | AO183: 132.12 | AP183: 141.36 | AQ183: 600 | AR183: 10 | AT183: 1613.85 | AU183: 10 | AW183: 1237.5 | AZ183: 7492.909 | BA183: 0 | BB183: 7492.909 | BC183: 0 | BD183: 0 | BE183: 726 | BF183: 0 | BK183: 58.64 | BL183: 0.5 | BM183: 3 | BO183: 0 | BP183: 0 | BR183: 0 | BS183: 0 | BT183: 0 | BV183: 0 | BW183: 0 | BX183: 3.58 | BY183: 3 | CE183: 0 | CI183: 1237.5 | CJ183: 0 | CL183: 2032.22 | CM183: 5460.689
C184: 202050 | D184: 22036 | E184: محمد فؤاد فؤاد السيد | H184: المباشر | I184: سمكري | J184: رابعه | K184: 204722036محمد فؤاد فؤاد السيد المباشرسمكري رابعه | L184: 1824.3 | M184: 2189.16 | P184: 273.645 | Q184: 188.32 | R184: 0 | U184: 0 | V184: 0 | W184: 0 | X184: 0 | AA184: 0 | AD184: 0 | AE184: 461.965 | AF184: 64.76 | AG184: 72.24 | AH184: 86.09 | AJ184: 200 | AK184: 36.47 | AL184: 65.03 | AM184: 83.5 | AN184: 119.13 | AO184: 127.47 | AP184: 136.4 | AQ184: 600 | AR184: 8 | AT184: 1599.09 | AU184: 10 | AW184: 1200 | AZ184: 7284.515 | BA184: 0 | BB184: 7284.515 | BC184: 0 | BD184: 0 | BE184: 704 | BF184: 0 | BL184: 0.5 | BM184: 3 | BN184: 0 | BO184: 0 | BP184: 0 | BR184: 0 | BS184: 0 | BT184: 0 | BV184: 0 | BW184: 0 | BX184: 3.35 | BY184: 3 | CE184: 0 | CI184: 1200 | CJ184: 0 | CL184: 1913.85 | CM184: 5370.665
C185: 202045 | D185: 21983 | E185: محمد عبد المقصود محمد | H185: المباشر | I185: خراط | J185: رابعه | K185: 204821983محمد عبد المقصود محمد المباشرخراط رابعه | L185: 1893.84 | M185: 2272.608 | P185: 284.076 | Q185: 188.32 | R185: 0 | U185: 0 | V185: 0 | W185: 0 | X185: 0 | AA185: 0 | AD185: 0 | AE185: 472.396 | AF185: 67.21 | AG185: 74.98 | AH185: 89.38 | AJ185: 200 | AK185: 37.86 | AL185: 67.51 | AM185: 86.69 | AN185: 123.67 | AO185: 132.33 | AP185: 141.6 | AQ185: 600 | AR185: 8 | AT185: 1629.23 | AU185: 10 | AV185: 30 | AW185: 1256.25 | AZ185: 7564.324 | BA185: 0 | BB185: 7564.324 | BC185: 0 | BD185: 0 | BE185: 737 | BF185: 0 | BL185: 0.5 | BM185: 3 | BN185: 0 | BO185: 0 | BP185: 0 | BR185: 0 | BS185: 0 | BT185: 0 | BV185: 0 | BW185: 0 | BX185: 3.59 | BY185: 3 | CE185: 0 | CI185: 1256.25 | CJ185: 0 | CL185: 2003.34 | CM185: 5560.984
C186: 202040 | D186: 22152 | E186: رمضان امين محمد عبد الله | H186: المباشر | I186: نقاش | J186: خامسة | K186: 204922152رمضان امين محمد عبد الله المباشرنقاشخامسة | L186: 1090.62 | M186: 1308.744 | P186: 163.593 | Q186: 188.32 | R186: 0 | U186: 0 | V186: 0 | W186: 0 | X186: 0 | AA186: 0 | AD186: 0 | AE186: 351.913 | AF186: 36.27 | AG186: 40.47 | AH186: 65 | AJ186: 200 | AK186: 24.13 | AL186: 38.88 | AM186: 49.92 | AN186: 71.22 | AO186: 76.21 | AP186: 81.54 | AQ186: 600 | AR186: 10 | AT186: 1293.64 | AU186: 10 | AW186: 937.5 | AZ186: 4992.417 | BA186: 1007.583 | BB186: 6000 | BC186: 0 | BD186: 0 | BE186: 550 | BF186: 0 | BL186: 0.5 | BM186: 3 | BN186: 0 | BO186: 0 | BP186: 0 | BR186: 0 | BS186: 0 | BT186: 0 | BV186: 0 | BW186: 0 | BX186: 2.33 | BY186: 3 | CE186: 0 | CI186: 937.5 | CJ186: 0 | CL186: 1496.33 | CM186: 4503.67
C187: 119003 | D187: 21439 | E187: عبد الباسط فوزى مبارك | H187: المباشر | I187: اخصائى شئون فنية اول | J187: الاولى | K187: 205021439عبد الباسط فوزى مبارك المباشراخصائى شئون فنية اول الاولى | L187: 2652.96 | M187: 3183.552 | P187: 397.944 | Q187: 188.32 | R187: 0 | U187: 0 | V187: 0 | W187: 0 | X187: 0 | AA187: 0 | AD187: 0 | AE187: 586.264 | AF187: 87.21 | AG187: 98.38 | AH187: 116.98 | AJ187: 190 | AK187: 53.03 | AL187: 94.58 | AM187: 121.44 | AN187: 173.25 | AO187: 185.38 | AP187: 198.35 | AQ187: 600 | AR187: 10 | AT187: 1928.6 | AU187: 10 | AW187: 1687.5 | AZ187: 10048.876 | BA187: 0 | BB187: 10048.876 | BC187: 0 | BD187: 0 | BE187: 990 | BF187: 78.91 | BL187: 0.5 | BM187: 3 | BN187: 0 | BO187: 0 | BP187: 0 | BR187: 0 | BS187: 0 | BT187: 0 | BV187: 0 | BW187: 0 | BX187: 4.87 | BY187: 5 | CE187: 0 | CI187: 1687.5 | CJ187: 0 | CL187: 2690.87 | CM187: 7358.006
C188: 219000 | D188: 21438 | E188: محمد عبد اللاه حسين | H188: المباشر | I188: فنى ثالث | J188: رابعه | K188: 205121438محمد عبد اللاه حسين المباشرفنى ثالث رابعه | L188: 1782.88 | M188: 2139.456 | P188: 267.432 | Q188: 188.32 | R188: 0 | U188: 0 | V188: 0 | W188: 0 | X188: 0 | AA188: 0 | AD188: 0 | AE188: 455.752 | AF188: 61.02 | AG188: 69.28 | AH188: 78.48 | AJ188: 200 | AK188: 35.64 | AL188: 63.55 | AM188: 81.61 | AN188: 116.43 | AO188: 124.57 | AP188: 133.3 | AQ188: 600 | AR188: 8 | AT188: 1571.88 | AU188: 10 | AW188: 1181.25 | AZ188: 7141.218 | BA188: 0 | BB188: 7141.218 | BC188: 0 | BD188: 0 | BE188: 693 | BF188: 0 | BL188: 0.5 | BM188: 3 | BN188: 0 | BO188: 0 | BP188: 0 | BR188: 0 | BS188: 0 | BT188: 0 | BV188: 0 | BW188: 0 | BX188: 3.44 | BY188: 3 | CE188: 0 | CI188: 1181.25 | CJ188: 0 | CL188: 1884.19 | CM188: 5257.028
C189: 219001 | D189: 21433 | E189: ابراهيم ابو الحجاج ابراهيم | H189: المباشر | I189: فنى اول | J189: الاولى | K189: 205221433ابراهيم ابو الحجاج ابراهيم المباشرفنى اول الاولى | L189: 2654.69 | M189: 3185.628 | P189: 398.2035 | Q189: 188.32 | R189: 0 | U189: 0 | V189: 0 | W189: 0 | X189: 0 | AA189: 0 | AD189: 0 | AE189: 586.5235 | AF189: 87.27 | AG189: 97.45 | AH189: 117.06 | AJ189: 190 | AK189: 53.07 | AL189: 94.64 | AM189: 121.52 | AN189: 173.36 | AO189: 185.49 | AP189: 198.48 | AQ189: 600 | AR189: 10 | AT189: 1928.34 | AU189: 10 | AW189: 1687.5 | AZ189: 10052.6815 | BA189: 0 | BB189: 10052.6815 | BC189: 0 | BD189: 0 | BE189: 990 | BF189: 86.25 | BL189: 0.5 | BM189: 3 | BN189: 0 | BO189: 0 | BP189: 0 | BR189: 0 | BS189: 0 | BT189: 0 | BV189: 0 | BW189: 0 | BX189: 4.87 | BY189: 5 | CE189: 0 | CI189: 1687.5 | CJ189: 0 | CL189: 2690.87 | CM189: 7361.8115
C190: 219002 | D190: 22012 | E190: احمد حسين مغربى محمد | H190: المباشر | I190: فنى ثان | J190: ثانبة | K190: 205322012احمد حسين مغربى محمد المباشرفنى ثان ثانبة | L190: 2222.91 | M190: 2667.492 | P190: 333.4365 | Q190: 188.32 | R190: 0 | U190: 0 | V190: 0 | W190: 0 | X190: 0 | AA190: 0 | AD190: 0 | AE190: 521.7565 | AF190: 72.97 | AG190: 81.46 | AH190: 98.03 | AJ190: 190 | AK190: 44.44 | AL190: 79.25 | AM190: 101.75 | AN190: 145.16 | AO190: 155.32 | AP190: 166.2 | AQ190: 600 | AR190: 10 | AT190: 1744.58 | AU190: 10 | AW190: 1425 | AZ190: 8591.7385 | BA190: 0 | BB190: 8591.7385 | BC190: 0 | BD190: 0 | BE190: 836 | BF190: 0 | BL190: 0.5 | BM190: 3 | BN190: 0 | BO190: 0 | BP190: 0 | BR190: 0 | BS190: 0 | BT190: 0 | BV190: 0 | BW190: 0 | BX190: 4.16 | BY190: 5 | CE190: 0 | CI190: 1425 | CJ190: 0 | CL190: 2273.66 | CM190: 6318.0785
C191: 219003 | D191: 21857 | E191: عطيتو على عطيتو | H191: المباشر | I191: ميكانيكى | J191: رابعة | K191: 205421857عطيتو على عطيتو المباشرميكانيكى رابعة | L191: 1968.03 | M191: 2361.636 | P191: 295.2045 | Q191: 188.32 | R191: 0 | U191: 0 | V191: 0 | W191: 0 | X191: 0 | AA191: 0 | AD191: 0 | AE191: 483.5245 | AF191: 69.89 | AG191: 77.94 | AH191: 92.89 | AJ191: 200 | AK191: 39.34 | AL191: 70.16 | AM191: 90.08 | AN191: 128.52 | AO191: 137.52 | AP191: 147.14 | AQ191: 600 | AR191: 10 | AT191: 1663.48 | AU191: 10 | AW191: 1293.75 | AZ191: 7780.4205 | BA191: 0 | BB191: 7780.4205 | BC191: 0 | BD191: 0 | BE191: 759 | BF191: 0 | BL191: 0.5 | BM191: 3 | BN191: 0 | BO191: 0 | BP191: 0 | BR191: 0 | BS191: 0 | BT191: 0 | BV191: 0 | BW191: 0 | BX191: 3.75 | BY191: 3 | CE191: 0 | CI191: 1293.75 | CJ191: 0 | CL191: 2063 | CM191: 5717.4205
C192: 219004 | D192: 21858 | E192: عاشور محمود محمد عيد | H192: المباشر | I192: ميكانيكى | J192: ثالثة | K192: 205521858عاشور محمود محمد عيد المباشرميكانيكى ثالثة | L192: 2147.02 | M192: 2576.424 | P192: 322.053 | Q192: 188.32 | R192: 0 | U192: 0 | V192: 0 | W192: 0 | X192: 0 | AA192: 0 | AD192: 0 | AE192: 510.373 | AF192: 77.1 | AG192: 85.63 | AH192: 101.59 | AJ192: 190 | AK192: 42.92 | AL192: 76.54 | AM192: 98.28 | AN192: 140.21 | AO192: 150.02 | AP192: 160.52 | AQ192: 600 | AR192: 10 | AT192: 1732.81 | AU192: 10 | AW192: 1387.5 | AZ192: 8364.127 | BA192: 0 | BB192: 8364.127 | BC192: 0 | BD192: 0 | BE192: 814 | BF192: 0 | BL192: 0.5 | BM192: 3 | BN192: 0 | BO192: 0 | BP192: 0 | BR192: 0 | BS192: 0 | BT192: 0 | BV192: 0 | BW192: 0 | BX192: 4.05 | BY192: 3 | CE192: 0 | CI192: 1387.5 | CJ192: 0 | CL192: 2212.05 | CM192: 6152.077
C193: 219005 | D193: 1100 | E193: سعد محمد منصور | H193: المباشر | I193: ميكانيكى | J193: خامسة | K193: 20561100سعد محمد منصور المباشرميكانيكى خامسة | L193: 2102.19 | M193: 2522.628 | P193: 315.3285 | Q193: 188.32 | R193: 0 | U193: 0 | V193: 0 | W193: 0 | X193: 0 | AA193: 0 | AD193: 0 | AE193: 503.6485 | AF193: 68.38 | AG193: 73.16 | AH193: 81.85 | AJ193: 200 | AK193: 42.02 | AL193: 75 | AM193: 96.23 | AN193: 137.28 | AO193: 146.89 | AP193: 157.17 | AQ193: 600 | AR193: 10 | AT193: 1687.98 | AU193: 10 | AW193: 1368.75 | AZ193: 8195.1965 | BA193: 0 | BB193: 8195.1965 | BC193: 0 | BD193: 0 | BE193: 803 | BF193: 0 | BL193: 0.5 | BM193: 3 | BN193: 0 | BO193: 0 | BP193: 0 | BR193: 0 | BS193: 0 | BT193: 0 | BV193: 0 | BW193: 0 | BX193: 3.95 | BY193: 3 | CE193: 0 | CI193: 1368.75 | CJ193: 0 | CL193: 2182.2 | CM193: 6012.9965
C194: 219014 | D194: 21719 | E194: محمود دسوقى دكرونى | H194: المباشر | I194: ميكانيكي | J194: ثالثة | K194: 205821719محمود دسوقى دكرونىالمباشرميكانيكيثالثة | L194: 2133.45 | M194: 2560.14 | P194: 320.0175 | Q194: 188.32 | R194: 0 | U194: 0 | V194: 0 | W194: 0 | X194: 0 | AA194: 0 | AD194: 0 | AE194: 508.3375 | AF194: 70.25 | AG194: 78.41 | AH194: 94.05 | AJ194: 190 | AK194: 42.65 | AL194: 76.06 | AM194: 97.66 | AN194: 139.32 | AO194: 149.07 | AP194: 159.51 | AQ194: 600 | AR194: 10 | AT194: 1706.98 | AU194: 10 | AW194: 1387.5 | AZ194: 8306.4075 | BA194: 0 | BB194: 8306.4075 | BC194: 0 | BD194: 0 | BE194: 814 | BF194: 0 | BL194: 0.5 | BM194: 3 | BN194: 0 | BO194: 0 | BP194: 0 | BR194: 0 | BS194: 0 | BT194: 0 | BV194: 0 | BW194: 0 | BX194: 4.01 | BY194: 3 | CE194: 0 | CI194: 1387.5 | CJ194: 0 | CL194: 2212.01 | CM194: 6094.3975
C195: 0 | D195: 21231 | E195: صلاح محمود احمد حميد | H195: المباشر | I195: فنى اول ميكانيكى | J195: الاولى | K195: 205921231صلاح محمود احمد حميد المباشرفنى اول ميكانيكىالاولى | L195: 2985.08 | M195: 3582.096 | P195: 447.762 | Q195: 188.32 | R195: 0 | U195: 0 | V195: 0 | W195: 0 | X195: 0 | AA195: 0 | AD195: 0 | AE195: 636.082 | AF195: 98.38 | AG195: 110.24 | AH195: 120 | AJ195: 190 | AK195: 59.67 | AL195: 106.42 | AM195: 136.64 | AN195: 194.94 | AO195: 208.58 | AP195: 223.18 | AQ195: 600 | AR195: 10 | AT195: 2058.05 | AU195: 10 | AW195: 0 | AZ195: 9271.308 | BA195: 0 | BB195: 9271.308 | BC195: 0 | BD195: 0 | BE195: 0 | BF195: 152.62 | BL195: 0.5 | BM195: 3 | BN195: 0 | BO195: 0 | BP195: 0 | BR195: 0 | BS195: 0 | BT195: 0 | BV195: 0 | BW195: 0 | BX195: 5.39 | BY195: 5 | CE195: 0 | CI195: 0 | CJ195: 0 | CL195: 13.89 | CM195: 9257.418
C196: 219006 | D196: 22128 | E196: محمد السيد ابو العزم على | H196: المباشر | I196: حداد | J196: خامسة | K196: 206122128محمد السيد ابو العزم على المباشرحداد خامسة | L196: 1556.99 | M196: 1868.388 | P196: 233.5485 | Q196: 188.32 | R196: 0 | U196: 0 | V196: 0 | W196: 0 | X196: 0 | AA196: 0 | AD196: 0 | AE196: 421.8685 | AF196: 53.98 | AG196: 60.44 | AH196: 73.4 | AJ196: 200 | AK196: 31.12 | AL196: 55.51 | AM196: 71.27 | AN196: 101.68 | AO196: 108.79 | AP196: 116.41 | AQ196: 600 | AR196: 10 | AT196: 1482.6 | AU196: 10 | AW196: 1050 | AZ196: 6389.8465 | BA196: 0 | BB196: 6389.8465 | BC196: 0 | BD196: 0 | BE196: 616 | BF196: 0 | BL196: 0.5 | BM196: 3 | BN196: 150 | BO196: 0 | BP196: 0 | BR196: 0 | BS196: 0 | BT196: 0 | BV196: 0 | BW196: 0 | BX196: 3.09 | BY196: 3 | CE196: 0 | CI196: 1050 | CJ196: 0 | CL196: 1825.59 | CM196: 4564.2565
C197: 219007 | D197: 21718 | E197: سعيد محمود مكي | H197: المباشر | I197: فنى ثالث كهربائى | J197: ثالثة | K197: 206221718سعيد محمود مكي المباشرفنى ثالث كهربائىثالثة | L197: 2133.45 | M197: 2560.14 | P197: 320.0175 | Q197: 188.32 | R197: 0 | U197: 0 | V197: 0 | W197: 0 | X197: 0 | AA197: 0 | AD197: 0 | AE197: 508.3375 | AF197: 70.25 | AG197: 78.41 | AH197: 94.05 | AJ197: 190 | AK197: 42.65 | AL197: 76.06 | AM197: 97.66 | AN197: 139.32 | AO197: 149.07 | AP197: 159.51 | AQ197: 600 | AR197: 10 | AT197: 1706.98 | AU197: 10 | AW197: 1387.5 | AZ197: 8306.4075 | BA197: 0 | BB197: 8306.4075 | BC197: 0 | BD197: 0 | BE197: 814 | BF197: 0 | BL197: 0.5 | BM197: 3 | BN197: 0 | BO197: 0 | BP197: 0 | BR197: 0 | BS197: 0 | BT197: 0 | BV197: 0 | BW197: 0 | BX197: 1.91 | BY197: 3 | CE197: 0 | CI197: 1387.5 | CJ197: 0 | CL197: 2209.91 | CM197: 6096.4975
C198: 219008 | D198: 22104 | E198: ايمن محمد حسن على | H198: المباشر | I198: كهربائى | J198: رابعة | K198: 206322104ايمن محمد حسن على المباشركهربائىرابعة | L198: 1754.37 | M198: 2105.244 | P198: 263.1555 | Q198: 188.32 | R198: 0 | U198: 0 | V198: 0 | W198: 0 | X198: 0 | AA198: 0 | AD198: 0 | AE198: 451.4755 | AF198: 62.05 | AG198: 69.29 | AH198: 82.8 | AJ198: 200 | AK198: 35.07 | AL198: 62.54 | AM198: 80.2 | AN198: 114.75 | AO198: 122.58 | AP198: 131.17 | AQ198: 600 | AR198: 10 | AT198: 1570.45 | AU198: 10 | AW198: 1162.5 | AZ198: 7054.0395 | BA198: 0 | BB198: 7054.0395 | BC198: 0 | BD198: 0 | BE198: 682 | BF198: 0 | BL198: 0.5 | BM198: 3 | BN198: 150 | BO198: 0 | BP198: 0 | BR198: 0 | BS198: 0 | BT198: 0 | BV198: 0 | BW198: 0 | BX198: 3.41 | BY198: 3 | CE198: 0 | CI198: 1162.5 | CJ198: 0 | CL198: 2004.41 | CM198: 5049.6295
C199: 219009 | D199: 21790 | E199: عمرو شوقى عنتر | H199: المباشر | I199: خراط | J199: رابعة | K199: 206421790عمرو شوقى عنتر المباشرخراط رابعة | L199: 1998.08 | M199: 2397.696 | P199: 299.712 | Q199: 188.32 | R199: 0 | U199: 0 | V199: 0 | W199: 0 | X199: 0 | AA199: 0 | AD199: 0 | AE199: 488.032 | AF199: 70.76 | AG199: 78.99 | AH199: 94.28 | AJ199: 200 | AK199: 39.94 | AL199: 71.23 | AM199: 91.46 | AN199: 130.48 | AO199: 139.61 | AP199: 149.39 | AQ199: 600 | AR199: 10 | AT199: 1676.14 | AU199: 10 | AW199: 1312.5 | AZ199: 7882.448 | BA199: 0 | BB199: 7882.448 | BC199: 0 | BD199: 0 | BE199: 770 | BF199: 0 | BL199: 0.5 | BM199: 3 | BN199: 0 | BO199: 0 | BP199: 0 | BR199: 0 | BS199: 0 | BT199: 0 | BV199: 0 | BW199: 0 | BX199: 1.81 | BY199: 3 | CE199: 0 | CI199: 1312.5 | CJ199: 0 | CL199: 2090.81 | CM199: 5791.638
C200: 219010 | D200: 42154 | E200: احمد حلمى محمد | H200: المباشر | I200: فنى ثان | J200: ثالثة | K200: 206542154احمد حلمى محمد المباشرفنى ثان ثالثة | L200: 1124.1 | M200: 1348.92 | P200: 168.615 | Q200: 188.32 | R200: 0 | U200: 0 | V200: 0 | W200: 0 | X200: 0 | AA200: 0 | AD200: 0 | AE200: 356.935 | AF200: 37.64 | AG200: 41.96 | AH200: 65 | AJ200: 190 | AK200: 22.56 | AL200: 40.07 | AM200: 51.45 | AN200: 73.41 | AO200: 78.54 | AP200: 84.04 | AQ200: 600 | AR200: 10 | AT200: 1294.67 | AU200: 10 | AW200: 918.75 | AZ200: 5053.375 | BA200: 946.625 | BB200: 6000 | BC200: 0 | BD200: 0 | BE200: 539 | BF200: 0 | BL200: 0.5 | BM200: 3 | BN200: 0 | BO200: 0 | BP200: 0 | BR200: 0 | BS200: 0 | BT200: 0 | BV200: 0 | BW200: 0 | BX200: 2.44 | BY200: 3 | CE200: 0 | CI200: 918.75 | CJ200: 0 | CL200: 1466.69 | CM200: 4533.31
... 45 more rows

Sheet إداريين
AV1: =SUBTOTAL(9,مرتب.الاداريين[رد مستحقات]) -> 0 | BB1: =SUBTOTAL(9,مرتب.الاداريين[المستحق]) -> 1092947.849 | CM1: =SUBTOTAL(9,مرتب.الاداريين[صافي الأجر]) -> 803822.639
C2: كود الشركة | D2: كود البنك | E2: اسم الموظف | F2: الرقم القومي | G2: رقم الجوال | H2: الشركة المدمجة | I2: الوظيفة | J2: الدرجة | K2: مرجع بحث | L2: الأجر الأساسي | M2: الحافز | N2: عمولة انتاج | O2: معونة مرضي | P2: بدل مخاطر | Q2: بدل انتقال | R2: بدل انتقال محامين | S2: بدل اقامة | T2: بدل نقدي | U2: بدل خزينة | V2: بدل غذاء | W2: بدل مظهر | X2: بدل تمثيل | Y2: بدل ضيافة | Z2: بدل مواصلات | AA2: بدل شاشة | AB2: بدل وجبة | AC2: بدل تفرغ | AD2: بدل تباع | AE2: إجمالي بدلات | AF2: علاوة 2014 | AG2: علاوة 2015 | AH2: علاوة 2016 | AI2: علاوة 2017 | AJ2: علاوة 2018 | AK2: علاوة 2019 | AL2: علاوة 2020 | AM2: علاوة 2021 | AN2: علاوة 2022 | AO2: علاوة 2023 | AP2: علاوة 2024 | AQ2: علاوة غلاء معيشة 2023 | AR2: علاوة اجتماعية | AS2: علاوات استثنائة | AT2: إجمالي علاوات | AU2: منحة عيد العمال | AV2: رد مستحقات | AW2: حصة صاحب العمل | AX2: متوسط مكافأة | AY2: Column2 | AZ2: الإجمالي | BA2: مكمل الأجر | BB2: المستحق | BC2: ح. بدل انتقال | BD2: ح. بدل مخاطر | BE2: التأمينات | BF2: كسب عمل 2024 | BG2: غياب بدل مخاطر | BH2: غياب بدل انتقال | BI2: خصم غياب عام | BJ2: خصومات إدارية | BK2: اشتراك أجازات خاصة | BL2: اعانه وفاه | BM2: نقابة | BN2: خصم نفقات | BO2: أجر بالزيادة | BP2: خصم حافز | BQ2: سولار | BR2: عهد | BS2: تلفيات | BT2: عجز | BU2: نقليات | BV2: جزاءات | BW2: تنفيذ أحكام | BX2: الشهداء | BY2: صندوق إعاقة | BZ2: Column1 | CA2: نادي | CB2: زمالة | CC2: حج وعمرة | CD2: قسط تأمينات | CE2: صندوق تكافل | CF2: مدة سابقة | CG2: معونة اجتماعية | CH2: تأمين صحي بورسعيد | CI2: تامينات صاحب العمل | CJ2: متوسط منح | CK2: Column3 | CL2: إجمالي المستقطع | CM2: صافي الأجر
C3: 101000 | D3: 11231 | E3: ايمن صلاح الدين السباعي | H3: المباشر | I3: مدير عام الشئون المالية ( مكلف رئيس قطاع ادارى ) | J3: مدير عام | K3: =مرتب.الاداريين[[#This Row],[كود الشركة]]&مرتب.الاداريين[[#This Row],[كود البنك]]&مرتب.الاداريين[[#This Row],[اسم الموظف]]&مرتب.الاداريين[[#This Row],[الرقم القومي]]&مرتب.الاداريين[[#This Row],[رقم الجوال]]&مرتب.الاداريين[[#This Row],[الشركة المدمجة]]&مرتب.الاداريين[[#This Row],[الوظيفة]]&مرتب.الاداريين[[#This Row],[الدرجة]] -> 10100011231ايمن صلاح الدين السباعيالمباشرمدير عام الشئون المالية ( مكلف رئيس قطاع ادارى )مدير عام | L3: =(2975.1)*107% -> 3183.357 | M3: 3570.12 | P3: 446.265 | Q3: 188.32 | R3: 0 | U3: 0 | V3: 0 | W3: 0 | X3: 80 | AA3: 0 | AD3: 0 | AE3: =SUM(مرتب.الاداريين[[#This Row],[بدل مخاطر]:[بدل تباع]]) -> 714.585 | AF3: 91.92 | AG3: 102.64 | AH3: 120 | AJ3: 190 | AK3: 55.58 | AL3: 106.06 | AM3: 136.18 | AN3: 194.29 | AO3: 207.89 | AP3: 222.44 | AQ3: 600 | AR3: 10 | AT3: =SUM(مرتب.الاداريين[[#This Row],[علاوة 2014]:[علاوات استثنائة]]) -> 2037 | AU3: 10 | AW3: =(مرتب.الاداريين[[#This Row],[التأمينات]]/11%)*18.75% -> 1875 | AZ3: =SUM(مرتب.الاداريين[[#This Row],[الأجر الأساسي]:[معونة مرضي]],مرتب.الاداريين[[#This Row],[إجمالي بدلات]],مرتب.الاداريين[[#This Row],[إجمالي علاوات]],مرتب.الاداريين[[#This Row],[منحة عيد العمال]:[Column2]]) -> 11390.062 | BA3: =IF(مرتب.الاداريين[[#This Row],[الإجمالي]]<6000,6000-مرتب.الاداريين[[#This Row],[الإجمالي]],0) -> 0 | BB3: =مرتب.الاداريين[[#This Row],[الإجمالي]]+مرتب.الاداريين[[#This Row],[مكمل الأجر]] -> 11390.062 | BC3: 0 | BD3: 0 | BE3: 1100 | BF3: 151.25 | BK3: 6.18 | BL3: 0.5 | BM3: 3 | BN3: 0 | BO3: 0 | BP3: 0 | BR3: 0 | BS3: 0 | BT3: 0 | BV3: 0 | BW3: 0 | BX3: 5.3 | BY3: 10 | CD3: 0 | CE3: 0 | CI3: =مرتب.الاداريين[[#This Row],[حصة صاحب العمل]] -> 1875 | CJ3: =مرتب.الاداريين[[#This Row],[متوسط مكافأة]] -> 0 | CL3: =SUM(مرتب.الاداريين[[#This Row],[التأمينات]:[Column3]]) -> 3151.23 | CM3: =مرتب.الاداريين[[#This Row],[المستحق]]-مرتب.الاداريين[[#This Row],[إجمالي المستقطع]] -> 8238.832
C4: 101004 | D4: 11189 | E4: جمال السيد محمود حشيش | H4: المباشر | I4: مدير إدارة شئون الافراد | J4: الاولي | K4: =مرتب.الاداريين[[#This Row],[كود الشركة]]&مرتب.الاداريين[[#This Row],[كود البنك]]&مرتب.الاداريين[[#This Row],[اسم الموظف]]&مرتب.الاداريين[[#This Row],[الرقم القومي]]&مرتب.الاداريين[[#This Row],[رقم الجوال]]&مرتب.الاداريين[[#This Row],[الشركة المدمجة]]&مرتب.الاداريين[[#This Row],[الوظيفة]]&مرتب.الاداريين[[#This Row],[الدرجة]] -> 10100411189جمال السيد محمود حشيشالمباشرمدير إدارة شئون الافرادالاولي | L4: 2998.93 | M4: 3598.716 | P4: 449.8395 | Q4: 188.32 | R4: 0 | U4: 0 | V4: 0 | W4: 0 | X4: 0 | AA4: 0 | AD4: 0 | AE4: =SUM(مرتب.الاداريين[[#This Row],[بدل مخاطر]:[بدل تباع]]) -> 638.1595 | AF4: 92.37 | AG4: 103.28 | AH4: 120 | AJ4: 190 | AK4: 59.95 | AL4: 106.91 | AM4: 137.27 | AN4: 195.84 | AO4: 209.55 | AP4: 224.22 | AQ4: 600 | AR4: 10 | AT4: =SUM(مرتب.الاداريين[[#This Row],[علاوة 2014]:[علاوات استثنائة]]) -> 2049.39 | AU4: 10 | AW4: =(مرتب.الاداريين[[#This Row],[التأمينات]]/11%)*18.75% -> 1875 | AZ4: =SUM(مرتب.الاداريين[[#This Row],[الأجر الأساسي]:[معونة مرضي]],مرتب.الاداريين[[#This Row],[إجمالي بدلات]],مرتب.الاداريين[[#This Row],[إجمالي علاوات]],مرتب.الاداريين[[#This Row],[منحة عيد العمال]:[Column2]]) -> 11170.1955 | BA4: =IF(مرتب.الاداريين[[#This Row],[الإجمالي]]<6000,6000-مرتب.الاداريين[[#This Row],[الإجمالي]],0) -> 0 | BB4: =مرتب.الاداريين[[#This Row],[الإجمالي]]+مرتب.الاداريين[[#This Row],[مكمل الأجر]] -> 11170.1955 | BC4: 0 | BD4: 0 | BE4: 1100 | BF4: 116.84 | BK4: 0 | BL4: 0.5 | BM4: 3 | BN4: 0 | BO4: 0 | BP4: 0 | BR4: 0 | BS4: 0 | BT4: 0 | BV4: 0 | BW4: 0 | BX4: 5.38 | BY4: 5 | CD4: 0 | CE4: 0 | CI4: =مرتب.الاداريين[[#This Row],[حصة صاحب العمل]] -> 1875 | CJ4: =مرتب.الاداريين[[#This Row],[متوسط مكافأة]] -> 0 | CL4: =SUM(مرتب.الاداريين[[#This Row],[التأمينات]:[Column3]]) -> 3105.72 | CM4: =مرتب.الاداريين[[#This Row],[المستحق]]-مرتب.الاداريين[[#This Row],[إجمالي المستقطع]] -> 8064.4755
C5: 101023 | D5: 11305 | E5: وائل محمد السيد الدبيكى | H5: المباشر | I5: ا.ش.ع.ثان | J5: الثانية | K5: =مرتب.الاداريين[[#This Row],[كود الشركة]]&مرتب.الاداريين[[#This Row],[كود البنك]]&مرتب.الاداريين[[#This Row],[اسم الموظف]]&مرتب.الاداريين[[#This Row],[الرقم القومي]]&مرتب.الاداريين[[#This Row],[رقم الجوال]]&مرتب.الاداريين[[#This Row],[الشركة المدمجة]]&مرتب.الاداريين[[#This Row],[الوظيفة]]&مرتب.الاداريين[[#This Row],[الدرجة]] -> 10102311305وائل محمد السيد الدبيكىالمباشرا.ش.ع.ثانالثانية | L5: 2139.19 | M5: 2567.028 | P5: 320.8785 | Q5: 188.32 | R5: 0 | U5: 0 | V5: 0 | W5: 0 | X5: 0 | AA5: 0 | AD5: 0 | AE5: =SUM(مرتب.الاداريين[[#This Row],[بدل مخاطر]:[بدل تباع]]) -> 509.1985 | AF5: 70.21 | AG5: 78.58 | AH5: 94.4 | AJ5: 190 | AK5: 42.76 | AL5: 76.26 | AM5: 97.92 | AN5: 139.7 | AO5: 149.48 | AP5: 159.94 | AQ5: 600 | AR5: 10 | AT5: =SUM(مرتب.الاداريين[[#This Row],[علاوة 2014]:[علاوات استثنائة]]) -> 1709.25 | AU5: 10 | AW5: =(مرتب.الاداريين[[#This Row],[التأمينات]]/11%)*18.75% -> 1387.5 | AZ5: =SUM(مرتب.الاداريين[[#This Row],[الأجر الأساسي]:[معونة مرضي]],مرتب.الاداريين[[#This Row],[إجمالي بدلات]],مرتب.الاداريين[[#This Row],[إجمالي علاوات]],مرتب.الاداريين[[#This Row],[منحة عيد العمال]:[Column2]]) -> 8322.1665 | BA5: =IF(مرتب.الاداريين[[#This Row],[الإجمالي]]<6000,6000-مرتب.الاداريين[[#This Row],[الإجمالي]],0) -> 0 | BB5: =مرتب.الاداريين[[#This Row],[الإجمالي]]+مرتب.الاداريين[[#This Row],[مكمل الأجر]] -> 8322.1665 | BC5: 0 | BD5: 0 | BE5: 814 | BF5: 0 | BK5: 4.14 | BL5: 0.5 | BM5: 3 | BN5: 0 | BO5: 0 | BP5: 0 | BR5: 0 | BS5: 0 | BT5: 0 | BV5: 0 | BW5: 0 | BX5: 3.96 | BY5: 3 | CD5: 0 | CE5: 0 | CI5: =مرتب.الاداريين[[#This Row],[حصة صاحب العمل]] -> 1387.5 | CJ5: =مرتب.الاداريين[[#This Row],[متوسط مكافأة]] -> 0 | CL5: =SUM(مرتب.الاداريين[[#This Row],[التأمينات]:[Column3]]) -> 2216.1 | CM5: =مرتب.الاداريين[[#This Row],[المستحق]]-مرتب.الاداريين[[#This Row],[إجمالي المستقطع]] -> 6106.0665 | CY5: المستحقات
C6: 101034 | D6: 11366 | E6: ريهام محمد كمال | H6: المباشر | I6: اخصائى شئون عاملين | J6: الثالثة | K6: =مرتب.الاداريين[[#This Row],[كود الشركة]]&مرتب.الاداريين[[#This Row],[كود البنك]]&مرتب.الاداريين[[#This Row],[اسم الموظف]]&مرتب.الاداريين[[#This Row],[الرقم القومي]]&مرتب.الاداريين[[#This Row],[رقم الجوال]]&مرتب.الاداريين[[#This Row],[الشركة المدمجة]]&مرتب.الاداريين[[#This Row],[الوظيفة]]&مرتب.الاداريين[[#This Row],[الدرجة]] -> 10103411366ريهام محمد كمال المباشراخصائى شئون عاملينالثالثة | L6: 1019.87 | M6: 1223.844 | P6: 152.9805 | Q6: 188.32 | R6: 0 | U6: 0 | V6: 0 | W6: 0 | X6: 0 | AA6: 0 | AD6: 0 | AE6: =SUM(مرتب.الاداريين[[#This Row],[بدل مخاطر]:[بدل تباع]]) -> 341.3005 | AF6: 36.22 | AG6: 38.22 | AH6: 65 | AJ6: 190 | AK6: 27.43 | AL6: 36.36 | AM6: 46.68 | AN6: 66.6 | AO6: 71.26 | AP6: 83.28 | AQ6: 600 | AR6: 6 | AT6: =SUM(مرتب.الاداريين[[#This Row],[علاوة 2014]:[علاوات استثنائة]]) -> 1267.05 | AU6: 10 | AW6: =(مرتب.الاداريين[[#This Row],[التأمينات]]/11%)*18.75% -> 937.5 | AZ6: =SUM(مرتب.الاداريين[[#This Row],[الأجر الأساسي]:[معونة مرضي]],مرتب.الاداريين[[#This Row],[إجمالي بدلات]],مرتب.الاداريين[[#This Row],[إجمالي علاوات]],مرتب.الاداريين[[#This Row],[منحة عيد العمال]:[Column2]]) -> 4799.5645 | BA6: =IF(مرتب.الاداريين[[#This Row],[الإجمالي]]<6000,6000-مرتب.الاداريين[[#This Row],[الإجمالي]],0) -> 1200.4355 | BB6: =مرتب.الاداريين[[#This Row],[الإجمالي]]+مرتب.الاداريين[[#This Row],[مكمل الأجر]] -> 6000 | BC6: 0 | BD6: 0 | BE6: 550 | BF6: 0 | BK6: 48 | BL6: 0.5 | BM6: 3 | BN6: 0 | BO6: 0 | BP6: 0 | BR6: 0 | BS6: 0 | BT6: 0 | BV6: 0 | BW6: 0 | BX6: 2.79 | BY6: 3 | CD6: 0 | CE6: 0 | CI6: =مرتب.الاداريين[[#This Row],[حصة صاحب العمل]] -> 937.5 | CJ6: =مرتب.الاداريين[[#This Row],[متوسط مكافأة]] -> 0 | CL6: =SUM(مرتب.الاداريين[[#This Row],[التأمينات]:[Column3]]) -> 1544.79 | CM6: =مرتب.الاداريين[[#This Row],[المستحق]]-مرتب.الاداريين[[#This Row],[إجمالي المستقطع]] -> 4455.21 | CP6: كود الشركة | CQ6: 101000 | CS6: اسم الموظف | CT6: =VLOOKUP($CQ$6,مرتب.الاداريين[],MATCH(CS6,مرتب.الاداريين[#Headers],0)) -> ايمن صلاح الدين السباعي | CW6: الشركة المدمجة | CX6: الوظيفة | CY6: الدرجة
C7: 101011 | D7: 11147 | E7: امجد صلاح الدين السباعي | H7: المباشر | I7: مدير ادارة العلاقات العامه | J7: الاولي | K7: =مرتب.الاداريين[[#This Row],[كود الشركة]]&مرتب.الاداريين[[#This Row],[كود البنك]]&مرتب.الاداريين[[#This Row],[اسم الموظف]]&مرتب.الاداريين[[#This Row],[الرقم القومي]]&مرتب.الاداريين[[#This Row],[رقم الجوال]]&مرتب.الاداريين[[#This Row],[الشركة المدمجة]]&مرتب.الاداريين[[#This Row],[الوظيفة]]&مرتب.الاداريين[[#This Row],[الدرجة]] -> 10101111147امجد صلاح الدين السباعيالمباشرمدير ادارة العلاقات العامهالاولي | L7: 2674.13 | M7: 3208.956 | P7: 401.1195 | Q7: 188.32 | R7: 0 | U7: 0 | V7: 0 | W7: 0 | X7: 0 | AA7: 0 | AD7: 0 | AE7: =SUM(مرتب.الاداريين[[#This Row],[بدل مخاطر]:[بدل تباع]]) -> 589.4395 | AF7: 93.74 | AG7: 104.69 | AH7: 120 | AJ7: 190 | AK7: 53.46 | AL7: 95.33 | AM7: 122.4 | AN7: 174.63 | AO7: 186.86 | AP7: 199.94 | AQ7: 600 | AR7: 10 | AT7: =SUM(مرتب.الاداريين[[#This Row],[علاوة 2014]:[علاوات استثنائة]]) -> 1951.05 | AU7: 10 | AW7: =(مرتب.الاداريين[[#This Row],[التأمينات]]/11%)*18.75% -> 1687.5 | AZ7: =SUM(مرتب.الاداريين[[#This Row],[الأجر الأساسي]:[معونة مرضي]],مرتب.الاداريين[[#This Row],[إجمالي بدلات]],مرتب.الاداريين[[#This Row],[إجمالي علاوات]],مرتب.الاداريين[[#This Row],[منحة عيد العمال]:[Column2]]) -> 10121.0755 | BA7: =IF(مرتب.الاداريين[[#This Row],[الإجمالي]]<6000,6000-مرتب.الاداريين[[#This Row],[الإجمالي]],0) -> 0 | BB7: =مرتب.الاداريين[[#This Row],[الإجمالي]]+مرتب.الاداريين[[#This Row],[مكمل الأجر]] -> 10121.0755 | BC7: 0 | BD7: 0 | BE7: 990 | BF7: 75.84 | BK7: 0 | BL7: 0.5 | BM7: 3 | BN7: 0 | BO7: 0 | BP7: 0 | BR7: 0 | BS7: 0 | BT7: 0 | BV7: 0 | BW7: 0 | BX7: 4.82 | BY7: 5 | CD7: 0 | CE7: 0 | CI7: =مرتب.الاداريين[[#This Row],[حصة صاحب العمل]] -> 1687.5 | CJ7: =مرتب.الاداريين[[#This Row],[متوسط مكافأة]] -> 0 | CL7: =SUM(مرتب.الاداريين[[#This Row],[التأمينات]:[Column3]]) -> 2766.66 | CM7: =مرتب.الاداريين[[#This Row],[المستحق]]-مرتب.الاداريين[[#This Row],[إجمالي المستقطع]] -> 7354.4155 | CP7: الأجر الأساسي | CQ7: الحافز | CR7: عمولة انتاج | CS7: معونة مرضي | CT7: بدل مخاطر | CU7: بدل انتقال | CV7: بدل انتقال محامين | CW7: بدل اقامة | CX7: بدل نقدي | CY7: بدل خزينة
C8: 101040 | D8: 21130 | E8: محمد كمال على مواس | H8: المباشر | I8: مدير ادارة الشئون الادارية | J8: الاولى | K8: =مرتب.الاداريين[[#This Row],[كود الشركة]]&مرتب.الاداريين[[#This Row],[كود البنك]]&مرتب.الاداريين[[#This Row],[اسم الموظف]]&مرتب.الاداريين[[#This Row],[الرقم القومي]]&مرتب.الاداريين[[#This Row],[رقم الجوال]]&مرتب.الاداريين[[#This Row],[الشركة المدمجة]]&مرتب.الاداريين[[#This Row],[الوظيفة]]&مرتب.الاداريين[[#This Row],[الدرجة]] -> 10104021130محمد كمال على مواسالمباشرمدير ادارة الشئون الادارية الاولى | L8: 2730.45 | M8: 3276.54 | P8: 409.5675 | Q8: 188.32 | R8: 0 | U8: 0 | V8: 0 | W8: 0 | X8: 0 | AA8: 0 | AD8: 0 | AE8: =SUM(مرتب.الاداريين[[#This Row],[بدل مخاطر]:[بدل تباع]]) -> 597.8875 | AF8: 90.23 | AG8: 100.79 | AH8: 120 | AJ8: 190 | AK8: 54.58 | AL8: 97.34 | AM8: 124.98 | AN8: 178.31 | AO8: 190.79 | AP8: 204.15 | AQ8: 600 | AR8: 10 | AT8: =SUM(مرتب.الاداريين[[#This Row],[علاوة 2014]:[علاوات استثنائة]]) -> 1961.17 | AU8: 10 | AW8: =(مرتب.الاداريين[[#This Row],[التأمينات]]/11%)*18.75% -> 1725 | AZ8: =SUM(مرتب.الاداريين[[#This Row],[الأجر الأساسي]:[معونة مرضي]],مرتب.الاداريين[[#This Row],[إجمالي بدلات]],مرتب.الاداريين[[#This Row],[إجمالي علاوات]],مرتب.الاداريين[[#This Row],[منحة عيد العمال]:[Column2]]) -> 10301.0475 | BA8: =IF(مرتب.الاداريين[[#This Row],[الإجمالي]]<6000,6000-مرتب.الاداريين[[#This Row],[الإجمالي]],0) -> 0 | BB8: =مرتب.الاداريين[[#This Row],[الإجمالي]]+مرتب.الاداريين[[#This Row],[مكمل الأجر]] -> 10301.0475 | BC8: 0 | BD8: 0 | BE8: 1012 | BF8: 88.5 | BK8: 0 | BL8: 0.5 | BM8: 3 | BN8: 0 | BO8: 0 | BP8: 0 | BR8: 0 | BS8: 0 | BT8: 0 | BV8: 0 | BW8: 0 | BX8: 4.89 | BY8: 5 | CD8: 0 | CE8: 0 | CI8: =مرتب.الاداريين[[#This Row],[حصة صاحب العمل]] -> 1725 | CJ8: =مرتب.الاداريين[[#This Row],[متوسط مكافأة]] -> 0 | CL8: =SUM(مرتب.الاداريين[[#This Row],[التأمينات]:[Column3]]) -> 2838.89 | CM8: =مرتب.الاداريين[[#This Row],[المستحق]]-مرتب.الاداريين[[#This Row],[إجمالي المستقطع]] -> 7462.1575 | CP8: =VLOOKUP($CQ$6,مرتب.الاداريين[],MATCH(CP7,مرتب.الاداريين[#Headers],0)) -> 3183.357 | CQ8: =VLOOKUP($CQ$6,مرتب.الاداريين[],MATCH(CQ7,مرتب.الاداريين[#Headers],0)) -> 3570.12 | CR8: =VLOOKUP($CQ$6,مرتب.الاداريين[],MATCH(CR7,مرتب.الاداريين[#Headers],0)) ->  | CS8: =VLOOKUP($CQ$6,مرتب.الاداريين[],MATCH(CS7,مرتب.الاداريين[#Headers],0)) ->  | CT8: =VLOOKUP($CQ$6,مرتب.الاداريين[],MATCH(CT7,مرتب.الاداريين[#Headers],0)) -> 446.265 | CU8: =VLOOKUP($CQ$6,مرتب.الاداريين[],MATCH(CU7,مرتب.الاداريين[#Headers],0)) -> 188.32 | CV8: =VLOOKUP($CQ$6,مرتب.الاداريين[],MATCH(CV7,مرتب.الاداريين[#Headers],0)) -> 0 | CW8: =VLOOKUP($CQ$6,مرتب.الاداريين[],MATCH(CW7,مرتب.الاداريين[#Headers],0)) ->  | CX8: =VLOOKUP($CQ$6,مرتب.الاداريين[],MATCH(CX7,مرتب.الاداريين[#Headers],0)) ->  | CY8: =VLOOKUP($CQ$6,مرتب.الاداريين[],MATCH(CY7,مرتب.الاداريين[#Headers],0)) -> 0
C9: 101008 | D9: 11047 | E9: طارق محمد عبد التواب | H9: المباشر | I9: مدير إدارة السكرتارية | J9: الاولى | K9: =مرتب.الاداريين[[#This Row],[كود الشركة]]&مرتب.الاداريين[[#This Row],[كود البنك]]&مرتب.الاداريين[[#This Row],[اسم الموظف]]&مرتب.الاداريين[[#This Row],[الرقم القومي]]&مرتب.الاداريين[[#This Row],[رقم الجوال]]&مرتب.الاداريين[[#This Row],[الشركة المدمجة]]&مرتب.الاداريين[[#This Row],[الوظيفة]]&مرتب.الاداريين[[#This Row],[الدرجة]] -> 10100811047طارق محمد عبد التوابالمباشرمدير إدارة السكرتاريةالاولى | L9: 2674.13 | M9: 3208.956 | P9: 401.1195 | Q9: 188.32 | R9: 0 | U9: 0 | V9: 0 | W9: 0 | X9: 0 | AA9: 0 | AD9: 0 | AE9: =SUM(مرتب.الاداريين[[#This Row],[بدل مخاطر]:[بدل تباع]]) -> 589.4395 | AF9: 93.74 | AG9: 104.69 | AH9: 120 | AJ9: 190 | AK9: 53.47 | AL9: 95.33 | AM9: 122.4 | AN9: 174.63 | AO9: 186.86 | AP9: 199.94 | AQ9: 600 | AR9: 10 | AT9: =SUM(مرتب.الاداريين[[#This Row],[علاوة 2014]:[علاوات استثنائة]]) -> 1951.06 | AU9: 10 | AW9: =(مرتب.الاداريين[[#This Row],[التأمينات]]/11%)*18.75% -> 1687.5 | AZ9: =SUM(مرتب.الاداريين[[#This Row],[الأجر الأساسي]:[معونة مرضي]],مرتب.الاداريين[[#This Row],[إجمالي بدلات]],مرتب.الاداريين[[#This Row],[إجمالي علاوات]],مرتب.الاداريين[[#This Row],[منحة عيد العمال]:[Column2]]) -> 10121.0855 | BA9: =IF(مرتب.الاداريين[[#This Row],[الإجمالي]]<6000,6000-مرتب.الاداريين[[#This Row],[الإجمالي]],0) -> 0 | BB9: =مرتب.الاداريين[[#This Row],[الإجمالي]]+مرتب.الاداريين[[#This Row],[مكمل الأجر]] -> 10121.0855 | BC9: 0 | BD9: 0 | BE9: 990 | BF9: 71.16 | BK9: 0 | BL9: 0.5 | BM9: 3 | BN9: 0 | BO9: 0 | BP9: 0 | BR9: 0 | BS9: 0 | BT9: 0 | BV9: 0 | BW9: 0 | BX9: 4.89 | BY9: 5 | CD9: 0 | CE9: 0 | CI9: =مرتب.الاداريين[[#This Row],[حصة صاحب العمل]] -> 1687.5 | CJ9: =مرتب.الاداريين[[#This Row],[متوسط مكافأة]] -> 0 | CL9: =SUM(مرتب.الاداريين[[#This Row],[التأمينات]:[Column3]]) -> 2762.05 | CM9: =مرتب.الاداريين[[#This Row],[المستحق]]-مرتب.الاداريين[[#This Row],[إجمالي المستقطع]] -> 7359.0355 | CP9: بدل غذاء | CQ9: بدل مظهر | CR9: بدل تمثيل | CS9: بدل ضيافة | CT9: بدل مواصلات | CU9: بدل شاشة | CV9: بدل وجبة | CW9: بدل تفرغ | CX9: بدل تباع
C10: 101047 | D10: 21387 | E10: وليد محمد حسن عثمان | H10: المباشر | I10: ا.ش.ع | J10: الاولي | K10: =مرتب.الاداريين[[#This Row],[كود الشركة]]&مرتب.الاداريين[[#This Row],[كود البنك]]&مرتب.الاداريين[[#This Row],[اسم الموظف]]&مرتب.الاداريين[[#This Row],[الرقم القومي]]&مرتب.الاداريين[[#This Row],[رقم الجوال]]&مرتب.الاداريين[[#This Row],[الشركة المدمجة]]&مرتب.الاداريين[[#This Row],[الوظيفة]]&مرتب.الاداريين[[#This Row],[الدرجة]] -> 10104721387وليد محمد حسن عثمانالمباشرا.ش.عالاولي | L10: 2269.89 | M10: 2723.868 | P10: 340.4835 | Q10: 188.32 | R10: 0 | U10: 0 | V10: 0 | W10: 0 | X10: 0 | AA10: 0 | AD10: 0 | AE10: =SUM(مرتب.الاداريين[[#This Row],[بدل مخاطر]:[بدل تباع]]) -> 528.8035 | AF10: 75.13 | AG10: 84.06 | AH10: 107.57 | AJ10: 190 | AK10: 45.38 | AL10: 80.92 | AM10: 103.9 | AN10: 148.23 | AO10: 158.61 | AP10: 169.71 | AQ10: 600 | AR10: 10 | AT10: =SUM(مرتب.الاداريين[[#This Row],[علاوة 2014]:[علاوات استثنائة]]) -> 1773.51 | AU10: 10 | AW10: =(مرتب.الاداريين[[#This Row],[التأمينات]]/11%)*18.75% -> 1462.5 | AZ10: =SUM(مرتب.الاداريين[[#This Row],[الأجر الأساسي]:[معونة مرضي]],مرتب.الاداريين[[#This Row],[إجمالي بدلات]],مرتب.الاداريين[[#This Row],[إجمالي علاوات]],مرتب.الاداريين[[#This Row],[منحة عيد العمال]:[Column2]]) -> 8768.5715 | BA10: =IF(مرتب.الاداريين[[#This Row],[الإجمالي]]<6000,6000-مرتب.الاداريين[[#This Row],[الإجمالي]],0) -> 0 | BB10: =مرتب.الاداريين[[#This Row],[الإجمالي]]+مرتب.الاداريين[[#This Row],[مكمل الأجر]] -> 8768.5715 | BC10: 0 | BD10: 0 | BE10: 858 | BF10: 0 | BK10: 133.5 | BL10: 0.5 | BM10: 3 | BN10: 0 | BO10: 0 | BP10: 0 | BR10: 0 | BS10: 0 | BT10: 0 | BV10: 0 | BW10: 0 | BX10: 4.17 | BY10: 3 | CD10: 0 | CE10: 0 | CI10: =مرتب.الاداريين[[#This Row],[حصة صاحب العمل]] -> 1462.5 | CJ10: =مرتب.الاداريين[[#This Row],[متوسط مكافأة]] -> 0 | CL10: =SUM(مرتب.الاداريين[[#This Row],[التأمينات]:[Column3]]) -> 2464.67 | CM10: =مرتب.الاداريين[[#This Row],[المستحق]]-مرتب.الاداريين[[#This Row],[إجمالي المستقطع]] -> 6303.9015 | CP10: =VLOOKUP($CQ$6,مرتب.الاداريين[],MATCH(CP9,مرتب.الاداريين[#Headers],0)) -> 0 | CQ10: =VLOOKUP($CQ$6,مرتب.الاداريين[],MATCH(CQ9,مرتب.الاداريين[#Headers],0)) -> 0 | CR10: =VLOOKUP($CQ$6,مرتب.الاداريين[],MATCH(CR9,مرتب.الاداريين[#Headers],0)) -> 80 | CS10: =VLOOKUP($CQ$6,مرتب.الاداريين[],MATCH(CS9,مرتب.الاداريين[#Headers],0)) ->  | CT10: =VLOOKUP($CQ$6,مرتب.الاداريين[],MATCH(CT9,مرتب.الاداريين[#Headers],0)) ->  | CU10: =VLOOKUP($CQ$6,مرتب.الاداريين[],MATCH(CU9,مرتب.الاداريين[#Headers],0)) -> 0 | CV10: =VLOOKUP($CQ$6,مرتب.الاداريين[],MATCH(CV9,مرتب.الاداريين[#Headers],0)) ->  | CW10: =VLOOKUP($CQ$6,مرتب.الاداريين[],MATCH(CW9,مرتب.الاداريين[#Headers],0)) ->  | CX10: =VLOOKUP($CQ$6,مرتب.الاداريين[],MATCH(CX9,مرتب.الاداريين[#Headers],0)) -> 0
C11: 101015 | D11: 11201 | E11: مرفت محمد زينهم | H11: المباشر | I11: مدير إدارة خدمه المواطنين | J11: الاولي | K11: =مرتب.الاداريين[[#This Row],[كود الشركة]]&مرتب.الاداريين[[#This Row],[كود البنك]]&مرتب.الاداريين[[#This Row],[اسم الموظف]]&مرتب.الاداريين[[#This Row],[الرقم القومي]]&مرتب.الاداريين[[#This Row],[رقم الجوال]]&مرتب.الاداريين[[#This Row],[الشركة المدمجة]]&مرتب.الاداريين[[#This Row],[الوظيفة]]&مرتب.الاداريين[[#This Row],[الدرجة]] -> 10101511201مرفت محمد زينهمالمباشرمدير إدارة خدمه المواطنينالاولي | L11: 2627.11 | M11: 3152.532 | P11: 394.0665 | Q11: 188.32 | R11: 0 | U11: 0 | V11: 0 | W11: 0 | X11: 0 | AA11: 0 | AD11: 0 | AE11: =SUM(مرتب.الاداريين[[#This Row],[بدل مخاطر]:[بدل تباع]]) -> 582.3865 | AF11: 86.84 | AG11: 96.99 | AH11: 120 | AJ11: 190 | AK11: 52.52 | AL11: 93.65 | AM11: 120.25 | AN11: 171.56 | AO11: 183.57 | AP11: 196.42 | AQ11: 600 | AR11: 6 | AT11: =SUM(مرتب.الاداريين[[#This Row],[علاوة 2014]:[علاوات استثنائة]]) -> 1917.8 | AU11: 10 | AW11: =(مرتب.الاداريين[[#This Row],[التأمينات]]/11%)*18.75% -> 1650 | AZ11: =SUM(مرتب.الاداريين[[#This Row],[الأجر الأساسي]:[معونة مرضي]],مرتب.الاداريين[[#This Row],[إجمالي بدلات]],مرتب.الاداريين[[#This Row],[إجمالي علاوات]],مرتب.الاداريين[[#This Row],[منحة عيد العمال]:[Column2]]) -> 9939.8285 | BA11: =IF(مرتب.الاداريين[[#This Row],[الإجمالي]]<6000,6000-مرتب.الاداريين[[#This Row],[الإجمالي]],0) -> 0 | BB11: =مرتب.الاداريين[[#This Row],[الإجمالي]]+مرتب.الاداريين[[#This Row],[مكمل الأجر]] -> 9939.8285 | BC11: 0 | BD11: 0 | BE11: 968 | BF11: 63.66 | BK11: 0 | BL11: 0.5 | BM11: 3 | BN11: 0 | BO11: 0 | BP11: 0 | BR11: 0 | BS11: 0 | BT11: 0 | BV11: 0 | BW11: 0 | BX11: 4.72 | BY11: 5 | CD11: 0 | CE11: 0 | CI11: =مرتب.الاداريين[[#This Row],[حصة صاحب العمل]] -> 1650 | CJ11: =مرتب.الاداريين[[#This Row],[متوسط مكافأة]] -> 0 | CL11: =SUM(مرتب.الاداريين[[#This Row],[التأمينات]:[Column3]]) -> 2694.88 | CM11: =مرتب.الاداريين[[#This Row],[المستحق]]-مرتب.الاداريين[[#This Row],[إجمالي المستقطع]] -> 7244.9485 | CP11: علاوة 2014 | CQ11: علاوة 2015 | CR11: علاوة 2016 | CS11: علاوة 2017 | CT11: علاوة 2018 | CU11: علاوة 2019 | CV11: علاوة 2020 | CW11: علاوة 2021 | CX11: علاوة 2022 | CY11: علاوة 2023
C12: 101029 | D12: 11350 | E12: فاطمه محسن ابو الفضل | H12: المباشر | I12: ا.ش.ع | J12: الاولي | K12: =مرتب.الاداريين[[#This Row],[كود الشركة]]&مرتب.الاداريين[[#This Row],[كود البنك]]&مرتب.الاداريين[[#This Row],[اسم الموظف]]&مرتب.الاداريين[[#This Row],[الرقم القومي]]&مرتب.الاداريين[[#This Row],[رقم الجوال]]&مرتب.الاداريين[[#This Row],[الشركة المدمجة]]&مرتب.الاداريين[[#This Row],[الوظيفة]]&مرتب.الاداريين[[#This Row],[الدرجة]] -> 10102911350فاطمه محسن ابو الفضلالمباشرا.ش.عالاولي | L12: 1171.72 | M12: 1406.064 | P12: 175.758 | Q12: 188.32 | R12: 0 | U12: 0 | V12: 0 | W12: 0 | X12: 0 | AA12: 0 | AD12: 0 | AE12: =SUM(مرتب.الاداريين[[#This Row],[بدل مخاطر]:[بدل تباع]]) -> 364.078 | AF12: 39.2 | AG12: 43.63 | AH12: 65 | AJ12: 190 | AK12: 23.42 | AL12: 41.77 | AM12: 53.63 | AN12: 76.52 | AO12: 81.87 | AP12: 87.61 | AQ12: 600 | AR12: 6 | AT12: =SUM(مرتب.الاداريين[[#This Row],[علاوة 2014]:[علاوات استثنائة]]) -> 1308.65 | AU12: 10 | AW12: =(مرتب.الاداريين[[#This Row],[التأمينات]]/11%)*18.75% -> 937.5 | AZ12: =SUM(مرتب.الاداريين[[#This Row],[الأجر الأساسي]:[معونة مرضي]],مرتب.الاداريين[[#This Row],[إجمالي بدلات]],مرتب.الاداريين[[#This Row],[إجمالي علاوات]],مرتب.الاداريين[[#This Row],[منحة عيد العمال]:[Column2]]) -> 5198.012 | BA12: =IF(مرتب.الاداريين[[#This Row],[الإجمالي]]<6000,6000-مرتب.الاداريين[[#This Row],[الإجمالي]],0) -> 801.988 | BB12: =مرتب.الاداريين[[#This Row],[الإجمالي]]+مرتب.الاداريين[[#This Row],[مكمل الأجر]] -> 6000 | BC12: 0 | BD12: 0 | BE12: 550 | BF12: 0 | BK12: 50.5 | BL12: 0.5 | BM12: 3 | BN12: 0 | BO12: 0 | BP12: 0 | BR12: 0 | BS12: 0 | BT12: 0 | BV12: 0 | BW12: 0 | BX12: 2.77 | BY12: 3 | CD12: 0 | CE12: 0 | CI12: =مرتب.الاداريين[[#This Row],[حصة صاحب العمل]] -> 937.5 | CJ12: =مرتب.الاداريين[[#This Row],[متوسط مكافأة]] -> 0 | CL12: =SUM(مرتب.الاداريين[[#This Row],[التأمينات]:[Column3]]) -> 1547.27 | CM12: =مرتب.الاداريين[[#This Row],[المستحق]]-مرتب.الاداريين[[#This Row],[إجمالي المستقطع]] -> 4452.73 | CP12: =VLOOKUP($CQ$6,مرتب.الاداريين[],MATCH(CP11,مرتب.الاداريين[#Headers],0)) -> 91.92 | CQ12: =VLOOKUP($CQ$6,مرتب.الاداريين[],MATCH(CQ11,مرتب.الاداريين[#Headers],0)) -> 102.64 | CR12: =VLOOKUP($CQ$6,مرتب.الاداريين[],MATCH(CR11,مرتب.الاداريين[#Headers],0)) -> 120 | CS12: =VLOOKUP($CQ$6,مرتب.الاداريين[],MATCH(CS11,مرتب.الاداريين[#Headers],0)) ->  | CT12: =VLOOKUP($CQ$6,مرتب.الاداريين[],MATCH(CT11,مرتب.الاداريين[#Headers],0)) -> 190 | CU12: =VLOOKUP($CQ$6,مرتب.الاداريين[],MATCH(CU11,مرتب.الاداريين[#Headers],0)) -> 55.58 | CV12: =VLOOKUP($CQ$6,مرتب.الاداريين[],MATCH(CV11,مرتب.الاداريين[#Headers],0)) -> 106.06 | CW12: =VLOOKUP($CQ$6,مرتب.الاداريين[],MATCH(CW11,مرتب.الاداريين[#Headers],0)) -> 136.18 | CX12: =VLOOKUP($CQ$6,مرتب.الاداريين[],MATCH(CX11,مرتب.الاداريين[#Headers],0)) -> 194.29 | CY12: =VLOOKUP($CQ$6,مرتب.الاداريين[],MATCH(CY11,مرتب.الاداريين[#Headers],0)) -> 207.89
C13: 101019 | D13: 11276 | E13: مها خليل عبد الرسول | H13: المباشر | I13: رئيس قسم التامينات والمعاشات | J13: الثالثه | K13: =مرتب.الاداريين[[#This Row],[كود الشركة]]&مرتب.الاداريين[[#This Row],[كود البنك]]&مرتب.الاداريين[[#This Row],[اسم الموظف]]&مرتب.الاداريين[[#This Row],[الرقم القومي]]&مرتب.الاداريين[[#This Row],[رقم الجوال]]&مرتب.الاداريين[[#This Row],[الشركة المدمجة]]&مرتب.الاداريين[[#This Row],[الوظيفة]]&مرتب.الاداريين[[#This Row],[الدرجة]] -> 10101911276مها خليل عبد الرسولالمباشررئيس قسم التامينات والمعاشاتالثالثه | L13: 2139.25 | M13: 2567.1 | P13: 320.8875 | Q13: 188.32 | R13: 0 | U13: 0 | V13: 0 | W13: 0 | X13: 0 | AA13: 0 | AD13: 0 | AE13: =SUM(مرتب.الاداريين[[#This Row],[بدل مخاطر]:[بدل تباع]]) -> 509.2075 | AF13: 70.22 | AG13: 78.59 | AH13: 94.4 | AJ13: 190 | AK13: 42.76 | AL13: 76.26 | AM13: 97.92 | AN13: 139.7 | AO13: 149.48 | AP13: 159.94 | AQ13: 600 | AR13: 6 | AT13: =SUM(مرتب.الاداريين[[#This Row],[علاوة 2014]:[علاوات استثنائة]]) -> 1705.27 | AU13: 10 | AW13: =(مرتب.الاداريين[[#This Row],[التأمينات]]/11%)*18.75% -> 1387.5 | AZ13: =SUM(مرتب.الاداريين[[#This Row],[الأجر الأساسي]:[معونة مرضي]],مرتب.الاداريين[[#This Row],[إجمالي بدلات]],مرتب.الاداريين[[#This Row],[إجمالي علاوات]],مرتب.الاداريين[[#This Row],[منحة عيد العمال]:[Column2]]) -> 8318.3275 | BA13: =IF(مرتب.الاداريين[[#This Row],[الإجمالي]]<6000,6000-مرتب.الاداريين[[#This Row],[الإجمالي]],0) -> 0 | BB13: =مرتب.الاداريين[[#This Row],[الإجمالي]]+مرتب.الاداريين[[#This Row],[مكمل الأجر]] -> 8318.3275 | BC13: 0 | BD13: 0 | BE13: 814 | BF13: 0 | BK13: 0 | BL13: 0.5 | BM13: 3 | BN13: 0 | BO13: 0 | BP13: 0 | BR13: 0 | BS13: 0 | BT13: 0 | BV13: 0 | BW13: 0 | BX13: 395 | BY13: 5 | CD13: 0 | CE13: 0 | CI13: =مرتب.الاداريين[[#This Row],[حصة صاحب العمل]] -> 1387.5 | CJ13: =مرتب.الاداريين[[#This Row],[متوسط مكافأة]] -> 0 | CL13: =SUM(مرتب.الاداريين[[#This Row],[التأمينات]:[Column3]]) -> 2605 | CM13: =مرتب.الاداريين[[#This Row],[المستحق]]-مرتب.الاداريين[[#This Row],[إجمالي المستقطع]] -> 5713.3275 | CP13: علاوة 2024 | CQ13: علاوة غلاء معيشة 2023 | CR13: علاوة اجتماعية | CS13: علاوات استثنائة | CT13: منحة عيد العمال | CU13: رد مستحقات | CV13: ح.صاحب العمل | CW13: متوسط مكافأة | CX13: الإجمالي | CY13: مكمل الأجر
C14: 101048 | D14: 21538 | E14: احمد صلاح نصر | H14: المباشر | I14: امين مخزن | J14: الرابعة | K14: =مرتب.الاداريين[[#This Row],[كود الشركة]]&مرتب.الاداريين[[#This Row],[كود البنك]]&مرتب.الاداريين[[#This Row],[اسم الموظف]]&مرتب.الاداريين[[#This Row],[الرقم القومي]]&مرتب.الاداريين[[#This Row],[رقم الجوال]]&مرتب.الاداريين[[#This Row],[الشركة المدمجة]]&مرتب.الاداريين[[#This Row],[الوظيفة]]&مرتب.الاداريين[[#This Row],[الدرجة]] -> 10104821538احمد صلاح نصرالمباشرامين مخزنالرابعة | L14: 2070.44 | M14: 2484.528 | P14: 310.566 | Q14: 188.32 | R14: 0 | U14: 0 | V14: 0 | W14: 0 | X14: 0 | AA14: 0 | AD14: 0 | AE14: =SUM(مرتب.الاداريين[[#This Row],[بدل مخاطر]:[بدل تباع]]) -> 498.886 | AF14: 73.3 | AG14: 81.83 | AH14: 97.69 | AJ14: 200 | AK14: 41.39 | AL14: 73.81 | AM14: 94.77 | AN14: 135.21 | AO14: 144.67 | AP14: 154.8 | AQ14: 600 | AR14: 10 | AT14: =SUM(مرتب.الاداريين[[#This Row],[علاوة 2014]:[علاوات استثنائة]]) -> 1707.47 | AU14: 10 | AW14: =(مرتب.الاداريين[[#This Row],[التأمينات]]/11%)*18.75% -> 1350 | AZ14: =SUM(مرتب.الاداريين[[#This Row],[الأجر الأساسي]:[معونة مرضي]],مرتب.الاداريين[[#This Row],[إجمالي بدلات]],مرتب.الاداريين[[#This Row],[إجمالي علاوات]],مرتب.الاداريين[[#This Row],[منحة عيد العمال]:[Column2]]) -> 8121.324 | BA14: =IF(مرتب.الاداريين[[#This Row],[الإجمالي]]<6000,6000-مرتب.الاداريين[[#This Row],[الإجمالي]],0) -> 0 | BB14: =مرتب.الاداريين[[#This Row],[الإجمالي]]+مرتب.الاداريين[[#This Row],[مكمل الأجر]] -> 8121.324 | BC14: 0 | BD14: 0 | BE14: 792 | BF14: 0 | BK14: 133 | BL14: 0.5 | BM14: 3 | BN14: 0 | BO14: 0 | BP14: 0 | BR14: 0 | BS14: 0 | BT14: 0 | BV14: 0 | BW14: 0 | BX14: 3.87 | BY14: 3 | CD14: 0 | CE14: 0 | CI14: =مرتب.الاداريين[[#This Row],[حصة صاحب العمل]] -> 1350 | CJ14: =مرتب.الاداريين[[#This Row],[متوسط مكافأة]] -> 0 | CL14: =SUM(مرتب.الاداريين[[#This Row],[التأمينات]:[Column3]]) -> 2285.37 | CM14: =مرتب.الاداريين[[#This Row],[المستحق]]-مرتب.الاداريين[[#This Row],[إجمالي المستقطع]] -> 5835.954 | CP14: =VLOOKUP($CQ$6,مرتب.الاداريين[],MATCH(CP13,مرتب.الاداريين[#Headers],0)) -> 222.44 | CQ14: =VLOOKUP($CQ$6,مرتب.الاداريين[],MATCH(CQ13,مرتب.الاداريين[#Headers],0)) -> 600 | CR14: =VLOOKUP($CQ$6,مرتب.الاداريين[],MATCH(CR13,مرتب.الاداريين[#Headers],0)) -> 10 | CS14: =VLOOKUP($CQ$6,مرتب.الاداريين[],MATCH(CS13,مرتب.الاداريين[#Headers],0)) ->  | CT14: =VLOOKUP($CQ$6,مرتب.الاداريين[],MATCH(CT13,مرتب.الاداريين[#Headers],0)) -> 10 | CU14: =VLOOKUP($CQ$6,مرتب.الاداريين[],MATCH(CU13,مرتب.الاداريين[#Headers],0)) ->  | CV14: =VLOOKUP($CQ$6,مرتب.الاداريين[],MATCH(CV13,مرتب.الاداريين[#Headers],0)) ->  | CW14: =VLOOKUP($CQ$6,مرتب.الاداريين[],MATCH(CW13,مرتب.الاداريين[#Headers],0)) -> 0 | CX14: =VLOOKUP($CQ$6,مرتب.الاداريين[],MATCH(CX13,مرتب.الاداريين[#Headers],0)) -> 11390.062 | CY14: =VLOOKUP($CQ$6,مرتب.الاداريين[],MATCH(CY13,مرتب.الاداريين[#Headers],0)) -> 0
C15: 101026 | D15: 11336 | E15: هبه محمد احمد على | H15: المباشر | I15: مدخل بيانات | J15: الثانيه | K15: =مرتب.الاداريين[[#This Row],[كود الشركة]]&مرتب.الاداريين[[#This Row],[كود البنك]]&مرتب.الاداريين[[#This Row],[اسم الموظف]]&مرتب.الاداريين[[#This Row],[الرقم القومي]]&مرتب.الاداريين[[#This Row],[رقم الجوال]]&مرتب.الاداريين[[#This Row],[الشركة المدمجة]]&مرتب.الاداريين[[#This Row],[الوظيفة]]&مرتب.الاداريين[[#This Row],[الدرجة]] -> 10102611336هبه محمد احمد علىالمباشرمدخل بيانات الثانيه | L15: 1420.26 | M15: 1704.312 | P15: 213.039 | Q15: 188.32 | R15: 0 | U15: 0 | V15: 0 | W15: 0 | X15: 0 | AA15: 0 | AD15: 0 | AE15: =SUM(مرتب.الاداريين[[#This Row],[بدل مخاطر]:[بدل تباع]]) -> 401.359 | AF15: 47.36 | AG15: 52.81 | AH15: 65 | AJ15: 190 | AK15: 28.39 | AL15: 50.63 | AM15: 65.01 | AN15: 92.75 | AO15: 99.24 | AP15: 106.19 | AQ15: 600 | AR15: 6 | AT15: =SUM(مرتب.الاداريين[[#This Row],[علاوة 2014]:[علاوات استثنائة]]) -> 1403.38 | AU15: 10 | AW15: =(مرتب.الاداريين[[#This Row],[التأمينات]]/11%)*18.75% -> 975 | AZ15: =SUM(مرتب.الاداريين[[#This Row],[الأجر الأساسي]:[معونة مرضي]],مرتب.الاداريين[[#This Row],[إجمالي بدلات]],مرتب.الاداريين[[#This Row],[إجمالي علاوات]],مرتب.الاداريين[[#This Row],[منحة عيد العمال]:[Column2]]) -> 5914.311 | BA15: =IF(مرتب.الاداريين[[#This Row],[الإجمالي]]<6000,6000-مرتب.الاداريين[[#This Row],[الإجمالي]],0) -> 85.689 | BB15: =مرتب.الاداريين[[#This Row],[الإجمالي]]+مرتب.الاداريين[[#This Row],[مكمل الأجر]] -> 6000 | BC15: 0 | BD15: 0 | BE15: 572 | BF15: 0 | BK15: 0 | BL15: 0.5 | BM15: 3 | BN15: 0 | BO15: 0 | BP15: 0 | BR15: 0 | BS15: 0 | BT15: 0 | BV15: 0 | BW15: 0 | BX15: 2.83 | BY15: 5 | CD15: 0 | CE15: 0 | CI15: =مرتب.الاداريين[[#This Row],[حصة صاحب العمل]] -> 975 | CJ15: =مرتب.الاداريين[[#This Row],[متوسط مكافأة]] -> 0 | CL15: =SUM(مرتب.الاداريين[[#This Row],[التأمينات]:[Column3]]) -> 1558.33 | CM15: =مرتب.الاداريين[[#This Row],[المستحق]]-مرتب.الاداريين[[#This Row],[إجمالي المستقطع]] -> 4441.67 | CY15: المستحق
C16: 101077 | D16: 33254 | E16: احمد سعيد عبد السميع | H16: المباشر | I16: اخصائى نظم ومعلومات | J16: الثالثه | K16: =مرتب.الاداريين[[#This Row],[كود الشركة]]&مرتب.الاداريين[[#This Row],[كود البنك]]&مرتب.الاداريين[[#This Row],[اسم الموظف]]&مرتب.الاداريين[[#This Row],[الرقم القومي]]&مرتب.الاداريين[[#This Row],[رقم الجوال]]&مرتب.الاداريين[[#This Row],[الشركة المدمجة]]&مرتب.الاداريين[[#This Row],[الوظيفة]]&مرتب.الاداريين[[#This Row],[الدرجة]] -> 10107733254احمد سعيد عبد السميعالمباشراخصائى نظم ومعلوماتالثالثه | L16: 1040.13 | M16: 1248.156 | P16: 156.0195 | Q16: 188.32 | R16: 0 | U16: 0 | V16: 0 | W16: 0 | X16: 0 | AA16: 0 | AD16: 0 | AE16: =SUM(مرتب.الاداريين[[#This Row],[بدل مخاطر]:[بدل تباع]]) -> 344.3395 | AF16: 34.05 | AG16: 38.12 | AH16: 65 | AJ16: 190 | AK16: 26.48 | AL16: 37.08 | AM16: 47.61 | AN16: 67.92 | AO16: 72.68 | AP16: 81.95 | AQ16: 600 | AR16: 10 | AT16: =SUM(مرتب.الاداريين[[#This Row],[علاوة 2014]:[علاوات استثنائة]]) -> 1270.89 | AU16: 10 | AW16: =(مرتب.الاداريين[[#This Row],[التأمينات]]/11%)*18.75% -> 937.5 | AZ16: =SUM(مرتب.الاداريين[[#This Row],[الأجر الأساسي]:[معونة مرضي]],مرتب.الاداريين[[#This Row],[إجمالي بدلات]],مرتب.الاداريين[[#This Row],[إجمالي علاوات]],مرتب.الاداريين[[#This Row],[منحة عيد العمال]:[Column2]]) -> 4851.0155 | BA16: =IF(مرتب.الاداريين[[#This Row],[الإجمالي]]<6000,6000-مرتب.الاداريين[[#This Row],[الإجمالي]],0) -> 1148.9845 | BB16: =مرتب.الاداريين[[#This Row],[الإجمالي]]+مرتب.الاداريين[[#This Row],[مكمل الأجر]] -> 6000 | BC16: 0 | BD16: 0 | BE16: 550 | BF16: 0 | BK16: 0 | BL16: 0.5 | BM16: 3 | BN16: 0 | BO16: 0 | BP16: 0 | BR16: 0 | BS16: 0 | BT16: 0 | BV16: 0 | BW16: 0 | BX16: 2.24 | BY16: 3 | CD16: 0 | CE16: 0 | CI16: =مرتب.الاداريين[[#This Row],[حصة صاحب العمل]] -> 937.5 | CJ16: =مرتب.الاداريين[[#This Row],[متوسط مكافأة]] -> 0 | CL16: =SUM(مرتب.الاداريين[[#This Row],[التأمينات]:[Column3]]) -> 1496.24 | CM16: =مرتب.الاداريين[[#This Row],[المستحق]]-مرتب.الاداريين[[#This Row],[إجمالي المستقطع]] -> 4503.76 | CY16: =VLOOKUP($CQ$6,مرتب.الاداريين[],MATCH(CY15,مرتب.الاداريين[#Headers],0)) -> 11390.062
C17: 101014 | D17: 11198 | E17: نعمه عباس حسن | H17: المباشر | I17: مدير إدارة المتابعة وتقييم الاداء | J17: الاولي | K17: =مرتب.الاداريين[[#This Row],[كود الشركة]]&مرتب.الاداريين[[#This Row],[كود البنك]]&مرتب.الاداريين[[#This Row],[اسم الموظف]]&مرتب.الاداريين[[#This Row],[الرقم القومي]]&مرتب.الاداريين[[#This Row],[رقم الجوال]]&مرتب.الاداريين[[#This Row],[الشركة المدمجة]]&مرتب.الاداريين[[#This Row],[الوظيفة]]&مرتب.الاداريين[[#This Row],[الدرجة]] -> 10101411198نعمه عباس حسنالمباشرمدير إدارة المتابعة وتقييم الاداءالاولي | L17: 2630.88 | M17: 3157.056 | P17: 394.632 | Q17: 188.32 | R17: 0 | U17: 0 | V17: 0 | W17: 0 | X17: 0 | AA17: 0 | AD17: 0 | AE17: =SUM(مرتب.الاداريين[[#This Row],[بدل مخاطر]:[بدل تباع]]) -> 582.952 | AF17: 86.95 | AG17: 97.13 | AH17: 120 | AJ17: 190 | AK17: 52.59 | AL17: 93.79 | AM17: 120.43 | AN17: 171.81 | AO17: 183.83 | AP17: 196.7 | AQ17: 600 | AR17: 6 | AT17: =SUM(مرتب.الاداريين[[#This Row],[علاوة 2014]:[علاوات استثنائة]]) -> 1919.23 | AU17: 10 | AW17: =(مرتب.الاداريين[[#This Row],[التأمينات]]/11%)*18.75% -> 1668.75 | AZ17: =SUM(مرتب.الاداريين[[#This Row],[الأجر الأساسي]:[معونة مرضي]],مرتب.الاداريين[[#This Row],[إجمالي بدلات]],مرتب.الاداريين[[#This Row],[إجمالي علاوات]],مرتب.الاداريين[[#This Row],[منحة عيد العمال]:[Column2]]) -> 9968.868 | BA17: =IF(مرتب.الاداريين[[#This Row],[الإجمالي]]<6000,6000-مرتب.الاداريين[[#This Row],[الإجمالي]],0) -> 0 | BB17: =مرتب.الاداريين[[#This Row],[الإجمالي]]+مرتب.الاداريين[[#This Row],[مكمل الأجر]] -> 9968.868 | BC17: 0 | BD17: 0 | BE17: 979 | BF17: 45.09 | BK17: 0 | BL17: 0.5 | BM17: 3 | BN17: 0 | BO17: 0 | BP17: 0 | BR17: 0 | BS17: 0 | BT17: 0 | BV17: 0 | BW17: 0 | BX17: 4.69 | BY17: 5 | CD17: 0 | CE17: 0 | CI17: =مرتب.الاداريين[[#This Row],[حصة صاحب العمل]] -> 1668.75 | CJ17: =مرتب.الاداريين[[#This Row],[متوسط مكافأة]] -> 0 | CL17: =SUM(مرتب.الاداريين[[#This Row],[التأمينات]:[Column3]]) -> 2706.03 | CM17: =مرتب.الاداريين[[#This Row],[المستحق]]-مرتب.الاداريين[[#This Row],[إجمالي المستقطع]] -> 7262.838
C18: 101030 | D18: 11361 | E18: عبد الحميد شحاته عبد الحميد | H18: المباشر | I18: محامي | J18: الثالثه | K18: =مرتب.الاداريين[[#This Row],[كود الشركة]]&مرتب.الاداريين[[#This Row],[كود البنك]]&مرتب.الاداريين[[#This Row],[اسم الموظف]]&مرتب.الاداريين[[#This Row],[الرقم القومي]]&مرتب.الاداريين[[#This Row],[رقم الجوال]]&مرتب.الاداريين[[#This Row],[الشركة المدمجة]]&مرتب.الاداريين[[#This Row],[الوظيفة]]&مرتب.الاداريين[[#This Row],[الدرجة]] -> 10103011361عبد الحميد شحاته عبد الحميدالمباشرمحاميالثالثه | L18: 1143.9 | M18: 1372.68 | P18: 171.585 | Q18: 208.32 | R18: 0 | U18: 0 | V18: 0 | W18: 0 | X18: 0 | AA18: 0 | AD18: 0 | AE18: =SUM(مرتب.الاداريين[[#This Row],[بدل مخاطر]:[بدل تباع]]) -> 379.905 | AF18: 36.22 | AG18: 40.89 | AH18: 65 | AJ18: 190 | AK18: 25.13 | AL18: 38.11 | AM18: 48.94 | AN18: 69.81 | AO18: 74.7 | AP18: 85.53 | AQ18: 600 | AR18: 6 | AT18: =SUM(مرتب.الاداريين[[#This Row],[علاوة 2014]:[علاوات استثنائة]]) -> 1280.33 | AU18: 10 | AW18: =(مرتب.الاداريين[[#This Row],[التأمينات]]/11%)*18.75% -> 937.5 | AZ18: =SUM(مرتب.الاداريين[[#This Row],[الأجر الأساسي]:[معونة مرضي]],مرتب.الاداريين[[#This Row],[إجمالي بدلات]],مرتب.الاداريين[[#This Row],[إجمالي علاوات]],مرتب.الاداريين[[#This Row],[منحة عيد العمال]:[Column2]]) -> 5124.315 | BA18: =IF(مرتب.الاداريين[[#This Row],[الإجمالي]]<6000,6000-مرتب.الاداريين[[#This Row],[الإجمالي]],0) -> 875.685 | BB18: =مرتب.الاداريين[[#This Row],[الإجمالي]]+مرتب.الاداريين[[#This Row],[مكمل الأجر]] -> 6000 | BC18: 0 | BD18: 0 | BE18: 550 | BF18: 0 | BK18: 0 | BL18: 0.5 | BM18: 3 | BN18: 0 | BO18: 0 | BP18: 0 | BR18: 0 | BS18: 0 | BT18: 0 | BV18: 0 | BW18: 0 | BX18: 1.56 | BY18: 3 | CD18: 0 | CE18: 0 | CI18: =مرتب.الاداريين[[#This Row],[حصة صاحب العمل]] -> 937.5 | CJ18: =مرتب.الاداريين[[#This Row],[متوسط مكافأة]] -> 0 | CL18: =SUM(مرتب.الاداريين[[#This Row],[التأمينات]:[Column3]]) -> 1495.56 | CM18: =مرتب.الاداريين[[#This Row],[المستحق]]-مرتب.الاداريين[[#This Row],[إجمالي المستقطع]] -> 4504.44 | CY18: المستقطع
C19: 101032 | D19: 1362 | E19: حسن عبد الصبور السيد | H19: المباشر | I19: محامي | J19: الثالثه | K19: =مرتب.الاداريين[[#This Row],[كود الشركة]]&مرتب.الاداريين[[#This Row],[كود البنك]]&مرتب.الاداريين[[#This Row],[اسم الموظف]]&مرتب.الاداريين[[#This Row],[الرقم القومي]]&مرتب.الاداريين[[#This Row],[رقم الجوال]]&مرتب.الاداريين[[#This Row],[الشركة المدمجة]]&مرتب.الاداريين[[#This Row],[الوظيفة]]&مرتب.الاداريين[[#This Row],[الدرجة]] -> 1010321362حسن عبد الصبور السيدالمباشرمحاميالثالثه | L19: 1223.97 | M19: 1468.764 | P19: 183.5955 | Q19: 208.32 | R19: 0 | U19: 0 | V19: 0 | W19: 0 | X19: 0 | AA19: 0 | AD19: 0 | AE19: =SUM(مرتب.الاداريين[[#This Row],[بدل مخاطر]:[بدل تباع]]) -> 391.9155 | AF19: 36.22 | AG19: 40.89 | AH19: 65 | AJ19: 190 | AK19: 25.13 | AL19: 38.11 | AM19: 48.94 | AN19: 69.81 | AO19: 79.93 | AP19: 91.51 | AQ19: 600 | AR19: 10 | AT19: =SUM(مرتب.الاداريين[[#This Row],[علاوة 2014]:[علاوات استثنائة]]) -> 1295.54 | AU19: 10 | AW19: =(مرتب.الاداريين[[#This Row],[التأمينات]]/11%)*18.75% -> 937.5 | AZ19: =SUM(مرتب.الاداريين[[#This Row],[الأجر الأساسي]:[معونة مرضي]],مرتب.الاداريين[[#This Row],[إجمالي بدلات]],مرتب.الاداريين[[#This Row],[إجمالي علاوات]],مرتب.الاداريين[[#This Row],[منحة عيد العمال]:[Column2]]) -> 5327.6895 | BA19: =IF(مرتب.الاداريين[[#This Row],[الإجمالي]]<6000,6000-مرتب.الاداريين[[#This Row],[الإجمالي]],0) -> 672.3105 | BB19: =مرتب.الاداريين[[#This Row],[الإجمالي]]+مرتب.الاداريين[[#This Row],[مكمل الأجر]] -> 6000 | BC19: 0 | BD19: 0 | BE19: 550 | BF19: 0 | BK19: 0 | BL19: 0.5 | BM19: 3 | BN19: 0 | BO19: 0 | BP19: 0 | BR19: 0 | BS19: 0 | BT19: 0 | BV19: 0 | BW19: 0 | BX19: 2.56 | BY19: 3 | CD19: 0 | CE19: 0 | CI19: =مرتب.الاداريين[[#This Row],[حصة صاحب العمل]] -> 937.5 | CJ19: =مرتب.الاداريين[[#This Row],[متوسط مكافأة]] -> 0 | CL19: =SUM(مرتب.الاداريين[[#This Row],[التأمينات]:[Column3]]) -> 1496.56 | CM19: =مرتب.الاداريين[[#This Row],[المستحق]]-مرتب.الاداريين[[#This Row],[إجمالي المستقطع]] -> 4503.44 | CP19: التأمينات | CQ19: كسب عمل 2024 | CR19: غياب بدل مخاطر | CS19: غياب بدل انتقال | CT19: خصم غياب عام | CU19: خصومات إدارية | CV19: اشتراك أجازات خاصة | CW19: اعانه وفاه | CX19: نقابة | CY19: خصم نفقات
C20: 101018 | D20: 11249 | E20: محمد رمضان السيد | H20: المباشر | I20: مدير إدارة الحسابات العامة والميزانية | J20: الاولى | K20: =مرتب.الاداريين[[#This Row],[كود الشركة]]&مرتب.الاداريين[[#This Row],[كود البنك]]&مرتب.الاداريين[[#This Row],[اسم الموظف]]&مرتب.الاداريين[[#This Row],[الرقم القومي]]&مرتب.الاداريين[[#This Row],[رقم الجوال]]&مرتب.الاداريين[[#This Row],[الشركة المدمجة]]&مرتب.الاداريين[[#This Row],[الوظيفة]]&مرتب.الاداريين[[#This Row],[الدرجة]] -> 10101811249محمد رمضان السيدالمباشرمدير إدارة الحسابات العامة والميزانيةالاولى | L20: 2886.58 | M20: 3463.896 | P20: 432.987 | Q20: 188.32 | R20: 0 | U20: 0 | V20: 0 | W20: 0 | X20: 0 | AA20: 0 | AD20: 0 | AE20: =SUM(مرتب.الاداريين[[#This Row],[بدل مخاطر]:[بدل تباع]]) -> 621.307 | AF20: 101.14 | AG20: 112.98 | AH20: 120 | AJ20: 190 | AK20: 57.7 | AL20: 110.11 | AM20: 132.13 | AN20: 188.5 | AO20: 201.7 | AP20: 215.82 | AQ20: 600 | AR20: 10 | AT20: =SUM(مرتب.الاداريين[[#This Row],[علاوة 2014]:[علاوات استثنائة]]) -> 2040.08 | AU20: 10 | AW20: =(مرتب.الاداريين[[#This Row],[التأمينات]]/11%)*18.75% -> 1818.75 | AZ20: =SUM(مرتب.الاداريين[[#This Row],[الأجر الأساسي]:[معونة مرضي]],مرتب.الاداريين[[#This Row],[إجمالي بدلات]],مرتب.الاداريين[[#This Row],[إجمالي علاوات]],مرتب.الاداريين[[#This Row],[منحة عيد العمال]:[Column2]]) -> 10840.613 | BA20: =IF(مرتب.الاداريين[[#This Row],[الإجمالي]]<6000,6000-مرتب.الاداريين[[#This Row],[الإجمالي]],0) -> 0 | BB20: =مرتب.الاداريين[[#This Row],[الإجمالي]]+مرتب.الاداريين[[#This Row],[مكمل الأجر]] -> 10840.613 | BC20: 0 | BD20: 0 | BE20: 1067 | BF20: 25.84 | BK20: 0 | BL20: 0.5 | BM20: 3 | BN20: 0 | BO20: 0 | BP20: 0 | BR20: 0 | BS20: 0 | BT20: 0 | BV20: 0 | BW20: 0 | BX20: 5.14 | BY20: 5 | CD20: 0 | CE20: 0 | CI20: =مرتب.الاداريين[[#This Row],[حصة صاحب العمل]] -> 1818.75 | CJ20: =مرتب.الاداريين[[#This Row],[متوسط مكافأة]] -> 0 | CL20: =SUM(مرتب.الاداريين[[#This Row],[التأمينات]:[Column3]]) -> 2925.23 | CM20: =مرتب.الاداريين[[#This Row],[المستحق]]-مرتب.الاداريين[[#This Row],[إجمالي المستقطع]] -> 7915.383 | CP20: =VLOOKUP($CQ$6,مرتب.الاداريين[],MATCH(CP19,مرتب.الاداريين[#Headers],0)) -> 1100 | CQ20: =VLOOKUP($CQ$6,مرتب.الاداريين[],MATCH(CQ19,مرتب.الاداريين[#Headers],0)) -> 151.25 | CR20: =VLOOKUP($CQ$6,مرتب.الاداريين[],MATCH(CR19,مرتب.الاداريين[#Headers],0)) -> 0 | CS20: =VLOOKUP($CQ$6,مرتب.الاداريين[],MATCH(CS19,مرتب.الاداريين[#Headers],0)) -> 0 | CT20: =VLOOKUP($CQ$6,مرتب.الاداريين[],MATCH(CT19,مرتب.الاداريين[#Headers],0)) ->  | CU20: =VLOOKUP($CQ$6,مرتب.الاداريين[],MATCH(CU19,مرتب.الاداريين[#Headers],0)) ->  | CV20: =VLOOKUP($CQ$6,مرتب.الاداريين[],MATCH(CV19,مرتب.الاداريين[#Headers],0)) -> 6.18 | CW20: =VLOOKUP($CQ$6,مرتب.الاداريين[],MATCH(CW19,مرتب.الاداريين[#Headers],0)) -> 0.5 | CX20: =VLOOKUP($CQ$6,مرتب.الاداريين[],MATCH(CX19,مرتب.الاداريين[#Headers],0)) -> 3 | CY20: =VLOOKUP($CQ$6,مرتب.الاداريين[],MATCH(CY19,مرتب.الاداريين[#Headers],0)) -> 0
C21: 101013 | D21: 11196 | E21: عصمت عبد الرحيم محمد فراج | H21: المباشر | I21: ا.ش.ماليه ثان | J21: الثانية | K21: =مرتب.الاداريين[[#This Row],[كود الشركة]]&مرتب.الاداريين[[#This Row],[كود البنك]]&مرتب.الاداريين[[#This Row],[اسم الموظف]]&مرتب.الاداريين[[#This Row],[الرقم القومي]]&مرتب.الاداريين[[#This Row],[رقم الجوال]]&مرتب.الاداريين[[#This Row],[الشركة المدمجة]]&مرتب.الاداريين[[#This Row],[الوظيفة]]&مرتب.الاداريين[[#This Row],[الدرجة]] -> 10101311196عصمت عبد الرحيم محمد فراجالمباشرا.ش.ماليه ثانالثانية | L21: 2538.76 | M21: 3046.512 | P21: 380.814 | Q21: 188.32 | R21: 0 | U21: 0 | V21: 0 | W21: 0 | X21: 0 | AA21: 0 | AD21: 0 | AE21: =SUM(مرتب.الاداريين[[#This Row],[بدل مخاطر]:[بدل تباع]]) -> 569.134 | AF21: 89.99 | AG21: 100.44 | AH21: 119.89 | AJ21: 190 | AK21: 50.75 | AL21: 90.51 | AM21: 116.21 | AN21: 165.79 | AO21: 177.4 | AP21: 189.81 | AQ21: 600 | AR21: 4 | AT21: =SUM(مرتب.الاداريين[[#This Row],[علاوة 2014]:[علاوات استثنائة]]) -> 1894.79 | AU21: 10 | AW21: =(مرتب.الاداريين[[#This Row],[التأمينات]]/11%)*18.75% -> 1612.5 | AZ21: =SUM(مرتب.الاداريين[[#This Row],[الأجر الأساسي]:[معونة مرضي]],مرتب.الاداريين[[#This Row],[إجمالي بدلات]],مرتب.الاداريين[[#This Row],[إجمالي علاوات]],مرتب.الاداريين[[#This Row],[منحة عيد العمال]:[Column2]]) -> 9671.696 | BA21: =IF(مرتب.الاداريين[[#This Row],[الإجمالي]]<6000,6000-مرتب.الاداريين[[#This Row],[الإجمالي]],0) -> 0 | BB21: =مرتب.الاداريين[[#This Row],[الإجمالي]]+مرتب.الاداريين[[#This Row],[مكمل الأجر]] -> 9671.696 | BC21: 0 | BD21: 0 | BE21: 946 | BF21: 45.75 | BK21: 20.75 | BL21: 0.5 | BM21: 3 | BN21: 0 | BO21: 0 | BP21: 0 | BR21: 0 | BS21: 0 | BT21: 0 | BV21: 0 | BW21: 0 | BX21: 4.53 | BY21: 5 | CD21: 0 | CE21: 0 | CI21: =مرتب.الاداريين[[#This Row],[حصة صاحب العمل]] -> 1612.5 | CJ21: =مرتب.الاداريين[[#This Row],[متوسط مكافأة]] -> 0 | CL21: =SUM(مرتب.الاداريين[[#This Row],[التأمينات]:[Column3]]) -> 2638.03 | CM21: =مرتب.الاداريين[[#This Row],[المستحق]]-مرتب.الاداريين[[#This Row],[إجمالي المستقطع]] -> 7033.666 | CP21: أجر بالزيادة | CQ21: خصم حافز | CR21: سولار | CS21: عهد | CT21: تلفيات | CU21: عجز | CV21: نقليات | CW21: جزاءات | CX21: تنفيذ أحكام | CY21: الشهداء
C22: 101025 | D22: 11328 | E22: خالد احمد محمد حامد | H22: المباشر | I22: ا.ش.مالية | J22: الثانيه | K22: =مرتب.الاداريين[[#This Row],[كود الشركة]]&مرتب.الاداريين[[#This Row],[كود البنك]]&مرتب.الاداريين[[#This Row],[اسم الموظف]]&مرتب.الاداريين[[#This Row],[الرقم القومي]]&مرتب.الاداريين[[#This Row],[رقم الجوال]]&مرتب.الاداريين[[#This Row],[الشركة المدمجة]]&مرتب.الاداريين[[#This Row],[الوظيفة]]&مرتب.الاداريين[[#This Row],[الدرجة]] -> 10102511328خالد احمد محمد حامدالمباشرا.ش.ماليةالثانيه | L22: 1616.72 | M22: 1940.064 | P22: 242.508 | Q22: 188.32 | R22: 0 | U22: 0 | V22: 0 | W22: 0 | X22: 0 | AA22: 0 | AD22: 0 | AE22: =SUM(مرتب.الاداريين[[#This Row],[بدل مخاطر]:[بدل تباع]]) -> 430.828 | AF22: 53.23 | AG22: 59.36 | AH22: 71.24 | AJ22: 190 | AK22: 32.32 | AL22: 57.63 | AM22: 74 | AN22: 105.58 | AO22: 112.97 | AP22: 120.88 | AQ22: 600 | AR22: 6 | AT22: =SUM(مرتب.الاداريين[[#This Row],[علاوة 2014]:[علاوات استثنائة]]) -> 1483.21 | AU22: 10 | AW22: =(مرتب.الاداريين[[#This Row],[التأمينات]]/11%)*18.75% -> 1087.5 | AZ22: =SUM(مرتب.الاداريين[[#This Row],[الأجر الأساسي]:[معونة مرضي]],مرتب.الاداريين[[#This Row],[إجمالي بدلات]],مرتب.الاداريين[[#This Row],[إجمالي علاوات]],مرتب.الاداريين[[#This Row],[منحة عيد العمال]:[Column2]]) -> 6568.322 | BA22: =IF(مرتب.الاداريين[[#This Row],[الإجمالي]]<6000,6000-مرتب.الاداريين[[#This Row],[الإجمالي]],0) -> 0 | BB22: =مرتب.الاداريين[[#This Row],[الإجمالي]]+مرتب.الاداريين[[#This Row],[مكمل الأجر]] -> 6568.322 | BC22: 0 | BD22: 0 | BE22: 638 | BF22: 0 | BK22: 0 | BL22: 0.5 | BM22: 3 | BN22: 0 | BO22: 0 | BP22: 0 | BR22: 0 | BS22: 0 | BT22: 0 | BV22: 0 | BW22: 0 | BX22: 4.14 | BY22: 5 | CD22: 0 | CE22: 0 | CI22: =مرتب.الاداريين[[#This Row],[حصة صاحب العمل]] -> 1087.5 | CJ22: =مرتب.الاداريين[[#This Row],[متوسط مكافأة]] -> 0 | CL22: =SUM(مرتب.الاداريين[[#This Row],[التأمينات]:[Column3]]) -> 1738.14 | CM22: =مرتب.الاداريين[[#This Row],[المستحق]]-مرتب.الاداريين[[#This Row],[إجمالي المستقطع]] -> 4830.182 | CP22: =VLOOKUP($CQ$6,مرتب.الاداريين[],MATCH(CP21,مرتب.الاداريين[#Headers],0)) -> 0 | CQ22: =VLOOKUP($CQ$6,مرتب.الاداريين[],MATCH(CQ21,مرتب.الاداريين[#Headers],0)) -> 0 | CR22: =VLOOKUP($CQ$6,مرتب.الاداريين[],MATCH(CR21,مرتب.الاداريين[#Headers],0)) ->  | CS22: =VLOOKUP($CQ$6,مرتب.الاداريين[],MATCH(CS21,مرتب.الاداريين[#Headers],0)) -> 0 | CT22: =VLOOKUP($CQ$6,مرتب.الاداريين[],MATCH(CT21,مرتب.الاداريين[#Headers],0)) -> 0 | CU22: =VLOOKUP($CQ$6,مرتب.الاداريين[],MATCH(CU21,مرتب.الاداريين[#Headers],0)) -> 0 | CV22: =VLOOKUP($CQ$6,مرتب.الاداريين[],MATCH(CV21,مرتب.الاداريين[#Headers],0)) ->  | CW22: =VLOOKUP($CQ$6,مرتب.الاداريين[],MATCH(CW21,مرتب.الاداريين[#Headers],0)) -> 0 | CX22: =VLOOKUP($CQ$6,مرتب.الاداريين[],MATCH(CX21,مرتب.الاداريين[#Headers],0)) -> 0 | CY22: =VLOOKUP($CQ$6,مرتب.الاداريين[],MATCH(CY21,مرتب.الاداريين[#Headers],0)) -> 5.3
C23: 101024 | D23: 11308 | E23: سماح مختار الدوخنى | H23: المباشر | I23: محاسب | J23: الثانية | K23: =مرتب.الاداريين[[#This Row],[كود الشركة]]&مرتب.الاداريين[[#This Row],[كود البنك]]&مرتب.الاداريين[[#This Row],[اسم الموظف]]&مرتب.الاداريين[[#This Row],[الرقم القومي]]&مرتب.الاداريين[[#This Row],[رقم الجوال]]&مرتب.الاداريين[[#This Row],[الشركة المدمجة]]&مرتب.الاداريين[[#This Row],[الوظيفة]]&مرتب.الاداريين[[#This Row],[الدرجة]] -> 10102411308سماح مختار الدوخنى المباشرمحاسب الثانية | L23: 2213.31 | M23: 2655.972 | P23: 331.9965 | Q23: 188.32 | R23: 0 | U23: 0 | V23: 0 | W23: 0 | X23: 0 | AA23: 0 | AD23: 0 | AE23: =SUM(مرتب.الاداريين[[#This Row],[بدل مخاطر]:[بدل تباع]]) -> 520.3165 | AF23: 72.69 | AG23: 81.33 | AH23: 97.68 | AJ23: 190 | AK23: 44.24 | AL23: 78.9 | AM23: 101.31 | AN23: 144.54 | AO23: 154.66 | AP23: 165.48 | AQ23: 600 | AR23: 6 | AT23: =SUM(مرتب.الاداريين[[#This Row],[علاوة 2014]:[علاوات استثنائة]]) -> 1736.83 | AU23: 10 | AW23: =(مرتب.الاداريين[[#This Row],[التأمينات]]/11%)*18.75% -> 0 | AZ23: =SUM(مرتب.الاداريين[[#This Row],[الأجر الأساسي]:[معونة مرضي]],مرتب.الاداريين[[#This Row],[إجمالي بدلات]],مرتب.الاداريين[[#This Row],[إجمالي علاوات]],مرتب.الاداريين[[#This Row],[منحة عيد العمال]:[Column2]]) -> 7136.4285 | BA23: =IF(مرتب.الاداريين[[#This Row],[الإجمالي]]<6000,6000-مرتب.الاداريين[[#This Row],[الإجمالي]],0) -> 0 | BB23: =مرتب.الاداريين[[#This Row],[الإجمالي]]+مرتب.الاداريين[[#This Row],[مكمل الأجر]] -> 7136.4285 | BC23: 0 | BD23: 0 | BE23: 0 | BF23: 0 | BK23: 321 | BL23: 0.5 | BM23: 3 | BN23: 0 | BO23: 0 | BP23: 1327.99 | BR23: 0 | BS23: 0 | BT23: 0 | BV23: 0 | BW23: 0 | BX23: 2.2 | BY23: 5 | CD23: 0 | CE23: 0 | CI23: =مرتب.الاداريين[[#This Row],[حصة صاحب العمل]] -> 0 | CJ23: =مرتب.الاداريين[[#This Row],[متوسط مكافأة]] -> 0 | CL23: =SUM(مرتب.الاداريين[[#This Row],[التأمينات]:[Column3]]) -> 1659.69 | CM23: =مرتب.الاداريين[[#This Row],[المستحق]]-مرتب.الاداريين[[#This Row],[إجمالي المستقطع]] -> 5476.7385 | CP23: صندوق إعاقة | CQ23: قسط تأمينات | CR23: صندوق تكافل | CS23: مدة سابقة | CT23: معونة اجتماعية | CU23: تأمين صحي بورسعيد | CV23: ت.صاحب العمل | CW23: متوسط منح | CX23: إجمالي المستقطع | CY23: صافي الأجر
C24: 101007 | D24: 2097 | E24: خالد شوقى عبد المحسن | H24: المباشر | I24: ا.ش. مالية ثان | J24: الثانية | K24: =مرتب.الاداريين[[#This Row],[كود الشركة]]&مرتب.الاداريين[[#This Row],[كود البنك]]&مرتب.الاداريين[[#This Row],[اسم الموظف]]&مرتب.الاداريين[[#This Row],[الرقم القومي]]&مرتب.الاداريين[[#This Row],[رقم الجوال]]&مرتب.الاداريين[[#This Row],[الشركة المدمجة]]&مرتب.الاداريين[[#This Row],[الوظيفة]]&مرتب.الاداريين[[#This Row],[الدرجة]] -> 1010072097خالد شوقى عبد المحسنالمباشرا.ش. مالية ثانالثانية | L24: 2222.73 | M24: 0 | P24: 0 | Q24: 0 | R24: 0 | U24: 0 | V24: 0 | W24: 0 | X24: 0 | AA24: 0 | AD24: 0 | AE24: =SUM(مرتب.الاداريين[[#This Row],[بدل مخاطر]:[بدل تباع]]) -> 0 | AF24: 72.96 | AG24: 81.46 | AH24: 98.02 | AJ24: 190 | AK24: 44.43 | AL24: 79.24 | AM24: 101.74 | AN24: 145.15 | AO24: 155.31 | AP24: 166.19 | AQ24: 600 | AR24: 10 | AT24: =SUM(مرتب.الاداريين[[#This Row],[علاوة 2014]:[علاوات استثنائة]]) -> 1744.5 | AU24: 10 | AW24: =(مرتب.الاداريين[[#This Row],[التأمينات]]/11%)*18.75% -> 431.25 | AZ24: =SUM(مرتب.الاداريين[[#This Row],[الأجر الأساسي]:[معونة مرضي]],مرتب.الاداريين[[#This Row],[إجمالي بدلات]],مرتب.الاداريين[[#This Row],[إجمالي علاوات]],مرتب.الاداريين[[#This Row],[منحة عيد العمال]:[Column2]]) -> 4408.48 | BA24: =IF(مرتب.الاداريين[[#This Row],[الإجمالي]]<6000,6000-مرتب.الاداريين[[#This Row],[الإجمالي]],0) -> 1591.52 | BB24: =مرتب.الاداريين[[#This Row],[الإجمالي]]+مرتب.الاداريين[[#This Row],[مكمل الأجر]] -> 6000 | BC24: 0 | BD24: 0 | BE24: 253 | BF24: 0 | BK24: 21.34 | BL24: 0.5 | BM24: 3 | BN24: 0 | BO24: 0 | BP24: 0 | BR24: 0 | BS24: 0 | BT24: 0 | BV24: 0 | BW24: 0 | BX24: 2.25 | BY24: 5 | CD24: 0 | CE24: 0 | CI24: =مرتب.الاداريين[[#This Row],[حصة صاحب العمل]] -> 431.25 | CJ24: =مرتب.الاداريين[[#This Row],[متوسط مكافأة]] -> 0 | CL24: =SUM(مرتب.الاداريين[[#This Row],[التأمينات]:[Column3]]) -> 716.34 | CM24: =مرتب.الاداريين[[#This Row],[المستحق]]-مرتب.الاداريين[[#This Row],[إجمالي المستقطع]] -> 5283.66 | CP24: =VLOOKUP($CQ$6,مرتب.الاداريين[],MATCH(CP23,مرتب.الاداريين[#Headers],0)) -> 10 | CQ24: =VLOOKUP($CQ$6,مرتب.الاداريين[],MATCH(CQ23,مرتب.الاداريين[#Headers],0)) -> 0 | CR24: =VLOOKUP($CQ$6,مرتب.الاداريين[],MATCH(CR23,مرتب.الاداريين[#Headers],0)) -> 0 | CS24: =VLOOKUP($CQ$6,مرتب.الاداريين[],MATCH(CS23,مرتب.الاداريين[#Headers],0)) ->  | CT24: =VLOOKUP($CQ$6,مرتب.الاداريين[],MATCH(CT23,مرتب.الاداريين[#Headers],0)) ->  | CU24: =VLOOKUP($CQ$6,مرتب.الاداريين[],MATCH(CU23,مرتب.الاداريين[#Headers],0)) ->  | CV24: =VLOOKUP($CQ$6,مرتب.الاداريين[],MATCH(CV23,مرتب.الاداريين[#Headers],0)) ->  | CW24: =VLOOKUP($CQ$6,مرتب.الاداريين[],MATCH(CW23,مرتب.الاداريين[#Headers],0)) -> 0 | CX24: =VLOOKUP($CQ$6,مرتب.الاداريين[],MATCH(CX23,مرتب.الاداريين[#Headers],0)) -> 3151.23 | CY24: =VLOOKUP($CQ$6,مرتب.الاداريين[],MATCH(CY23,مرتب.الاداريين[#Headers],0)) -> 8238.832
C25: 101027 | D25: 11347 | E25: طارق سيد قرنى | H25: المباشر | I25: ا.حركة | J25: الثالثه | K25: =مرتب.الاداريين[[#This Row],[كود الشركة]]&مرتب.الاداريين[[#This Row],[كود البنك]]&مرتب.الاداريين[[#This Row],[اسم الموظف]]&مرتب.الاداريين[[#This Row],[الرقم القومي]]&مرتب.الاداريين[[#This Row],[رقم الجوال]]&مرتب.الاداريين[[#This Row],[الشركة المدمجة]]&مرتب.الاداريين[[#This Row],[الوظيفة]]&مرتب.الاداريين[[#This Row],[الدرجة]] -> 10102711347طارق سيد قرنىالمباشرا.حركةالثالثه | L25: 1170.62 | M25: 1404.744 | P25: 175.593 | Q25: 188.32 | R25: 0 | U25: 0 | V25: 0 | W25: 0 | X25: 0 | AA25: 0 | AD25: 0 | AE25: =SUM(مرتب.الاداريين[[#This Row],[بدل مخاطر]:[بدل تباع]]) -> 363.913 | AF25: 41.94 | AG25: 46.57 | AH25: 65 | AJ25: 190 | AK25: 23.4 | AL25: 41.73 | AM25: 53.58 | AN25: 76.45 | AO25: 81.8 | AP25: 87.52 | AQ25: 600 | AR25: 10 | AT25: =SUM(مرتب.الاداريين[[#This Row],[علاوة 2014]:[علاوات استثنائة]]) -> 1317.99 | AU25: 10 | AW25: =(مرتب.الاداريين[[#This Row],[التأمينات]]/11%)*18.75% -> 937.5 | AZ25: =SUM(مرتب.الاداريين[[#This Row],[الأجر الأساسي]:[معونة مرضي]],مرتب.الاداريين[[#This Row],[إجمالي بدلات]],مرتب.الاداريين[[#This Row],[إجمالي علاوات]],مرتب.الاداريين[[#This Row],[منحة عيد العمال]:[Column2]]) -> 5204.767 | BA25: =IF(مرتب.الاداريين[[#This Row],[الإجمالي]]<6000,6000-مرتب.الاداريين[[#This Row],[الإجمالي]],0) -> 795.233 | BB25: =مرتب.الاداريين[[#This Row],[الإجمالي]]+مرتب.الاداريين[[#This Row],[مكمل الأجر]] -> 6000 | BC25: 0 | BD25: 0 | BE25: 550 | BF25: 0 | BK25: 0 | BL25: 0.5 | BM25: 3 | BN25: 0 | BO25: 0 | BP25: 0 | BR25: 0 | BS25: 0 | BT25: 0 | BV25: 0 | BW25: 0 | BX25: 2.77 | BY25: 3 | CD25: 0 | CE25: 0 | CI25: =مرتب.الاداريين[[#This Row],[حصة صاحب العمل]] -> 937.5 | CJ25: =مرتب.الاداريين[[#This Row],[متوسط مكافأة]] -> 0 | CL25: =SUM(مرتب.الاداريين[[#This Row],[التأمينات]:[Column3]]) -> 1496.77 | CM25: =مرتب.الاداريين[[#This Row],[المستحق]]-مرتب.الاداريين[[#This Row],[إجمالي المستقطع]] -> 4503.23
C26: 101003 | D26: 11307 | E26: احمد السيد محمود حشيش | H26: المباشر | I26: مدبر إدارة الضرائب | J26: الاولى | K26: =مرتب.الاداريين[[#This Row],[كود الشركة]]&مرتب.الاداريين[[#This Row],[كود البنك]]&مرتب.الاداريين[[#This Row],[اسم الموظف]]&مرتب.الاداريين[[#This Row],[الرقم القومي]]&مرتب.الاداريين[[#This Row],[رقم الجوال]]&مرتب.الاداريين[[#This Row],[الشركة المدمجة]]&مرتب.الاداريين[[#This Row],[الوظيفة]]&مرتب.الاداريين[[#This Row],[الدرجة]] -> 10100311307احمد السيد محمود حشيشالمباشرمدبر إدارة الضرائبالاولى | L26: =(3190.4)*107% -> 3413.728 | M26: 3828.48 | P26: 478.56 | Q26: 188.32 | R26: 0 | U26: 0 | V26: 0 | W26: 0 | X26: 0 | AA26: 0 | AD26: 0 | AE26: =SUM(مرتب.الاداريين[[#This Row],[بدل مخاطر]:[بدل تباع]]) -> 666.88 | AF26: 86.05 | AG26: 96.36 | AH26: 120 | AJ26: 190 | AK26: 52.06 | AL26: 106.3 | AM26: 136.48 | AN26: 194.72 | AO26: 208.35 | AP26: 238.53 | AQ26: 600 | AR26: 10 | AT26: =SUM(مرتب.الاداريين[[#This Row],[علاوة 2014]:[علاوات استثنائة]]) -> 2038.85 | AU26: 10 | AW26: =(مرتب.الاداريين[[#This Row],[التأمينات]]/11%)*18.75% -> 1968.75 | AZ26: =SUM(مرتب.الاداريين[[#This Row],[الأجر الأساسي]:[معونة مرضي]],مرتب.الاداريين[[#This Row],[إجمالي بدلات]],مرتب.الاداريين[[#This Row],[إجمالي علاوات]],مرتب.الاداريين[[#This Row],[منحة عيد العمال]:[Column2]]) -> 11926.688 | BA26: =IF(مرتب.الاداريين[[#This Row],[الإجمالي]]<6000,6000-مرتب.الاداريين[[#This Row],[الإجمالي]],0) -> 0 | BB26: =مرتب.الاداريين[[#This Row],[الإجمالي]]+مرتب.الاداريين[[#This Row],[مكمل الأجر]] -> 11926.688 | BC26: 0 | BD26: 0 | BE26: 1155 | BF26: 209.87 | BK26: 0 | BL26: 0.5 | BM26: 3 | BN26: 0 | BO26: 0 | BP26: 0 | BR26: 0 | BS26: 0 | BT26: 0 | BV26: 0 | BW26: 0 | BX26: 5.62 | BY26: 5 | CD26: 0 | CE26: 0 | CI26: =مرتب.الاداريين[[#This Row],[حصة صاحب العمل]] -> 1968.75 | CJ26: =مرتب.الاداريين[[#This Row],[متوسط مكافأة]] -> 0 | CL26: =SUM(مرتب.الاداريين[[#This Row],[التأمينات]:[Column3]]) -> 3347.74 | CM26: =مرتب.الاداريين[[#This Row],[المستحق]]-مرتب.الاداريين[[#This Row],[إجمالي المستقطع]] -> 8578.948
C27: 101009 | D27: 11054 | E27: امل احمد عزت | H27: المباشر | I27: ا.ش.ماليه اول | J27: الاولى | K27: =مرتب.الاداريين[[#This Row],[كود الشركة]]&مرتب.الاداريين[[#This Row],[كود البنك]]&مرتب.الاداريين[[#This Row],[اسم الموظف]]&مرتب.الاداريين[[#This Row],[الرقم القومي]]&مرتب.الاداريين[[#This Row],[رقم الجوال]]&مرتب.الاداريين[[#This Row],[الشركة المدمجة]]&مرتب.الاداريين[[#This Row],[الوظيفة]]&مرتب.الاداريين[[#This Row],[الدرجة]] -> 10100911054امل احمد عزتالمباشرا.ش.ماليه اولالاولى | L27: 2674.13 | M27: 3208.956 | P27: 401.1195 | Q27: 188.32 | R27: 0 | U27: 0 | V27: 0 | W27: 0 | X27: 0 | AA27: 0 | AD27: 0 | AE27: =SUM(مرتب.الاداريين[[#This Row],[بدل مخاطر]:[بدل تباع]]) -> 589.4395 | AF27: 93.74 | AG27: 104.69 | AH27: 120 | AJ27: 190 | AK27: 53.46 | AL27: 95.33 | AM27: 122.4 | AN27: 174.63 | AO27: 186.86 | AP27: 199.94 | AQ27: 600 | AR27: 6 | AT27: =SUM(مرتب.الاداريين[[#This Row],[علاوة 2014]:[علاوات استثنائة]]) -> 1947.05 | AU27: 10 | AW27: =(مرتب.الاداريين[[#This Row],[التأمينات]]/11%)*18.75% -> 1687.5 | AZ27: =SUM(مرتب.الاداريين[[#This Row],[الأجر الأساسي]:[معونة مرضي]],مرتب.الاداريين[[#This Row],[إجمالي بدلات]],مرتب.الاداريين[[#This Row],[إجمالي علاوات]],مرتب.الاداريين[[#This Row],[منحة عيد العمال]:[Column2]]) -> 10117.0755 | BA27: =IF(مرتب.الاداريين[[#This Row],[الإجمالي]]<6000,6000-مرتب.الاداريين[[#This Row],[الإجمالي]],0) -> 0 | BB27: =مرتب.الاداريين[[#This Row],[الإجمالي]]+مرتب.الاداريين[[#This Row],[مكمل الأجر]] -> 10117.0755 | BC27: 0 | BD27: 0 | BE27: 990 | BF27: 73.09 | BK27: 0 | BL27: 0.5 | BM27: 3 | BN27: 0 | BO27: 0 | BP27: 0 | BR27: 0 | BS27: 0 | BT27: 0 | BV27: 0 | BW27: 0 | BX27: 4.79 | BY27: 5 | CD27: 0 | CE27: 0 | CI27: =مرتب.الاداريين[[#This Row],[حصة صاحب العمل]] -> 1687.5 | CJ27: =مرتب.الاداريين[[#This Row],[متوسط مكافأة]] -> 0 | CL27: =SUM(مرتب.الاداريين[[#This Row],[التأمينات]:[Column3]]) -> 2763.88 | CM27: =مرتب.الاداريين[[#This Row],[المستحق]]-مرتب.الاداريين[[#This Row],[إجمالي المستقطع]] -> 7353.1955
C28: 101033 | D28: 11364 | E28: محمد حسين محمد عثمان | H28: المباشر | I28: محاسب | J28: الثالثه | K28: =مرتب.الاداريين[[#This Row],[كود الشركة]]&مرتب.الاداريين[[#This Row],[كود البنك]]&مرتب.الاداريين[[#This Row],[اسم الموظف]]&مرتب.الاداريين[[#This Row],[الرقم القومي]]&مرتب.الاداريين[[#This Row],[رقم الجوال]]&مرتب.الاداريين[[#This Row],[الشركة المدمجة]]&مرتب.الاداريين[[#This Row],[الوظيفة]]&مرتب.الاداريين[[#This Row],[الدرجة]] -> 10103311364محمد حسين محمد عثمانالمباشرمحاسبالثالثه | L28: 1069.06 | M28: 1282.872 | P28: 160.359 | Q28: 188.32 | R28: 0 | U28: 0 | V28: 0 | W28: 0 | X28: 0 | AA28: 0 | AD28: 0 | AE28: =SUM(مرتب.الاداريين[[#This Row],[بدل مخاطر]:[بدل تباع]]) -> 348.679 | AF28: 36.22 | AG28: 40.9 | AH28: 65 | AJ28: 190 | AK28: 25.14 | AL28: 38.11 | AM28: 48.93 | AN28: 69.81 | AO28: 74.7 | AP28: 80.07 | AQ28: 600 | AR28: 8 | AT28: =SUM(مرتب.الاداريين[[#This Row],[علاوة 2014]:[علاوات استثنائة]]) -> 1276.88 | AU28: 10 | AW28: =(مرتب.الاداريين[[#This Row],[التأمينات]]/11%)*18.75% -> 937.5 | AZ28: =SUM(مرتب.الاداريين[[#This Row],[الأجر الأساسي]:[معونة مرضي]],مرتب.الاداريين[[#This Row],[إجمالي بدلات]],مرتب.الاداريين[[#This Row],[إجمالي علاوات]],مرتب.الاداريين[[#This Row],[منحة عيد العمال]:[Column2]]) -> 4924.991 | BA28: =IF(مرتب.الاداريين[[#This Row],[الإجمالي]]<6000,6000-مرتب.الاداريين[[#This Row],[الإجمالي]],0) -> 1075.009 | BB28: =مرتب.الاداريين[[#This Row],[الإجمالي]]+مرتب.الاداريين[[#This Row],[مكمل الأجر]] -> 6000 | BC28: 0 | BD28: 0 | BE28: 550 | BF28: 0 | BK28: 0 | BL28: 0.5 | BM28: 3 | BN28: 0 | BO28: 0 | BP28: 0 | BR28: 0 | BS28: 0 | BT28: 0 | BV28: 0 | BW28: 0 | BX28: 2.79 | BY28: 3 | CD28: 0 | CE28: 0 | CI28: =مرتب.الاداريين[[#This Row],[حصة صاحب العمل]] -> 937.5 | CJ28: =مرتب.الاداريين[[#This Row],[متوسط مكافأة]] -> 0 | CL28: =SUM(مرتب.الاداريين[[#This Row],[التأمينات]:[Column3]]) -> 1496.79 | CM28: =مرتب.الاداريين[[#This Row],[المستحق]]-مرتب.الاداريين[[#This Row],[إجمالي المستقطع]] -> 4503.21 | CY28: المستحقات
C29: 101057 | D29: 21836 | E29: مجدى سليمان على فاضل | H29: المباشر | I29: امين مخزن | J29: الثانيه | K29: =مرتب.الاداريين[[#This Row],[كود الشركة]]&مرتب.الاداريين[[#This Row],[كود البنك]]&مرتب.الاداريين[[#This Row],[اسم الموظف]]&مرتب.الاداريين[[#This Row],[الرقم القومي]]&مرتب.الاداريين[[#This Row],[رقم الجوال]]&مرتب.الاداريين[[#This Row],[الشركة المدمجة]]&مرتب.الاداريين[[#This Row],[الوظيفة]]&مرتب.الاداريين[[#This Row],[الدرجة]] -> 10105721836مجدى سليمان على فاضلالمباشرامين مخزنالثانيه | L29: 2330.37 | M29: 2796.444 | P29: 349.5555 | Q29: 188.32 | R29: 0 | U29: 0 | V29: 0 | W29: 0 | X29: 0 | AA29: 0 | AD29: 0 | AE29: =SUM(مرتب.الاداريين[[#This Row],[بدل مخاطر]:[بدل تباع]]) -> 537.8755 | AF29: 76.44 | AG29: 85.57 | AH29: 102.85 | AJ29: 190 | AK29: 46.58 | AL29: 83.08 | AM29: 106.67 | AN29: 152.18 | AO29: 162.84 | AP29: 174.23 | AQ29: 600 | AR29: 6 | AT29: =SUM(مرتب.الاداريين[[#This Row],[علاوة 2014]:[علاوات استثنائة]]) -> 1786.44 | AU29: 10 | AW29: =(مرتب.الاداريين[[#This Row],[التأمينات]]/11%)*18.75% -> 1500 | AZ29: =SUM(مرتب.الاداريين[[#This Row],[الأجر الأساسي]:[معونة مرضي]],مرتب.الاداريين[[#This Row],[إجمالي بدلات]],مرتب.الاداريين[[#This Row],[إجمالي علاوات]],مرتب.الاداريين[[#This Row],[منحة عيد العمال]:[Column2]]) -> 8961.1295 | BA29: =IF(مرتب.الاداريين[[#This Row],[الإجمالي]]<6000,6000-مرتب.الاداريين[[#This Row],[الإجمالي]],0) -> 0 | BB29: =مرتب.الاداريين[[#This Row],[الإجمالي]]+مرتب.الاداريين[[#This Row],[مكمل الأجر]] -> 8961.1295 | BC29: 0 | BD29: 0 | BE29: 880 | BF29: 0 | BK29: 0 | BL29: 0.5 | BM29: 3 | BN29: 0 | BO29: 0 | BP29: 0 | BR29: 0 | BS29: 0 | BT29: 0 | BV29: 0 | BW29: 0 | BX29: 4.26 | BY29: 5 | CD29: 0 | CE29: 0 | CI29: =مرتب.الاداريين[[#This Row],[حصة صاحب العمل]] -> 1500 | CJ29: =مرتب.الاداريين[[#This Row],[متوسط مكافأة]] -> 0 | CL29: =SUM(مرتب.الاداريين[[#This Row],[التأمينات]:[Column3]]) -> 2392.76 | CM29: =مرتب.الاداريين[[#This Row],[المستحق]]-مرتب.الاداريين[[#This Row],[إجمالي المستقطع]] -> 6568.3695 | CP29: كود البنك | CR29: اسم الموظف | CW29: الشركة المدمجة | CX29: الوظيفة | CY29: الدرجة
C30: 101075 | D30: 22068 | E30: عمرو فهمى زكى محمد | H30: المباشر | I30: مدير إدارة التحصيل | J30: الاولى | K30: =مرتب.الاداريين[[#This Row],[كود الشركة]]&مرتب.الاداريين[[#This Row],[كود البنك]]&مرتب.الاداريين[[#This Row],[اسم الموظف]]&مرتب.الاداريين[[#This Row],[الرقم القومي]]&مرتب.الاداريين[[#This Row],[رقم الجوال]]&مرتب.الاداريين[[#This Row],[الشركة المدمجة]]&مرتب.الاداريين[[#This Row],[الوظيفة]]&مرتب.الاداريين[[#This Row],[الدرجة]] -> 10107522068عمرو فهمى زكى محمد المباشرمدير إدارة التحصيلالاولى | L30: 2411.81 | M30: 2894.172 | P30: 361.7715 | Q30: 188.32 | R30: 0 | U30: 0 | V30: 0 | W30: 0 | X30: 0 | AA30: 0 | AD30: 0 | AE30: =SUM(مرتب.الاداريين[[#This Row],[بدل مخاطر]:[بدل تباع]]) -> 550.0915 | AF30: 79.33 | AG30: 88.57 | AH30: 106.34 | AJ30: 190 | AK30: 48.21 | AL30: 85.98 | AM30: 110.4 | AN30: 157.5 | AO30: 168.53 | AP30: 180.32 | AQ30: 600 | AR30: 10 | AT30: =SUM(مرتب.الاداريين[[#This Row],[علاوة 2014]:[علاوات استثنائة]]) -> 1825.18 | AU30: 10 | AW30: =(مرتب.الاداريين[[#This Row],[التأمينات]]/11%)*18.75% -> 1537.5 | AZ30: =SUM(مرتب.الاداريين[[#This Row],[الأجر الأساسي]:[معونة مرضي]],مرتب.الاداريين[[#This Row],[إجمالي بدلات]],مرتب.الاداريين[[#This Row],[إجمالي علاوات]],مرتب.الاداريين[[#This Row],[منحة عيد العمال]:[Column2]]) -> 9228.7535 | BA30: =IF(مرتب.الاداريين[[#This Row],[الإجمالي]]<6000,6000-مرتب.الاداريين[[#This Row],[الإجمالي]],0) -> 0 | BB30: =مرتب.الاداريين[[#This Row],[الإجمالي]]+مرتب.الاداريين[[#This Row],[مكمل الأجر]] -> 9228.7535 | BC30: 0 | BD30: 0 | BE30: 902 | BF30: 25.75 | BK30: 0 | BL30: 0.5 | BM30: 3 | BN30: 0 | BO30: 0 | BP30: 0 | BR30: 0 | BS30: 0 | BT30: 0 | BV30: 0 | BW30: 0 | BX30: 4.39 | BY30: 5 | CD30: 0 | CE30: 0 | CI30: =مرتب.الاداريين[[#This Row],[حصة صاحب العمل]] -> 1537.5 | CJ30: =مرتب.الاداريين[[#This Row],[متوسط مكافأة]] -> 0 | CL30: =SUM(مرتب.الاداريين[[#This Row],[التأمينات]:[Column3]]) -> 2478.14 | CM30: =مرتب.الاداريين[[#This Row],[المستحق]]-مرتب.الاداريين[[#This Row],[إجمالي المستقطع]] -> 6750.6135
C31: 101020 | D31: 11296 | E31: هند سيد احمد موسي | H31: المباشر | I31: رئيس قسم مراجعه الفواتير | J31: الثانيه | K31: =مرتب.الاداريين[[#This Row],[كود الشركة]]&مرتب.الاداريين[[#This Row],[كود البنك]]&مرتب.الاداريين[[#This Row],[اسم الموظف]]&مرتب.الاداريين[[#This Row],[الرقم القومي]]&مرتب.الاداريين[[#This Row],[رقم الجوال]]&مرتب.الاداريين[[#This Row],[الشركة المدمجة]]&مرتب.الاداريين[[#This Row],[الوظيفة]]&مرتب.الاداريين[[#This Row],[الدرجة]] -> 10102011296هند سيد احمد موسيالمباشررئيس قسم مراجعه الفواتيرالثانيه | L31: 2233.06 | M31: 2679.672 | P31: 334.959 | Q31: 188.32 | R31: 0 | U31: 0 | V31: 0 | W31: 0 | X31: 0 | AA31: 0 | AD31: 0 | AE31: =SUM(مرتب.الاداريين[[#This Row],[بدل مخاطر]:[بدل تباع]]) -> 523.279 | AF31: 73.27 | AG31: 82.02 | AH31: 98.55 | AJ31: 190 | AK31: 44.64 | AL31: 79.61 | AM31: 102.22 | AN31: 145.83 | AO31: 156.04 | AP31: 166.69 | AQ31: 600 | AR31: 4 | AT31: =SUM(مرتب.الاداريين[[#This Row],[علاوة 2014]:[علاوات استثنائة]]) -> 1742.87 | AU31: 10 | AW31: =(مرتب.الاداريين[[#This Row],[التأمينات]]/11%)*18.75% -> 1443.75 | AZ31: =SUM(مرتب.الاداريين[[#This Row],[الأجر الأساسي]:[معونة مرضي]],مرتب.الاداريين[[#This Row],[إجمالي بدلات]],مرتب.الاداريين[[#This Row],[إجمالي علاوات]],مرتب.الاداريين[[#This Row],[منحة عيد العمال]:[Column2]]) -> 8632.631 | BA31: =IF(مرتب.الاداريين[[#This Row],[الإجمالي]]<6000,6000-مرتب.الاداريين[[#This Row],[الإجمالي]],0) -> 0 | BB31: =مرتب.الاداريين[[#This Row],[الإجمالي]]+مرتب.الاداريين[[#This Row],[مكمل الأجر]] -> 8632.631 | BC31: 0 | BD31: 0 | BE31: 847 | BF31: 0 | BK31: 0 | BL31: 0.5 | BM31: 3 | BN31: 0 | BO31: 0 | BP31: 0 | BR31: 0 | BS31: 0 | BT31: 0 | BV31: 0 | BW31: 0 | BX31: 4.1 | BY31: 5 | CD31: 0 | CE31: 0 | CI31: =مرتب.الاداريين[[#This Row],[حصة صاحب العمل]] -> 1443.75 | CJ31: =مرتب.الاداريين[[#This Row],[متوسط مكافأة]] -> 0 | CL31: =SUM(مرتب.الاداريين[[#This Row],[التأمينات]:[Column3]]) -> 2303.35 | CM31: =مرتب.الاداريين[[#This Row],[المستحق]]-مرتب.الاداريين[[#This Row],[إجمالي المستقطع]] -> 6329.281 | CP31: الأجر الأساسي | CQ31: الحافز | CR31: عمولة انتاج | CS31: معونة مرضي | CT31: بدل مخاطر | CU31: بدل انتقال | CV31: بدل انتقال محامين | CW31: بدل اقامة | CX31: بدل نقدي | CY31: بدل خزينة
C32: 101005 | D32: 22037 | E32: ناهد حسن توفيق | H32: المباشر | I32: مدير ادارة البحوث الهندسية | J32: الاولى | K32: =مرتب.الاداريين[[#This Row],[كود الشركة]]&مرتب.الاداريين[[#This Row],[كود البنك]]&مرتب.الاداريين[[#This Row],[اسم الموظف]]&مرتب.الاداريين[[#This Row],[الرقم القومي]]&مرتب.الاداريين[[#This Row],[رقم الجوال]]&مرتب.الاداريين[[#This Row],[الشركة المدمجة]]&مرتب.الاداريين[[#This Row],[الوظيفة]]&مرتب.الاداريين[[#This Row],[الدرجة]] -> 10100522037ناهد حسن توفيقالمباشرمدير ادارة البحوث الهندسيةالاولى | L32: =(2780)*107% -> 2974.6 | M32: 3336 | P32: 417 | Q32: 188.32 | R32: 0 | U32: 0 | V32: 0 | W32: 0 | X32: 0 | AA32: 0 | AD32: 0 | AE32: =SUM(مرتب.الاداريين[[#This Row],[بدل مخاطر]:[بدل تباع]]) -> 605.32 | AF32: 85.66 | AG32: 95.68 | AH32: 120 | AJ32: 190 | AK32: 51.93 | AL32: 92.62 | AM32: 118.93 | AN32: 181.54 | AO32: 194.25 | AP32: 207.85 | AQ32: 600 | AR32: 6 | AT32: =SUM(مرتب.الاداريين[[#This Row],[علاوة 2014]:[علاوات استثنائة]]) -> 1944.46 | AU32: 10 | AW32: =(مرتب.الاداريين[[#This Row],[التأمينات]]/11%)*18.75% -> 1743.75 | AZ32: =SUM(مرتب.الاداريين[[#This Row],[الأجر الأساسي]:[معونة مرضي]],مرتب.الاداريين[[#This Row],[إجمالي بدلات]],مرتب.الاداريين[[#This Row],[إجمالي علاوات]],مرتب.الاداريين[[#This Row],[منحة عيد العمال]:[Column2]]) -> 10614.13 | BA32: =IF(مرتب.الاداريين[[#This Row],[الإجمالي]]<6000,6000-مرتب.الاداريين[[#This Row],[الإجمالي]],0) -> 0 | BB32: =مرتب.الاداريين[[#This Row],[الإجمالي]]+مرتب.الاداريين[[#This Row],[مكمل الأجر]] -> 10614.13 | BC32: 0 | BD32: 0 | BE32: 1023 | BF32: 100.34 | BK32: 1.68 | BL32: 0.5 | BM32: 3 | BN32: 0 | BO32: 0 | BP32: 0 | BR32: 0 | BS32: 0 | BT32: 0 | BV32: 0 | BW32: 0 | BX32: 4.95 | BY32: 5 | CD32: 0 | CE32: 0 | CI32: =مرتب.الاداريين[[#This Row],[حصة صاحب العمل]] -> 1743.75 | CJ32: =مرتب.الاداريين[[#This Row],[متوسط مكافأة]] -> 0 | CL32: =SUM(مرتب.الاداريين[[#This Row],[التأمينات]:[Column3]]) -> 2882.22 | CM32: =مرتب.الاداريين[[#This Row],[المستحق]]-مرتب.الاداريين[[#This Row],[إجمالي المستقطع]] -> 7731.91
C33: 101010 | D33: 11122 | E33: عزه عبد الرحيم محمد فراج | H33: المباشر | I33: مدير إدارة المشتريات | J33: الاولى | K33: =مرتب.الاداريين[[#This Row],[كود الشركة]]&مرتب.الاداريين[[#This Row],[كود البنك]]&مرتب.الاداريين[[#This Row],[اسم الموظف]]&مرتب.الاداريين[[#This Row],[الرقم القومي]]&مرتب.الاداريين[[#This Row],[رقم الجوال]]&مرتب.الاداريين[[#This Row],[الشركة المدمجة]]&مرتب.الاداريين[[#This Row],[الوظيفة]]&مرتب.الاداريين[[#This Row],[الدرجة]] -> 10101011122عزه عبد الرحيم محمد فراجالمباشرمدير إدارة المشترياتالاولى | L33: 3009.44 | M33: 3611.328 | P33: 451.416 | Q33: 188.32 | R33: 0 | U33: 0 | V33: 0 | W33: 0 | X33: 0 | AA33: 0 | AD33: 0 | AE33: =SUM(مرتب.الاداريين[[#This Row],[بدل مخاطر]:[بدل تباع]]) -> 639.736 | AF33: 88.14 | AG33: 98.75 | AH33: 120 | AJ33: 190 | AK33: 56.22 | AL33: 107.28 | AM33: 137.75 | AN33: 196.53 | AO33: 210.28 | AP33: 225 | AQ33: 600 | AR33: 6 | AT33: =SUM(مرتب.الاداريين[[#This Row],[علاوة 2014]:[علاوات استثنائة]]) -> 2035.95 | AU33: 10 | AW33: =(مرتب.الاداريين[[#This Row],[التأمينات]]/11%)*18.75% -> 1875 | AZ33: =SUM(مرتب.الاداريين[[#This Row],[الأجر الأساسي]:[معونة مرضي]],مرتب.الاداريين[[#This Row],[إجمالي بدلات]],مرتب.الاداريين[[#This Row],[إجمالي علاوات]],مرتب.الاداريين[[#This Row],[منحة عيد العمال]:[Column2]]) -> 11181.454 | BA33: =IF(مرتب.الاداريين[[#This Row],[الإجمالي]]<6000,6000-مرتب.الاداريين[[#This Row],[الإجمالي]],0) -> 0 | BB33: =مرتب.الاداريين[[#This Row],[الإجمالي]]+مرتب.الاداريين[[#This Row],[مكمل الأجر]] -> 11181.454 | BC33: 0 | BD33: 0 | BE33: 1100 | BF33: 154.62 | BK33: 0 | BL33: 0.5 | BM33: 3 | BN33: 0 | BO33: 0 | BP33: 0 | BR33: 0 | BS33: 0 | BT33: 0 | BV33: 0 | BW33: 0 | BX33: 5.32 | BY33: 5 | CD33: 0 | CE33: 0 | CI33: =مرتب.الاداريين[[#This Row],[حصة صاحب العمل]] -> 1875 | CJ33: =مرتب.الاداريين[[#This Row],[متوسط مكافأة]] -> 0 | CL33: =SUM(مرتب.الاداريين[[#This Row],[التأمينات]:[Column3]]) -> 3143.44 | CM33: =مرتب.الاداريين[[#This Row],[المستحق]]-مرتب.الاداريين[[#This Row],[إجمالي المستقطع]] -> 8038.014 | CP33: بدل غذاء | CQ33: بدل مظهر | CR33: بدل تمثيل | CS33: بدل ضيافة | CT33: بدل مواصلات | CU33: بدل شاشة | CV33: بدل وجبة | CW33: بدل تفرغ | CX33: بدل تباع
C34: 101073 | D34: 22052 | E34: محمد احمد السيد خليل | H34: المباشر | I34: رئيس قسم والمشتريات | J34: الثانية | K34: =مرتب.الاداريين[[#This Row],[كود الشركة]]&مرتب.الاداريين[[#This Row],[كود البنك]]&مرتب.الاداريين[[#This Row],[اسم الموظف]]&مرتب.الاداريين[[#This Row],[الرقم القومي]]&مرتب.الاداريين[[#This Row],[رقم الجوال]]&مرتب.الاداريين[[#This Row],[الشركة المدمجة]]&مرتب.الاداريين[[#This Row],[الوظيفة]]&مرتب.الاداريين[[#This Row],[الدرجة]] -> 10107322052محمد احمد السيد خليلالمباشررئيس قسم والمشترياتالثانية | L34: 2222.9 | M34: 2667.48 | P34: 333.435 | Q34: 188.32 | R34: 0 | U34: 0 | V34: 0 | W34: 0 | X34: 0 | AA34: 0 | AD34: 0 | AE34: =SUM(مرتب.الاداريين[[#This Row],[بدل مخاطر]:[بدل تباع]]) -> 521.755 | AF34: 72.97 | AG34: 81.47 | AH34: 98.03 | AJ34: 190 | AK34: 44.43 | AL34: 79.24 | AM34: 101.75 | AN34: 145.16 | AO34: 155.33 | AP34: 166.2 | AQ34: 600 | AR34: 10 | AT34: =SUM(مرتب.الاداريين[[#This Row],[علاوة 2014]:[علاوات استثنائة]]) -> 1744.58 | AU34: 10 | AW34: =(مرتب.الاداريين[[#This Row],[التأمينات]]/11%)*18.75% -> 1425 | AZ34: =SUM(مرتب.الاداريين[[#This Row],[الأجر الأساسي]:[معونة مرضي]],مرتب.الاداريين[[#This Row],[إجمالي بدلات]],مرتب.الاداريين[[#This Row],[إجمالي علاوات]],مرتب.الاداريين[[#This Row],[منحة عيد العمال]:[Column2]]) -> 8591.715 | BA34: =IF(مرتب.الاداريين[[#This Row],[الإجمالي]]<6000,6000-مرتب.الاداريين[[#This Row],[الإجمالي]],0) -> 0 | BB34: =مرتب.الاداريين[[#This Row],[الإجمالي]]+مرتب.الاداريين[[#This Row],[مكمل الأجر]] -> 8591.715 | BC34: 0 | BD34: 0 | BE34: 836 | BF34: 0 | BK34: 58.35 | BL34: 0.5 | BM34: 3 | BN34: 0 | BO34: 0 | BP34: 0 | BR34: 0 | BS34: 0 | BT34: 0 | BV34: 0 | BW34: 0 | BX34: 4.09 | BY34: 5 | CD34: 0 | CE34: 0 | CI34: =مرتب.الاداريين[[#This Row],[حصة صاحب العمل]] -> 1425 | CJ34: =مرتب.الاداريين[[#This Row],[متوسط مكافأة]] -> 0 | CL34: =SUM(مرتب.الاداريين[[#This Row],[التأمينات]:[Column3]]) -> 2331.94 | CM34: =مرتب.الاداريين[[#This Row],[المستحق]]-مرتب.الاداريين[[#This Row],[إجمالي المستقطع]] -> 6259.775
C35: 101051 | D35: 21675 | E35: خالد سيد احمد موسي | H35: المباشر | I35: رئيس قسم الاستخدامات | J35: الثانيه | K35: =مرتب.الاداريين[[#This Row],[كود الشركة]]&مرتب.الاداريين[[#This Row],[كود البنك]]&مرتب.الاداريين[[#This Row],[اسم الموظف]]&مرتب.الاداريين[[#This Row],[الرقم القومي]]&مرتب.الاداريين[[#This Row],[رقم الجوال]]&مرتب.الاداريين[[#This Row],[الشركة المدمجة]]&مرتب.الاداريين[[#This Row],[الوظيفة]]&مرتب.الاداريين[[#This Row],[الدرجة]] -> 10105121675خالد سيد احمد موسيالمباشررئيس قسم الاستخداماتالثانيه | L35: 2427.49 | M35: 2912.988 | P35: 364.1235 | Q35: 188.32 | R35: 0 | U35: 0 | V35: 0 | W35: 0 | X35: 0 | AA35: 0 | AD35: 0 | AE35: =SUM(مرتب.الاداريين[[#This Row],[بدل مخاطر]:[بدل تباع]]) -> 552.4435 | AF35: 79.6 | AG35: 89.12 | AH35: 107.15 | AJ35: 190 | AK35: 48.53 | AL35: 86.54 | AM35: 111.12 | AN35: 158.52 | AO35: 169.62 | AP35: 181.49 | AQ35: 600 | AR35: 10 | AT35: =SUM(مرتب.الاداريين[[#This Row],[علاوة 2014]:[علاوات استثنائة]]) -> 1831.69 | AU35: 10 | AW35: =(مرتب.الاداريين[[#This Row],[التأمينات]]/11%)*18.75% -> 1556.25 | AZ35: =SUM(مرتب.الاداريين[[#This Row],[الأجر الأساسي]:[معونة مرضي]],مرتب.الاداريين[[#This Row],[إجمالي بدلات]],مرتب.الاداريين[[#This Row],[إجمالي علاوات]],مرتب.الاداريين[[#This Row],[منحة عيد العمال]:[Column2]]) -> 9290.8615 | BA35: =IF(مرتب.الاداريين[[#This Row],[الإجمالي]]<6000,6000-مرتب.الاداريين[[#This Row],[الإجمالي]],0) -> 0 | BB35: =مرتب.الاداريين[[#This Row],[الإجمالي]]+مرتب.الاداريين[[#This Row],[مكمل الأجر]] -> 9290.8615 | BC35: 0 | BD35: 0 | BE35: 913 | BF35: 25.84 | BK35: 8.18 | BL35: 0.5 | BM35: 3 | BN35: 0 | BO35: 0 | BP35: 0 | BR35: 0 | BS35: 0 | BT35: 0 | BV35: 0 | BW35: 0 | BX35: 4.42 | BY35: 3 | CD35: 0 | CE35: 0 | CI35: =مرتب.الاداريين[[#This Row],[حصة صاحب العمل]] -> 1556.25 | CJ35: =مرتب.الاداريين[[#This Row],[متوسط مكافأة]] -> 0 | CL35: =SUM(مرتب.الاداريين[[#This Row],[التأمينات]:[Column3]]) -> 2514.19 | CM35: =مرتب.الاداريين[[#This Row],[المستحق]]-مرتب.الاداريين[[#This Row],[إجمالي المستقطع]] -> 6776.6715 | CP35: علاوة 2014 | CQ35: علاوة 2015 | CR35: علاوة 2016 | CS35: علاوة 2017 | CT35: علاوة 2018 | CU35: علاوة 2019 | CV35: علاوة 2020 | CW35: علاوة 2021 | CX35: علاوة 2022 | CY35: علاوة 2023
C36: 101049 | D36: 21663 | E36: ماهر سعيد عبد النبي | H36: المباشر | I36: امين مخزن | J36: الثالثه | K36: =مرتب.الاداريين[[#This Row],[كود الشركة]]&مرتب.الاداريين[[#This Row],[كود البنك]]&مرتب.الاداريين[[#This Row],[اسم الموظف]]&مرتب.الاداريين[[#This Row],[الرقم القومي]]&مرتب.الاداريين[[#This Row],[رقم الجوال]]&مرتب.الاداريين[[#This Row],[الشركة المدمجة]]&مرتب.الاداريين[[#This Row],[الوظيفة]]&مرتب.الاداريين[[#This Row],[الدرجة]] -> 10104921663ماهر سعيد عبد النبيالمباشرامين مخزنالثالثه | L36: 2118.21 | M36: 2541.852 | P36: 317.7315 | Q36: 188.32 | R36: 0 | U36: 0 | V36: 0 | W36: 0 | X36: 0 | AA36: 0 | AD36: 0 | AE36: =SUM(مرتب.الاداريين[[#This Row],[بدل مخاطر]:[بدل تباع]]) -> 506.0515 | AF36: 70.12 | AG36: 78.28 | AH36: 100.31 | AJ36: 190 | AK36: 42.34 | AL36: 75.51 | AM36: 96.96 | AN36: 138.33 | AO36: 148.31 | AP36: 158.37 | AQ36: 600 | AR36: 10 | AT36: =SUM(مرتب.الاداريين[[#This Row],[علاوة 2014]:[علاوات استثنائة]]) -> 1708.53 | AU36: 10 | AW36: =(مرتب.الاداريين[[#This Row],[التأمينات]]/11%)*18.75% -> 1368.75 | AZ36: =SUM(مرتب.الاداريين[[#This Row],[الأجر الأساسي]:[معونة مرضي]],مرتب.الاداريين[[#This Row],[إجمالي بدلات]],مرتب.الاداريين[[#This Row],[إجمالي علاوات]],مرتب.الاداريين[[#This Row],[منحة عيد العمال]:[Column2]]) -> 8253.3935 | BA36: =IF(مرتب.الاداريين[[#This Row],[الإجمالي]]<6000,6000-مرتب.الاداريين[[#This Row],[الإجمالي]],0) -> 0 | BB36: =مرتب.الاداريين[[#This Row],[الإجمالي]]+مرتب.الاداريين[[#This Row],[مكمل الأجر]] -> 8253.3935 | BC36: 0 | BD36: 0 | BE36: 803 | BF36: 0 | BK36: 33.02 | BL36: 0.5 | BM36: 3 | BN36: 0 | BO36: 0 | BP36: 0 | BR36: 0 | BS36: 0 | BT36: 0 | BV36: 0 | BW36: 0 | BX36: 3.94 | BY36: 3 | CD36: 0 | CE36: 0 | CI36: =مرتب.الاداريين[[#This Row],[حصة صاحب العمل]] -> 1368.75 | CJ36: =مرتب.الاداريين[[#This Row],[متوسط مكافأة]] -> 0 | CL36: =SUM(مرتب.الاداريين[[#This Row],[التأمينات]:[Column3]]) -> 2215.21 | CM36: =مرتب.الاداريين[[#This Row],[المستحق]]-مرتب.الاداريين[[#This Row],[إجمالي المستقطع]] -> 6038.1835
C37: 101061 | D37: 21916 | E37: عادل محي الدين محمد | H37: المباشر | I37: امين مخزن | J37: الثانيه | K37: =مرتب.الاداريين[[#This Row],[كود الشركة]]&مرتب.الاداريين[[#This Row],[كود البنك]]&مرتب.الاداريين[[#This Row],[اسم الموظف]]&مرتب.الاداريين[[#This Row],[الرقم القومي]]&مرتب.الاداريين[[#This Row],[رقم الجوال]]&مرتب.الاداريين[[#This Row],[الشركة المدمجة]]&مرتب.الاداريين[[#This Row],[الوظيفة]]&مرتب.الاداريين[[#This Row],[الدرجة]] -> 10106121916عادل محي الدين محمدالمباشرامين مخزنالثانيه | L37: 2289.66 | M37: 2747.592 | P37: 343.449 | Q37: 188.32 | R37: 0 | U37: 0 | V37: 0 | W37: 0 | X37: 0 | AA37: 0 | AD37: 0 | AE37: =SUM(مرتب.الاداريين[[#This Row],[بدل مخاطر]:[بدل تباع]]) -> 531.769 | AF37: 81.21 | AG37: 90.62 | AH37: 108.11 | AJ37: 190 | AK37: 45.77 | AL37: 81.63 | AM37: 104.81 | AN37: 149.52 | AO37: 159.99 | AP37: 171.19 | AQ37: 600 | AR37: 8 | AT37: =SUM(مرتب.الاداريين[[#This Row],[علاوة 2014]:[علاوات استثنائة]]) -> 1790.85 | AU37: 10 | AW37: =(مرتب.الاداريين[[#This Row],[التأمينات]]/11%)*18.75% -> 1481.25 | AZ37: =SUM(مرتب.الاداريين[[#This Row],[الأجر الأساسي]:[معونة مرضي]],مرتب.الاداريين[[#This Row],[إجمالي بدلات]],مرتب.الاداريين[[#This Row],[إجمالي علاوات]],مرتب.الاداريين[[#This Row],[منحة عيد العمال]:[Column2]]) -> 8851.121 | BA37: =IF(مرتب.الاداريين[[#This Row],[الإجمالي]]<6000,6000-مرتب.الاداريين[[#This Row],[الإجمالي]],0) -> 0 | BB37: =مرتب.الاداريين[[#This Row],[الإجمالي]]+مرتب.الاداريين[[#This Row],[مكمل الأجر]] -> 8851.121 | BC37: 0 | BD37: 0 | BE37: 869 | BF37: 0 | BK37: 0 | BL37: 0.5 | BM37: 3 | BN37: 0 | BO37: 0 | BP37: 0 | BR37: 0 | BS37: 0 | BT37: 0 | BV37: 0 | BW37: 0 | BX37: 4.21 | BY37: 5 | CD37: 0 | CE37: 0 | CI37: =مرتب.الاداريين[[#This Row],[حصة صاحب العمل]] -> 1481.25 | CJ37: =مرتب.الاداريين[[#This Row],[متوسط مكافأة]] -> 0 | CL37: =SUM(مرتب.الاداريين[[#This Row],[التأمينات]:[Column3]]) -> 2362.96 | CM37: =مرتب.الاداريين[[#This Row],[المستحق]]-مرتب.الاداريين[[#This Row],[إجمالي المستقطع]] -> 6488.161 | CP37: علاوة 2024 | CQ37: علاوة غلاء معيشة 2023 | CR37: علاوة اجتماعية | CS37: علاوات استثنائة | CT37: منحة عيد العمال | CU37: رد مستحقات | CV37: ح.صاحب العمل | CW37: متوسط مكافأة | CX37: الإجمالي | CY37: مكمل الأجر
C38: 101319 | D38: 22130 | E38: عماد على ابراهيم الجندى | H38: المباشر | I38: كاتب | J38: الرابعة | K38: =مرتب.الاداريين[[#This Row],[كود الشركة]]&مرتب.الاداريين[[#This Row],[كود البنك]]&مرتب.الاداريين[[#This Row],[اسم الموظف]]&مرتب.الاداريين[[#This Row],[الرقم القومي]]&مرتب.الاداريين[[#This Row],[رقم الجوال]]&مرتب.الاداريين[[#This Row],[الشركة المدمجة]]&مرتب.الاداريين[[#This Row],[الوظيفة]]&مرتب.الاداريين[[#This Row],[الدرجة]] -> 10131922130عماد على ابراهيم الجندى المباشركاتب الرابعة | L38: 1690.33 | M38: 2028.396 | P38: 253.5495 | Q38: 188.32 | R38: 0 | U38: 0 | V38: 0 | W38: 0 | X38: 0 | AA38: 0 | AD38: 0 | AE38: =SUM(مرتب.الاداريين[[#This Row],[بدل مخاطر]:[بدل تباع]]) -> 441.8695 | AF38: 56.07 | AG38: 62.54 | AH38: 80 | AJ38: 200 | AK38: 33.79 | AL38: 60.26 | AM38: 77.37 | AN38: 110.38 | AO38: 118.11 | AP38: 126.38 | AQ38: 600 | AR38: 8 | AT38: =SUM(مرتب.الاداريين[[#This Row],[علاوة 2014]:[علاوات استثنائة]]) -> 1532.9 | AU38: 10 | AW38: =(مرتب.الاداريين[[#This Row],[التأمينات]]/11%)*18.75% -> 1125 | AZ38: =SUM(مرتب.الاداريين[[#This Row],[الأجر الأساسي]:[معونة مرضي]],مرتب.الاداريين[[#This Row],[إجمالي بدلات]],مرتب.الاداريين[[#This Row],[إجمالي علاوات]],مرتب.الاداريين[[#This Row],[منحة عيد العمال]:[Column2]]) -> 6828.4955 | BA38: =IF(مرتب.الاداريين[[#This Row],[الإجمالي]]<6000,6000-مرتب.الاداريين[[#This Row],[الإجمالي]],0) -> 0 | BB38: =مرتب.الاداريين[[#This Row],[الإجمالي]]+مرتب.الاداريين[[#This Row],[مكمل الأجر]] -> 6828.4955 | BC38: 0 | BD38: 0 | BE38: 660 | BF38: 0 | BK38: 0 | BL38: 0.5 | BM38: 3 | BN38: 0 | BO38: 0 | BP38: 0 | BR38: 0 | BS38: 0 | BT38: 0 | BV38: 0 | BW38: 0 | BX38: 2.25 | BY38: 3 | CD38: 0 | CE38: 0 | CI38: =مرتب.الاداريين[[#This Row],[حصة صاحب العمل]] -> 1125 | CJ38: =مرتب.الاداريين[[#This Row],[متوسط مكافأة]] -> 0 | CL38: =SUM(مرتب.الاداريين[[#This Row],[التأمينات]:[Column3]]) -> 1793.75 | CM38: =مرتب.الاداريين[[#This Row],[المستحق]]-مرتب.الاداريين[[#This Row],[إجمالي المستقطع]] -> 5034.7455
C39: 101041 | D39: 21135 | E39: طارق عبد الغفار على | H39: المباشر | I39: مدير إدارة الحركة | J39: الاولى | K39: =مرتب.الاداريين[[#This Row],[كود الشركة]]&مرتب.الاداريين[[#This Row],[كود البنك]]&مرتب.الاداريين[[#This Row],[اسم الموظف]]&مرتب.الاداريين[[#This Row],[الرقم القومي]]&مرتب.الاداريين[[#This Row],[رقم الجوال]]&مرتب.الاداريين[[#This Row],[الشركة المدمجة]]&مرتب.الاداريين[[#This Row],[الوظيفة]]&مرتب.الاداريين[[#This Row],[الدرجة]] -> 10104121135طارق عبد الغفار علىالمباشرمدير إدارة الحركةالاولى | L39: 2568.85 | M39: 3082.62 | P39: 385.3275 | Q39: 188.32 | R39: 0 | U39: 0 | V39: 0 | W39: 0 | X39: 0 | AA39: 0 | AD39: 0 | AE39: =SUM(مرتب.الاداريين[[#This Row],[بدل مخاطر]:[بدل تباع]]) -> 573.6475 | AF39: 84.46 | AG39: 94.31 | AH39: 113.27 | AJ39: 190 | AK39: 51.35 | AL39: 91.58 | AM39: 117.59 | AN39: 167.76 | AO39: 179.5 | AP39: 192.06 | AQ39: 600 | AR39: 10 | AT39: =SUM(مرتب.الاداريين[[#This Row],[علاوة 2014]:[علاوات استثنائة]]) -> 1891.88 | AU39: 10 | AW39: =(مرتب.الاداريين[[#This Row],[التأمينات]]/11%)*18.75% -> 1631.25 | AZ39: =SUM(مرتب.الاداريين[[#This Row],[الأجر الأساسي]:[معونة مرضي]],مرتب.الاداريين[[#This Row],[إجمالي بدلات]],مرتب.الاداريين[[#This Row],[إجمالي علاوات]],مرتب.الاداريين[[#This Row],[منحة عيد العمال]:[Column2]]) -> 9758.2475 | BA39: =IF(مرتب.الاداريين[[#This Row],[الإجمالي]]<6000,6000-مرتب.الاداريين[[#This Row],[الإجمالي]],0) -> 0 | BB39: =مرتب.الاداريين[[#This Row],[الإجمالي]]+مرتب.الاداريين[[#This Row],[مكمل الأجر]] -> 9758.2475 | BC39: 0 | BD39: 0 | BE39: 957 | BF39: 58.16 | BK39: 7.79 | BL39: 0.5 | BM39: 3 | BN39: 0 | BO39: 0 | BP39: 0 | BR39: 0 | BS39: 0 | BT39: 0 | BV39: 0 | BW39: 0 | BX39: 4.64 | BY39: 5 | CD39: 0 | CE39: 0 | CI39: =مرتب.الاداريين[[#This Row],[حصة صاحب العمل]] -> 1631.25 | CJ39: =مرتب.الاداريين[[#This Row],[متوسط مكافأة]] -> 0 | CL39: =SUM(مرتب.الاداريين[[#This Row],[التأمينات]:[Column3]]) -> 2667.34 | CM39: =مرتب.الاداريين[[#This Row],[المستحق]]-مرتب.الاداريين[[#This Row],[إجمالي المستقطع]] -> 7090.9075 | CY39: المستحق
C40: 101028 | D40: 11349 | E40: منار عبد الفتاح عبد الفتاح | H40: المباشر | I40: أخصائى تخطيط | J40: الثالثه | K40: =مرتب.الاداريين[[#This Row],[كود الشركة]]&مرتب.الاداريين[[#This Row],[كود البنك]]&مرتب.الاداريين[[#This Row],[اسم الموظف]]&مرتب.الاداريين[[#This Row],[الرقم القومي]]&مرتب.الاداريين[[#This Row],[رقم الجوال]]&مرتب.الاداريين[[#This Row],[الشركة المدمجة]]&مرتب.الاداريين[[#This Row],[الوظيفة]]&مرتب.الاداريين[[#This Row],[الدرجة]] -> 10102811349منار عبد الفتاح عبد الفتاح المباشرأخصائى تخطيطالثالثه | L40: 1269.24 | M40: 1523.088 | P40: 190.386 | Q40: 188.32 | R40: 0 | U40: 0 | V40: 0 | W40: 0 | X40: 0 | AA40: 0 | AD40: 0 | AE40: =SUM(مرتب.الاداريين[[#This Row],[بدل مخاطر]:[بدل تباع]]) -> 378.706 | AF40: 45.41 | AG40: 50.46 | AH40: 65 | AJ40: 190 | AK40: 25.37 | AL40: 45.25 | AM40: 58.1 | AN40: 82.89 | AO40: 88.69 | AP40: 94.9 | AQ40: 600 | AR40: 8 | AT40: =SUM(مرتب.الاداريين[[#This Row],[علاوة 2014]:[علاوات استثنائة]]) -> 1354.07 | AU40: 10 | AW40: =(مرتب.الاداريين[[#This Row],[التأمينات]]/11%)*18.75% -> 937.5 | AZ40: =SUM(مرتب.الاداريين[[#This Row],[الأجر الأساسي]:[معونة مرضي]],مرتب.الاداريين[[#This Row],[إجمالي بدلات]],مرتب.الاداريين[[#This Row],[إجمالي علاوات]],مرتب.الاداريين[[#This Row],[منحة عيد العمال]:[Column2]]) -> 5472.604 | BA40: =IF(مرتب.الاداريين[[#This Row],[الإجمالي]]<6000,6000-مرتب.الاداريين[[#This Row],[الإجمالي]],0) -> 527.396 | BB40: =مرتب.الاداريين[[#This Row],[الإجمالي]]+مرتب.الاداريين[[#This Row],[مكمل الأجر]] -> 6000 | BC40: 0 | BD40: 0 | BE40: 550 | BF40: 0 | BK40: 0 | BL40: 0.5 | BM40: 3 | BN40: 0 | BO40: 0 | BP40: 0 | BR40: 0 | BS40: 0 | BT40: 0 | BV40: 0 | BW40: 0 | BX40: 2.6 | BY40: 3 | CD40: 0 | CE40: 0 | CI40: =مرتب.الاداريين[[#This Row],[حصة صاحب العمل]] -> 937.5 | CJ40: =مرتب.الاداريين[[#This Row],[متوسط مكافأة]] -> 0 | CL40: =SUM(مرتب.الاداريين[[#This Row],[التأمينات]:[Column3]]) -> 1496.6 | CM40: =مرتب.الاداريين[[#This Row],[المستحق]]-مرتب.الاداريين[[#This Row],[إجمالي المستقطع]] -> 4503.4
C41: 101017 | D41: 11229 | E41: امل محمد حسن احمد | H41: المباشر | I41: ا.تخطيط ثان | J41: الثانية | K41: =مرتب.الاداريين[[#This Row],[كود الشركة]]&مرتب.الاداريين[[#This Row],[كود البنك]]&مرتب.الاداريين[[#This Row],[اسم الموظف]]&مرتب.الاداريين[[#This Row],[الرقم القومي]]&مرتب.الاداريين[[#This Row],[رقم الجوال]]&مرتب.الاداريين[[#This Row],[الشركة المدمجة]]&مرتب.الاداريين[[#This Row],[الوظيفة]]&مرتب.الاداريين[[#This Row],[الدرجة]] -> 10101711229امل محمد حسن احمدالمباشرا.تخطيط ثانالثانية | L41: 2600.6 | M41: 3120.72 | P41: 390.09 | Q41: 188.32 | R41: 0 | U41: 0 | V41: 0 | W41: 0 | X41: 0 | AA41: 0 | AD41: 0 | AE41: =SUM(مرتب.الاداريين[[#This Row],[بدل مخاطر]:[بدل تباع]]) -> 578.41 | AF41: 92.17 | AG41: 102.87 | AH41: 120 | AJ41: 190 | AK41: 51.99 | AL41: 92.71 | AM41: 119.04 | AN41: 169.83 | AO41: 181.72 | AP41: 199.94 | AQ41: 600 | AR41: 6 | AT41: =SUM(مرتب.الاداريين[[#This Row],[علاوة 2014]:[علاوات استثنائة]]) -> 1926.27 | AU41: 10 | AW41: =(مرتب.الاداريين[[#This Row],[التأمينات]]/11%)*18.75% -> 1650 | AZ41: =SUM(مرتب.الاداريين[[#This Row],[الأجر الأساسي]:[معونة مرضي]],مرتب.الاداريين[[#This Row],[إجمالي بدلات]],مرتب.الاداريين[[#This Row],[إجمالي علاوات]],مرتب.الاداريين[[#This Row],[منحة عيد العمال]:[Column2]]) -> 9886 | BA41: =IF(مرتب.الاداريين[[#This Row],[الإجمالي]]<6000,6000-مرتب.الاداريين[[#This Row],[الإجمالي]],0) -> 0 | BB41: =مرتب.الاداريين[[#This Row],[الإجمالي]]+مرتب.الاداريين[[#This Row],[مكمل الأجر]] -> 9886 | BC41: 0 | BD41: 0 | BE41: 968 | BF41: 58.25 | BK41: 0 | BL41: 0.5 | BM41: 3 | BN41: 0 | BO41: 0 | BP41: 0 | BR41: 0 | BS41: 0 | BT41: 0 | BV41: 0 | BW41: 0 | BX41: 4.71 | BY41: 5 | CD41: 0 | CE41: 0 | CI41: =مرتب.الاداريين[[#This Row],[حصة صاحب العمل]] -> 1650 | CJ41: =مرتب.الاداريين[[#This Row],[متوسط مكافأة]] -> 0 | CL41: =SUM(مرتب.الاداريين[[#This Row],[التأمينات]:[Column3]]) -> 2689.46 | CM41: =مرتب.الاداريين[[#This Row],[المستحق]]-مرتب.الاداريين[[#This Row],[إجمالي المستقطع]] -> 7196.54 | CY41: المستقطع
C42: 101021 | D42: 11298 | E42: منال محمد طايع السيد | H42: المباشر | I42: ا.حركة ثانى | J42: الثانيه | K42: =مرتب.الاداريين[[#This Row],[كود الشركة]]&مرتب.الاداريين[[#This Row],[كود البنك]]&مرتب.الاداريين[[#This Row],[اسم الموظف]]&مرتب.الاداريين[[#This Row],[الرقم القومي]]&مرتب.الاداريين[[#This Row],[رقم الجوال]]&مرتب.الاداريين[[#This Row],[الشركة المدمجة]]&مرتب.الاداريين[[#This Row],[الوظيفة]]&مرتب.الاداريين[[#This Row],[الدرجة]] -> 10102111298منال محمد طايع السيدالمباشرا.حركة ثانىالثانيه | L42: 2211.95 | M42: 2654.34 | P42: 331.7925 | Q42: 188.32 | R42: 0 | U42: 0 | V42: 0 | W42: 0 | X42: 0 | AA42: 0 | AD42: 0 | AE42: =SUM(مرتب.الاداريين[[#This Row],[بدل مخاطر]:[بدل تباع]]) -> 520.1125 | AF42: 78.48 | AG42: 87.56 | AH42: 104.43 | AJ42: 190 | AK42: 44.22 | AL42: 78.85 | AM42: 101.25 | AN42: 144.45 | AO42: 154.56 | AP42: 165.38 | AQ42: 600 | AR42: 6 | AT42: =SUM(مرتب.الاداريين[[#This Row],[علاوة 2014]:[علاوات استثنائة]]) -> 1755.18 | AU42: 10 | AW42: =(مرتب.الاداريين[[#This Row],[التأمينات]]/11%)*18.75% -> 1425 | AZ42: =SUM(مرتب.الاداريين[[#This Row],[الأجر الأساسي]:[معونة مرضي]],مرتب.الاداريين[[#This Row],[إجمالي بدلات]],مرتب.الاداريين[[#This Row],[إجمالي علاوات]],مرتب.الاداريين[[#This Row],[منحة عيد العمال]:[Column2]]) -> 8576.5825 | BA42: =IF(مرتب.الاداريين[[#This Row],[الإجمالي]]<6000,6000-مرتب.الاداريين[[#This Row],[الإجمالي]],0) -> 0 | BB42: =مرتب.الاداريين[[#This Row],[الإجمالي]]+مرتب.الاداريين[[#This Row],[مكمل الأجر]] -> 8576.5825 | BC42: 0 | BD42: 0 | BE42: 836 | BF42: 0 | BK42: 0 | BL42: 0.5 | BM42: 3 | BN42: 0 | BO42: 0 | BP42: 0 | BR42: 0 | BS42: 0 | BT42: 0 | BV42: 0 | BW42: 0 | BX42: 4.08 | BY42: 5 | CD42: 0 | CE42: 0 | CI42: =مرتب.الاداريين[[#This Row],[حصة صاحب العمل]] -> 1425 | CJ42: =مرتب.الاداريين[[#This Row],[متوسط مكافأة]] -> 0 | CL42: =SUM(مرتب.الاداريين[[#This Row],[التأمينات]:[Column3]]) -> 2273.58 | CM42: =مرتب.الاداريين[[#This Row],[المستحق]]-مرتب.الاداريين[[#This Row],[إجمالي المستقطع]] -> 6303.0025 | CP42: التأمينات | CQ42: كسب عمل 2024 | CR42: غياب بدل مخاطر | CS42: غياب بدل انتقال | CT42: خصم غياب عام | CU42: خصومات إدارية | CV42: اشتراك أجازات خاصة | CW42: اعانه وفاه | CX42: نقابة | CY42: خصم نفقات
C43: 202118 | D43: 22125 | E43: محمد احمد على اسماعيل | H43: المباشر | I43: ميكانيكى ( خدمات ) | J43: الرابعه | K43: =مرتب.الاداريين[[#This Row],[كود الشركة]]&مرتب.الاداريين[[#This Row],[كود البنك]]&مرتب.الاداريين[[#This Row],[اسم الموظف]]&مرتب.الاداريين[[#This Row],[الرقم القومي]]&مرتب.الاداريين[[#This Row],[رقم الجوال]]&مرتب.الاداريين[[#This Row],[الشركة المدمجة]]&مرتب.الاداريين[[#This Row],[الوظيفة]]&مرتب.الاداريين[[#This Row],[الدرجة]] -> 20211822125محمد احمد على اسماعيلالمباشرميكانيكى ( خدمات )الرابعه | L43: 1690.33 | M43: 2028.396 | P43: 253.5495 | Q43: 188.32 | R43: 0 | U43: 0 | V43: 0 | W43: 12 | X43: 0 | AA43: 0 | AD43: 0 | AE43: =SUM(مرتب.الاداريين[[#This Row],[بدل مخاطر]:[بدل تباع]]) -> 453.8695 | AF43: 56.07 | AG43: 62.54 | AH43: 80 | AJ43: 200 | AK43: 33.79 | AL43: 60.26 | AM43: 77.37 | AN43: 110.38 | AO43: 118.11 | AP43: 126.38 | AQ43: 600 | AR43: 10 | AT43: =SUM(مرتب.الاداريين[[#This Row],[علاوة 2014]:[علاوات استثنائة]]) -> 1534.9 | AU43: 10 | AW43: =(مرتب.الاداريين[[#This Row],[التأمينات]]/11%)*18.75% -> 1125 | AZ43: =SUM(مرتب.الاداريين[[#This Row],[الأجر الأساسي]:[معونة مرضي]],مرتب.الاداريين[[#This Row],[إجمالي بدلات]],مرتب.الاداريين[[#This Row],[إجمالي علاوات]],مرتب.الاداريين[[#This Row],[منحة عيد العمال]:[Column2]]) -> 6842.4955 | BA43: =IF(مرتب.الاداريين[[#This Row],[الإجمالي]]<6000,6000-مرتب.الاداريين[[#This Row],[الإجمالي]],0) -> 0 | BB43: =مرتب.الاداريين[[#This Row],[الإجمالي]]+مرتب.الاداريين[[#This Row],[مكمل الأجر]] -> 6842.4955 | BC43: 0 | BD43: 0 | BE43: 660 | BF43: 0 | BK43: 0 | BL43: 0.5 | BM43: 3 | BN43: 0 | BO43: 0 | BP43: 0 | BR43: 0 | BS43: 0 | BT43: 0 | BV43: 0 | BW43: 0 | BX43: 3.27 | BY43: 3 | CD43: 0 | CE43: 0 | CI43: =مرتب.الاداريين[[#This Row],[حصة صاحب العمل]] -> 1125 | CJ43: =مرتب.الاداريين[[#This Row],[متوسط مكافأة]] -> 0 | CL43: =SUM(مرتب.الاداريين[[#This Row],[التأمينات]:[Column3]]) -> 1794.77 | CM43: =مرتب.الاداريين[[#This Row],[المستحق]]-مرتب.الاداريين[[#This Row],[إجمالي المستقطع]] -> 5047.7255
C44: 101070 | D44: 22024 | E44: مشهور السيد احمد الجابرى | H44: المباشر | I44: ا.ش. فنى اول | J44: الثانيه | K44: =مرتب.الاداريين[[#This Row],[كود الشركة]]&مرتب.الاداريين[[#This Row],[كود البنك]]&مرتب.الاداريين[[#This Row],[اسم الموظف]]&مرتب.الاداريين[[#This Row],[الرقم القومي]]&مرتب.الاداريين[[#This Row],[رقم الجوال]]&مرتب.الاداريين[[#This Row],[الشركة المدمجة]]&مرتب.الاداريين[[#This Row],[الوظيفة]]&مرتب.الاداريين[[#This Row],[الدرجة]] -> 10107022024مشهور السيد احمد الجابرىالمباشرا.ش. فنى اولالثانيه | L44: 2411.52 | M44: 2893.824 | P44: 361.728 | Q44: 188.32 | R44: 0 | U44: 0 | V44: 0 | W44: 0 | X44: 0 | AA44: 0 | AD44: 0 | AE44: =SUM(مرتب.الاداريين[[#This Row],[بدل مخاطر]:[بدل تباع]]) -> 550.048 | AF44: 79.33 | AG44: 88.56 | AH44: 106.32 | AJ44: 190 | AK44: 48.21 | AL44: 85.97 | AM44: 110.38 | AN44: 157.48 | AO44: 168.51 | AP44: 180.3 | AQ44: 600 | AR44: 10 | AT44: =SUM(مرتب.الاداريين[[#This Row],[علاوة 2014]:[علاوات استثنائة]]) -> 1825.06 | AU44: 10 | AW44: =(مرتب.الاداريين[[#This Row],[التأمينات]]/11%)*18.75% -> 1537.5 | AZ44: =SUM(مرتب.الاداريين[[#This Row],[الأجر الأساسي]:[معونة مرضي]],مرتب.الاداريين[[#This Row],[إجمالي بدلات]],مرتب.الاداريين[[#This Row],[إجمالي علاوات]],مرتب.الاداريين[[#This Row],[منحة عيد العمال]:[Column2]]) -> 9227.952 | BA44: =IF(مرتب.الاداريين[[#This Row],[الإجمالي]]<6000,6000-مرتب.الاداريين[[#This Row],[الإجمالي]],0) -> 0 | BB44: =مرتب.الاداريين[[#This Row],[الإجمالي]]+مرتب.الاداريين[[#This Row],[مكمل الأجر]] -> 9227.952 | BC44: 0 | BD44: 0 | BE44: 902 | BF44: 27.59 | BK44: 0 | BL44: 0.5 | BM44: 3 | BN44: 0 | BO44: 0 | BP44: 0 | BR44: 0 | BS44: 0 | BT44: 0 | BV44: 0 | BW44: 0 | BX44: 4.39 | BY44: 5 | CD44: 0 | CE44: 0 | CI44: =مرتب.الاداريين[[#This Row],[حصة صاحب العمل]] -> 1537.5 | CJ44: =مرتب.الاداريين[[#This Row],[متوسط مكافأة]] -> 0 | CL44: =SUM(مرتب.الاداريين[[#This Row],[التأمينات]:[Column3]]) -> 2479.98 | CM44: =مرتب.الاداريين[[#This Row],[المستحق]]-مرتب.الاداريين[[#This Row],[إجمالي المستقطع]] -> 6747.972 | CP44: أجر بالزيادة | CQ44: خصم حافز | CR44: سولار | CS44: عهد | CT44: تلفيات | CU44: عجز | CV44: نقليات | CW44: جزاءات | CX44: تنفيذ أحكام | CY44: الشهداء
C45: 101052 | D45: 21759 | E45: احمد حسين محمد حسن | H45: المباشر | I45: ا.ش.فنية ثان | J45: الثانية | K45: =مرتب.الاداريين[[#This Row],[كود الشركة]]&مرتب.الاداريين[[#This Row],[كود البنك]]&مرتب.الاداريين[[#This Row],[اسم الموظف]]&مرتب.الاداريين[[#This Row],[الرقم القومي]]&مرتب.الاداريين[[#This Row],[رقم الجوال]]&مرتب.الاداريين[[#This Row],[الشركة المدمجة]]&مرتب.الاداريين[[#This Row],[الوظيفة]]&مرتب.الاداريين[[#This Row],[الدرجة]] -> 10105221759احمد حسين محمد حسنالمباشرا.ش.فنية ثان الثانية | L45: 2321.03 | M45: 2785.236 | P45: 348.1545 | Q45: 188.32 | R45: 0 | U45: 0 | V45: 0 | W45: 0 | X45: 0 | AA45: 0 | AD45: 0 | AE45: =SUM(مرتب.الاداريين[[#This Row],[بدل مخاطر]:[بدل تباع]]) -> 536.4745 | AF45: 82.33 | AG45: 91.86 | AH45: 109.59 | AJ45: 190 | AK45: 46.4 | AL45: 82.74 | AM45: 106.24 | AN45: 151.57 | AO45: 162.18 | AP45: 173.54 | AQ45: 600 | AR45: 10 | AT45: =SUM(مرتب.الاداريين[[#This Row],[علاوة 2014]:[علاوات استثنائة]]) -> 1806.45 | AU45: 10 | AW45: =(مرتب.الاداريين[[#This Row],[التأمينات]]/11%)*18.75% -> 1481.25 | AZ45: =SUM(مرتب.الاداريين[[#This Row],[الأجر الأساسي]:[معونة مرضي]],مرتب.الاداريين[[#This Row],[إجمالي بدلات]],مرتب.الاداريين[[#This Row],[إجمالي علاوات]],مرتب.الاداريين[[#This Row],[منحة عيد العمال]:[Column2]]) -> 8940.4405 | BA45: =IF(مرتب.الاداريين[[#This Row],[الإجمالي]]<6000,6000-مرتب.الاداريين[[#This Row],[الإجمالي]],0) -> 0 | BB45: =مرتب.الاداريين[[#This Row],[الإجمالي]]+مرتب.الاداريين[[#This Row],[مكمل الأجر]] -> 8940.4405 | BC45: 0 | BD45: 0 | BE45: 869 | BF45: 8.16 | BK45: 0 | BL45: 0.5 | BM45: 3 | BN45: 0 | BO45: 0 | BP45: 0 | BR45: 0 | BS45: 0 | BT45: 0 | BV45: 0 | BW45: 0 | BX45: 4.25 | BY45: 5 | CD45: 0 | CE45: 0 | CI45: =مرتب.الاداريين[[#This Row],[حصة صاحب العمل]] -> 1481.25 | CJ45: =مرتب.الاداريين[[#This Row],[متوسط مكافأة]] -> 0 | CL45: =SUM(مرتب.الاداريين[[#This Row],[التأمينات]:[Column3]]) -> 2371.16 | CM45: =مرتب.الاداريين[[#This Row],[المستحق]]-مرتب.الاداريين[[#This Row],[إجمالي المستقطع]] -> 6569.2805
C46: 201028 | D46: 21913 | E46: ناصر شمردن عبد ربه | H46: المباشر | I46: سباك | J46: ثالثه | K46: =مرتب.الاداريين[[#This Row],[كود الشركة]]&مرتب.الاداريين[[#This Row],[كود البنك]]&مرتب.الاداريين[[#This Row],[اسم الموظف]]&مرتب.الاداريين[[#This Row],[الرقم القومي]]&مرتب.الاداريين[[#This Row],[رقم الجوال]]&مرتب.الاداريين[[#This Row],[الشركة المدمجة]]&مرتب.الاداريين[[#This Row],[الوظيفة]]&مرتب.الاداريين[[#This Row],[الدرجة]] -> 20102821913ناصر شمردن عبد ربهالمباشرسباكثالثه | L46: 2018.72 | M46: 2422.464 | P46: 302.808 | Q46: 188.32 | R46: 0 | U46: 0 | V46: 0 | W46: 0 | X46: 0 | AA46: 0 | AD46: 0 | AE46: =SUM(مرتب.الاداريين[[#This Row],[بدل مخاطر]:[بدل تباع]]) -> 491.128 | AF46: 71.56 | AG46: 79.86 | AH46: 95.24 | AJ46: 190 | AK46: 40.35 | AL46: 71.97 | AM46: 92.4 | AN46: 131.83 | AO46: 141.06 | AP46: 150.93 | AQ46: 600 | AR46: 10 | AT46: =SUM(مرتب.الاداريين[[#This Row],[علاوة 2014]:[علاوات استثنائة]]) -> 1675.2 | AU46: 10 | AW46: =(مرتب.الاداريين[[#This Row],[التأمينات]]/11%)*18.75% -> 1312.5 | AZ46: =SUM(مرتب.الاداريين[[#This Row],[الأجر الأساسي]:[معونة مرضي]],مرتب.الاداريين[[#This Row],[إجمالي بدلات]],مرتب.الاداريين[[#This Row],[إجمالي علاوات]],مرتب.الاداريين[[#This Row],[منحة عيد العمال]:[Column2]]) -> 7930.012 | BA46: =IF(مرتب.الاداريين[[#This Row],[الإجمالي]]<6000,6000-مرتب.الاداريين[[#This Row],[الإجمالي]],0) -> 0 | BB46: =مرتب.الاداريين[[#This Row],[الإجمالي]]+مرتب.الاداريين[[#This Row],[مكمل الأجر]] -> 7930.012 | BC46: 0 | BD46: 0 | BE46: 770 | BF46: 0 | BK46: 0 | BL46: 0.5 | BM46: 3 | BN46: 0 | BO46: 0 | BP46: 0 | BR46: 0 | BS46: 0 | BT46: 0 | BV46: 0 | BW46: 0 | BX46: 3.77 | BY46: 3 | CD46: 0 | CE46: 0 | CI46: =مرتب.الاداريين[[#This Row],[حصة صاحب العمل]] -> 1312.5 | CJ46: =مرتب.الاداريين[[#This Row],[متوسط مكافأة]] -> 0 | CL46: =SUM(مرتب.الاداريين[[#This Row],[التأمينات]:[Column3]]) -> 2092.77 | CM46: =مرتب.الاداريين[[#This Row],[المستحق]]-مرتب.الاداريين[[#This Row],[إجمالي المستقطع]] -> 5837.242 | CP46: صندوق إعاقة | CQ46: قسط تأمينات | CR46: صندوق تكافل | CS46: مدة سابقة | CT46: معونة اجتماعية | CU46: تأمين صحي بورسعيد | CV46: ت. صاحب العمل | CW46: متوسط منح | CX46: إجمالي المستقطع | CY46: صافي الأجر
C47: 201038 | D47: 22075 | E47: محمد امين عيد فرج | H47: المباشر | I47: فنى ثالث | J47: الثالثة | K47: =مرتب.الاداريين[[#This Row],[كود الشركة]]&مرتب.الاداريين[[#This Row],[كود البنك]]&مرتب.الاداريين[[#This Row],[اسم الموظف]]&مرتب.الاداريين[[#This Row],[الرقم القومي]]&مرتب.الاداريين[[#This Row],[رقم الجوال]]&مرتب.الاداريين[[#This Row],[الشركة المدمجة]]&مرتب.الاداريين[[#This Row],[الوظيفة]]&مرتب.الاداريين[[#This Row],[الدرجة]] -> 20103822075محمد امين عيد فرجالمباشرفنى ثالث الثالثة | L47: 2013.31 | M47: 2415.972 | P47: 301.9965 | Q47: 188.32 | R47: 0 | U47: 0 | V47: 0 | W47: 0 | X47: 0 | AA47: 0 | AD47: 0 | AE47: =SUM(مرتب.الاداريين[[#This Row],[بدل مخاطر]:[بدل تباع]]) -> 490.3165 | AF47: 71.47 | AG47: 79.71 | AH47: 95.03 | AJ47: 200 | AK47: 40.25 | AL47: 71.77 | AM47: 92.16 | AN47: 131.48 | AO47: 140.68 | AP47: 150.53 | AQ47: 600 | AR47: 10 | AT47: =SUM(مرتب.الاداريين[[#This Row],[علاوة 2014]:[علاوات استثنائة]]) -> 1683.08 | AU47: 10 | AW47: =(مرتب.الاداريين[[#This Row],[التأمينات]]/11%)*18.75% -> 1312.5 | AZ47: =SUM(مرتب.الاداريين[[#This Row],[الأجر الأساسي]:[معونة مرضي]],مرتب.الاداريين[[#This Row],[إجمالي بدلات]],مرتب.الاداريين[[#This Row],[إجمالي علاوات]],مرتب.الاداريين[[#This Row],[منحة عيد العمال]:[Column2]]) -> 7925.1785 | BA47: =IF(مرتب.الاداريين[[#This Row],[الإجمالي]]<6000,6000-مرتب.الاداريين[[#This Row],[الإجمالي]],0) -> 0 | BB47: =مرتب.الاداريين[[#This Row],[الإجمالي]]+مرتب.الاداريين[[#This Row],[مكمل الأجر]] -> 7925.1785 | BC47: 0 | BD47: 0 | BE47: 770 | BF47: 0 | BK47: 74.13 | BL47: 0.5 | BM47: 3 | BN47: 0 | BO47: 0 | BP47: 0 | BR47: 0 | BS47: 0 | BT47: 0 | BV47: 0 | BW47: 0 | BX47: 3.78 | BY47: 3 | CD47: 0 | CE47: 0 | CI47: =مرتب.الاداريين[[#This Row],[حصة صاحب العمل]] -> 1312.5 | CJ47: =مرتب.الاداريين[[#This Row],[متوسط مكافأة]] -> 0 | CL47: =SUM(مرتب.الاداريين[[#This Row],[التأمينات]:[Column3]]) -> 2166.91 | CM47: =مرتب.الاداريين[[#This Row],[المستحق]]-مرتب.الاداريين[[#This Row],[إجمالي المستقطع]] -> 5758.2685
C48: 201013 | D48: 22174 | E48: عمر صفوت كمال عبد العظيم | H48: المباشر | I48: ميكانيكى | J48: السادسه | K48: =مرتب.الاداريين[[#This Row],[كود الشركة]]&مرتب.الاداريين[[#This Row],[كود البنك]]&مرتب.الاداريين[[#This Row],[اسم الموظف]]&مرتب.الاداريين[[#This Row],[الرقم القومي]]&مرتب.الاداريين[[#This Row],[رقم الجوال]]&مرتب.الاداريين[[#This Row],[الشركة المدمجة]]&مرتب.الاداريين[[#This Row],[الوظيفة]]&مرتب.الاداريين[[#This Row],[الدرجة]] -> 20101322174عمر صفوت كمال عبد العظيمالمباشر ميكانيكىالسادسه | L48: 693.67 | M48: 832.404 | P48: 104.0505 | Q48: 188.32 | R48: 0 | U48: 0 | V48: 0 | W48: 0 | X48: 0 | AA48: 0 | AD48: 0 | AE48: =SUM(مرتب.الاداريين[[#This Row],[بدل مخاطر]:[بدل تباع]]) -> 292.3705 | AF48: 28.18 | AG48: 29.62 | AH48: 65 | AJ48: 200 | AK48: 42.65 | AL48: 40.38 | AM48: 37.96 | AN48: 60.36 | AO48: 82.59 | AP48: 104.62 | AQ48: 600 | AR48: 4 | AT48: =SUM(مرتب.الاداريين[[#This Row],[علاوة 2014]:[علاوات استثنائة]]) -> 1295.36 | AU48: 10 | AW48: =(مرتب.الاداريين[[#This Row],[التأمينات]]/11%)*18.75% -> 937.5 | AZ48: =SUM(مرتب.الاداريين[[#This Row],[الأجر الأساسي]:[معونة مرضي]],مرتب.الاداريين[[#This Row],[إجمالي بدلات]],مرتب.الاداريين[[#This Row],[إجمالي علاوات]],مرتب.الاداريين[[#This Row],[منحة عيد العمال]:[Column2]]) -> 4061.3045 | BA48: =IF(مرتب.الاداريين[[#This Row],[الإجمالي]]<6000,6000-مرتب.الاداريين[[#This Row],[الإجمالي]],0) -> 1938.6955 | BB48: =مرتب.الاداريين[[#This Row],[الإجمالي]]+مرتب.الاداريين[[#This Row],[مكمل الأجر]] -> 6000 | BC48: 0 | BD48: 0 | BE48: 550 | BF48: 0 | BK48: 0 | BL48: 0.5 | BM48: 3 | BN48: 0 | BO48: 0 | BP48: 0 | BR48: 0 | BS48: 0 | BT48: 0 | BV48: 0 | BW48: 0 | BX48: 2.82 | BY48: 3 | CD48: 0 | CE48: 0 | CI48: =مرتب.الاداريين[[#This Row],[حصة صاحب العمل]] -> 937.5 | CJ48: =مرتب.الاداريين[[#This Row],[متوسط مكافأة]] -> 0 | CL48: =SUM(مرتب.الاداريين[[#This Row],[التأمينات]:[Column3]]) -> 1496.82 | CM48: =مرتب.الاداريين[[#This Row],[المستحق]]-مرتب.الاداريين[[#This Row],[إجمالي المستقطع]] -> 4503.18
C49: 201012 | D49: 42333 | E49: محمود سعيد عبد المنعم عابدين | H49: المباشر | I49: كهربائي مركبات | J49: رابعه | K49: =مرتب.الاداريين[[#This Row],[كود الشركة]]&مرتب.الاداريين[[#This Row],[كود البنك]]&مرتب.الاداريين[[#This Row],[اسم الموظف]]&مرتب.الاداريين[[#This Row],[الرقم القومي]]&مرتب.الاداريين[[#This Row],[رقم الجوال]]&مرتب.الاداريين[[#This Row],[الشركة المدمجة]]&مرتب.الاداريين[[#This Row],[الوظيفة]]&مرتب.الاداريين[[#This Row],[الدرجة]] -> 20101242333محمود سعيد عبد المنعم عابدينالمباشركهربائي مركباترابعه | L49: 642.67 | M49: 771.204 | P49: 96.4005 | Q49: 188.32 | R49: 0 | U49: 0 | V49: 0 | W49: 0 | X49: 0 | AA49: 0 | AD49: 0 | AE49: =SUM(مرتب.الاداريين[[#This Row],[بدل مخاطر]:[بدل تباع]]) -> 284.7205 | AF49: 30.03 | AG49: 31.61 | AH49: 65 | AJ49: 200 | AK49: 45.02 | AL49: 42.92 | AM49: 40.68 | AN49: 63.28 | AO49: 85.71 | AP49: 107.96 | AQ49: 600 | AR49: 4 | AT49: =SUM(مرتب.الاداريين[[#This Row],[علاوة 2014]:[علاوات استثنائة]]) -> 1316.21 | AU49: 10 | AW49: =(مرتب.الاداريين[[#This Row],[التأمينات]]/11%)*18.75% -> 918.75 | AZ49: =SUM(مرتب.الاداريين[[#This Row],[الأجر الأساسي]:[معونة مرضي]],مرتب.الاداريين[[#This Row],[إجمالي بدلات]],مرتب.الاداريين[[#This Row],[إجمالي علاوات]],مرتب.الاداريين[[#This Row],[منحة عيد العمال]:[Column2]]) -> 3943.5545 | BA49: =IF(مرتب.الاداريين[[#This Row],[الإجمالي]]<6000,6000-مرتب.الاداريين[[#This Row],[الإجمالي]],0) -> 2056.4455 | BB49: =مرتب.الاداريين[[#This Row],[الإجمالي]]+مرتب.الاداريين[[#This Row],[مكمل الأجر]] -> 6000 | BC49: 0 | BD49: 0 | BE49: 539 | BF49: 0 | BK49: 0 | BL49: 0.5 | BM49: 3 | BN49: 0 | BO49: 0 | BP49: 0 | BR49: 0 | BS49: 0 | BT49: 0 | BV49: 0 | BW49: 0 | BX49: 2.7 | BY49: 3 | CD49: 0 | CE49: 0 | CI49: =مرتب.الاداريين[[#This Row],[حصة صاحب العمل]] -> 918.75 | CJ49: =مرتب.الاداريين[[#This Row],[متوسط مكافأة]] -> 0 | CL49: =SUM(مرتب.الاداريين[[#This Row],[التأمينات]:[Column3]]) -> 1466.95 | CM49: =مرتب.الاداريين[[#This Row],[المستحق]]-مرتب.الاداريين[[#This Row],[إجمالي المستقطع]] -> 4533.05
C50: 202124 | D50: 22056 | E50: احمد السيد فريد شعيره | H50: المباشر | I50: كهربائي | J50: الرابعه | K50: =مرتب.الاداريين[[#This Row],[كود الشركة]]&مرتب.الاداريين[[#This Row],[كود البنك]]&مرتب.الاداريين[[#This Row],[اسم الموظف]]&مرتب.الاداريين[[#This Row],[الرقم القومي]]&مرتب.الاداريين[[#This Row],[رقم الجوال]]&مرتب.الاداريين[[#This Row],[الشركة المدمجة]]&مرتب.الاداريين[[#This Row],[الوظيفة]]&مرتب.الاداريين[[#This Row],[الدرجة]] -> 20212422056احمد السيد فريد شعيرهالمباشركهربائيالرابعه | L50: 1824.3 | M50: 2189.16 | P50: 273.645 | Q50: 188.32 | R50: 0 | U50: 0 | V50: 0 | W50: 0 | X50: 0 | AA50: 0 | AD50: 0 | AE50: =SUM(مرتب.الاداريين[[#This Row],[بدل مخاطر]:[بدل تباع]]) -> 461.965 | AF50: 64.76 | AG50: 72.24 | AH50: 86.09 | AJ50: 200 | AK50: 36.46 | AL50: 65.03 | AM50: 83.5 | AN50: 119.13 | AO50: 127.47 | AP50: 136.4 | AQ50: 600 | AR50: 10 | AT50: =SUM(مرتب.الاداريين[[#This Row],[علاوة 2014]:[علاوات استثنائة]]) -> 1601.08 | AU50: 10 | AW50: =(مرتب.الاداريين[[#This Row],[التأمينات]]/11%)*18.75% -> 1200 | AZ50: =SUM(مرتب.الاداريين[[#This Row],[الأجر الأساسي]:[معونة مرضي]],مرتب.الاداريين[[#This Row],[إجمالي بدلات]],مرتب.الاداريين[[#This Row],[إجمالي علاوات]],مرتب.الاداريين[[#This Row],[منحة عيد العمال]:[Column2]]) -> 7286.505 | BA50: =IF(مرتب.الاداريين[[#This Row],[الإجمالي]]<6000,6000-مرتب.الاداريين[[#This Row],[الإجمالي]],0) -> 0 | BB50: =مرتب.الاداريين[[#This Row],[الإجمالي]]+مرتب.الاداريين[[#This Row],[مكمل الأجر]] -> 7286.505 | BC50: 0 | BD50: 0 | BE50: 704 | BF50: 0 | BK50: 0 | BL50: 0.5 | BM50: 3 | BN50: 0 | BO50: 0 | BP50: 0 | BR50: 0 | BS50: 0 | BT50: 0 | BV50: 0 | BW50: 0 | BX50: 3.48 | BY50: 3 | CD50: 0 | CE50: 0 | CI50: =مرتب.الاداريين[[#This Row],[حصة صاحب العمل]] -> 1200 | CJ50: =مرتب.الاداريين[[#This Row],[متوسط مكافأة]] -> 0 | CL50: =SUM(مرتب.الاداريين[[#This Row],[التأمينات]:[Column3]]) -> 1913.98 | CM50: =مرتب.الاداريين[[#This Row],[المستحق]]-مرتب.الاداريين[[#This Row],[إجمالي المستقطع]] -> 5372.525
C51: 202123 | D51: 21822 | E51: ايمن جابر سليمان | H51: المباشر | I51: ميكانيكى | J51: رابعة | K51: =مرتب.الاداريين[[#This Row],[كود الشركة]]&مرتب.الاداريين[[#This Row],[كود البنك]]&مرتب.الاداريين[[#This Row],[اسم الموظف]]&مرتب.الاداريين[[#This Row],[الرقم القومي]]&مرتب.الاداريين[[#This Row],[رقم الجوال]]&مرتب.الاداريين[[#This Row],[الشركة المدمجة]]&مرتب.الاداريين[[#This Row],[الوظيفة]]&مرتب.الاداريين[[#This Row],[الدرجة]] -> 20212321822ايمن جابر سليمان المباشرميكانيكى رابعة | L51: 2122.82 | M51: 2547.384 | P51: 318.423 | Q51: 188.32 | R51: 0 | U51: 0 | V51: 0 | W51: 0 | X51: 0 | AA51: 0 | AD51: 0 | AE51: =SUM(مرتب.الاداريين[[#This Row],[بدل مخاطر]:[بدل تباع]]) -> 506.743 | AF51: 70.76 | AG51: 78.99 | AH51: 94.28 | AJ51: 200 | AK51: 42.44 | AL51: 75.68 | AM51: 97.17 | AN51: 138.63 | AO51: 148.33 | AP51: 158.72 | AQ51: 600 | AR51: 10 | AT51: =SUM(مرتب.الاداريين[[#This Row],[علاوة 2014]:[علاوات استثنائة]]) -> 1715 | AU51: 10 | AW51: =(مرتب.الاداريين[[#This Row],[التأمينات]]/11%)*18.75% -> 1368.75 | AZ51: =SUM(مرتب.الاداريين[[#This Row],[الأجر الأساسي]:[معونة مرضي]],مرتب.الاداريين[[#This Row],[إجمالي بدلات]],مرتب.الاداريين[[#This Row],[إجمالي علاوات]],مرتب.الاداريين[[#This Row],[منحة عيد العمال]:[Column2]]) -> 8270.697 | BA51: =IF(مرتب.الاداريين[[#This Row],[الإجمالي]]<6000,6000-مرتب.الاداريين[[#This Row],[الإجمالي]],0) -> 0 | BB51: =مرتب.الاداريين[[#This Row],[الإجمالي]]+مرتب.الاداريين[[#This Row],[مكمل الأجر]] -> 8270.697 | BC51: 0 | BD51: 0 | BE51: 803 | BF51: 0 | BK51: 0 | BL51: 0.5 | BM51: 3 | BN51: 0 | BO51: 0 | BP51: 2547.38 | BR51: 0 | BS51: 0 | BT51: 0 | BV51: 0 | BW51: 0 | BX51: 3.11 | BY51: 3 | CD51: 0 | CE51: 0 | CI51: =مرتب.الاداريين[[#This Row],[حصة صاحب العمل]] -> 1368.75 | CJ51: =مرتب.الاداريين[[#This Row],[متوسط مكافأة]] -> 0 | CL51: =SUM(مرتب.الاداريين[[#This Row],[التأمينات]:[Column3]]) -> 4728.74 | CM51: =مرتب.الاداريين[[#This Row],[المستحق]]-مرتب.الاداريين[[#This Row],[إجمالي المستقطع]] -> 3541.957
C52: 202047 | D52: 21015 | E52: خالد محمد فهمى | H52: المباشر | I52: ميكانيكى | J52: الثالثة | K52: =مرتب.الاداريين[[#This Row],[كود الشركة]]&مرتب.الاداريين[[#This Row],[كود البنك]]&مرتب.الاداريين[[#This Row],[اسم الموظف]]&مرتب.الاداريين[[#This Row],[الرقم القومي]]&مرتب.الاداريين[[#This Row],[رقم الجوال]]&مرتب.الاداريين[[#This Row],[الشركة المدمجة]]&مرتب.الاداريين[[#This Row],[الوظيفة]]&مرتب.الاداريين[[#This Row],[الدرجة]] -> 20204721015خالد محمد فهمىالمباشرميكانيكى الثالثة | L52: 2248.37 | M52: 2698.044 | P52: 337.2555 | Q52: 188.32 | R52: 0 | U52: 0 | V52: 0 | W52: 12 | X52: 0 | AA52: 0 | AD52: 0 | AE52: =SUM(مرتب.الاداريين[[#This Row],[بدل مخاطر]:[بدل تباع]]) -> 537.5755 | AF52: 79.55 | AG52: 88.83 | AH52: 106.11 | AJ52: 190 | AK52: 44.95 | AL52: 80.15 | AM52: 102.92 | AN52: 146.83 | AO52: 157.1 | AP52: 168.1 | AQ52: 600 | AR52: 10 | AT52: =SUM(مرتب.الاداريين[[#This Row],[علاوة 2014]:[علاوات استثنائة]]) -> 1774.54 | AU52: 10 | AW52: =(مرتب.الاداريين[[#This Row],[التأمينات]]/11%)*18.75% -> 1443.75 | AZ52: =SUM(مرتب.الاداريين[[#This Row],[الأجر الأساسي]:[معونة مرضي]],مرتب.الاداريين[[#This Row],[إجمالي بدلات]],مرتب.الاداريين[[#This Row],[إجمالي علاوات]],مرتب.الاداريين[[#This Row],[منحة عيد العمال]:[Column2]]) -> 8712.2795 | BA52: =IF(مرتب.الاداريين[[#This Row],[الإجمالي]]<6000,6000-مرتب.الاداريين[[#This Row],[الإجمالي]],0) -> 0 | BB52: =مرتب.الاداريين[[#This Row],[الإجمالي]]+مرتب.الاداريين[[#This Row],[مكمل الأجر]] -> 8712.2795 | BC52: 0 | BD52: 0 | BE52: 847 | BF52: 0 | BK52: 0 | BL52: 0.5 | BM52: 3 | BN52: 0 | BO52: 0 | BP52: 0 | BR52: 0 | BS52: 0 | BT52: 0 | BV52: 0 | BW52: 0 | BX52: 4.15 | BY52: 3 | CD52: 0 | CE52: 0 | CI52: =مرتب.الاداريين[[#This Row],[حصة صاحب العمل]] -> 1443.75 | CJ52: =مرتب.الاداريين[[#This Row],[متوسط مكافأة]] -> 0 | CL52: =SUM(مرتب.الاداريين[[#This Row],[التأمينات]:[Column3]]) -> 2301.4 | CM52: =مرتب.الاداريين[[#This Row],[المستحق]]-مرتب.الاداريين[[#This Row],[إجمالي المستقطع]] -> 6410.8795
C53: 101069 | D53: 22020 | E53: سامح حمزه احمد الحافظ | H53: المباشر | I53: ا.ش. فنيه | J53: الثانية | K53: =مرتب.الاداريين[[#This Row],[كود الشركة]]&مرتب.الاداريين[[#This Row],[كود البنك]]&مرتب.الاداريين[[#This Row],[اسم الموظف]]&مرتب.الاداريين[[#This Row],[الرقم القومي]]&مرتب.الاداريين[[#This Row],[رقم الجوال]]&مرتب.الاداريين[[#This Row],[الشركة المدمجة]]&مرتب.الاداريين[[#This Row],[الوظيفة]]&مرتب.الاداريين[[#This Row],[الدرجة]] -> 10106922020سامح حمزه احمد الحافظالمباشرا.ش. فنيهالثانية | L53: 2232.94 | M53: 2679.528 | P53: 334.941 | Q53: 188.32 | R53: 0 | U53: 0 | V53: 0 | W53: 12 | X53: 0 | AA53: 0 | AD53: 0 | AE53: =SUM(مرتب.الاداريين[[#This Row],[بدل مخاطر]:[بدل تباع]]) -> 535.261 | AF53: 73.27 | AG53: 82.01 | AH53: 98.55 | AJ53: 190 | AK53: 44.64 | AL53: 79.6 | AM53: 102.21 | AN53: 145.82 | AO53: 156.03 | AP53: 166.95 | AQ53: 600 | AR53: 10 | AT53: =SUM(مرتب.الاداريين[[#This Row],[علاوة 2014]:[علاوات استثنائة]]) -> 1749.08 | AU53: 10 | AW53: =(مرتب.الاداريين[[#This Row],[التأمينات]]/11%)*18.75% -> 1443.75 | AZ53: =SUM(مرتب.الاداريين[[#This Row],[الأجر الأساسي]:[معونة مرضي]],مرتب.الاداريين[[#This Row],[إجمالي بدلات]],مرتب.الاداريين[[#This Row],[إجمالي علاوات]],مرتب.الاداريين[[#This Row],[منحة عيد العمال]:[Column2]]) -> 8650.559 | BA53: =IF(مرتب.الاداريين[[#This Row],[الإجمالي]]<6000,6000-مرتب.الاداريين[[#This Row],[الإجمالي]],0) -> 0 | BB53: =مرتب.الاداريين[[#This Row],[الإجمالي]]+مرتب.الاداريين[[#This Row],[مكمل الأجر]] -> 8650.559 | BC53: 0 | BD53: 0 | BE53: 847 | BF53: 0 | BK53: 3.68 | BL53: 0.5 | BM53: 3 | BN53: 0 | BO53: 0 | BP53: 0 | BR53: 0 | BS53: 0 | BT53: 0 | BV53: 0 | BW53: 0 | BX53: 4.11 | BY53: 3 | CD53: 0 | CE53: 0 | CI53: =مرتب.الاداريين[[#This Row],[حصة صاحب العمل]] -> 1443.75 | CJ53: =مرتب.الاداريين[[#This Row],[متوسط مكافأة]] -> 0 | CL53: =SUM(مرتب.الاداريين[[#This Row],[التأمينات]:[Column3]]) -> 2305.04 | CM53: =مرتب.الاداريين[[#This Row],[المستحق]]-مرتب.الاداريين[[#This Row],[إجمالي المستقطع]] -> 6345.519
C54: 202125 | D54: 22120 | E54: علاء صبحى عبد الغني | H54: المباشر | I54: ميكانيكى | J54: رابعه | K54: =مرتب.الاداريين[[#This Row],[كود الشركة]]&مرتب.الاداريين[[#This Row],[كود البنك]]&مرتب.الاداريين[[#This Row],[اسم الموظف]]&مرتب.الاداريين[[#This Row],[الرقم القومي]]&مرتب.الاداريين[[#This Row],[رقم الجوال]]&مرتب.الاداريين[[#This Row],[الشركة المدمجة]]&مرتب.الاداريين[[#This Row],[الوظيفة]]&مرتب.الاداريين[[#This Row],[الدرجة]] -> 20212522120علاء صبحى عبد الغنيالمباشرميكانيكىرابعه | L54: 1755.92 | M54: 2107.104 | P54: 263.388 | Q54: 188.32 | R54: 0 | U54: 0 | V54: 0 | W54: 12 | X54: 0 | AA54: 0 | AD54: 0 | AE54: =SUM(مرتب.الاداريين[[#This Row],[بدل مخاطر]:[بدل تباع]]) -> 463.708 | AF54: 62.35 | AG54: 69.54 | AH54: 82.86 | AJ54: 200 | AK54: 35.1 | AL54: 62.6 | AM54: 80.37 | AN54: 114.67 | AO54: 122.69 | AP54: 131.28 | AQ54: 600 | AR54: 4 | AT54: =SUM(مرتب.الاداريين[[#This Row],[علاوة 2014]:[علاوات استثنائة]]) -> 1565.46 | AU54: 10 | AW54: =(مرتب.الاداريين[[#This Row],[التأمينات]]/11%)*18.75% -> 1162.5 | AZ54: =SUM(مرتب.الاداريين[[#This Row],[الأجر الأساسي]:[معونة مرضي]],مرتب.الاداريين[[#This Row],[إجمالي بدلات]],مرتب.الاداريين[[#This Row],[إجمالي علاوات]],مرتب.الاداريين[[#This Row],[منحة عيد العمال]:[Column2]]) -> 7064.692 | BA54: =IF(مرتب.الاداريين[[#This Row],[الإجمالي]]<6000,6000-مرتب.الاداريين[[#This Row],[الإجمالي]],0) -> 0 | BB54: =مرتب.الاداريين[[#This Row],[الإجمالي]]+مرتب.الاداريين[[#This Row],[مكمل الأجر]] -> 7064.692 | BC54: 0 | BD54: 0 | BE54: 682 | BF54: 0 | BK54: 0 | BL54: 0.5 | BM54: 3 | BN54: 0 | BO54: 0 | BP54: 0 | BR54: 0 | BS54: 0 | BT54: 0 | BV54: 0 | BW54: 0 | BX54: 3.37 | BY54: 3 | CD54: 0 | CE54: 0 | CI54: =مرتب.الاداريين[[#This Row],[حصة صاحب العمل]] -> 1162.5 | CJ54: =مرتب.الاداريين[[#This Row],[متوسط مكافأة]] -> 0 | CL54: =SUM(مرتب.الاداريين[[#This Row],[التأمينات]:[Column3]]) -> 1854.37 | CM54: =مرتب.الاداريين[[#This Row],[المستحق]]-مرتب.الاداريين[[#This Row],[إجمالي المستقطع]] -> 5210.322
C55: 101313 | D55: 22022 | E55: إبراهيم محمودعبد الحافظ | H55: المباشر | I55: رئيس قسم التراخيص | J55: الثانية | K55: =مرتب.الاداريين[[#This Row],[كود الشركة]]&مرتب.الاداريين[[#This Row],[كود البنك]]&مرتب.الاداريين[[#This Row],[اسم الموظف]]&مرتب.الاداريين[[#This Row],[الرقم القومي]]&مرتب.الاداريين[[#This Row],[رقم الجوال]]&مرتب.الاداريين[[#This Row],[الشركة المدمجة]]&مرتب.الاداريين[[#This Row],[الوظيفة]]&مرتب.الاداريين[[#This Row],[الدرجة]] -> 10131322022إبراهيم محمودعبد الحافظالمباشررئيس قسم التراخيصالثانية | L55: 2222.75 | M55: 2667.3 | P55: 333.4125 | Q55: 188.32 | R55: 0 | U55: 0 | V55: 0 | W55: 0 | X55: 0 | AA55: 0 | AD55: 0 | AE55: =SUM(مرتب.الاداريين[[#This Row],[بدل مخاطر]:[بدل تباع]]) -> 521.7325 | AF55: 72.96 | AG55: 81.46 | AH55: 98.02 | AJ55: 190 | AK55: 44.43 | AL55: 79.24 | AM55: 101.74 | AN55: 145.15 | AO55: 155.32 | AP55: 166.19 | AQ55: 600 | AR55: 6 | AT55: =SUM(مرتب.الاداريين[[#This Row],[علاوة 2014]:[علاوات استثنائة]]) -> 1740.51 | AU55: 10 | AW55: =(مرتب.الاداريين[[#This Row],[التأمينات]]/11%)*18.75% -> 1425 | AZ55: =SUM(مرتب.الاداريين[[#This Row],[الأجر الأساسي]:[معونة مرضي]],مرتب.الاداريين[[#This Row],[إجمالي بدلات]],مرتب.الاداريين[[#This Row],[إجمالي علاوات]],مرتب.الاداريين[[#This Row],[منحة عيد العمال]:[Column2]]) -> 8587.2925 | BA55: =IF(مرتب.الاداريين[[#This Row],[الإجمالي]]<6000,6000-مرتب.الاداريين[[#This Row],[الإجمالي]],0) -> 0 | BB55: =مرتب.الاداريين[[#This Row],[الإجمالي]]+مرتب.الاداريين[[#This Row],[مكمل الأجر]] -> 8587.2925 | BC55: 0 | BD55: 0 | BE55: 836 | BF55: 0 | BK55: 0 | BL55: 0.5 | BM55: 3 | BN55: 0 | BO55: 0 | BP55: 2667.3 | BR55: 0 | BS55: 0 | BT55: 0 | BV55: 0 | BW55: 0 | BX55: 2.54 | BY55: 3 | CD55: 0 | CE55: 0 | CI55: =مرتب.الاداريين[[#This Row],[حصة صاحب العمل]] -> 1425 | CJ55: =مرتب.الاداريين[[#This Row],[متوسط مكافأة]] -> 0 | CL55: =SUM(مرتب.الاداريين[[#This Row],[التأمينات]:[Column3]]) -> 4937.34 | CM55: =مرتب.الاداريين[[#This Row],[المستحق]]-مرتب.الاداريين[[#This Row],[إجمالي المستقطع]] -> 3649.9525
C56: 0 | D56: 21296 | E56: عبد الباسط محمد عبد اللطيف | H56: المباشر | I56: ا. حركة ثان | J56: الثانية | K56: =مرتب.الاداريين[[#This Row],[كود الشركة]]&مرتب.الاداريين[[#This Row],[كود البنك]]&مرتب.الاداريين[[#This Row],[اسم الموظف]]&مرتب.الاداريين[[#This Row],[الرقم القومي]]&مرتب.الاداريين[[#This Row],[رقم الجوال]]&مرتب.الاداريين[[#This Row],[الشركة المدمجة]]&مرتب.الاداريين[[#This Row],[الوظيفة]]&مرتب.الاداريين[[#This Row],[الدرجة]] -> 021296عبد الباسط محمد عبد اللطيفالمباشرا. حركة ثانالثانية | L56: 2390.39 | M56: 2868.468 | P56: 358.5585 | Q56: 188.32 | R56: 0 | U56: 0 | V56: 0 | W56: 0 | X56: 0 | AA56: 0 | AD56: 0 | AE56: =SUM(مرتب.الاداريين[[#This Row],[بدل مخاطر]:[بدل تباع]]) -> 546.8785 | AF56: 79.11 | AG56: 88.53 | AH56: 113.3 | AJ56: 190 | AK56: 47.78 | AL56: 85.21 | AM56: 109.42 | AN56: 156.1 | AO56: 167.03 | AP56: 178.72 | AQ56: 600 | AR56: 10 | AT56: =SUM(مرتب.الاداريين[[#This Row],[علاوة 2014]:[علاوات استثنائة]]) -> 1825.2 | AU56: 10 | AW56: =(مرتب.الاداريين[[#This Row],[التأمينات]]/11%)*18.75% -> 0 | AZ56: =SUM(مرتب.الاداريين[[#This Row],[الأجر الأساسي]:[معونة مرضي]],مرتب.الاداريين[[#This Row],[إجمالي بدلات]],مرتب.الاداريين[[#This Row],[إجمالي علاوات]],مرتب.الاداريين[[#This Row],[منحة عيد العمال]:[Column2]]) -> 7640.9365 | BA56: =IF(مرتب.الاداريين[[#This Row],[الإجمالي]]<6000,6000-مرتب.الاداريين[[#This Row],[الإجمالي]],0) -> 0 | BB56: =مرتب.الاداريين[[#This Row],[الإجمالي]]+مرتب.الاداريين[[#This Row],[مكمل الأجر]] -> 7640.9365 | BC56: 0 | BD56: 0 | BE56: 0 | BK56: 0 | BL56: 0.5 | BM56: 3 | BN56: 0 | BO56: 0 | BP56: 0 | BR56: 0 | BS56: 0 | BT56: 0 | BV56: 0 | BW56: 0 | BX56: 4.5 | BY56: 5 | CD56: 0 | CE56: 0 | CI56: =مرتب.الاداريين[[#This Row],[حصة صاحب العمل]] -> 0 | CJ56: =مرتب.الاداريين[[#This Row],[متوسط مكافأة]] -> 0 | CL56: =SUM(مرتب.الاداريين[[#This Row],[التأمينات]:[Column3]]) -> 13 | CM56: =مرتب.الاداريين[[#This Row],[المستحق]]-مرتب.الاداريين[[#This Row],[إجمالي المستقطع]] -> 7627.9365
C57: 101078 | D57: 42320 | E57: اسامة يحي حامد | H57: المباشر | I57: مندوب امن | J57: الرلبعة | K57: =مرتب.الاداريين[[#This Row],[كود الشركة]]&مرتب.الاداريين[[#This Row],[كود البنك]]&مرتب.الاداريين[[#This Row],[اسم الموظف]]&مرتب.الاداريين[[#This Row],[الرقم القومي]]&مرتب.الاداريين[[#This Row],[رقم الجوال]]&مرتب.الاداريين[[#This Row],[الشركة المدمجة]]&مرتب.الاداريين[[#This Row],[الوظيفة]]&مرتب.الاداريين[[#This Row],[الدرجة]] -> 10107842320اسامة يحي حامدالمباشرمندوب امنالرلبعة | L57: 849.38 | M57: 1019.256 | P57: 127.407 | Q57: 188.32 | R57: 0 | U57: 0 | V57: 0 | W57: 0 | X57: 0 | AA57: 0 | AD57: 0 | AE57: =SUM(مرتب.الاداريين[[#This Row],[بدل مخاطر]:[بدل تباع]]) -> 315.727 | AF57: 28.18 | AG57: 31.71 | AH57: 65 | AJ57: 200 | AK57: 35.38 | AL57: 32.61 | AM57: 38.88 | AN57: 55.46 | AO57: 73.07 | AP57: 124.43 | AQ57: 600 | AR57: 10 | AT57: =SUM(مرتب.الاداريين[[#This Row],[علاوة 2014]:[علاوات استثنائة]]) -> 1294.72 | AU57: 10 | AW57: =(مرتب.الاداريين[[#This Row],[التأمينات]]/11%)*18.75% -> 918.75 | AZ57: =SUM(مرتب.الاداريين[[#This Row],[الأجر الأساسي]:[معونة مرضي]],مرتب.الاداريين[[#This Row],[إجمالي بدلات]],مرتب.الاداريين[[#This Row],[إجمالي علاوات]],مرتب.الاداريين[[#This Row],[منحة عيد العمال]:[Column2]]) -> 4407.833 | BA57: =IF(مرتب.الاداريين[[#This Row],[الإجمالي]]<6000,6000-مرتب.الاداريين[[#This Row],[الإجمالي]],0) -> 1592.167 | BB57: =مرتب.الاداريين[[#This Row],[الإجمالي]]+مرتب.الاداريين[[#This Row],[مكمل الأجر]] -> 6000 | BC57: 0 | BD57: 0 | BE57: 539 | BF57: 0 | BK57: 0 | BL57: 0.5 | BM57: 3 | BN57: 0 | BO57: 0 | BP57: 0 | BR57: 0 | BS57: 0 | BT57: 0 | BV57: 0 | BW57: 0 | BX57: 1.93 | BY57: 3 | CD57: 0 | CE57: 0 | CI57: =مرتب.الاداريين[[#This Row],[حصة صاحب العمل]] -> 918.75 | CJ57: =مرتب.الاداريين[[#This Row],[متوسط مكافأة]] -> 0 | CL57: =SUM(مرتب.الاداريين[[#This Row],[التأمينات]:[Column3]]) -> 1466.18 | CM57: =مرتب.الاداريين[[#This Row],[المستحق]]-مرتب.الاداريين[[#This Row],[إجمالي المستقطع]] -> 4533.82
C58: 201009 | D58: 21137 | E58: امين حفنى مصطفى | H58: المباشر | I58: فنى اول ميكانيكى | J58: اولى | K58: =مرتب.الاداريين[[#This Row],[كود الشركة]]&مرتب.الاداريين[[#This Row],[كود البنك]]&مرتب.الاداريين[[#This Row],[اسم الموظف]]&مرتب.الاداريين[[#This Row],[الرقم القومي]]&مرتب.الاداريين[[#This Row],[رقم الجوال]]&مرتب.الاداريين[[#This Row],[الشركة المدمجة]]&مرتب.الاداريين[[#This Row],[الوظيفة]]&مرتب.الاداريين[[#This Row],[الدرجة]] -> 20100921137امين حفنى مصطفى المباشرفنى اول ميكانيكىاولى | L58: 2882.64 | M58: 3459.168 | P58: 432.396 | Q58: 188.32 | R58: 0 | U58: 0 | V58: 0 | W58: 0 | X58: 0 | AA58: 0 | AD58: 0 | AE58: =SUM(مرتب.الاداريين[[#This Row],[بدل مخاطر]:[بدل تباع]]) -> 620.716 | AF58: 95.02 | AG58: 106.48 | AH58: 120 | AJ58: 190 | AK58: 57.62 | AL58: 102.76 | AM58: 131.95 | AN58: 188.25 | AO58: 201.43 | AP58: 215.52 | AQ58: 600 | AR58: 10 | AT58: =SUM(مرتب.الاداريين[[#This Row],[علاوة 2014]:[علاوات استثنائة]]) -> 2019.03 | AU58: 10 | AW58: =(مرتب.الاداريين[[#This Row],[التأمينات]]/11%)*18.75% -> 1800 | AZ58: =SUM(مرتب.الاداريين[[#This Row],[الأجر الأساسي]:[معونة مرضي]],مرتب.الاداريين[[#This Row],[إجمالي بدلات]],مرتب.الاداريين[[#This Row],[إجمالي علاوات]],مرتب.الاداريين[[#This Row],[منحة عيد العمال]:[Column2]]) -> 10791.554 | BA58: =IF(مرتب.الاداريين[[#This Row],[الإجمالي]]<6000,6000-مرتب.الاداريين[[#This Row],[الإجمالي]],0) -> 0 | BB58: =مرتب.الاداريين[[#This Row],[الإجمالي]]+مرتب.الاداريين[[#This Row],[مكمل الأجر]] -> 10791.554 | BC58: 0 | BD58: 0 | BE58: 1056 | BF58: 115.84 | BK58: 0 | BL58: 0.5 | BM58: 3 | BN58: 0 | BO58: 0 | BP58: 0 | BR58: 0 | BS58: 0 | BT58: 0 | BV58: 0 | BW58: 0 | BX58: 5.17 | BY58: 5 | CD58: 0 | CE58: 0 | CI58: =مرتب.الاداريين[[#This Row],[حصة صاحب العمل]] -> 1800 | CJ58: =مرتب.الاداريين[[#This Row],[متوسط مكافأة]] -> 0 | CL58: =SUM(مرتب.الاداريين[[#This Row],[التأمينات]:[Column3]]) -> 2985.51 | CM58: =مرتب.الاداريين[[#This Row],[المستحق]]-مرتب.الاداريين[[#This Row],[إجمالي المستقطع]] -> 7806.044
C59: 201026 | D59: 21641 | E59: محمد رجب سالم | H59: المباشر | I59: ميكانيكى | J59: الرابعة | K59: =مرتب.الاداريين[[#This Row],[كود الشركة]]&مرتب.الاداريين[[#This Row],[كود البنك]]&مرتب.الاداريين[[#This Row],[اسم الموظف]]&مرتب.الاداريين[[#This Row],[الرقم القومي]]&مرتب.الاداريين[[#This Row],[رقم الجوال]]&مرتب.الاداريين[[#This Row],[الشركة المدمجة]]&مرتب.الاداريين[[#This Row],[الوظيفة]]&مرتب.الاداريين[[#This Row],[الدرجة]] -> 20102621641محمد رجب سالمالمباشرميكانيكى الرابعة | L59: 2118.94 | M59: 2542.728 | P59: 317.841 | Q59: 188.32 | R59: 0 | U59: 0 | V59: 0 | W59: 0 | X59: 0 | AA59: 0 | AD59: 0 | AE59: =SUM(مرتب.الاداريين[[#This Row],[بدل مخاطر]:[بدل تباع]]) -> 506.161 | AF59: 75.13 | AG59: 83.84 | AH59: 100.03 | AJ59: 200 | AK59: 42.36 | AL59: 75.54 | AM59: 96.99 | AN59: 138.38 | AO59: 148.06 | AP59: 158.43 | AQ59: 600 | AR59: 10 | AT59: =SUM(مرتب.الاداريين[[#This Row],[علاوة 2014]:[علاوات استثنائة]]) -> 1728.76 | AU59: 10 | AW59: =(مرتب.الاداريين[[#This Row],[التأمينات]]/11%)*18.75% -> 1368.75 | AZ59: =SUM(مرتب.الاداريين[[#This Row],[الأجر الأساسي]:[معونة مرضي]],مرتب.الاداريين[[#This Row],[إجمالي بدلات]],مرتب.الاداريين[[#This Row],[إجمالي علاوات]],مرتب.الاداريين[[#This Row],[منحة عيد العمال]:[Column2]]) -> 8275.339 | BA59: =IF(مرتب.الاداريين[[#This Row],[الإجمالي]]<6000,6000-مرتب.الاداريين[[#This Row],[الإجمالي]],0) -> 0 | BB59: =مرتب.الاداريين[[#This Row],[الإجمالي]]+مرتب.الاداريين[[#This Row],[مكمل الأجر]] -> 8275.339 | BC59: 0 | BD59: 0 | BE59: 803 | BF59: 0 | BK59: 0 | BL59: 0.5 | BM59: 3 | BN59: 0 | BO59: 0 | BP59: 0 | BR59: 0 | BS59: 0 | BT59: 0 | BV59: 0 | BW59: 0 | BX59: 3.95 | BY59: 3 | CD59: 0 | CE59: 0 | CI59: =مرتب.الاداريين[[#This Row],[حصة صاحب العمل]] -> 1368.75 | CJ59: =مرتب.الاداريين[[#This Row],[متوسط مكافأة]] -> 0 | CL59: =SUM(مرتب.الاداريين[[#This Row],[التأمينات]:[Column3]]) -> 2182.2 | CM59: =مرتب.الاداريين[[#This Row],[المستحق]]-مرتب.الاداريين[[#This Row],[إجمالي المستقطع]] -> 6093.139
C60: 201024 | D60: 22004 | E60: محمود محمد محمود سالم | H60: المباشر | I60: نقاش | J60: الرابعة | K60: =مرتب.الاداريين[[#This Row],[كود الشركة]]&مرتب.الاداريين[[#This Row],[كود البنك]]&مرتب.الاداريين[[#This Row],[اسم الموظف]]&مرتب.الاداريين[[#This Row],[الرقم القومي]]&مرتب.الاداريين[[#This Row],[رقم الجوال]]&مرتب.الاداريين[[#This Row],[الشركة المدمجة]]&مرتب.الاداريين[[#This Row],[الوظيفة]]&مرتب.الاداريين[[#This Row],[الدرجة]] -> 20102422004محمود محمد محمود سالم المباشرنقاشالرابعة | L60: 1800.66 | M60: 2160.792 | P60: 270.099 | Q60: 188.32 | R60: 0 | U60: 0 | V60: 0 | W60: 0 | X60: 0 | AA60: 0 | AD60: 0 | AE60: =SUM(مرتب.الاداريين[[#This Row],[بدل مخاطر]:[بدل تباع]]) -> 458.419 | AF60: 64.21 | AG60: 71.65 | AH60: 85.47 | AJ60: 200 | AK60: 36 | AL60: 64.19 | AM60: 82.42 | AN60: 117.59 | AO60: 125.82 | AP60: 134.63 | AQ60: 600 | AR60: 6 | AT60: =SUM(مرتب.الاداريين[[#This Row],[علاوة 2014]:[علاوات استثنائة]]) -> 1587.98 | AU60: 10 | AW60: =(مرتب.الاداريين[[#This Row],[التأمينات]]/11%)*18.75% -> 1200 | AZ60: =SUM(مرتب.الاداريين[[#This Row],[الأجر الأساسي]:[معونة مرضي]],مرتب.الاداريين[[#This Row],[إجمالي بدلات]],مرتب.الاداريين[[#This Row],[إجمالي علاوات]],مرتب.الاداريين[[#This Row],[منحة عيد العمال]:[Column2]]) -> 7217.851 | BA60: =IF(مرتب.الاداريين[[#This Row],[الإجمالي]]<6000,6000-مرتب.الاداريين[[#This Row],[الإجمالي]],0) -> 0 | BB60: =مرتب.الاداريين[[#This Row],[الإجمالي]]+مرتب.الاداريين[[#This Row],[مكمل الأجر]] -> 7217.851 | BC60: 0 | BD60: 0 | BE60: 704 | BF60: 0 | BK60: 0 | BL60: 0.5 | BM60: 3 | BN60: 0 | BO60: 0 | BP60: 0 | BR60: 0 | BS60: 0 | BT60: 0 | BV60: 0 | BW60: 0 | BX60: 3.44 | BY60: 3 | CD60: 0 | CE60: 0 | CI60: =مرتب.الاداريين[[#This Row],[حصة صاحب العمل]] -> 1200 | CJ60: =مرتب.الاداريين[[#This Row],[متوسط مكافأة]] -> 0 | CL60: =SUM(مرتب.الاداريين[[#This Row],[التأمينات]:[Column3]]) -> 1913.94 | CM60: =مرتب.الاداريين[[#This Row],[المستحق]]-مرتب.الاداريين[[#This Row],[إجمالي المستقطع]] -> 5303.911
C61: 101066 | D61: 21954 | E61: ماهر عبد السميع محمد | H61: المباشر | I61: ا.حركة ثانى | J61: الثانيه | K61: =مرتب.الاداريين[[#This Row],[كود الشركة]]&مرتب.الاداريين[[#This Row],[كود البنك]]&مرتب.الاداريين[[#This Row],[اسم الموظف]]&مرتب.الاداريين[[#This Row],[الرقم القومي]]&مرتب.الاداريين[[#This Row],[رقم الجوال]]&مرتب.الاداريين[[#This Row],[الشركة المدمجة]]&مرتب.الاداريين[[#This Row],[الوظيفة]]&مرتب.الاداريين[[#This Row],[الدرجة]] -> 10106621954ماهر عبد السميع محمدالمباشرا.حركة ثانى الثانيه | L61: 2427.38 | M61: 2912.856 | P61: 364.107 | Q61: 188.32 | R61: 0 | U61: 0 | V61: 0 | W61: 0 | X61: 0 | AA61: 0 | AD61: 0 | AE61: =SUM(مرتب.الاداريين[[#This Row],[بدل مخاطر]:[بدل تباع]]) -> 552.427 | AF61: 79.6 | AG61: 89.12 | AH61: 107.14 | AJ61: 190 | AK61: 48.52 | AL61: 86.53 | AM61: 111.11 | AN61: 158.52 | AO61: 169.61 | AP61: 181.49 | AQ61: 600 | AR61: 10 | AT61: =SUM(مرتب.الاداريين[[#This Row],[علاوة 2014]:[علاوات استثنائة]]) -> 1831.64 | AU61: 10 | AW61: =(مرتب.الاداريين[[#This Row],[التأمينات]]/11%)*18.75% -> 1556.25 | AZ61: =SUM(مرتب.الاداريين[[#This Row],[الأجر الأساسي]:[معونة مرضي]],مرتب.الاداريين[[#This Row],[إجمالي بدلات]],مرتب.الاداريين[[#This Row],[إجمالي علاوات]],مرتب.الاداريين[[#This Row],[منحة عيد العمال]:[Column2]]) -> 9290.553 | BA61: =IF(مرتب.الاداريين[[#This Row],[الإجمالي]]<6000,6000-مرتب.الاداريين[[#This Row],[الإجمالي]],0) -> 0 | BB61: =مرتب.الاداريين[[#This Row],[الإجمالي]]+مرتب.الاداريين[[#This Row],[مكمل الأجر]] -> 9290.553 | BC61: 0 | BD61: 0 | BE61: 913 | BF61: 28.91 | BK61: 0 | BL61: 0.5 | BM61: 3 | BN61: 0 | BO61: 0 | BP61: 0 | BR61: 0 | BS61: 0 | BT61: 0 | BV61: 0 | BW61: 0 | BX61: 4.42 | BY61: 5 | CD61: 0 | CE61: 0 | CI61: =مرتب.الاداريين[[#This Row],[حصة صاحب العمل]] -> 1556.25 | CJ61: =مرتب.الاداريين[[#This Row],[متوسط مكافأة]] -> 0 | CL61: =SUM(مرتب.الاداريين[[#This Row],[التأمينات]:[Column3]]) -> 2511.08 | CM61: =مرتب.الاداريين[[#This Row],[المستحق]]-مرتب.الاداريين[[#This Row],[إجمالي المستقطع]] -> 6779.473
C62: 601027 | D62: 42313 | E62: احمد محمد احمد سلامة | H62: المباشر | I62: حارس | J62: خامسة | K62: =مرتب.الاداريين[[#This Row],[كود الشركة]]&مرتب.الاداريين[[#This Row],[كود البنك]]&مرتب.الاداريين[[#This Row],[اسم الموظف]]&مرتب.الاداريين[[#This Row],[الرقم القومي]]&مرتب.الاداريين[[#This Row],[رقم الجوال]]&مرتب.الاداريين[[#This Row],[الشركة المدمجة]]&مرتب.الاداريين[[#This Row],[الوظيفة]]&مرتب.الاداريين[[#This Row],[الدرجة]] -> 60102742313احمد محمد احمد سلامةالمباشرحارسخامسة | L62: 974.27 | M62: 1169.124 | P62: 146.1405 | Q62: 188.32 | R62: 0 | U62: 0 | V62: 0 | W62: 5.5 | X62: 0 | AA62: 0 | AD62: 0 | AE62: =SUM(مرتب.الاداريين[[#This Row],[بدل مخاطر]:[بدل تباع]]) -> 339.9605 | AF62: 31.96 | AG62: 35.75 | AH62: 65 | AJ62: 200 | AK62: 29.56 | AL62: 34.73 | AM62: 44.6 | AN62: 63.62 | AO62: 68.08 | AP62: 86.26 | AQ62: 600 | AR62: 4 | AT62: =SUM(مرتب.الاداريين[[#This Row],[علاوة 2014]:[علاوات استثنائة]]) -> 1263.56 | AU62: 10 | AW62: =(مرتب.الاداريين[[#This Row],[التأمينات]]/11%)*18.75% -> 937.5 | AZ62: =SUM(مرتب.الاداريين[[#This Row],[الأجر الأساسي]:[معونة مرضي]],مرتب.الاداريين[[#This Row],[إجمالي بدلات]],مرتب.الاداريين[[#This Row],[إجمالي علاوات]],مرتب.الاداريين[[#This Row],[منحة عيد العمال]:[Column2]]) -> 4694.4145 | BA62: =IF(مرتب.الاداريين[[#This Row],[الإجمالي]]<6000,6000-مرتب.الاداريين[[#This Row],[الإجمالي]],0) -> 1305.5855 | BB62: =مرتب.الاداريين[[#This Row],[الإجمالي]]+مرتب.الاداريين[[#This Row],[مكمل الأجر]] -> 6000 | BC62: 0 | BD62: 0 | BE62: 550 | BF62: 0 | BK62: 0 | BL62: 0.5 | BM62: 3 | BN62: 0 | BO62: 0 | BP62: 0 | BR62: 0 | BS62: 0 | BT62: 0 | BV62: 0 | BW62: 0 | BX62: 2.15 | BY62: 3 | CD62: 0 | CE62: 0 | CI62: =مرتب.الاداريين[[#This Row],[حصة صاحب العمل]] -> 937.5 | CJ62: =مرتب.الاداريين[[#This Row],[متوسط مكافأة]] -> 0 | CL62: =SUM(مرتب.الاداريين[[#This Row],[التأمينات]:[Column3]]) -> 1496.15 | CM62: =مرتب.الاداريين[[#This Row],[المستحق]]-مرتب.الاداريين[[#This Row],[إجمالي المستقطع]] -> 4503.85
C63: 601022 | D63: 42301 | E63: اشرف احمد محمد شعبان | H63: المباشر | I63: حارس | J63: خامسة | K63: =مرتب.الاداريين[[#This Row],[كود الشركة]]&مرتب.الاداريين[[#This Row],[كود البنك]]&مرتب.الاداريين[[#This Row],[اسم الموظف]]&مرتب.الاداريين[[#This Row],[الرقم القومي]]&مرتب.الاداريين[[#This Row],[رقم الجوال]]&مرتب.الاداريين[[#This Row],[الشركة المدمجة]]&مرتب.الاداريين[[#This Row],[الوظيفة]]&مرتب.الاداريين[[#This Row],[الدرجة]] -> 60102242301اشرف احمد محمد شعبانالمباشرحارسخامسة | L63: 974.27 | M63: 1169.124 | P63: 146.1405 | Q63: 188.32 | R63: 0 | U63: 0 | V63: 0 | W63: 5.5 | X63: 0 | AA63: 0 | AD63: 0 | AE63: =SUM(مرتب.الاداريين[[#This Row],[بدل مخاطر]:[بدل تباع]]) -> 339.9605 | AF63: 31.96 | AG63: 35.75 | AH63: 65 | AJ63: 200 | AK63: 29.56 | AL63: 34.73 | AM63: 44.6 | AN63: 63.62 | AO63: 68.08 | AP63: 86.26 | AQ63: 600 | AR63: 10 | AT63: =SUM(مرتب.الاداريين[[#This Row],[علاوة 2014]:[علاوات استثنائة]]) -> 1269.56 | AU63: 10 | AW63: =(مرتب.الاداريين[[#This Row],[التأمينات]]/11%)*18.75% -> 937.5 | AZ63: =SUM(مرتب.الاداريين[[#This Row],[الأجر الأساسي]:[معونة مرضي]],مرتب.الاداريين[[#This Row],[إجمالي بدلات]],مرتب.الاداريين[[#This Row],[إجمالي علاوات]],مرتب.الاداريين[[#This Row],[منحة عيد العمال]:[Column2]]) -> 4700.4145 | BA63: =IF(مرتب.الاداريين[[#This Row],[الإجمالي]]<6000,6000-مرتب.الاداريين[[#This Row],[الإجمالي]],0) -> 1299.5855 | BB63: =مرتب.الاداريين[[#This Row],[الإجمالي]]+مرتب.الاداريين[[#This Row],[مكمل الأجر]] -> 6000 | BC63: 0 | BD63: 0 | BE63: 550 | BF63: 0 | BK63: 0 | BL63: 0.5 | BM63: 3 | BN63: 0 | BO63: 0 | BP63: 0 | BR63: 0 | BS63: 0 | BT63: 0 | BV63: 0 | BW63: 0 | BX63: 2.15 | BY63: 3 | CD63: 0 | CE63: 0 | CI63: =مرتب.الاداريين[[#This Row],[حصة صاحب العمل]] -> 937.5 | CJ63: =مرتب.الاداريين[[#This Row],[متوسط مكافأة]] -> 0 | CL63: =SUM(مرتب.الاداريين[[#This Row],[التأمينات]:[Column3]]) -> 1496.15 | CM63: =مرتب.الاداريين[[#This Row],[المستحق]]-مرتب.الاداريين[[#This Row],[إجمالي المستقطع]] -> 4503.85
C64: 101016 | D64: 11222 | E64: خالد السيد اسماعيل | H64: المباشر | I64: مدير ادارة امن وسائل النقل | J64: الاولى | K64: =مرتب.الاداريين[[#This Row],[كود الشركة]]&مرتب.الاداريين[[#This Row],[كود البنك]]&مرتب.الاداريين[[#This Row],[اسم الموظف]]&مرتب.الاداريين[[#This Row],[الرقم القومي]]&مرتب.الاداريين[[#This Row],[رقم الجوال]]&مرتب.الاداريين[[#This Row],[الشركة المدمجة]]&مرتب.الاداريين[[#This Row],[الوظيفة]]&مرتب.الاداريين[[#This Row],[الدرجة]] -> 10101611222خالد السيد اسماعيلالمباشرمدير ادارة امن وسائل النقلالاولى | L64: 2654.69 | M64: 3185.628 | P64: 398.2035 | Q64: 188.32 | R64: 0 | U64: 0 | V64: 0 | W64: 0 | X64: 0 | AA64: 0 | AD64: 0 | AE64: =SUM(مرتب.الاداريين[[#This Row],[بدل مخاطر]:[بدل تباع]]) -> 586.5235 | AF64: 87.27 | AG64: 97.45 | AH64: 117.06 | AJ64: 190 | AK64: 53.07 | AL64: 94.64 | AM64: 121.52 | AN64: 173.36 | AO64: 185.5 | AP64: 198.48 | AQ64: 600 | AR64: 10 | AT64: =SUM(مرتب.الاداريين[[#This Row],[علاوة 2014]:[علاوات استثنائة]]) -> 1928.35 | AU64: 10 | AW64: =(مرتب.الاداريين[[#This Row],[التأمينات]]/11%)*18.75% -> 1668.75 | AZ64: =SUM(مرتب.الاداريين[[#This Row],[الأجر الأساسي]:[معونة مرضي]],مرتب.الاداريين[[#This Row],[إجمالي بدلات]],مرتب.الاداريين[[#This Row],[إجمالي علاوات]],مرتب.الاداريين[[#This Row],[منحة عيد العمال]:[Column2]]) -> 10033.9415 | BA64: =IF(مرتب.الاداريين[[#This Row],[الإجمالي]]<6000,6000-مرتب.الاداريين[[#This Row],[الإجمالي]],0) -> 0 | BB64: =مرتب.الاداريين[[#This Row],[الإجمالي]]+مرتب.الاداريين[[#This Row],[مكمل الأجر]] -> 10033.9415 | BC64: 0 | BD64: 0 | BE64: 979 | BF64: 72.59 | BK64: 0 | BL64: 0.5 | BM64: 3 | BN64: 0 | BO64: 0 | BP64: 0 | BR64: 0 | BS64: 0 | BT64: 0 | BV64: 0 | BW64: 0 | BX64: 4.77 | BY64: 5 | CD64: 0 | CE64: 0 | CI64: =مرتب.الاداريين[[#This Row],[حصة صاحب العمل]] -> 1668.75 | CJ64: =مرتب.الاداريين[[#This Row],[متوسط مكافأة]] -> 0 | CL64: =SUM(مرتب.الاداريين[[#This Row],[التأمينات]:[Column3]]) -> 2733.61 | CM64: =مرتب.الاداريين[[#This Row],[المستحق]]-مرتب.الاداريين[[#This Row],[إجمالي المستقطع]] -> 7300.3315
